Workbook

Sheet Contents
C2: Contents
F3: Colour Codes | K3: File Name: | M3: =IFERROR(File_name(),"") -> 
C4: Questions | G4: Inputs | I4: 1234567890
G5: Section Titles | I5: TITLE ROW | K5: Last Save Date | M5: =IFERROR(lastsaved(),"") -> 
C6: Summary | G6: Sum Column | I6: 1000000000
G7: True or 1 | I7: =1=1 -> TRUE | K7: Last Save By | M7: =IFERROR(last_save_by(),"") -> 
C8: Control Page | G8: False or 0 | I8: =1=2 -> FALSE
G9: Other Sheet Links | I9: |||||||||||||||||||
C10: Inputs
D11: Timing
D12: Production of Palm Oil and Efflent
D13: Production from Biogas Upgrading Unit
D14: Capacity and Production of Biogas Dispenser
D15: Truck Assumptions
D16: Revenues
D17: Operating Cost
D18: Capital Expenditures
D19: Generator
D20: Discount Rates
C22: Financial Model
D23: Truck Demand
D24: Production of CNG to Meet Demand
D25: Operating Expenses
D26: Capital Expenditure
D27: investor IRR Perspective
D28: Savings to Mill
D29: Replacement Capital Expenditure
D30: Tax
D31: Financing
D32: Mill Perspective
C34: Back Up Data
C36: Data
C38: Gannt

Sheet Questions
L1: Fix Graph
B3: Changes | L3: Find max number of trucks
D4: Derived the Number of Pumps Required
D5: Computed Deficit Biogass and Methane from Electricity | L5: For self generation
D6: Inflated O&M Cost | L6: For purchase option
D7: Alternate Electricity Cost Factors upgrader
L8: Make electricity price sensitivity
B10: New Questions | D10: Tank Size in kg | L10: Greenfield/Brownfield
D11: does 1 litre = 1000 m3
D12: Pumping should not be always for full tank | L12: Check the Brownfield/Greenfield | P12: ok
D13: Kwh per M3 for Biogass production -- does this change with size
D14: Pump Maintenance on hours of pump or hours of upgrader | L14: Report the price of methane | Q14: Revenues approx
D15: Capital Expenditures for Upgrader in 60 Ton Case | L15: Per m3 | Q15: Costs about same
D16: Cost per kW is lower | L16: per kg
L17: per MMBTU | Q17: IRR | R17: 0.085
D18: Do you want rigid capacities
D19: Why is lagoon maintenance on per kwh basis | L19: Check pumping | P19: ok | Q19: EBTIDA | R19: 611
L20: Check number of nozzels | P20: ok
D21: Making Full Fill | Q21: Steven Bidders
L22: Fix the diesel cost for ten year
L23: Add option to fix diesel cost
I24: Show Example
L25: Translate Currency
C26: Surplus Production of Diesel | I26: Brownfiled Option
C27: Show Picture of Min and Max | L27: O&M Expense
C28: Storage of Bio CNG | L28: Extra Maintenance of Trucks
I29: Covered Lagoon
C30: Model 6 Days per year | I30: 3% Paracetici Lagoon
C31: 1 Day production | I31: 35 kW to Run Pumpus
C33: Min Flow Available | I33: 500 M3 ==> 1.1 MW per Hour
C34: Cannot Convet Electricity Engines | I34: 3% of 1.1 MW
C35: Deduct some for Engines | I35: =0.03*1100 -> 33 | J35: kW | K35: Lagoon Power
C36: Make a Balance
C37: Paracitic Load
C39: Brownfield with Already in Lagoon
C47: Maintenance in Period with Excess
C49: Availabilty of Upgrading Unit
C50: Conversion of CNG to Filling
C51: Operating Days for Trucks versus Upgrader
C52: Converstion to kM

Sheet Summary
E1: Mill Size Constraint | I1: Installation Size | R1: Demand Constraint | U1: Trucks | W1: =Inputs!F26 -> 50
U2: Distance km | W2: =Inputs!F18 -> 150
E3: BOT Period | G3: =Inputs!F6 -> 10 | U3: km/Litre | W3: =Inputs!F100/'Questions 1'!I13/100 -> 2.5
E4: Operating Period | G4: =Inputs!F8 -> 30 | U4: km per Year | W4: ='Operating Model'!AC20 -> 4320000
E5: Mill Production (Tons) | G5: =Inputs!F14 -> 60 | M5: Elec Price | N5: =Inputs!F180*1000 -> 20 | O5: USD/MWH
E6: Available Hours | G6: =Inputs!F50 -> 5200 | U6: Diesel Price/L | W6: =Inputs!F208 -> 0.564
U7: Discount | W7: =Inputs!F209 -> 0
E8: Min Biogass/Month | G8: =Inputs!F77 -> 507
U9: Methane/L | W9: ='Operating Model'!K298 -> 0.108288
E10: Lagoon Membrane --> Biogass | J10: Fruit Bunch | U10: Methane/kg | W10: ='Operating Model'!K299 -> 0.1441228555
E11: Effluent % | G11: =Inputs!F54 -> 0.65 | U11: Methane/MMBTU | W11: ='Operating Model'!K300 -> 3.10261895
E12: Methane in Biogass | G12: =Inputs!F85 -> 0.58
U13: BE Trucks w/o Elec | W13: ='Operating Model'!K56 -> 60.78882088
E14: Capital Expenditures | U14: BE Trucks w/ Elec | W14: ='Operating Model'!K182 -> 34.53552994
E15: Lagoon | F15: =G15/$G$20 -> 0.3125 | G15: ='Operating Model'!H234 -> 1500000 | L15: Biogass | Q15: Methane
E16: Upgrader | F16: =G16/$G$20 -> 0.375 | G16: ='Operating Model'!H241 -> 1800000 | U16: Methane Dispenser Pumps
E17: Dispenser | F17: 0.1145833333 | G17: ='Operating Model'!H247 -> 550000 | U17: Number of Pumps | W17: =Inputs!F108 -> 6
E18: Trucks | F18: 0.1145833333 | G18: ='Operating Model'!H249 -> 550000 | L18: Upgrader to Produce Methane from Biogass | U18: Flow Rate | W18: =Inputs!F431 -> 3200
E19: Electricity Plant | F19: 0.08333333333 | G19: ='Operating Model'!H251 -> 400000 | L19: Capacity in Biogass M3/Hour | O19: =Inputs!F82 -> 507 | U19: Minutes/Day/Truck | W19: ='Operating Model'!K126 -> 0
E20: Total Cap Exp | G20: =SUM(G15:G19) -> 4800000 | L20: Operating Days | O20: =Inputs!F91 -> 350 | U20: Capital Expenditure | W20: =Inputs!F253 -> 550000
E22: Investor Perspective | L22: Methane Production M3/Hour | O22: ='Operating Model'!K70 -> 300.1230928 | R22: Mill Perspective
E23: Project IRR | G23: ='Operating Model'!H292 -> 0.06982557476 | L23: Methane Production kg/Hour | O23: ='Operating Model'!K71 -> 225.5001774 | R23: NPV of Fuel Savings During BOT Period | W23: ='Operating Model'!K341 -> 0
E24: Debt/Capital | G24: ='Financial Model'!G67+'Financial Model'!G68 -> 0.7 | L24: Methane Production MMBTU/Hr | O24: ='Operating Model'!K72 -> 10.47493424 | R24: NPV of Savings After BOT Period | W24: ='Operating Model'!K344 -> 2809100.139
E25: NPV of Cash | G25: ='Operating Model'!K346 -> 92048.22836 | R25: Total Value to Mill | W25: =SUM(W23:W24) -> 2809100.139
E27: Equity IRR | G27: ='Financial Model'!H143 -> 0.08327375352

Sheet Control Page
C2: Scenario Code | D2: 1
D5: Electricity Price | E5: Mill Availability | F5: Effluent Percent | G5: Percent CH4 in Effluent | H5: Availability of Upgrader | I5: Filling Flow Rate | J5: Truck Distance | K5: Number of Trucks | L5: Fuel Efficiency | M5: Real Diesel Price | N5: Discount to Diesel Price | O5: Diesel Price Inflation | P5: BOT Period | Q5: Operating Period | R5: Truck Volume
K6: Number | L6: km/M3
B7: 1 | C7: Base Case | D7: 0.1 | E7: 5200 | F7: 0.65 | G7: 0.58 | H7: 0.97 | I7: 3200 | J7: 150 | K7: 50 | L7: 2.083333333 | M7: 0.564 | N7: 0 | O7: 0 | P7: 10 | Q7: 30
B8: 2 | C8: Low Diesel Price | D8: 0.1 | E8: 5200 | F8: 0.65 | G8: 0.58 | H8: 0.97 | I8: 3200 | J8: 150 | K8: 50 | L8: 2.083333333 | M8: 0.55 | N8: 0.2 | O8: 0.02 | P8: 10 | Q8: 30
B9: 3 | C9: Low Mill Production | D9: 0.1 | E9: 5200 | F9: 0.65 | G9: 0.58 | H9: 0.97 | I9: 3200 | J9: 150 | K9: 50 | L9: 2.083333333 | M9: 0.6451612903 | N9: 0.2 | O9: 0.02 | P9: 10 | Q9: 30
B10: 4 | C10: Low Effluent % | D10: 0.1 | E10: 5200 | F10: 0.62 | G10: 0.58 | H10: 0.97 | I10: 3200 | J10: 150 | K10: 50 | L10: 2.083333333 | M10: 0.6451612903 | N10: 0.2 | O10: 0.02 | P10: 10 | Q10: 30
B11: 5 | C11: High Diesel Price | D11: 0.1 | E11: 5200 | F11: 0.65 | G11: 0.58 | H11: 0.97 | I11: 3200 | J11: 150 | K11: 50 | L11: 2.083333333 | M11: 0.8 | N11: 0.2 | O11: 0.02 | P11: 10 | Q11: 30
B12: 6 | C12: Low Truck Distance | D12: 0.1 | E12: 5200 | F12: 0.65 | G12: 0.58 | H12: 0.97 | I12: 3200 | J12: 100 | K12: 50 | L12: 2.083333333 | M12: 0.6451612903 | N12: 0.2 | O12: 0.02 | P12: 10 | Q12: 30
B13: 7 | C13: High Truck Distance | D13: 0.1 | E13: 5200 | F13: 0.65 | G13: 0.58 | H13: 0.97 | I13: 3200 | J13: 200 | K13: 50 | L13: 2.083333333 | M13: 0.6451612903 | N13: 0.2 | O13: 0.02 | P13: 10 | Q13: 30
B14: 8 | C14: Higher Discount | D14: 0.1 | E14: 5200 | F14: 0.65 | G14: 0.58 | H14: 0.97 | I14: 3200 | J14: 150 | K14: 50 | L14: 2.083333333 | M14: 0.6451612903 | N14: 0.25 | O14: 0.02 | P14: 10 | Q14: 30
B15: 9 | C15: Lower Discount | D15: 0.1 | E15: 5200 | F15: 0.65 | G15: 0.58 | H15: 0.97 | I15: 3200 | J15: 150 | K15: 50 | L15: 2.083333333 | M15: 0.6451612903 | N15: 0.15 | O15: 0.02 | P15: 10 | Q15: 30
B16: 10 | C16: Low Mill Availability | D16: 0.1 | E16: 5000 | F16: 0.65 | G16: 0.58 | H16: 0.97 | I16: 3200 | J16: 150 | K16: 50 | L16: 2.083333333 | M16: 0.6451612903 | N16: 0.2 | O16: 0.02 | P16: 10 | Q16: 30
B17: 11 | C17: Low Upgrader Availabilty | D17: 0.1 | E17: 5200 | F17: 0.65 | G17: 0.58 | H17: 0.94 | I17: 3200 | J17: 150 | K17: 50 | L17: 2.083333333 | M17: 0.6451612903 | N17: 0.2 | O17: 0.02 | P17: 10 | Q17: 30
B18: 12 | C18: Low Diesel Inflation | D18: 0.1 | E18: 5200 | F18: 0.65 | G18: 0.58 | H18: 0.97 | I18: 3200 | J18: 150 | K18: 50 | L18: 2.083333333 | M18: 0.6451612903 | N18: 0.2 | O18: 0 | P18: 10 | Q18: 30
B19: 13 | C19: High Diesel Inflation | D19: 0.1 | E19: 5200 | F19: 0.65 | G19: 0.58 | H19: 0.97 | I19: 3200 | J19: 150 | K19: 50 | L19: 2.083333333 | M19: 0.6451612903 | N19: 0.2 | O19: 0.04 | P19: 10 | Q19: 30
B20: 14 | C20: Longer BOT Period | D20: 0.1 | E20: 5200 | F20: 0.65 | G20: 0.58 | H20: 0.97 | I20: 3200 | J20: 150 | K20: 50 | L20: 2.083333333 | M20: 0.6451612903 | N20: 0.2 | O20: 0.02 | P20: 15 | Q20: 30
B21: 15 | C21: Shorter BOT Period | D21: 0.1 | E21: 5200 | F21: 0.65 | G21: 0.58 | H21: 0.97 | I21: 3200 | J21: 150 | K21: 50 | L21: 2.083333333 | M21: 0.6451612903 | N21: 0.2 | O21: 0.02 | P21: 8 | Q21: 30
B22: 16 | C22: Longer Operating | D22: 0.1 | E22: 5200 | F22: 0.65 | G22: 0.58 | H22: 0.97 | I22: 3200 | J22: 150 | K22: 50 | L22: 2.083333333 | M22: 0.6451612903 | N22: 0.2 | O22: 0.02 | P22: 10 | Q22: 40
C24: =INDEX(C7:C23,$D$2) -> Base Case | D24: =INDEX(D7:D23,$D$2) -> 0.1 | E24: =INDEX(E7:E23,$D$2) -> 5200 | F24: =INDEX(F7:F23,$D$2) -> 0.65 | G24: =INDEX(G7:G23,$D$2) -> 0.58 | H24: =INDEX(H7:H23,$D$2) -> 0.97 | I24: =INDEX(I7:I23,$D$2) -> 3200 | J24: =INDEX(J7:J23,$D$2) -> 150 | K24: =INDEX(K7:K23,$D$2) -> 50 | L24: =INDEX(L7:L23,$D$2) -> 2.083333333 | M24: =INDEX(M7:M23,$D$2) -> 0.564 | N24: =INDEX(N7:N23,$D$2) -> 0 | O24: =INDEX(O7:O23,$D$2) -> 0 | P24: =INDEX(P7:P23,$D$2) -> 10 | Q24: =INDEX(Q7:Q23,$D$2) -> 30
D25: 1 | E25: 2 | F25: 3 | G25: 4 | H25: 5 | I25: 6 | J25: 7 | K25: 8 | L25: 9 | M25: 10 | N25: 11 | O25: 12 | P25: 13 | Q25: 14
C26: Low Mill Production | D26: 0.1 | E26: 5200 | F26: 65 | G26: 58 | H26: 97 | I26: 3200 | J26: 150 | K26: 50 | L26: 208.3333333 | M26: 56.4 | N26: 0 | O26: 0 | P26: 10 | Q26: 30
L28: =L26/0.8/100 -> 2.604166667
C37: Diesel Price | D37: 2020 | E37: 2021 | F37: 2022 | G37: 2023 | H37: 2025 | I37: 2026 | J37: 2027
C38: Case 1
C39: Case 2
C40: Case 3
C42: Palm Oil Price

Sheet Inputs
B2: Timing
C3: Start of Construction (Financial Close) | E3: Date | F3: 2020-01-01
C4: Construction Period | E4: Months | F4: 12
C5: Commercial Operation | E5: Date | F5: =EDATE(F3,F4) -> 2021-01-01
C6: BOT Period | E6: Years | F6: ='Control Page'!P26 -> 10
C7: End of BOT Period | E7: Date | F7: =EDATE(F5,F6*12) -> 2031-01-01
C8: Period for Analysis | E8: Years | F8: ='Control Page'!Q26 -> 30
C9: End of Operating Life | E9: Date | F9: =EDATE(F5,F8*12) -> 2051-01-01
C11: Periods per Year - Construction | E11: Months | F11: 12
C12: Periods per Year - Operation | E12: Months | F12: 1
C14: Mill Capacity - Fresh Fruit Bunch (FFB) | E14: Tons/Hour | F14: ='Operating Expense and Cap Exp'!K18 -> 60
B16: Demand: Truck Assumptions
C18: km per Round Trip | E18: km | F18: ='Control Page'!J26 -> 150
C19: Trips per day | E19: Trips | F19: 2
C20: Total Distrance Travelled | E20: km | F20: =F18*F19 -> 300
C22: Daily Operation of Trucks | E22: Days | F22: 6
C23: Weekly Operation of Trucks | E23: Weeks | F23: 48
C24: Operating Days | E24: Days | F24: =F22*F23 -> 288
C25: Annual km per Truck | E25: km | F25: =F20*F22*F23 -> 86400
C26: Total Number of Trucks | E26: Number | F26: ='Control Page'!$K$26 -> 50
C27: Total Annual km | E27: km | F27: =F25*F26 -> 4320000
C29: Truck fuel tank volume (liters) | E29: Litres | F29: 400
C30: 1 M3 =1000 Litre
C31: Truck diesel consumption (km/L of diesel) | E31: km/Litre | F31: 2.5
C32: Fuel Efficiency of Trucks | E32: Litre/100 km | F32: =1/F31*100 -> 40
C33: Added Consumption of CNG vs Diesel | E33: Factor | F33: 1.2
C34: Liters for Working Day | E34: Litres | F34: =F20/F31 -> 120
C35: Efficiency with Added Consumption | E35: km/Litre | F35: =F31/F33 -> 2.083333333
C36: Litres to M3 | E36: M3/Litre | F36: 1000
C38: Conversion of km/Litre to km/M3 of Methane | E38: km/M3/km/CH4 | F38: ='Questions 1'!I13 -> 0.8333333333
C39: Fuel Efficiency in km/M3 of Methane | E39: km/M3 Methane | F39: =F38*F31 -> 2.083333333
C41: Maintenance per Truck | E41: USD/km | F41: ='Questions 1'!I50 -> 0.02364864865
C42: Increase in Maintenance Cost | E42: % | F42: 0.15
C44: Additional Truck Maintenance | E44: USD/km/yr | F44: 0.0057
B47: Production of Palm Oil and Biogas Efflent from Lagoon
C49: Production of Palm Oil
D50: Mill Availability | E50: Hours per Year | F50: ='Control Page'!$E$26 -> 5200
D51: Fresh Fruit Bunch Production (FFB) | E51: FFB per Year | F51: =F50*F14 -> 312000
C53: Production of Methane
D54: Palm Oil Mill Efflent as Percent of FFB | E54: % | F54: ='Control Page'!F26/100 -> 0.65
D55: Palm Oil Mill Effeluent | E55: Ton/year | F55: =F54*F51 -> 202800
D56: Biogas Available M3/ton | E56: M3/Ton | F56: 30
D57: Annual Production of Biogas | E57: M3/Year | F57: =F55*F56 -> 6084000
C59: Monthly Production | G59: Driver/Total | H59: January | I59: February | J59: March | K59: April | L59: May | M59: June | N59: July | O59: August | P59: September | Q59: October | R59: November | S59: December
D60: FFB seasonality | E60: % of Total | G60: =SUM(H60:S60) -> 1 | H60: 0.07 | I60: 0.06 | J60: 0.065 | K60: 0.06 | L60: 0.07 | M60: 0.085 | N60: 0.1 | O60: 0.12 | P60: 0.11 | Q60: 0.1 | R60: 0.085 | S60: 0.075
D61: Mill Availability - Annual Amount | E61: FFB Tons | G61: =F51 -> 312000 | H61: =$G$61*H60 -> 21840 | I61: 18720 | J61: 20280 | K61: 18720 | L61: 21840 | M61: 26520 | N61: 31200 | O61: 37440 | P61: 34320 | Q61: 31200 | R61: 26520 | S61: 23400
D62: Mill Availability - Annual Amount at Min Month | E62: FFB Tons | G62: =MIN(H61:S61)*12 -> 224640
D63: Effluent Percet of FFB | E63: Percent | G63: =F54 -> 0.65 | H63: =$G$63 -> 0.65 | I63: =$G$63 -> 0.65 | J63: 0.65 | K63: 0.65 | L63: 0.65 | M63: 0.65 | N63: 0.65 | O63: 0.65 | P63: 0.65 | Q63: 0.65 | R63: 0.65 | S63: 0.65
D64: Monthly Effluent Production | E64: Tons | G64: =G61*G63 -> 202800 | H64: =H61*H63 -> 14196 | I64: 12168 | J64: 13182 | K64: 12168 | L64: 14196 | M64: 17238 | N64: 20280 | O64: 24336 | P64: 22308 | Q64: 20280 | R64: 17238 | S64: 15210
D65: Conversion to Biogass Effeluent M3/Ton | E65: M3/Ton | G65: =$F$56 -> 30 | H65: =$G$65 -> 30 | I65: =$G$65 -> 30 | J65: 30 | K65: 30 | L65: 30 | M65: 30 | N65: 30 | O65: 30 | P65: 30 | Q65: 30 | R65: 30 | S65: 30
D66: Monthly Biogass Effluent Production | E66: M3 | G66: =G64*G65 -> 6084000 | H66: =H64*H65 -> 425880 | I66: 365040 | J66: 395460 | K66: 365040 | L66: 425880 | M66: 517140 | N66: 608400 | O66: 730080 | P66: 669240 | Q66: 608400 | R66: 517140 | S66: 456300
D67: Hours in Month | E67: Hours | G67: =SUM(H67:S67) -> 8760 | H67: =31*24 -> 744 | I67: =28*24 -> 672 | J67: =31*24 -> 744 | K67: =30*24 -> 720 | L67: =31*24 -> 744 | M67: =30*24 -> 720 | N67: =31*24 -> 744 | O67: =31*24 -> 744 | P67: =30*24 -> 720 | Q67: =31*24 -> 744 | R67: =30*24 -> 720 | S67: =31*24 -> 744
D68: Hours of Month for Min Month | E68: Hours | G68: =INDEX(K67:S67,MATCH(F77,H74:S74,0)) -> 720
D69: Hourly Biogass Effluent Production | E69: M3/Hr | G69: =G66/G67 -> 694.5205479 | H69: =H66/H67 -> 572.4193548 | I69: 543.2142857 | J69: 531.5322581 | K69: 507 | L69: 572.4193548 | M69: 718.25 | N69: 817.7419355 | O69: 981.2903226 | P69: 929.5 | Q69: 817.7419355 | R69: 718.25 | S69: 613.3064516
D70: Maintenance Days | E70: Day | N70: 5 | O70: 5 | P70: 5
D71: Maintenance Hour | E71: Hours | H71: =H70*24 -> 0 | I71: =I70*24 -> 0 | J71: 0 | K71: 0 | L71: 0 | M71: 0 | N71: 120 | O71: =O70*24 -> 120 | P71: =P70*24 -> 120 | Q71: =Q70*24 -> 0 | R71: =R70*24 -> 0 | S71: =S70*24 -> 0
D72: Reduction in Effluent Production from Maint | E72: M3 | G72: =G69*G71 -> 0 | H72: =H69*H71 -> 0 | I72: 0 | J72: 0 | K72: 0 | L72: 0 | M72: 0 | N72: 98129.03226 | O72: 117754.8387 | P72: 111540 | Q72: 0 | R72: 0 | S72: 0
D73: Net Production Available to Upgrader | E73: M3 | G73: =G66-G72 -> 6084000 | H73: =(H66-H72)/H67 -> 572.4193548 | I73: =(I66-I72)/I67 -> 543.2142857 | J73: 531.5322581 | K73: 507 | L73: 572.4193548 | M73: 718.25 | N73: 685.8480749 | O73: 823.0176899 | P73: 774.5833333 | Q73: 817.7419355 | R73: 718.25 | S73: 613.3064516
D74: Minimum | E74: M3 | G74: =F77 -> 507 | H74: =$G$74 -> 507 | I74: =$G$74 -> 507 | J74: 507 | K74: 507 | L74: 507 | M74: 507 | N74: 507 | O74: 507 | P74: 507 | Q74: 507 | R74: 507 | S74: 507
D75: Surplus Effluent - Used for Electricity | E75: M3 | G75: =SUM(H75:S75) -> 2238.665899 | H75: =H69-H74 -> 65.41935484 | I75: 36.21428571 | J75: 24.53225806 | K75: 0 | L75: 65.41935484 | M75: 211.25 | N75: 310.7419355 | O75: 474.2903226 | P75: 422.5 | Q75: 310.7419355 | R75: 211.25 | S75: 106.3064516
D77: Minimum Monthly Biogass Production | E77: M3/Hr | F77: =MIN(H73:S73) -> 507
B79: Production of Methane from Biogas Upgrading Unit
C81: Capacity in Terms of Biogass and Methane
D82: Hourly Biogas Effluent Production Capacity | E82: M3/Hour | F82: ='Operating Expense and Cap Exp'!L18 -> 507
D83: Operating Hours of Plant | E83: Hours | F83: =F130*24 -> 8400
D85: Methane as Percent of Biogass Production | E85: % | F85: ='Control Page'!G26/100 -> 0.58
D86: Upgrading Efficiency | E86: % | F86: 0.99
D87: Methane Volume in Bio CNG | E87: % | F87: ='Control Page'!H26/100 -> 0.97
D88: Factor for Converting Biogass to Methane | E88: Biogass/Methane | F88: =F85*F86/F87 -> 0.5919587629
D89: Factor for Converting to Methane to Biogass | E89: Methane/Biogass | F89: =1/F88 -> 1.689306862
D91: Annual Operating Days of Upgrader | E91: Days | F91: 350 | G91: =365-F91 -> 15
D92: Hourly Production CNG | E92: M3/Hour | F92: =F82*F85*F86/F87 -> 300.1230928
D93: Conversion of kg/M3 | E93: kg/M3 | F93: =E471 -> 0.7513589683
D94: Hourly Production Bio CNG | E94: kg/Hour | F94: =F92*F93 -> 225.5001774
D96: Daily Production of CNG | E96: kg/Day | F96: =F94*24 -> 5412.004257
D97: Annual Production in kg | E97: kg/Year | F97: =F96*F91 -> 1894201.49
D98: Converstion to M3 | E98: M3/kg | F98: =E473 -> 1.330921759
D99: Annual Production in CNG | E99: M3 | F99: =F97*F98 -> 2521033.979
D100: Conversion km to M3 | E100: km/M3 | F100: =E508 -> 208.3333333
D101: Total Production in Equivelant km | E101: km | F101: =F99*F100 -> 525215412.4
D103: Conversion MJ/kg | E103: MJ/kg | F103: =E481 -> 51.45424841
D104: Annual Production in MJ | E104: MJ/Year | F104: =F96*F103*F91 -> 97464713.99
B106: Capacity and Production of Biogas Dispenser (Pumps)
C108: Derived Number of Nozzels | E108: Number | F108: ='Operating Model'!K116 -> 6
C109: Override Number of Nozzels | E109: Number | F109: 6
C110: Flow Rate in Terms of M3 per Hour | E110: M3/Hour | F110: 3200
C112: Converstion of M3 to kg | E112: kg/M3 | F112: =(F132*0.016+(1-F132)*0.044)/((8.314*273.15/101325)) -> 0.7513589683
C113: Flow Rate in Terms of kg per Hour | E113: kg/Hour | F113: =F112*F110 -> 2404.348699
C114: Flow Rate in Terms of kg per Minute | E114: kg/Minute | F114: =F113/60 -> 40.07247831
C115: Manuevering Time | E115: Minutes | F115: 1
C117: Maximum Visits per Day | E117: Visits | F117: 2
C118: Target Filling | E118: Minutes | F118: 60
C120: Truck Tank Volume | E120: kg/Truck | F120: =((F125/1000)*(200+1.01325)*100000/(0.9*8.314*298.15))*(0.016*F132+0.044*(1-F132)) -> 60.693114
C121: Ratio of kg/Litres | E121: kg/Litre | F121: =F120/F125 -> 0.151732785
C122: Complete Filling Time for One Truck in Minutes | E122: Minutes | F122: =F120/F114 -> 1.514583489
C123: Time to Completely Fill Including Manuvevering | E123: Minutes | F123: =F122+F115 -> 2.514583489
C125: Truck Tank Volume | E125: Litres/Truck | F125: =F29 -> 400
C126: Truck Tank Volume | E126: kg/Truck | F126: =F125*F112 -> 300.5435873
C128: Hours in Day | E128: Hours | F128: 24
C129: Minutes per Filling-up Truck | F129: 3.019444652
C130: Operating Days of Plant | E130: Days | F130: =F91 -> 350
C131: Conversion MJ/kg | E131: MJ/kg | F131: =PCS_méthane_pur_mass -> 55.83051181
C132: Percent Volume CH4 in bio GNC | E132: % | F132: 0.97
C133: Converstion to BTU | E133: BTU/kg | F133: 46452
C134: Converstion to MMBTU | E134: MMBTU | F134: =F133/1000000 -> 0.046452
B136: Operating Cost
C138: Inflation In O&M Cost | E138: % p.a. | F138: 0
C140: Mill Size Benchmark | E140: Tons | F140: 45 | G140: 60 | H140: 90
C141: Lagoon Maintenance | E141: USD/Year | F141: ='Operating Expense and Cap Exp'!D28 -> 16016 | G141: ='Operating Expense and Cap Exp'!E28 -> 18298.8 | H141: ='Operating Expense and Cap Exp'!F28 -> 22867
C142: Brownfield Flag | E142: Flag | F142: =NOT(F217) -> TRUE
C143: Lagoon Maintenance Applied | E143: USD/Year | F143: =LOOKUP(F14,140:140,141:141)*F142 -> 18298.8
C145: Mill Size Benchmark | E145: Tons | F145: 45 | G145: 60 | H145: 90
C146: Upgrading Cost | E146: USD/Year | F146: 55328 | G146: 65910 | H146: 87058.4
C147: Upgrader Cost Applied | E147: USD/Year | F147: =LOOKUP(F14,145:145,146:146) -> 65910
C149: Mill Size Benchmark | E149: Tons | F149: 45 | G149: 60 | H149: 90
C150: Cost per Hour of Filling | E150: USD/hour | F150: 4.5 | G150: 5 | H150: 5.5
C151: Cost per Hour Applied | E151: USD/hour | F151: =LOOKUP(F14,149:149,150:150) -> 5
C152: Total Cost | G152: 42000
C154: Extra Maintenance on Trucks | E154: Cost/km | F154: 0.0057 | G154: 0.0057 | H154: 0.0057
C155: Investor Resposable | E155: Flag | F155: TRUE
C158: Mill Size Benchmark | E158: Tons | F158: 45 | G158: 60 | H158: 90
C159: Overhead | E159: USD/Year | F159: 35000 | G159: 35000 | H159: 35000
C160: Overhead Applied | E160: USD/Year | F160: =LOOKUP(F14,158:158,159:159) -> 35000
B162: Electricity Cost
C163: Purchase Generator Flag | E163: Flag | F163: TRUE
C165: Electricity Requirements (Not Used)
D166: Hourly Treatment Production of CNG | E166: M3/Hour | F166: 0 | G166: 200 | H166: 500 | I166: 800
D167: Electricity consumption upgrading unit | E167: kWh/M3 | F167: 0.5 | G167: 0.4 | H167: 0.3 | I167: =H167 -> 0.3
D169: Biogas kW per M3 of Biogass for Electricity | E169: kW/M3 | F169: 0.8
D170: Biogas kW per M3 of Methane | E170: kW/M3 | F170: =F169*F85 -> 0.464 | G170: Question for different
D172: Energy Conversion of Methane | E172: kWh/M3 | F172: 9.97
D173: Generator Efficiency | E173: % | F173: 0.4
D175: Percent of Potential Capacity Used for Lagoon | E175: % | F175: 0.03
D176: Pumping Electricity kW/M3 | E176: kW/M3 | F176: 0.6
C178: Purchase Price Option
D179: Inflation Rate for Electricity | E179: % | F179: 0
D180: Electricity Purchase Price/kWh | E180: USD/kWh | F180: =G180/1000 -> 0.02 | G180: 20
C182: Maintenance Cost
D183: Mill Size Benchmark | E183: Tons | F183: 45 | G183: 60 | H183: 90
D184: kW Base | E184: kW | F184: 474.641959 | G184: 633.272298 | H184: 950.5329758
D185: Cost/kWh | E185: USD/kWh | F185: 0.011 | G185: 0.01 | H185: 0.009
D186: Mill Hours | E186: Hours | F186: =$F$50 -> 5200 | G186: =$F$50 -> 5200 | H186: 5200
D187: Total Maintenance | E187: USD/Year | F187: =F184*F185*F186 -> 27149.52006 | G187: =G184*G185*G186 -> 32930.15949 | H187: 44484.94327
D188: Applied | E188: USD/Year | F188: =LOOKUP(F14,183:183,187:187) -> 32930.15949
D190: Cost/kWh Applied | E190: USD/kWh | F190: =LOOKUP(F14,183:183,185:185) -> 0.01
D191: Maintenance Cost | E191: USD/kWh | F191: 0.01
D193: Major Maintenance Hours | E193: Hours | F193: 60000
D194: Major Maintenance Years | E194: Years
D195: Cost as Percent of Capital Expenditures | E195: % | F195: 0.2
B197: Macro-Economic
D198: Year | F198: 2019 | G198: 2020 | H198: 2021 | I198: 2022 | J198: 2023 | K198: 2024 | L198: 2025 | M198: 2026 | N198: 2027
D200: Indonesia Exchange Rate | F200: 14250 | G200: =F200*1.02 -> 14535 | H200: =G200*1.02 -> 14825.7 | I200: 15122.214 | J200: 15424.65828 | K200: 15733.15145 | L200: 16047.81447 | M200: 16368.77076 | N200: 16696.14618
D201: USD Inflation Rate | F201: 0.012 | G201: 0.012 | H201: 0.012 | I201: 0.012 | J201: 0.012 | K201: 0.012 | L201: 0.012 | M201: 0.012 | N201: 0.012
D202: Implied Local Inflation Rate | G202: =(1+G201)*G200/F200-1 -> 0.03224 | H202: =(1+H201)*H200/G200-1 -> 0.03224 | I202: 0.03224 | J202: 0.03224 | K202: 0.03224 | L202: 0.03224 | M202: 0.03224 | N202: 0.03224
B205: Revenues
C207: Fix Diesel | E207: Flag | F207: TRUE
C208: Real Diesel Price | E208: USD/L | F208: ='Control Page'!M26/100 -> 0.564
C209: Discount to Diesel Price | E209: % | F209: ='Control Page'!N26/100 -> 0
C210: Diesel Price Inflation | E210: % p.a. | F210: ='Control Page'!O26/100 -> 0
C211: Fuel Efficiency | E211: km/L 100 | F211: 2.5
C212: Fuel Efficiency | E212: L/km | F212: =1/F211*100 -> 40
B214: Capital Expenditures
C216: Lagoon
D217: Brownfield | E217: Flag | F217: FALSE
D219: Mill Size Benchmark | E219: Tons | F219: 45 | G219: 60 | H219: 90
D220: Lagoon Capital Expenditure | F220: 1200000 | G220: 1500000 | H220: 2100000
D221: Lagoon for Greenfield | F221: =LOOKUP(F14,219:219,220:220) -> 1500000
D222: Factor for Components | F222: =F221/$G$220 -> 1
D224: Civil Works | E224: USD | F224: 200000 | G224: =F224*$F$222 -> 200000 | H224: =NOT($F$217) -> TRUE | I224: =G224*H224 -> 200000
D225: Gasometrical Cover | E225: USD | F225: 200000 | G225: =F225*$F$222 -> 200000 | H225: =NOT($F$217) -> TRUE | I225: =G225*H225 -> 200000
D226: Liner | E226: USD | F226: 200000 | G226: 200000 | H226: TRUE | I226: 200000
D227: Piping and Technology | E227: USD | F227: =G220-SUM(F224:F226) -> 900000 | G227: 900000 | H227: TRUE | I227: 900000
D228: Total | E228: USD | F228: =SUM(F224:F227) -> 1500000 | G228: 1500000 | H228: TRUE | I228: 1500000
C230: Upgrader
D231: Mill Size Benchmark | E231: Tons | F231: 45 | G231: 60 | H231: 90
D232: Upgrader Capacity | E232: Biogass M3/Day | F232: 380 | G232: 507 | H232: 761
D233: Upgrading Capital Expenditure | E233: USD | F233: 1600000 | G233: 1800000 | H233: 2600000
D234: Upgrading Capital Expenditure Applied | E234: USD | F234: =LOOKUP(F14,231:231,233:233) -> 1800000
D235: Factor | E235: % | F235: =F234/G233 -> 1
F237: Amount
D238: Compressor | E238: USD | F238: 300000 | G238: =F238*$F$222 -> 300000 | H238: TRUE | I238: =H238*G238 -> 300000
D239: Membranes | E239: USD | F239: 300000 | G239: =F239*$F$222 -> 300000 | H239: TRUE | I239: =H239*G239 -> 300000
D240: Pretreatment | E240: USD | F240: 200000 | G240: =F240*$F$222 -> 200000 | H240: TRUE | I240: 200000
D241: Other | E241: USD | F241: =G233-SUM(F238:F240) -> 1000000 | G241: =F241*$F$222 -> 1000000 | H241: TRUE | I241: 1000000
D242: Total | E242: USD | F242: =SUM(F238:F241) -> 1800000 | G242: =F242*$F$222 -> 1800000 | H242: TRUE | I242: 1800000
C244: CNG Station
D245: Mill Size Benchmark | E245: Tons | F245: 45 | G245: 60 | H245: 90
D246: CNG Station | E246: USD | F246: 450000 | G246: 550000 | H246: 800000
D247: CNG Station Applied | E247: USD | F247: =LOOKUP(F14,245:245,246:246) -> 550000
D248: Factor | E248: % | F248: =F247/G246 -> 1
D250: Compressor | E250: USD | F250: 150000 | G250: 15 | H250: =F250*$F$248 -> 150000
D251: Storage Skid | E251: USD | F251: 150000 | G251: 20 | H251: =F251*$F$248 -> 150000
D252: Filing Station | E252: USD | F252: =G246-F251-F250 -> 250000 | G252: 15 | H252: 250000
D253: Total | E253: USD | F253: =SUM(F250:F252) -> 550000 | H253: 550000
C255: Install Generator Option
D256: Mill Size Benchmark | E256: Mill | F256: 45 | G256: 60 | H256: 90
D257: kW Range | E257: kW | F257: 880 | G257: 1173 | H257: 1759
D258: Cost per kW | E258: USD/kW | F258: =F259/F257 -> 397.7272727 | G258: =G259/G257 -> 341.0059676 | H258: 312.6776578
D259: Total Cost | E259: USD | F259: 350000 | G259: 400000 | H259: 550000
D261: Install Generator Flag | E261: Flag | F261: =F163 -> TRUE
... 164 more rows

Sheet Operating Model
B1: Timeline | H1: Driver 1 | I1: Description | J1: Driver 2 | K1: Sum/Max
C2: Period | N2: 1 | O2: 2 | P2: 3 | Q2: 4 | R2: 5 | S2: 6 | T2: 7 | U2: 8 | V2: 9 | W2: 10 | X2: 11 | Y2: 12 | Z2: 13 | AA2: 14 | AB2: 15 | AC2: 16 | AD2: 17 | AE2: 18 | AF2: 19 | AG2: 20 | AH2: 21 | AI2: 22 | AJ2: 23 | AK2: 24 | AL2: 25 | AM2: 26 | AN2: 27 | AO2: 28 | AP2: 29 | AQ2: 30 | AR2: 31 | AS2: 32 | AT2: 33 | AU2: 34 | AV2: 35 | AW2: 36 | AX2: 37 | AY2: 38 | AZ2: 39 | BA2: 40 | BB2: 41 | BC2: 42 | BD2: 43 | BE2: 44 | BF2: 45 | BG2: 46 | BH2: 47 | BI2: 48 | BJ2: 49 | BK2: 50 | BL2: 51 | BM2: 52 | BN2: 53 | BO2: 54 | BP2: 55 | BQ2: 56 | BR2: 57 | BS2: 58
C3: Construction | G3: Flag | H3: =Inputs!$F$4 -> 12 | N3: =N2<=$H$3 -> TRUE | O3: TRUE | P3: TRUE | Q3: TRUE | R3: TRUE | S3: TRUE | T3: TRUE | U3: TRUE | V3: TRUE | W3: TRUE | X3: TRUE | Y3: TRUE | Z3: FALSE | AA3: FALSE | AB3: FALSE | AC3: FALSE | AD3: FALSE | AE3: FALSE | AF3: FALSE | AG3: FALSE | AH3: FALSE | AI3: FALSE | AJ3: FALSE | AK3: FALSE | AL3: FALSE | AM3: FALSE | AN3: FALSE | AO3: FALSE | AP3: FALSE | AQ3: FALSE | AR3: FALSE | AS3: FALSE | AT3: FALSE | AU3: FALSE | AV3: FALSE | AW3: FALSE | AX3: FALSE | AY3: FALSE | AZ3: FALSE | BA3: FALSE | BB3: =BB2<=$H$3 -> FALSE | BC3: =BC2<=$H$3 -> FALSE | BD3: =BD2<=$H$3 -> FALSE | BE3: =BE2<=$H$3 -> FALSE | BF3: =BF2<=$H$3 -> FALSE | BG3: =BG2<=$H$3 -> FALSE | BH3: =BH2<=$H$3 -> FALSE | BI3: =BI2<=$H$3 -> FALSE | BJ3: =BJ2<=$H$3 -> FALSE | BK3: =BK2<=$H$3 -> FALSE | BL3: =BL2<=$H$3 -> FALSE | BM3: =BM2<=$H$3 -> FALSE | BN3: =BN2<=$H$3 -> FALSE | BO3: =BO2<=$H$3 -> FALSE | BP3: =BP2<=$H$3 -> FALSE | BQ3: =BQ2<=$H$3 -> FALSE | BR3: =BR2<=$H$3 -> FALSE | BS3: =BS2<=$H$3 -> FALSE
C4: Periods per Year | G4: Months | H4: =Inputs!$F$12 -> 1 | J4: =Inputs!$F$11 -> 12 | N4: =IF(N$3,$H4,$J4) -> 1 | O4: 1 | P4: 1 | Q4: 1 | R4: 1 | S4: 1 | T4: 1 | U4: 1 | V4: 1 | W4: 1 | X4: 1 | Y4: 1 | Z4: 12 | AA4: 12 | AB4: 12 | AC4: 12 | AD4: 12 | AE4: 12 | AF4: 12 | AG4: 12 | AH4: 12 | AI4: 12 | AJ4: 12 | AK4: 12 | AL4: 12 | AM4: 12 | AN4: 12 | AO4: 12 | AP4: 12 | AQ4: 12 | AR4: 12 | AS4: 12 | AT4: =IF(AT$3,$H4,$J4) -> 12 | AU4: 12 | AV4: 12 | AW4: 12 | AX4: 12 | AY4: 12 | AZ4: 12 | BA4: 12 | BB4: 12 | BC4: 12 | BD4: 12 | BE4: 12 | BF4: 12 | BG4: 12 | BH4: 12 | BI4: 12 | BJ4: 12 | BK4: 12 | BL4: 12 | BM4: 12 | BN4: 12 | BO4: 12 | BP4: 12 | BQ4: 12 | BR4: 12 | BS4: 12
C5: Start of Period | G5: Date | N5: =M6+1 -> 2020-01-01 | O5: =N6+1 -> 2020-02-01 | P5: 2020-03-01 | Q5: 2020-04-01 | R5: 2020-05-01 | S5: 2020-06-01 | T5: 2020-07-01 | U5: 2020-08-01 | V5: 2020-09-01 | W5: 2020-10-01 | X5: 2020-11-01 | Y5: 2020-12-01 | Z5: 2021-01-01 | AA5: 2022-01-01 | AB5: 2023-01-01 | AC5: 2024-01-01 | AD5: 2025-01-01 | AE5: 2026-01-01 | AF5: 2027-01-01 | AG5: 2028-01-01 | AH5: 2029-01-01 | AI5: 2030-01-01 | AJ5: 2031-01-01 | AK5: 2032-01-01 | AL5: 2033-01-01 | AM5: 2034-01-01 | AN5: 2035-01-01 | AO5: 2036-01-01 | AP5: 2037-01-01 | AQ5: 2038-01-01 | AR5: 2039-01-01 | AS5: 2040-01-01 | AT5: 2041-01-01 | AU5: 2042-01-01 | AV5: 2043-01-01 | AW5: 2044-01-01 | AX5: 2045-01-01 | AY5: 2046-01-01 | AZ5: 2047-01-01 | BA5: 2048-01-01 | BB5: =BA6+1 -> 2049-01-01 | BC5: =BB6+1 -> 2050-01-01 | BD5: =BC6+1 -> 2051-01-01 | BE5: =BD6+1 -> 2052-01-01 | BF5: =BE6+1 -> 2053-01-01 | BG5: =BF6+1 -> 2054-01-01 | BH5: =BG6+1 -> 2055-01-01 | BI5: =BH6+1 -> 2056-01-01 | BJ5: =BI6+1 -> 2057-01-01 | BK5: =BJ6+1 -> 2058-01-01 | BL5: =BK6+1 -> 2059-01-01 | BM5: =BL6+1 -> 2060-01-01 | BN5: =BM6+1 -> 2061-01-01 | BO5: =BN6+1 -> 2062-01-01 | BP5: =BO6+1 -> 2063-01-01 | BQ5: =BP6+1 -> 2064-01-01 | BR5: =BQ6+1 -> 2065-01-01 | BS5: =BR6+1 -> 2066-01-01
C6: End of Period | G6: Date | M6: =Inputs!$F$3-1 -> 2019-12-31 | N6: =EDATE(N5,N4)-1 -> 2020-01-31 | O6: =EDATE(O5,O4)-1 -> 2020-02-29 | P6: 2020-03-31 | Q6: 2020-04-30 | R6: 2020-05-31 | S6: 2020-06-30 | T6: 2020-07-31 | U6: 2020-08-31 | V6: 2020-09-30 | W6: 2020-10-31 | X6: 2020-11-30 | Y6: 2020-12-31 | Z6: 2021-12-31 | AA6: 2022-12-31 | AB6: 2023-12-31 | AC6: 2024-12-31 | AD6: 2025-12-31 | AE6: 2026-12-31 | AF6: 2027-12-31 | AG6: 2028-12-31 | AH6: 2029-12-31 | AI6: 2030-12-31 | AJ6: 2031-12-31 | AK6: 2032-12-31 | AL6: 2033-12-31 | AM6: 2034-12-31 | AN6: 2035-12-31 | AO6: 2036-12-31 | AP6: 2037-12-31 | AQ6: 2038-12-31 | AR6: 2039-12-31 | AS6: 2040-12-31 | AT6: 2041-12-31 | AU6: 2042-12-31 | AV6: 2043-12-31 | AW6: 2044-12-31 | AX6: 2045-12-31 | AY6: 2046-12-31 | AZ6: 2047-12-31 | BA6: 2048-12-31 | BB6: =EDATE(BB5,BB4)-1 -> 2049-12-31 | BC6: 2050-12-31 | BD6: 2051-12-31 | BE6: 2052-12-31 | BF6: 2053-12-31 | BG6: 2054-12-31 | BH6: 2055-12-31 | BI6: 2056-12-31 | BJ6: 2057-12-31 | BK6: 2058-12-31 | BL6: 2059-12-31 | BM6: 2060-12-31 | BN6: 2061-12-31 | BO6: 2062-12-31 | BP6: 2063-12-31 | BQ6: 2064-12-31 | BR6: 2065-12-31 | BS6: 2066-12-31
C7: BOT Period | G7: Flag | H7: =Inputs!$F$5 -> 2021-01-01 | J7: =Inputs!$F$7 -> 2031-01-01 | N7: =AND(N$5>=$H7,N$5<$J7)*1 -> 0 | O7: =AND(O5>=$H$7,O5<$J$7)*1 -> 0 | P7: 0 | Q7: 0 | R7: 0 | S7: 0 | T7: 0 | U7: 0 | V7: 0 | W7: 0 | X7: 0 | Y7: 0 | Z7: 1 | AA7: 1 | AB7: 1 | AC7: 1 | AD7: 1 | AE7: 1 | AF7: 1 | AG7: 1 | AH7: 1 | AI7: 1 | AJ7: 0 | AK7: 0 | AL7: 0 | AM7: 0 | AN7: 0 | AO7: 0 | AP7: 0 | AQ7: 0 | AR7: 0 | AS7: 0 | AT7: 0 | AU7: =AND(AU5>=$H$7,AU5<$J$7)*1 -> 0 | AV7: 0 | AW7: 0 | AX7: 0 | AY7: 0 | AZ7: 0 | BA7: 0 | BB7: 0 | BC7: 0 | BD7: 0 | BE7: 0 | BF7: 0 | BG7: 0 | BH7: 0 | BI7: 0 | BJ7: 0 | BK7: 0 | BL7: 0 | BM7: 0 | BN7: 0 | BO7: 0 | BP7: 0 | BQ7: 0 | BR7: 0 | BS7: 0
C8: Evaluation Period | G8: Flag | H8: =Inputs!$F$5 -> 2021-01-01 | J8: =Inputs!$F$9 -> 2051-01-01 | N8: =AND(N$5>=$H8,N$5<$J8)*1 -> 0 | O8: =AND(O$5>=$H8,O$5<$J8)*1 -> 0 | P8: 0 | Q8: 0 | R8: 0 | S8: 0 | T8: 0 | U8: 0 | V8: 0 | W8: 0 | X8: 0 | Y8: 0 | Z8: 1 | AA8: 1 | AB8: 1 | AC8: 1 | AD8: 1 | AE8: 1 | AF8: 1 | AG8: 1 | AH8: 1 | AI8: 1 | AJ8: 1 | AK8: 1 | AL8: 1 | AM8: 1 | AN8: 1 | AO8: 1 | AP8: 1 | AQ8: 1 | AR8: 1 | AS8: 1 | AT8: 1 | AU8: =AND(AU$5>=$H8,AU$5<$J8)*1 -> 1 | AV8: 1 | AW8: 1 | AX8: 1 | AY8: 1 | AZ8: 1 | BA8: 1 | BB8: 1 | BC8: 1 | BD8: 0 | BE8: 0 | BF8: 0 | BG8: 0 | BH8: 0 | BI8: 0 | BJ8: 0 | BK8: 0 | BL8: 0 | BM8: 0 | BN8: 0 | BO8: 0 | BP8: 0 | BQ8: 0 | BR8: 0 | BS8: 0
C9: Post BOT Period | G9: Flag | N9: =AND(N8,NOT(N7))*1 -> 0 | O9: =AND(O8,NOT(O7))*1 -> 0 | P9: 0 | Q9: 0 | R9: 0 | S9: 0 | T9: 0 | U9: 0 | V9: 0 | W9: 0 | X9: 0 | Y9: 0 | Z9: 0 | AA9: 0 | AB9: 0 | AC9: 0 | AD9: 0 | AE9: 0 | AF9: 0 | AG9: 0 | AH9: 0 | AI9: 0 | AJ9: 1 | AK9: 1 | AL9: 1 | AM9: 1 | AN9: 1 | AO9: 1 | AP9: 1 | AQ9: 1 | AR9: 1 | AS9: 1 | AT9: 1 | AU9: 1 | AV9: 1 | AW9: 1 | AX9: 1 | AY9: 1 | AZ9: 1 | BA9: 1 | BB9: 1 | BC9: 1 | BD9: 0 | BE9: 0 | BF9: 0 | BG9: 0 | BH9: 0 | BI9: 0 | BJ9: 0 | BK9: 0 | BL9: 0 | BM9: 0 | BN9: 0 | BO9: 0 | BP9: 0 | BQ9: 0 | BR9: 0 | BS9: 0
B11: Truck Demand in km
C13: Truck CNG Usage - Demand
D14: km per Round Trip | G14: km | H14: =Inputs!F18 -> 150 | I14: km | N14: =$H14 -> 150 | O14: 150 | P14: 150 | Q14: 150 | R14: 150 | S14: 150 | T14: 150 | U14: 150 | V14: 150 | W14: 150 | X14: =$H14 -> 150 | Y14: 150 | Z14: 150 | AA14: 150 | AB14: 150 | AC14: 150 | AD14: 150 | AE14: 150 | AF14: 150 | AG14: 150 | AH14: =$H14 -> 150 | AI14: 150 | AJ14: 150 | AK14: 150 | AL14: 150 | AM14: 150 | AN14: 150 | AO14: 150 | AP14: 150 | AQ14: 150 | AR14: =$H14 -> 150 | AS14: 150 | AT14: 150 | AU14: 150 | AV14: 150 | AW14: 150 | AX14: 150 | AY14: 150 | AZ14: 150 | BA14: 150 | BB14: =$H14 -> 150 | BC14: 150 | BD14: 150 | BE14: 150 | BF14: 150 | BG14: 150 | BH14: 150 | BI14: 150 | BJ14: 150 | BK14: 150 | BL14: =$H14 -> 150 | BM14: 150 | BN14: 150 | BO14: 150 | BP14: 150 | BQ14: 150 | BR14: 150 | BS14: 150
D15: Trips per day | G15: Trips | H15: =Inputs!F19 -> 2 | I15: trips | N15: 2 | O15: 2 | P15: 2 | Q15: 2 | R15: 2 | S15: 2 | T15: 2 | U15: 2 | V15: 2 | W15: 2 | X15: 2 | Y15: 2 | Z15: 2 | AA15: 2 | AB15: 2 | AC15: 2 | AD15: 2 | AE15: 2 | AF15: 2 | AG15: 2 | AH15: 2 | AI15: 2 | AJ15: 2 | AK15: 2 | AL15: 2 | AM15: 2 | AN15: 2 | AO15: 2 | AP15: 2 | AQ15: 2 | AR15: 2 | AS15: 2 | AT15: 2 | AU15: 2 | AV15: 2 | AW15: 2 | AX15: 2 | AY15: 2 | AZ15: 2 | BA15: 2 | BB15: 2 | BC15: 2 | BD15: 2 | BE15: 2 | BF15: 2 | BG15: 2 | BH15: 2 | BI15: 2 | BJ15: 2 | BK15: 2 | BL15: 2 | BM15: 2 | BN15: 2 | BO15: 2 | BP15: 2 | BQ15: 2 | BR15: 2 | BS15: 2
D16: Total Distrance Travelled per Day | G16: km/Day | H16: =Inputs!F20 -> 300 | I16: km | N16: 300 | O16: 300 | P16: 300 | Q16: 300 | R16: 300 | S16: 300 | T16: 300 | U16: 300 | V16: 300 | W16: 300 | X16: 300 | Y16: 300 | Z16: 300 | AA16: 300 | AB16: 300 | AC16: 300 | AD16: 300 | AE16: 300 | AF16: 300 | AG16: 300 | AH16: 300 | AI16: 300 | AJ16: 300 | AK16: 300 | AL16: 300 | AM16: 300 | AN16: 300 | AO16: 300 | AP16: 300 | AQ16: 300 | AR16: 300 | AS16: 300 | AT16: 300 | AU16: 300 | AV16: 300 | AW16: 300 | AX16: 300 | AY16: 300 | AZ16: 300 | BA16: 300 | BB16: 300 | BC16: 300 | BD16: 300 | BE16: 300 | BF16: 300 | BG16: 300 | BH16: 300 | BI16: 300 | BJ16: 300 | BK16: 300 | BL16: 300 | BM16: 300 | BN16: 300 | BO16: 300 | BP16: 300 | BQ16: 300 | BR16: 300 | BS16: 300
H17: Days | J17: Weeks
D18: Total km travelled per year per truck Days x Weeks | G18: km/Year | H18: =Inputs!$F$22 -> 6 | I18: km/truck | J18: =Inputs!$F$23 -> 48 | K18: =MAX(N18:BS18) -> 86400 | N18: =N16*$J$18*$H$18 -> 86400 | O18: 86400 | P18: 86400 | Q18: 86400 | R18: 86400 | S18: 86400 | T18: 86400 | U18: 86400 | V18: 86400 | W18: 86400 | X18: 86400 | Y18: 86400 | Z18: 86400 | AA18: 86400 | AB18: 86400 | AC18: 86400 | AD18: 86400 | AE18: 86400 | AF18: 86400 | AG18: 86400 | AH18: 86400 | AI18: 86400 | AJ18: 86400 | AK18: 86400 | AL18: 86400 | AM18: 86400 | AN18: 86400 | AO18: 86400 | AP18: 86400 | AQ18: 86400 | AR18: 86400 | AS18: 86400 | AT18: =AT16*$J$18*$H$18 -> 86400 | AU18: 86400 | AV18: 86400 | AW18: 86400 | AX18: 86400 | AY18: 86400 | AZ18: 86400 | BA18: 86400 | BB18: 86400 | BC18: 86400 | BD18: 86400 | BE18: 86400 | BF18: 86400 | BG18: 86400 | BH18: 86400 | BI18: 86400 | BJ18: 86400 | BK18: 86400 | BL18: 86400 | BM18: 86400 | BN18: 86400 | BO18: 86400 | BP18: 86400 | BQ18: 86400 | BR18: 86400 | BS18: 86400
D19: Number of Trucks | G19: Number | H19: =Inputs!F26 -> 50 | I19: weeks | K19: =MAX(N19:BS19) -> 50 | N19: =$H19*N8 -> 0 | O19: 0 | P19: 0 | Q19: 0 | R19: 0 | S19: 0 | T19: 0 | U19: 0 | V19: 0 | W19: 0 | X19: 0 | Y19: 0 | Z19: 50 | AA19: 50 | AB19: 50 | AC19: 50 | AD19: 50 | AE19: 50 | AF19: 50 | AG19: 50 | AH19: 50 | AI19: 50 | AJ19: 50 | AK19: 50 | AL19: 50 | AM19: 50 | AN19: 50 | AO19: 50 | AP19: 50 | AQ19: 50 | AR19: 50 | AS19: 50 | AT19: =$H19*AT8 -> 50 | AU19: 50 | AV19: 50 | AW19: 50 | AX19: 50 | AY19: 50 | AZ19: 50 | BA19: 50 | BB19: 50 | BC19: 50 | BD19: 0 | BE19: 0 | BF19: 0 | BG19: 0 | BH19: 0 | BI19: 0 | BJ19: 0 | BK19: 0 | BL19: 0 | BM19: 0 | BN19: 0 | BO19: 0 | BP19: 0 | BQ19: 0 | BR19: 0 | BS19: 0
D20: Total Annual km Demand | G20: km/Year | K20: =MAX(N20:BS20) -> 4320000 | N20: =N18*N19 -> 0 | O20: =O18*O19 -> 0 | P20: 0 | Q20: 0 | R20: 0 | S20: 0 | T20: 0 | U20: 0 | V20: 0 | W20: 0 | X20: 0 | Y20: 0 | Z20: =Z18*Z19 -> 4320000 | AA20: 4320000 | AB20: 4320000 | AC20: 4320000 | AD20: 4320000 | AE20: 4320000 | AF20: 4320000 | AG20: 4320000 | AH20: 4320000 | AI20: 4320000 | AJ20: 4320000 | AK20: 4320000 | AL20: 4320000 | AM20: 4320000 | AN20: 4320000 | AO20: 4320000 | AP20: 4320000 | AQ20: 4320000 | AR20: 4320000 | AS20: 4320000 | AT20: 4320000 | AU20: 4320000 | AV20: 4320000 | AW20: 4320000 | AX20: 4320000 | AY20: 4320000 | AZ20: 4320000 | BA20: 4320000 | BB20: 4320000 | BC20: 4320000 | BD20: 0 | BE20: 0 | BF20: 0 | BG20: 0 | BH20: 0 | BI20: 0 | BJ20: 0 | BK20: 0 | BL20: 0 | BM20: 0 | BN20: 0 | BO20: 0 | BP20: 0 | BQ20: 0 | BR20: 0 | BS20: 0
D22: Tank Volume in Quantity of Palm Oil | G22: Litres | H22: =Inputs!F29 -> 400 | I22: Litres/truck | K22: =MAX(N22:BS22) -> 400 | N22: =$H$22 -> 400 | O22: =$H$22 -> 400 | P22: 400 | Q22: 400 | R22: 400 | S22: 400 | T22: 400 | U22: 400 | V22: 400 | W22: 400 | X22: 400 | Y22: 400 | Z22: 400 | AA22: 400 | AB22: 400 | AC22: 400 | AD22: 400 | AE22: 400 | AF22: 400 | AG22: 400 | AH22: 400 | AI22: 400 | AJ22: 400 | AK22: 400 | AL22: 400 | AM22: 400 | AN22: 400 | AO22: 400 | AP22: 400 | AQ22: 400 | AR22: 400 | AS22: 400 | AT22: 400 | AU22: 400 | AV22: 400 | AW22: 400 | AX22: 400 | AY22: 400 | AZ22: 400 | BA22: 400 | BB22: 400 | BC22: 400 | BD22: 400 | BE22: 400 | BF22: 400 | BG22: 400 | BH22: 400 | BI22: 400 | BJ22: 400 | BK22: 400 | BL22: 400 | BM22: 400 | BN22: 400 | BO22: 400 | BP22: 400 | BQ22: 400 | BR22: 400 | BS22: 400
D23: Fuel Efficiency | G23: km/Litre | H23: =Inputs!F31 -> 2.5 | I23: km/litre | K23: =MAX(N23:BS23) -> 2.5 | N23: =$H$23 -> 2.5 | O23: =$H$23 -> 2.5 | P23: 2.5 | Q23: 2.5 | R23: 2.5 | S23: 2.5 | T23: 2.5 | U23: 2.5 | V23: 2.5 | W23: 2.5 | X23: 2.5 | Y23: 2.5 | Z23: 2.5 | AA23: 2.5 | AB23: 2.5 | AC23: 2.5 | AD23: 2.5 | AE23: 2.5 | AF23: 2.5 | AG23: 2.5 | AH23: 2.5 | AI23: 2.5 | AJ23: 2.5 | AK23: 2.5 | AL23: 2.5 | AM23: 2.5 | AN23: 2.5 | AO23: 2.5 | AP23: 2.5 | AQ23: 2.5 | AR23: 2.5 | AS23: 2.5 | AT23: 2.5 | AU23: 2.5 | AV23: 2.5 | AW23: 2.5 | AX23: 2.5 | AY23: 2.5 | AZ23: 2.5 | BA23: 2.5 | BB23: 2.5 | BC23: 2.5 | BD23: 2.5 | BE23: 2.5 | BF23: 2.5 | BG23: 2.5 | BH23: 2.5 | BI23: 2.5 | BJ23: 2.5 | BK23: 2.5 | BL23: 2.5 | BM23: 2.5 | BN23: 2.5 | BO23: 2.5 | BP23: 2.5 | BQ23: 2.5 | BR23: 2.5 | BS23: 2.5
D24: Fuel Tank Volume | G24: km/Truck | K24: 1000 | N24: =N22*N23 -> 1000 | O24: 1000 | P24: 1000 | Q24: 1000 | R24: 1000 | S24: 1000 | T24: 1000 | U24: 1000 | V24: 1000 | W24: 1000 | X24: 1000 | Y24: 1000 | Z24: 1000 | AA24: 1000 | AB24: 1000 | AC24: 1000 | AD24: 1000 | AE24: 1000 | AF24: 1000 | AG24: 1000 | AH24: 1000 | AI24: 1000 | AJ24: 1000 | AK24: 1000 | AL24: 1000 | AM24: 1000 | AN24: 1000 | AO24: 1000 | AP24: 1000 | AQ24: 1000 | AR24: 1000 | AS24: 1000 | AT24: =AT22*AT23 -> 1000 | AU24: 1000 | AV24: 1000 | AW24: 1000 | AX24: 1000 | AY24: 1000 | AZ24: 1000 | BA24: 1000 | BB24: 1000 | BC24: 1000 | BD24: 1000 | BE24: 1000 | BF24: 1000 | BG24: 1000 | BH24: 1000 | BI24: 1000 | BJ24: 1000 | BK24: 1000 | BL24: 1000 | BM24: 1000 | BN24: 1000 | BO24: 1000 | BP24: 1000 | BQ24: 1000 | BR24: 1000 | BS24: 1000
C26: Conversion of Truck Demand to Required Biogass and Methane (CH3) Production
D27: Annual Demand for Methane M3 | G27: M3/Year | H27: =Inputs!$F$100/100 -> 2.083333333 | I27: M3/km Efficiency | K27: =SUM(N27:BS27) -> 270000000 | N27: =N20*$H$27 -> 0 | O27: =O20*$H$27 -> 0 | P27: 0 | Q27: 0 | R27: 0 | S27: 0 | T27: 0 | U27: 0 | V27: 0 | W27: 0 | X27: 0 | Y27: 0 | Z27: 9000000 | AA27: 9000000 | AB27: 9000000 | AC27: 9000000 | AD27: 9000000 | AE27: 9000000 | AF27: 9000000 | AG27: 9000000 | AH27: 9000000 | AI27: 9000000 | AJ27: 9000000 | AK27: 9000000 | AL27: 9000000 | AM27: 9000000 | AN27: 9000000 | AO27: 9000000 | AP27: 9000000 | AQ27: 9000000 | AR27: 9000000 | AS27: 9000000 | AT27: 9000000 | AU27: 9000000 | AV27: 9000000 | AW27: 9000000 | AX27: 9000000 | AY27: 9000000 | AZ27: 9000000 | BA27: 9000000 | BB27: 9000000 | BC27: 9000000 | BD27: 0 | BE27: 0 | BF27: 0 | BG27: 0 | BH27: 0 | BI27: 0 | BJ27: 0 | BK27: 0 | BL27: 0 | BM27: 0 | BN27: 0 | BO27: 0 | BP27: 0 | BQ27: 0 | BR27: 0 | BS27: 0
D28: Annual Demand for Methane in kg | G28: kg/Year | H28: =Inputs!$F$112 -> 0.7513589683 | I28: kg/M3 | K28: =SUM(N28:BS28) -> 202866921.4 | N28: =N27*$H$28 -> 0 | O28: =O27*$H$28 -> 0 | P28: 0 | Q28: 0 | R28: 0 | S28: 0 | T28: 0 | U28: 0 | V28: 0 | W28: 0 | X28: 0 | Y28: 0 | Z28: 6762230.715 | AA28: 6762230.715 | AB28: 6762230.715 | AC28: 6762230.715 | AD28: 6762230.715 | AE28: 6762230.715 | AF28: 6762230.715 | AG28: 6762230.715 | AH28: 6762230.715 | AI28: 6762230.715 | AJ28: 6762230.715 | AK28: 6762230.715 | AL28: 6762230.715 | AM28: 6762230.715 | AN28: 6762230.715 | AO28: 6762230.715 | AP28: 6762230.715 | AQ28: 6762230.715 | AR28: 6762230.715 | AS28: 6762230.715 | AT28: 6762230.715 | AU28: 6762230.715 | AV28: 6762230.715 | AW28: 6762230.715 | AX28: 6762230.715 | AY28: 6762230.715 | AZ28: 6762230.715 | BA28: 6762230.715 | BB28: 6762230.715 | BC28: 6762230.715 | BD28: 0 | BE28: 0 | BF28: 0 | BG28: 0 | BH28: 0 | BI28: 0 | BJ28: 0 | BK28: 0 | BL28: 0 | BM28: 0 | BN28: 0 | BO28: 0 | BP28: 0 | BQ28: 0 | BR28: 0 | BS28: 0
D29: Annual Demand for Methane in MMBTU | G29: MMBTU/yr | H29: =Inputs!F134 -> 0.046452 | I29: MMBTU/kg | K29: =SUM(N29:BS29) -> 9423574.235 | N29: =$H$29*N28 -> 0 | O29: 0 | P29: 0 | Q29: 0 | R29: 0 | S29: 0 | T29: 0 | U29: 0 | V29: 0 | W29: 0 | X29: 0 | Y29: 0 | Z29: 314119.1412 | AA29: 314119.1412 | AB29: 314119.1412 | AC29: 314119.1412 | AD29: 314119.1412 | AE29: 314119.1412 | AF29: 314119.1412 | AG29: 314119.1412 | AH29: 314119.1412 | AI29: 314119.1412 | AJ29: 314119.1412 | AK29: 314119.1412 | AL29: 314119.1412 | AM29: 314119.1412 | AN29: 314119.1412 | AO29: 314119.1412 | AP29: 314119.1412 | AQ29: 314119.1412 | AR29: 314119.1412 | AS29: 314119.1412 | AT29: =$H$29*AT28 -> 314119.1412 | AU29: 314119.1412 | AV29: 314119.1412 | AW29: 314119.1412 | AX29: 314119.1412 | AY29: 314119.1412 | AZ29: 314119.1412 | BA29: 314119.1412 | BB29: 314119.1412 | BC29: 314119.1412 | BD29: 0 | BE29: 0 | BF29: 0 | BG29: 0 | BH29: 0 | BI29: 0 | BJ29: 0 | BK29: 0 | BL29: 0 | BM29: 0 | BN29: 0 | BO29: 0 | BP29: 0 | BQ29: 0 | BR29: 0 | BS29: 0
D31: Hourly Demand for Upgrader in km/Hour | G31: km/hour | H31: =Inputs!$F$83 -> 8400 | I31: hours | K31: =MAX(N31:BS31) -> 514.2857143 | N31: =N20/$H$31 -> 0 | O31: 0 | P31: 0 | Q31: 0 | R31: 0 | S31: 0 | T31: 0 | U31: 0 | V31: 0 | W31: 0 | X31: 0 | Y31: 0 | Z31: 514.2857143 | AA31: 514.2857143 | AB31: 514.2857143 | AC31: 514.2857143 | AD31: 514.2857143 | AE31: 514.2857143 | AF31: 514.2857143 | AG31: 514.2857143 | AH31: 514.2857143 | AI31: 514.2857143 | AJ31: 514.2857143 | AK31: 514.2857143 | AL31: 514.2857143 | AM31: 514.2857143 | AN31: 514.2857143 | AO31: 514.2857143 | AP31: 514.2857143 | AQ31: 514.2857143 | AR31: 514.2857143 | AS31: 514.2857143 | AT31: =AT20/$H$31 -> 514.2857143 | AU31: 514.2857143 | AV31: 514.2857143 | AW31: 514.2857143 | AX31: 514.2857143 | AY31: 514.2857143 | AZ31: 514.2857143 | BA31: 514.2857143 | BB31: 514.2857143 | BC31: 514.2857143 | BD31: 0 | BE31: 0 | BF31: 0 | BG31: 0 | BH31: 0 | BI31: 0 | BJ31: 0 | BK31: 0 | BL31: 0 | BM31: 0 | BN31: 0 | BO31: 0 | BP31: 0 | BQ31: 0 | BR31: 0 | BS31: 0
D32: Hourly Demand for Bio CNG (Methane) | G32: M3/Hour | H32: =Inputs!$F$100/100 -> 2.083333333 | I32: M3/km Efficiency | K32: =MAX(N32:BS32) -> 246.8571429 | N32: =N31/$H$32 -> 0 | O32: =O31/$H$32 -> 0 | P32: 0 | Q32: 0 | R32: 0 | S32: 0 | T32: 0 | U32: 0 | V32: 0 | W32: 0 | X32: 0 | Y32: 0 | Z32: 246.8571429 | AA32: 246.8571429 | AB32: 246.8571429 | AC32: 246.8571429 | AD32: 246.8571429 | AE32: 246.8571429 | AF32: 246.8571429 | AG32: 246.8571429 | AH32: 246.8571429 | AI32: 246.8571429 | AJ32: 246.8571429 | AK32: 246.8571429 | AL32: 246.8571429 | AM32: 246.8571429 | AN32: 246.8571429 | AO32: 246.8571429 | AP32: 246.8571429 | AQ32: 246.8571429 | AR32: 246.8571429 | AS32: 246.8571429 | AT32: 246.8571429 | AU32: 246.8571429 | AV32: 246.8571429 | AW32: 246.8571429 | AX32: 246.8571429 | AY32: 246.8571429 | AZ32: 246.8571429 | BA32: 246.8571429 | BB32: 246.8571429 | BC32: 246.8571429 | BD32: 0 | BE32: 0 | BF32: 0 | BG32: 0 | BH32: 0 | BI32: 0 | BJ32: 0 | BK32: 0 | BL32: 0 | BM32: 0 | BN32: 0 | BO32: 0 | BP32: 0 | BQ32: 0 | BR32: 0 | BS32: 0
D33: Hourly Demand for Biogas | G33: M3/Hour | H33: =Inputs!F88 -> 0.5919587629 | I33: Percent CH4/Biogass | K33: 417.0174653 | N33: =N32/$H$33 -> 0 | O33: =O32/$H$33 -> 0 | P33: 0 | Q33: 0 | R33: 0 | S33: 0 | T33: 0 | U33: 0 | V33: 0 | W33: 0 | X33: 0 | Y33: 0 | Z33: 417.0174653 | AA33: 417.0174653 | AB33: 417.0174653 | AC33: 417.0174653 | AD33: 417.0174653 | AE33: 417.0174653 | AF33: 417.0174653 | AG33: 417.0174653 | AH33: 417.0174653 | AI33: 417.0174653 | AJ33: 417.0174653 | AK33: 417.0174653 | AL33: 417.0174653 | AM33: 417.0174653 | AN33: 417.0174653 | AO33: 417.0174653 | AP33: 417.0174653 | AQ33: 417.0174653 | AR33: 417.0174653 | AS33: 417.0174653 | AT33: 417.0174653 | AU33: 417.0174653 | AV33: 417.0174653 | AW33: 417.0174653 | AX33: 417.0174653 | AY33: 417.0174653 | AZ33: 417.0174653 | BA33: 417.0174653 | BB33: 417.0174653 | BC33: 417.0174653 | BD33: 0 | BE33: 0 | BF33: 0 | BG33: 0 | BH33: 0 | BI33: 0 | BJ33: 0 | BK33: 0 | BL33: 0 | BM33: 0 | BN33: 0 | BO33: 0 | BP33: 0 | BQ33: 0 | BR33: 0 | BS33: 0
D34: Hourly Demand for Methane in kg | G34: kg/Hour | H34: =Inputs!$F$112 -> 0.7513589683 | I34: kg/M3 of CH4 | K34: 185.4783282 | N34: =N32*$H$34 -> 0 | O34: =O32*$H$34 -> 0 | P34: 0 | Q34: 0 | R34: 0 | S34: 0 | T34: 0 | U34: 0 | V34: 0 | W34: 0 | X34: 0 | Y34: 0 | Z34: 185.4783282 | AA34: 185.4783282 | AB34: 185.4783282 | AC34: 185.4783282 | AD34: 185.4783282 | AE34: 185.4783282 | AF34: 185.4783282 | AG34: 185.4783282 | AH34: 185.4783282 | AI34: 185.4783282 | AJ34: 185.4783282 | AK34: 185.4783282 | AL34: 185.4783282 | AM34: 185.4783282 | AN34: 185.4783282 | AO34: 185.4783282 | AP34: 185.4783282 | AQ34: 185.4783282 | AR34: 185.4783282 | AS34: 185.4783282 | AT34: 185.4783282 | AU34: 185.4783282 | AV34: 185.4783282 | AW34: 185.4783282 | AX34: 185.4783282 | AY34: 185.4783282 | AZ34: 185.4783282 | BA34: 185.4783282 | BB34: 185.4783282 | BC34: 185.4783282 | BD34: 0 | BE34: 0 | BF34: 0 | BG34: 0 | BH34: 0 | BI34: 0 | BJ34: 0 | BK34: 0 | BL34: 0 | BM34: 0 | BN34: 0 | BO34: 0 | BP34: 0 | BQ34: 0 | BR34: 0 | BS34: 0
B36: Production of Methane (CH4) from Biogass to Meet Demand
C38: Production of Biogass from Mill Fuit Bunch
D39: Mill capacity in terms of Fruit Bunch | G39: Tons/Hour | H39: =Inputs!F14 -> 60 | I39: Tons/hour | K39: =MAX(N39:BS39) -> 60 | N39: =$H39 -> 60 | O39: 60 | P39: 60 | Q39: 60 | R39: 60 | S39: 60 | T39: 60 | U39: 60 | V39: 60 | W39: 60 | X39: 60 | Y39: 60 | Z39: 60 | AA39: 60 | AB39: 60 | AC39: 60 | AD39: 60 | AE39: 60 | AF39: 60 | AG39: 60 | AH39: 60 | AI39: 60 | AJ39: 60 | AK39: 60 | AL39: 60 | AM39: 60 | AN39: 60 | AO39: 60 | AP39: 60 | AQ39: 60 | AR39: 60 | AS39: 60 | AT39: 60 | AU39: 60 | AV39: 60 | AW39: 60 | AX39: 60 | AY39: 60 | AZ39: 60 | BA39: 60 | BB39: 60 | BC39: 60 | BD39: 60 | BE39: 60 | BF39: 60 | BG39: 60 | BH39: 60 | BI39: 60 | BJ39: 60 | BK39: 60 | BL39: 60 | BM39: 60 | BN39: 60 | BO39: 60 | BP39: 60 | BQ39: 60 | BR39: 60 | BS39: 60
D40: Mill Availability in Hours | G40: Hours per Year | H40: =Inputs!F50 -> 5200 | I40: Mill Hours | K40: =MAX(N40:BS40) -> 5200 | N40: =$H40 -> 5200 | O40: 5200 | P40: 5200 | Q40: 5200 | R40: 5200 | S40: 5200 | T40: 5200 | U40: 5200 | V40: 5200 | W40: 5200 | X40: 5200 | Y40: 5200 | Z40: 5200 | AA40: 5200 | AB40: 5200 | AC40: 5200 | AD40: =$H40 -> 5200 | AE40: 5200 | AF40: 5200 | AG40: 5200 | AH40: 5200 | AI40: 5200 | AJ40: 5200 | AK40: 5200 | AL40: 5200 | AM40: 5200 | AN40: =$H40 -> 5200 | AO40: 5200 | AP40: 5200 | AQ40: 5200 | AR40: 5200 | AS40: 5200 | AT40: 5200 | AU40: 5200 | AV40: 5200 | AW40: 5200 | AX40: 5200 | AY40: 5200 | AZ40: 5200 | BA40: 5200 | BB40: 5200 | BC40: 5200 | BD40: 5200 | BE40: 5200 | BF40: 5200 | BG40: 5200 | BH40: 5200 | BI40: 5200 | BJ40: 5200 | BK40: 5200 | BL40: 5200 | BM40: 5200 | BN40: 5200 | BO40: 5200 | BP40: 5200 | BQ40: 5200 | BR40: 5200 | BS40: 5200
D41: Fresh Fruit Bunch (FFB) Produced | G41: Tons/Year | H41: =Inputs!F51 -> 312000 | I41: Tons/year | K41: 312000 | N41: 312000 | O41: 312000 | P41: 312000 | Q41: 312000 | R41: 312000 | S41: 312000 | T41: 312000 | U41: 312000 | V41: 312000 | W41: 312000 | X41: 312000 | Y41: 312000 | Z41: 312000 | AA41: 312000 | AB41: 312000 | AC41: 312000 | AD41: 312000 | AE41: 312000 | AF41: 312000 | AG41: 312000 | AH41: 312000 | AI41: 312000 | AJ41: 312000 | AK41: 312000 | AL41: 312000 | AM41: 312000 | AN41: 312000 | AO41: 312000 | AP41: 312000 | AQ41: 312000 | AR41: 312000 | AS41: 312000 | AT41: 312000 | AU41: 312000 | AV41: 312000 | AW41: 312000 | AX41: 312000 | AY41: 312000 | AZ41: 312000 | BA41: 312000 | BB41: 312000 | BC41: 312000 | BD41: 312000 | BE41: 312000 | BF41: 312000 | BG41: 312000 | BH41: 312000 | BI41: 312000 | BJ41: 312000 | BK41: 312000 | BL41: 312000 | BM41: 312000 | BN41: 312000 | BO41: 312000 | BP41: 312000 | BQ41: 312000 | BR41: 312000 | BS41: 312000
D42: Fresh Fruit Bunch for Minimum Month (FFB) | G42: Tons/Year | H42: =Inputs!G62 -> 224640 | K42: 224640 | N42: =$H$42 -> 224640 | O42: =$H$42 -> 224640 | P42: 224640 | Q42: 224640 | R42: 224640 | S42: 224640 | T42: 224640 | U42: 224640 | V42: 224640 | W42: 224640 | X42: 224640 | Y42: 224640 | Z42: 224640 | AA42: 224640 | AB42: 224640 | AC42: 224640 | AD42: 224640 | AE42: 224640 | AF42: 224640 | AG42: 224640 | AH42: 224640 | AI42: 224640 | AJ42: 224640 | AK42: 224640 | AL42: 224640 | AM42: 224640 | AN42: 224640 | AO42: 224640 | AP42: 224640 | AQ42: 224640 | AR42: 224640 | AS42: 224640 | AT42: 224640 | AU42: 224640 | AV42: 224640 | AW42: 224640 | AX42: 224640 | AY42: 224640 | AZ42: 224640 | BA42: 224640 | BB42: 224640 | BC42: 224640 | BD42: 224640 | BE42: 224640 | BF42: 224640 | BG42: 224640 | BH42: 224640 | BI42: 224640 | BJ42: 224640 | BK42: 224640 | BL42: 224640 | BM42: 224640 | BN42: 224640 | BO42: 224640 | BP42: 224640 | BQ42: 224640 | BR42: 224640 | BS42: 224640
C44: Conversion of Fruitbunch to M3 of Biogas
D45: Biogass Efflent as Percent of FFB | G45: % | H45: =Inputs!F54 -> 0.65 | I45: % | K45: =MAX(N45:BS45) -> 0.65 | N45: =$H45 -> 0.65 | O45: =$H45 -> 0.65 | P45: 0.65 | Q45: 0.65 | R45: 0.65 | S45: 0.65 | T45: 0.65 | U45: 0.65 | V45: 0.65 | W45: 0.65 | X45: 0.65 | Y45: 0.65 | Z45: 0.65 | AA45: 0.65 | AB45: 0.65 | AC45: 0.65 | AD45: 0.65 | AE45: 0.65 | AF45: 0.65 | AG45: 0.65 | AH45: 0.65 | AI45: 0.65 | AJ45: 0.65 | AK45: 0.65 | AL45: 0.65 | AM45: 0.65 | AN45: 0.65 | AO45: 0.65 | AP45: 0.65 | AQ45: 0.65 | AR45: 0.65 | AS45: 0.65 | AT45: 0.65 | AU45: 0.65 | AV45: 0.65 | AW45: 0.65 | AX45: 0.65 | AY45: 0.65 | AZ45: 0.65 | BA45: 0.65 | BB45: 0.65 | BC45: =$H45 -> 0.65 | BD45: 0.65 | BE45: 0.65 | BF45: 0.65 | BG45: 0.65 | BH45: 0.65 | BI45: 0.65 | BJ45: 0.65 | BK45: 0.65 | BL45: 0.65 | BM45: 0.65 | BN45: 0.65 | BO45: 0.65 | BP45: 0.65 | BQ45: 0.65 | BR45: 0.65 | BS45: 0.65
D46: Biogass Mill Effeluent (Tons) | G46: Ton/year | H46: =Inputs!F55 -> 202800 | I46: Tons/year | K46: =MAX(N46:BS46) -> 146016 | N46: =N42*N45 -> 146016 | O46: =O42*O45 -> 146016 | P46: 146016 | Q46: 146016 | R46: 146016 | S46: 146016 | T46: 146016 | U46: 146016 | V46: 146016 | W46: 146016 | X46: 146016 | Y46: 146016 | Z46: 146016 | AA46: 146016 | AB46: 146016 | AC46: 146016 | AD46: 146016 | AE46: 146016 | AF46: 146016 | AG46: 146016 | AH46: 146016 | AI46: 146016 | AJ46: 146016 | AK46: 146016 | AL46: 146016 | AM46: 146016 | AN46: 146016 | AO46: 146016 | AP46: 146016 | AQ46: 146016 | AR46: 146016 | AS46: 146016 | AT46: 146016 | AU46: 146016 | AV46: 146016 | AW46: 146016 | AX46: 146016 | AY46: 146016 | AZ46: 146016 | BA46: 146016 | BB46: 146016 | BC46: 146016 | BD46: 146016 | BE46: 146016 | BF46: 146016 | BG46: 146016 | BH46: 146016 | BI46: 146016 | BJ46: 146016 | BK46: 146016 | BL46: 146016 | BM46: 146016 | BN46: 146016 | BO46: 146016 | BP46: 146016 | BQ46: 146016 | BR46: 146016 | BS46: 146016
D47: Conversion to M3 from Tons | G47: M3/Ton | H47: =Inputs!F56 -> 30 | I47: M3/Ton | K47: =MAX(N47:BS47) -> 30 | N47: =$H47 -> 30 | O47: 30 | P47: 30 | Q47: 30 | R47: 30 | S47: 30 | T47: 30 | U47: 30 | V47: 30 | W47: 30 | X47: 30 | Y47: 30 | Z47: 30 | AA47: 30 | AB47: 30 | AC47: 30 | AD47: 30 | AE47: 30 | AF47: 30 | AG47: 30 | AH47: 30 | AI47: 30 | AJ47: 30 | AK47: 30 | AL47: 30 | AM47: 30 | AN47: 30 | AO47: 30 | AP47: 30 | AQ47: 30 | AR47: 30 | AS47: 30 | AT47: 30 | AU47: 30 | AV47: 30 | AW47: 30 | AX47: 30 | AY47: 30 | AZ47: 30 | BA47: 30 | BB47: 30 | BC47: 30 | BD47: 30 | BE47: 30 | BF47: 30 | BG47: 30 | BH47: 30 | BI47: 30 | BJ47: 30 | BK47: 30 | BL47: 30 | BM47: 30 | BN47: 30 | BO47: 30 | BP47: 30 | BQ47: 30 | BR47: 30 | BS47: 30
D48: Annual Production of Biogas Effluent | G48: M3/Year | H48: =Inputs!F57 -> 6084000 | K48: =MAX(N48:BS48) -> 4380480 | N48: =N46*N47 -> 4380480 | O48: =O46*O47 -> 4380480 | P48: 4380480 | Q48: 4380480 | R48: 4380480 | S48: 4380480 | T48: 4380480 | U48: 4380480 | V48: 4380480 | W48: 4380480 | X48: 4380480 | Y48: 4380480 | Z48: 4380480 | AA48: 4380480 | AB48: 4380480 | AC48: 4380480 | AD48: 4380480 | AE48: 4380480 | AF48: 4380480 | AG48: 4380480 | AH48: 4380480 | AI48: 4380480 | AJ48: 4380480 | AK48: 4380480 | AL48: 4380480 | AM48: 4380480 | AN48: 4380480 | AO48: 4380480 | AP48: 4380480 | AQ48: 4380480 | AR48: 4380480 | AS48: 4380480 | AT48: 4380480 | AU48: 4380480 | AV48: 4380480 | AW48: 4380480 | AX48: 4380480 | AY48: 4380480 | AZ48: 4380480 | BA48: 4380480 | BB48: 4380480 | BC48: 4380480 | BD48: 4380480 | BE48: 4380480 | BF48: 4380480 | BG48: 4380480 | BH48: 4380480 | BI48: 4380480 | BJ48: 4380480 | BK48: 4380480 | BL48: 4380480 | BM48: 4380480 | BN48: 4380480 | BO48: 4380480 | BP48: 4380480 | BQ48: 4380480 | BR48: 4380480 | BS48: 4380480
D49: Hourly Production of Biogas Effluent | G49: M3/Hour | H49: =Inputs!G68*12 -> 8640 | K49: =MAX(N49:BS49) -> 507 | N49: =N48/$H$49 -> 507 | O49: =O48/$H$49 -> 507 | P49: 507 | Q49: 507 | R49: 507 | S49: 507 | T49: 507 | U49: 507 | V49: 507 | W49: 507 | X49: 507 | Y49: 507 | Z49: 507 | AA49: 507 | AB49: 507 | AC49: 507 | AD49: 507 | AE49: 507 | AF49: 507 | AG49: 507 | AH49: 507 | AI49: 507 | AJ49: 507 | AK49: 507 | AL49: 507 | AM49: 507 | AN49: 507 | AO49: 507 | AP49: 507 | AQ49: 507 | AR49: 507 | AS49: 507 | AT49: 507 | AU49: 507 | AV49: 507 | AW49: 507 | AX49: 507 | AY49: 507 | AZ49: 507 | BA49: 507 | BB49: 507 | BC49: 507 | BD49: 507 | BE49: 507 | BF49: 507 | BG49: 507 | BH49: 507 | BI49: 507 | BJ49: 507 | BK49: 507 | BL49: 507 | BM49: 507 | BN49: 507 | BO49: 507 | BP49: 507 | BQ49: 507 | BR49: 507 | BS49: 507
C51: Capacity of Upgrader in Biogass/Hour | G51: M3/hour | H51: =Inputs!F77 -> 507 | I51: M3 Biogass/M3 | K51: =MAX(N51:BS51) -> 507 | N51: =$H51*N8 -> 0 | O51: 0 | P51: 0 | Q51: 0 | R51: 0 | S51: 0 | T51: 0 | U51: 0 | V51: 0 | W51: 0 | X51: 0 | Y51: 0 | Z51: 507 | AA51: 507 | AB51: 507 | AC51: 507 | AD51: 507 | AE51: 507 | AF51: 507 | AG51: 507 | AH51: 507 | AI51: 507 | AJ51: 507 | AK51: 507 | AL51: 507 | AM51: 507 | AN51: 507 | AO51: 507 | AP51: 507 | AQ51: 507 | AR51: 507 | AS51: 507 | AT51: =$H51*AT8 -> 507 | AU51: 507 | AV51: 507 | AW51: 507 | AX51: 507 | AY51: 507 | AZ51: 507 | BA51: 507 | BB51: 507 | BC51: 507 | BD51: 0 | BE51: 0 | BF51: 0 | BG51: 0 | BH51: 0 | BI51: 0 | BJ51: 0 | BK51: 0 | BL51: 0 | BM51: 0 | BN51: 0 | BO51: 0 | BP51: 0 | BQ51: 0 | BR51: 0 | BS51: 0
D52: Maximum Theoretical Production of Methane | G52: M3/Hour | H52: =Inputs!F88 -> 0.5919587629 | K52: 300.1230928 | N52: =N51*$H$52 -> 0 | O52: =O51*$H$52 -> 0 | P52: 0 | Q52: 0 | R52: 0 | S52: 0 | T52: 0 | U52: 0 | V52: 0 | W52: 0 | X52: 0 | Y52: 0 | Z52: 300.1230928 | AA52: 300.1230928 | AB52: 300.1230928 | AC52: 300.1230928 | AD52: 300.1230928 | AE52: 300.1230928 | AF52: 300.1230928 | AG52: 300.1230928 | AH52: 300.1230928 | AI52: 300.1230928 | AJ52: 300.1230928 | AK52: 300.1230928 | AL52: 300.1230928 | AM52: 300.1230928 | AN52: 300.1230928 | AO52: 300.1230928 | AP52: 300.1230928 | AQ52: 300.1230928 | AR52: 300.1230928 | AS52: 300.1230928 | AT52: 300.1230928 | AU52: 300.1230928 | AV52: 300.1230928 | AW52: 300.1230928 | AX52: 300.1230928 | AY52: 300.1230928 | AZ52: 300.1230928 | BA52: 300.1230928 | BB52: 300.1230928 | BC52: 300.1230928 | BD52: 0 | BE52: 0 | BF52: 0 | BG52: 0 | BH52: 0 | BI52: 0 | BJ52: 0 | BK52: 0 | BL52: 0 | BM52: 0 | BN52: 0 | BO52: 0 | BP52: 0 | BQ52: 0 | BR52: 0 | BS52: 0
D53: Maximum Theoretical Production of Methane | G53: M3/Year | H53: =Inputs!F83 -> 8400 | K53: 2521033.979 | N53: =N52*$H$53 -> 0 | O53: =O52*$H$53 -> 0 | P53: 0 | Q53: 0 | R53: 0 | S53: 0 | T53: 0 | U53: 0 | V53: 0 | W53: 0 | X53: 0 | Y53: 0 | Z53: 2521033.979 | AA53: 2521033.979 | AB53: 2521033.979 | AC53: 2521033.979 | AD53: 2521033.979 | AE53: 2521033.979 | AF53: 2521033.979 | AG53: 2521033.979 | AH53: 2521033.979 | AI53: 2521033.979 | AJ53: 2521033.979 | AK53: 2521033.979 | AL53: 2521033.979 | AM53: 2521033.979 | AN53: 2521033.979 | AO53: 2521033.979 | AP53: 2521033.979 | AQ53: 2521033.979 | AR53: 2521033.979 | AS53: 2521033.979 | AT53: 2521033.979 | AU53: 2521033.979 | AV53: 2521033.979 | AW53: 2521033.979 | AX53: 2521033.979 | AY53: 2521033.979 | AZ53: 2521033.979 | BA53: 2521033.979 | BB53: 2521033.979 | BC53: 2521033.979 | BD53: 0 | BE53: 0 | BF53: 0 | BG53: 0 | BH53: 0 | BI53: 0 | BJ53: 0 | BK53: 0 | BL53: 0 | BM53: 0 | BN53: 0 | BO53: 0 | BP53: 0 | BQ53: 0 | BR53: 0 | BS53: 0
D54: Maximum km from Theoretical Production | G54: km/year | H54: =Inputs!F39 -> 2.083333333 | I54: M3/km Efficiency | K54: 5252154.124 | N54: =N53*$H$54 -> 0 | O54: =O53*$H$54 -> 0 | P54: 0 | Q54: 0 | R54: 0 | S54: 0 | T54: 0 | U54: 0 | V54: 0 | W54: 0 | X54: 0 | Y54: 0 | Z54: 5252154.124 | AA54: 5252154.124 | AB54: 5252154.124 | AC54: 5252154.124 | AD54: 5252154.124 | AE54: 5252154.124 | AF54: 5252154.124 | AG54: 5252154.124 | AH54: 5252154.124 | AI54: 5252154.124 | AJ54: 5252154.124 | AK54: 5252154.124 | AL54: 5252154.124 | AM54: 5252154.124 | AN54: 5252154.124 | AO54: 5252154.124 | AP54: 5252154.124 | AQ54: 5252154.124 | AR54: 5252154.124 | AS54: 5252154.124 | AT54: 5252154.124 | AU54: 5252154.124 | AV54: 5252154.124 | AW54: 5252154.124 | AX54: 5252154.124 | AY54: 5252154.124 | AZ54: 5252154.124 | BA54: 5252154.124 | BB54: 5252154.124 | BC54: 5252154.124 | BD54: 0 | BE54: 0 | BF54: 0 | BG54: 0 | BH54: 0 | BI54: 0 | BJ54: 0 | BK54: 0 | BL54: 0 | BM54: 0 | BN54: 0 | BO54: 0 | BP54: 0 | BQ54: 0 | BR54: 0 | BS54: 0
D55: km per truck per year | G55: km/year-truck | K55: 86400 | N55: =N18 -> 86400 | O55: 86400 | P55: 86400 | Q55: 86400 | R55: 86400 | S55: 86400 | T55: 86400 | U55: 86400 | V55: 86400 | W55: 86400 | X55: 86400 | Y55: 86400 | Z55: 86400 | AA55: 86400 | AB55: 86400 | AC55: 86400 | AD55: 86400 | AE55: 86400 | AF55: 86400 | AG55: 86400 | AH55: 86400 | AI55: 86400 | AJ55: 86400 | AK55: 86400 | AL55: 86400 | AM55: 86400 | AN55: 86400 | AO55: 86400 | AP55: 86400 | AQ55: 86400 | AR55: 86400 | AS55: 86400 | AT55: =AT18 -> 86400 | AU55: 86400 | AV55: 86400 | AW55: 86400 | AX55: 86400 | AY55: 86400 | AZ55: 86400 | BA55: 86400 | BB55: 86400 | BC55: 86400 | BD55: 86400 | BE55: 86400 | BF55: 86400 | BG55: 86400 | BH55: 86400 | BI55: 86400 | BJ55: 86400 | BK55: 86400 | BL55: 86400 | BM55: 86400 | BN55: 86400 | BO55: 86400 | BP55: 86400 | BQ55: 86400 | BR55: 86400 | BS55: 86400
D56: Break-even Trucks without Electricity | G56: Trucks | K56: 60.78882088 | N56: =N54/N55 -> 0 | O56: =O54/O55 -> 0 | P56: 0 | Q56: 0 | R56: 0 | S56: 0 | T56: 0 | U56: 0 | V56: 0 | W56: 0 | X56: 0 | Y56: 0 | Z56: 60.78882088 | AA56: 60.78882088 | AB56: 60.78882088 | AC56: 60.78882088 | AD56: 60.78882088 | AE56: 60.78882088 | AF56: 60.78882088 | AG56: 60.78882088 | AH56: 60.78882088 | AI56: 60.78882088 | AJ56: 60.78882088 | AK56: 60.78882088 | AL56: 60.78882088 | AM56: 60.78882088 | AN56: 60.78882088 | AO56: 60.78882088 | AP56: 60.78882088 | AQ56: 60.78882088 | AR56: 60.78882088 | AS56: 60.78882088 | AT56: 60.78882088 | AU56: 60.78882088 | AV56: 60.78882088 | AW56: 60.78882088 | AX56: 60.78882088 | AY56: 60.78882088 | AZ56: 60.78882088 | BA56: 60.78882088 | BB56: 60.78882088 | BC56: 60.78882088 | BD56: 0 | BE56: 0 | BF56: 0 | BG56: 0 | BH56: 0 | BI56: 0 | BJ56: 0 | BK56: 0 | BL56: 0 | BM56: 0 | BN56: 0 | BO56: 0 | BP56: 0 | BQ56: 0 | BR56: 0 | BS56: 0
C58: CNG Production from Biogass Effeluent
D59: Required Production in terms of km from Demand (Above) | G59: km/year | I59: km/year | K59: =MAX(N59:BS59) -> 4320000 | N59: =N20 -> 0 | O59: 0 | P59: 0 | Q59: 0 | R59: 0 | S59: 0 | T59: 0 | U59: 0 | V59: 0 | W59: 0 | X59: 0 | Y59: 0 | Z59: 4320000 | AA59: 4320000 | AB59: 4320000 | AC59: 4320000 | AD59: 4320000 | AE59: 4320000 | AF59: 4320000 | AG59: 4320000 | AH59: 4320000 | AI59: 4320000 | AJ59: 4320000 | AK59: 4320000 | AL59: 4320000 | AM59: 4320000 | AN59: 4320000 | AO59: 4320000 | AP59: 4320000 | AQ59: 4320000 | AR59: 4320000 | AS59: 4320000 | AT59: =AT20 -> 4320000 | AU59: 4320000 | AV59: 4320000 | AW59: 4320000 | AX59: 4320000 | AY59: 4320000 | AZ59: 4320000 | BA59: 4320000 | BB59: 4320000 | BC59: 4320000 | BD59: 0 | BE59: 0 | BF59: 0 | BG59: 0 | BH59: 0 | BI59: 0 | BJ59: 0 | BK59: 0 | BL59: 0 | BM59: 0 | BN59: 0 | BO59: 0 | BP59: 0 | BQ59: 0 | BR59: 0 | BS59: 0
D60: Converstion Factor from Km to M3 of Biogass | G60: M3/km | H60: =1/Inputs!F100*100 -> 0.48 | I60: M3 Biogass/km | J60: =1/H60 -> 2.083333333 | K60: =MAX(N60:BS60) -> 0.48 | N60: =$H$60 -> 0.48 | O60: =$H$60 -> 0.48 | P60: 0.48 | Q60: 0.48 | R60: 0.48 | S60: 0.48 | T60: 0.48 | U60: 0.48 | V60: 0.48 | W60: 0.48 | X60: 0.48 | Y60: 0.48 | Z60: 0.48 | AA60: 0.48 | AB60: 0.48 | AC60: 0.48 | AD60: 0.48 | AE60: 0.48 | AF60: 0.48 | AG60: 0.48 | AH60: 0.48 | AI60: 0.48 | AJ60: 0.48 | AK60: 0.48 | AL60: 0.48 | AM60: 0.48 | AN60: 0.48 | AO60: 0.48 | AP60: 0.48 | AQ60: 0.48 | AR60: 0.48 | AS60: 0.48 | AT60: 0.48 | AU60: 0.48 | AV60: 0.48 | AW60: 0.48 | AX60: 0.48 | AY60: 0.48 | AZ60: 0.48 | BA60: 0.48 | BB60: 0.48 | BC60: 0.48 | BD60: 0.48 | BE60: 0.48 | BF60: 0.48 | BG60: 0.48 | BH60: 0.48 | BI60: 0.48 | BJ60: 0.48 | BK60: 0.48 | BL60: 0.48 | BM60: 0.48 | BN60: 0.48 | BO60: 0.48 | BP60: 0.48 | BQ60: 0.48 | BR60: 0.48 | BS60: 0.48
D61: Required Production of Biogass in M3 to Meet Demand | G61: M3/Year | K61: 2073600 | N61: =N59*N60 -> 0 | O61: =O59*O60 -> 0 | P61: 0 | Q61: 0 | R61: 0 | S61: 0 | T61: 0 | U61: 0 | V61: 0 | W61: 0 | X61: 0 | Y61: 0 | Z61: 2073600 | AA61: 2073600 | AB61: 2073600 | AC61: 2073600 | AD61: 2073600 | AE61: 2073600 | AF61: 2073600 | AG61: 2073600 | AH61: 2073600 | AI61: 2073600 | AJ61: 2073600 | AK61: 2073600 | AL61: 2073600 | AM61: 2073600 | AN61: 2073600 | AO61: 2073600 | AP61: 2073600 | AQ61: 2073600 | AR61: 2073600 | AS61: 2073600 | AT61: 2073600 | AU61: 2073600 | AV61: 2073600 | AW61: 2073600 | AX61: 2073600 | AY61: 2073600 | AZ61: 2073600 | BA61: 2073600 | BB61: 2073600 | BC61: 2073600 | BD61: 0 | BE61: 0 | BF61: 0 | BG61: 0 | BH61: 0 | BI61: 0 | BJ61: 0 | BK61: 0 | BL61: 0 | BM61: 0 | BN61: 0 | BO61: 0 | BP61: 0 | BQ61: 0 | BR61: 0 | BS61: 0
D62: Required Production of Biogass in M3/Hour to Meed Demand | G62: M3/Hour | H62: =Inputs!$F$83 -> 8400 | I62: Hours of Upgrader | J62: =Inputs!F85*Inputs!F86/Inputs!F87 -> 0.5919587629 | K62: =MAX(N62:BS62) -> 417.0174653 | N62: =N61/$H$62/$J$62 -> 0 | O62: 0 | P62: 0 | Q62: 0 | R62: 0 | S62: 0 | T62: 0 | U62: 0 | V62: 0 | W62: 0 | X62: 0 | Y62: 0 | Z62: 417.0174653 | AA62: 417.0174653 | AB62: 417.0174653 | AC62: 417.0174653 | AD62: 417.0174653 | AE62: 417.0174653 | AF62: 417.0174653 | AG62: 417.0174653 | AH62: 417.0174653 | AI62: 417.0174653 | AJ62: 417.0174653 | AK62: 417.0174653 | AL62: 417.0174653 | AM62: 417.0174653 | AN62: 417.0174653 | AO62: 417.0174653 | AP62: 417.0174653 | AQ62: 417.0174653 | AR62: 417.0174653 | AS62: 417.0174653 | AT62: =AT61/$H$62/$J$62 -> 417.0174653 | AU62: 417.0174653 | AV62: 417.0174653 | AW62: 417.0174653 | AX62: 417.0174653 | AY62: 417.0174653 | AZ62: 417.0174653 | BA62: 417.0174653 | BB62: 417.0174653 | BC62: 417.0174653 | BD62: 0 | BE62: 0 | BF62: 0 | BG62: 0 | BH62: 0 | BI62: 0 | BJ62: 0 | BK62: 0 | BL62: 0 | BM62: 0 | BN62: 0 | BO62: 0 | BP62: 0 | BQ62: 0 | BR62: 0 | BS62: 0
C64: Methane (CH4) Production From Upgrader to Meet Truck Demand
D65: Biogass Input (Min Demand, Capacity) | G65: M3/Hour | K65: =MAX(N65:BS65) -> 417.0174653 | N65: =MIN(N62,N51) -> 0 | O65: 0 | P65: 0 | Q65: 0 | R65: 0 | S65: 0 | T65: 0 | U65: 0 | V65: 0 | W65: 0 | X65: 0 | Y65: 0 | Z65: 417.0174653 | AA65: 417.0174653 | AB65: 417.0174653 | AC65: 417.0174653 | AD65: 417.0174653 | AE65: 417.0174653 | AF65: 417.0174653 | AG65: 417.0174653 | AH65: 417.0174653 | AI65: 417.0174653 | AJ65: 417.0174653 | AK65: 417.0174653 | AL65: 417.0174653 | AM65: 417.0174653 | AN65: 417.0174653 | AO65: 417.0174653 | AP65: 417.0174653 | AQ65: 417.0174653 | AR65: 417.0174653 | AS65: 417.0174653 | AT65: =MIN(AT62,AT51) -> 417.0174653 | AU65: 417.0174653 | AV65: 417.0174653 | AW65: 417.0174653 | AX65: 417.0174653 | AY65: 417.0174653 | AZ65: 417.0174653 | BA65: 417.0174653 | BB65: 417.0174653 | BC65: 417.0174653 | BD65: 0 | BE65: 0 | BF65: 0 | BG65: 0 | BH65: 0 | BI65: 0 | BJ65: 0 | BK65: 0 | BL65: 0 | BM65: 0 | BN65: 0 | BO65: 0 | BP65: 0 | BQ65: 0 | BR65: 0 | BS65: 0
D66: Methane Percent form Biogass (Multiply) | G66: % | H66: =Inputs!F85 -> 0.58 | I66: Methane % Biogass | N66: =N65*$H66 -> 0 | O66: 0 | P66: 0 | Q66: 0 | R66: 0 | S66: 0 | T66: 0 | U66: 0 | V66: 0 | W66: 0 | X66: =X65*$H66 -> 0 | Y66: 0 | Z66: 241.8701299 | AA66: 241.8701299 | AB66: 241.8701299 | AC66: 241.8701299 | AD66: 241.8701299 | AE66: 241.8701299 | AF66: 241.8701299 | AG66: 241.8701299 | AH66: =AH65*$H66 -> 241.8701299 | AI66: 241.8701299 | AJ66: 241.8701299 | AK66: 241.8701299 | AL66: 241.8701299 | AM66: 241.8701299 | AN66: 241.8701299 | AO66: 241.8701299 | AP66: 241.8701299 | AQ66: 241.8701299 | AR66: =AR65*$H66 -> 241.8701299 | AS66: 241.8701299 | AT66: 241.8701299 | AU66: 241.8701299 | AV66: 241.8701299 | AW66: 241.8701299 | AX66: 241.8701299 | AY66: 241.8701299 | AZ66: 241.8701299 | BA66: 241.8701299 | BB66: =BB65*$H66 -> 241.8701299 | BC66: 241.8701299 | BD66: 0 | BE66: 0 | BF66: 0 | BG66: 0 | BH66: 0 | BI66: 0 | BJ66: 0 | BK66: 0 | BL66: =BL65*$H66 -> 0 | BM66: 0 | BN66: 0 | BO66: 0 | BP66: 0 | BQ66: 0 | BR66: 0 | BS66: 0
D67: Upgading Efficiency adjustment (Multiply) | G67: M3/Hour | H67: =Inputs!F86 -> 0.99 | I67: % | K67: =MAX(N67:BS67) -> 239.4514286 | N67: 0 | O67: 0 | P67: 0 | Q67: 0 | R67: 0 | S67: 0 | T67: 0 | U67: 0 | V67: 0 | W67: 0 | X67: 0 | Y67: 0 | Z67: 239.4514286 | AA67: 239.4514286 | AB67: 239.4514286 | AC67: 239.4514286 | AD67: 239.4514286 | AE67: 239.4514286 | AF67: 239.4514286 | AG67: 239.4514286 | AH67: 239.4514286 | AI67: 239.4514286 | AJ67: 239.4514286 | AK67: 239.4514286 | AL67: 239.4514286 | AM67: 239.4514286 | AN67: 239.4514286 | AO67: 239.4514286 | AP67: 239.4514286 | AQ67: 239.4514286 | AR67: 239.4514286 | AS67: 239.4514286 | AT67: 239.4514286 | AU67: 239.4514286 | AV67: 239.4514286 | AW67: 239.4514286 | AX67: 239.4514286 | AY67: 239.4514286 | AZ67: 239.4514286 | BA67: 239.4514286 | BB67: 239.4514286 | BC67: 239.4514286 | BD67: 0 | BE67: 0 | BF67: 0 | BG67: 0 | BH67: 0 | BI67: 0 | BJ67: 0 | BK67: 0 | BL67: 0 | BM67: 0 | BN67: 0 | BO67: 0 | BP67: 0 | BQ67: 0 | BR67: 0 | BS67: 0
D68: Methane (CH4) Production per Hour for Truck Demand | G68: M3/Hour | H68: =Inputs!F87 -> 0.97 | I68: % Volume | K68: =MAX(N68:BS68) -> 246.8571429 | N68: =N67/$H$68 -> 0 | O68: 0 | P68: 0 | Q68: 0 | R68: 0 | S68: 0 | T68: 0 | U68: 0 | V68: 0 | W68: 0 | X68: 0 | Y68: 0 | Z68: 246.8571429 | AA68: 246.8571429 | AB68: 246.8571429 | AC68: 246.8571429 | AD68: 246.8571429 | AE68: 246.8571429 | AF68: 246.8571429 | AG68: 246.8571429 | AH68: 246.8571429 | AI68: 246.8571429 | AJ68: 246.8571429 | AK68: 246.8571429 | AL68: 246.8571429 | AM68: 246.8571429 | AN68: 246.8571429 | AO68: 246.8571429 | AP68: 246.8571429 | AQ68: 246.8571429 | AR68: 246.8571429 | AS68: 246.8571429 | AT68: =AT67/$H$68 -> 246.8571429 | AU68: 246.8571429 | AV68: 246.8571429 | AW68: 246.8571429 | AX68: 246.8571429 | AY68: 246.8571429 | AZ68: 246.8571429 | BA68: 246.8571429 | BB68: 246.8571429 | BC68: 246.8571429 | BD68: 0 | BE68: 0 | BF68: 0 | BG68: 0 | BH68: 0 | BI68: 0 | BJ68: 0 | BK68: 0 | BL68: 0 | BM68: 0 | BN68: 0 | BO68: 0 | BP68: 0 | BQ68: 0 | BR68: 0 | BS68: 0
D70: Methane (CH4) Potential Production from Full Capacity | G70: M3/Hour | K70: =MAX(N70:BS70) -> 300.1230928 | N70: =N51*$H$66*$H$67/$H$68*N8 -> 0 | O70: 0 | P70: 0 | Q70: 0 | R70: 0 | S70: 0 | T70: 0 | U70: 0 | V70: 0 | W70: 0 | X70: 0 | Y70: 0 | Z70: 300.1230928 | AA70: 300.1230928 | AB70: 300.1230928 | AC70: 300.1230928 | AD70: 300.1230928 | AE70: 300.1230928 | AF70: 300.1230928 | AG70: 300.1230928 | AH70: 300.1230928 | AI70: 300.1230928 | AJ70: 300.1230928 | AK70: 300.1230928 | AL70: 300.1230928 | AM70: 300.1230928 | AN70: 300.1230928 | AO70: 300.1230928 | AP70: 300.1230928 | AQ70: 300.1230928 | AR70: 300.1230928 | AS70: 300.1230928 | AT70: =AT51*$H$66*$H$67/$H$68*AT8 -> 300.1230928 | AU70: 300.1230928 | AV70: 300.1230928 | AW70: 300.1230928 | AX70: 300.1230928 | AY70: 300.1230928 | AZ70: 300.1230928 | BA70: 300.1230928 | BB70: 300.1230928 | BC70: 300.1230928 | BD70: 0 | BE70: 0 | BF70: 0 | BG70: 0 | BH70: 0 | BI70: 0 | BJ70: 0 | BK70: 0 | BL70: 0 | BM70: 0 | BN70: 0 | BO70: 0 | BP70: 0 | BQ70: 0 | BR70: 0 | BS70: 0
D71: Methane (CH4) Potential Production from Full Capacity (kg/M3) | G71: kg/Hour | H71: =Inputs!F112 -> 0.7513589683 | K71: =MAX(N71:BS71) -> 225.5001774 | N71: =N70*$H$71 -> 0 | O71: =O70*$H$71 -> 0 | P71: 0 | Q71: 0 | R71: 0 | S71: 0 | T71: 0 | U71: 0 | V71: 0 | W71: 0 | X71: 0 | Y71: 0 | Z71: 225.5001774 | AA71: 225.5001774 | AB71: 225.5001774 | AC71: 225.5001774 | AD71: 225.5001774 | AE71: 225.5001774 | AF71: 225.5001774 | AG71: 225.5001774 | AH71: 225.5001774 | AI71: 225.5001774 | AJ71: 225.5001774 | AK71: 225.5001774 | AL71: 225.5001774 | AM71: 225.5001774 | AN71: 225.5001774 | AO71: 225.5001774 | AP71: 225.5001774 | AQ71: 225.5001774 | AR71: 225.5001774 | AS71: 225.5001774 | AT71: 225.5001774 | AU71: 225.5001774 | AV71: 225.5001774 | AW71: 225.5001774 | AX71: 225.5001774 | AY71: 225.5001774 | AZ71: 225.5001774 | BA71: 225.5001774 | BB71: 225.5001774 | BC71: 225.5001774 | BD71: 0 | BE71: 0 | BF71: 0 | BG71: 0 | BH71: 0 | BI71: 0 | BJ71: 0 | BK71: 0 | BL71: 0 | BM71: 0 | BN71: 0 | BO71: 0 | BP71: 0 | BQ71: 0 | BR71: 0 | BS71: 0
D72: Methane (CH4) Potential Production from Full Capacity (kg/MMBTU) | G72: kg/MMBTU | H72: =Inputs!F134 -> 0.046452 | K72: =MAX(N72:BS72) -> 10.47493424 | N72: =N71*$H$72 -> 0 | O72: =O71*$H$72 -> 0 | P72: 0 | Q72: 0 | R72: 0 | S72: 0 | T72: 0 | U72: 0 | V72: 0 | W72: 0 | X72: 0 | Y72: 0 | Z72: 10.47493424 | AA72: 10.47493424 | AB72: 10.47493424 | AC72: 10.47493424 | AD72: 10.47493424 | AE72: 10.47493424 | AF72: 10.47493424 | AG72: 10.47493424 | AH72: 10.47493424 | AI72: 10.47493424 | AJ72: 10.47493424 | AK72: 10.47493424 | AL72: 10.47493424 | AM72: 10.47493424 | AN72: 10.47493424 | AO72: 10.47493424 | AP72: 10.47493424 | AQ72: 10.47493424 | AR72: 10.47493424 | AS72: 10.47493424 | AT72: 10.47493424 | AU72: 10.47493424 | AV72: 10.47493424 | AW72: 10.47493424 | AX72: 10.47493424 | AY72: 10.47493424 | AZ72: 10.47493424 | BA72: 10.47493424 | BB72: 10.47493424 | BC72: 10.47493424 | BD72: 0 | BE72: 0 | BF72: 0 | BG72: 0 | BH72: 0 | BI72: 0 | BJ72: 0 | BK72: 0 | BL72: 0 | BM72: 0 | BN72: 0 | BO72: 0 | BP72: 0 | BQ72: 0 | BR72: 0 | BS72: 0
D74: Annual CNG Production in M3 to Meet Truck Demand | G74: M3/Year | H74: =Inputs!F128 -> 24 | I74: Hours | J74: =Inputs!F91 -> 350 | K74: =MAX(N74:BS74) -> 2073600 | N74: =N68*$H$74*$J$74 -> 0 | O74: 0 | P74: 0 | Q74: 0 | R74: 0 | S74: 0 | T74: 0 | U74: 0 | V74: 0 | W74: 0 | X74: 0 | Y74: 0 | Z74: 2073600 | AA74: 2073600 | AB74: 2073600 | AC74: 2073600 | AD74: 2073600 | AE74: 2073600 | AF74: 2073600 | AG74: 2073600 | AH74: 2073600 | AI74: 2073600 | AJ74: 2073600 | AK74: 2073600 | AL74: 2073600 | AM74: 2073600 | AN74: 2073600 | AO74: 2073600 | AP74: 2073600 | AQ74: 2073600 | AR74: 2073600 | AS74: 2073600 | AT74: =AT68*$H$74*$J$74 -> 2073600 | AU74: 2073600 | AV74: 2073600 | AW74: 2073600 | AX74: 2073600 | AY74: 2073600 | AZ74: 2073600 | BA74: 2073600 | BB74: 2073600 | BC74: 2073600 | BD74: 0 | BE74: 0 | BF74: 0 | BG74: 0 | BH74: 0 | BI74: 0 | BJ74: 0 | BK74: 0 | BL74: 0 | BM74: 0 | BN74: 0 | BO74: 0 | BP74: 0 | BQ74: 0 | BR74: 0 | BS74: 0
D75: Annual CNG Production in km | G75: km | H75: =Inputs!$F$100/100 -> 2.083333333 | I75: km/M3 CNG | K75: =MAX(N75:BS75) -> 4320000 | N75: =N74*$H$75 -> 0 | O75: 0 | P75: 0 | Q75: 0 | R75: 0 | S75: 0 | T75: 0 | U75: 0 | V75: 0 | W75: 0 | X75: 0 | Y75: 0 | Z75: 4320000 | AA75: 4320000 | AB75: 4320000 | AC75: 4320000 | AD75: 4320000 | AE75: 4320000 | AF75: 4320000 | AG75: 4320000 | AH75: 4320000 | AI75: 4320000 | AJ75: 4320000 | AK75: 4320000 | AL75: 4320000 | AM75: 4320000 | AN75: 4320000 | AO75: 4320000 | AP75: 4320000 | AQ75: 4320000 | AR75: 4320000 | AS75: 4320000 | AT75: =AT74*$H$75 -> 4320000 | AU75: 4320000 | AV75: 4320000 | AW75: 4320000 | AX75: 4320000 | AY75: 4320000 | AZ75: 4320000 | BA75: 4320000 | BB75: 4320000 | BC75: 4320000 | BD75: 0 | BE75: 0 | BF75: 0 | BG75: 0 | BH75: 0 | BI75: 0 | BJ75: 0 | BK75: 0 | BL75: 0 | BM75: 0 | BN75: 0 | BO75: 0 | BP75: 0 | BQ75: 0 | BR75: 0 | BS75: 0
D76: Potential CNG Production per year in km | G76: km/Year | K76: =MAX(N76:BS76) -> 5252154.124 | N76: =N139*$H$66*$H$67/$H$68*$H$74*$J$74*$H$75 -> 0 | O76: 0 | P76: 0 | Q76: 0 | R76: 0 | S76: 0 | T76: 0 | U76: 0 | V76: 0 | W76: 0 | X76: 0 | Y76: 0 | Z76: 5252154.124 | AA76: 5252154.124 | AB76: 5252154.124 | AC76: 5252154.124 | AD76: 5252154.124 | AE76: 5252154.124 | AF76: 5252154.124 | AG76: 5252154.124 | AH76: 5252154.124 | AI76: 5252154.124 | AJ76: 5252154.124 | AK76: 5252154.124 | AL76: 5252154.124 | AM76: 5252154.124 | AN76: 5252154.124 | AO76: 5252154.124 | AP76: 5252154.124 | AQ76: 5252154.124 | AR76: 5252154.124 | AS76: 5252154.124 | AT76: =AT139*$H$66*$H$67/$H$68*$H$74*$J$74*$H$75 -> 5252154.124 | AU76: 5252154.124 | AV76: 5252154.124 | AW76: 5252154.124 | AX76: 5252154.124 | AY76: 5252154.124 | AZ76: 5252154.124 | BA76: 5252154.124 | BB76: 5252154.124 | BC76: 5252154.124 | BD76: 0 | BE76: 0 | BF76: 0 | BG76: 0 | BH76: 0 | BI76: 0 | BJ76: 0 | BK76: 0 | BL76: 0 | BM76: 0 | BN76: 0 | BO76: 0 | BP76: 0 | BQ76: 0 | BR76: 0 | BS76: 0
C78: Adjustment for Days in Week
D79: Average Weekly Potential Production of CNG Expressed M3 | G79: M3/Year | H79: 52 | I79: Weeks | K79: =MAX(N79:BS79) -> 48481.42268 | N79: =N53/$H$79*N8 -> 0 | O79: 0 | P79: 0 | Q79: 0 | R79: 0 | S79: 0 | T79: 0 | U79: 0 | V79: 0 | W79: 0 | X79: 0 | Y79: 0 | Z79: 48481.42268 | AA79: 48481.42268 | AB79: 48481.42268 | AC79: 48481.42268 | AD79: 48481.42268 | AE79: 48481.42268 | AF79: 48481.42268 | AG79: 48481.42268 | AH79: 48481.42268 | AI79: 48481.42268 | AJ79: 48481.42268 | AK79: 48481.42268 | AL79: 48481.42268 | AM79: 48481.42268 | AN79: 48481.42268 | AO79: 48481.42268 | AP79: 48481.42268 | AQ79: 48481.42268 | AR79: 48481.42268 | AS79: 48481.42268 | AT79: =AT53/$H$79*AT8 -> 48481.42268 | AU79: 48481.42268 | AV79: 48481.42268 | AW79: 48481.42268 | AX79: 48481.42268 | AY79: 48481.42268 | AZ79: 48481.42268 | BA79: 48481.42268 | BB79: 48481.42268 | BC79: 48481.42268 | BD79: 0 | BE79: 0 | BF79: 0 | BG79: 0 | BH79: 0 | BI79: 0 | BJ79: 0 | BK79: 0 | BL79: 0 | BM79: 0 | BN79: 0 | BO79: 0 | BP79: 0 | BQ79: 0 | BR79: 0 | BS79: 0
D80: Average Daily Production of CNG Expresed in M3 | G80: M3/Day | H80: 7 | I80: Days | K80: =MAX(N80:BS80) -> 6925.917526 | N80: =N79/$H$80 -> 0 | O80: 0 | P80: 0 | Q80: 0 | R80: 0 | S80: 0 | T80: 0 | U80: 0 | V80: 0 | W80: 0 | X80: 0 | Y80: 0 | Z80: =Z79/$H$80 -> 6925.917526 | AA80: 6925.917526 | AB80: 6925.917526 | AC80: 6925.917526 | AD80: 6925.917526 | AE80: 6925.917526 | AF80: 6925.917526 | AG80: 6925.917526 | AH80: 6925.917526 | AI80: 6925.917526 | AJ80: 6925.917526 | AK80: 6925.917526 | AL80: 6925.917526 | AM80: 6925.917526 | AN80: 6925.917526 | AO80: 6925.917526 | AP80: 6925.917526 | AQ80: 6925.917526 | AR80: 6925.917526 | AS80: 6925.917526 | AT80: =AT79/$H$80 -> 6925.917526 | AU80: 6925.917526 | AV80: 6925.917526 | AW80: 6925.917526 | AX80: 6925.917526 | AY80: 6925.917526 | AZ80: 6925.917526 | BA80: 6925.917526 | BB80: 6925.917526 | BC80: 6925.917526 | BD80: 0 | BE80: 0 | BF80: 0 | BG80: 0 | BH80: 0 | BI80: 0 | BJ80: 0 | BK80: 0 | BL80: 0 | BM80: 0 | BN80: 0 | BO80: 0 | BP80: 0 | BQ80: 0 | BR80: 0 | BS80: 0
D82: Average Weekly Demand for CNG in M3 | G82: M3/Year | H82: =H79 -> 52 | K82: =MAX(N82:BS82) -> 39876.92308 | N82: =N74/$H$82 -> 0 | O82: 0 | P82: 0 | Q82: 0 | R82: 0 | S82: 0 | T82: 0 | U82: 0 | V82: 0 | W82: 0 | X82: 0 | Y82: 0 | Z82: 39876.92308 | AA82: 39876.92308 | AB82: 39876.92308 | AC82: 39876.92308 | AD82: 39876.92308 | AE82: 39876.92308 | AF82: 39876.92308 | AG82: 39876.92308 | AH82: 39876.92308 | AI82: 39876.92308 | AJ82: 39876.92308 | AK82: 39876.92308 | AL82: 39876.92308 | AM82: 39876.92308 | AN82: 39876.92308 | AO82: 39876.92308 | AP82: 39876.92308 | AQ82: 39876.92308 | AR82: 39876.92308 | AS82: 39876.92308 | AT82: =AT74/$H$82 -> 39876.92308 | AU82: 39876.92308 | AV82: 39876.92308 | AW82: 39876.92308 | AX82: 39876.92308 | AY82: 39876.92308 | AZ82: 39876.92308 | BA82: 39876.92308 | BB82: 39876.92308 | BC82: 39876.92308 | BD82: 0 | BE82: 0 | BF82: 0 | BG82: 0 | BH82: 0 | BI82: 0 | BJ82: 0 | BK82: 0 | BL82: 0 | BM82: 0 | BN82: 0 | BO82: 0 | BP82: 0 | BQ82: 0 | BR82: 0 | BS82: 0
D83: Average Daily Demand for CNG in M3 | G83: M3/Day | H83: =Inputs!F22 -> 6 | K83: =MAX(N83:BS83) -> 6646.153846 | N83: =N82/$H$83 -> 0 | O83: 0 | P83: 0 | Q83: 0 | R83: 0 | S83: 0 | T83: 0 | U83: 0 | V83: 0 | W83: 0 | X83: 0 | Y83: 0 | Z83: 6646.153846 | AA83: 6646.153846 | AB83: 6646.153846 | AC83: 6646.153846 | AD83: 6646.153846 | AE83: 6646.153846 | AF83: 6646.153846 | AG83: 6646.153846 | AH83: 6646.153846 | AI83: 6646.153846 | AJ83: 6646.153846 | AK83: 6646.153846 | AL83: 6646.153846 | AM83: 6646.153846 | AN83: 6646.153846 | AO83: 6646.153846 | AP83: 6646.153846 | AQ83: 6646.153846 | AR83: 6646.153846 | AS83: 6646.153846 | AT83: =AT82/$H$83 -> 6646.153846 | AU83: 6646.153846 | AV83: 6646.153846 | AW83: 6646.153846 | AX83: 6646.153846 | AY83: 6646.153846 | AZ83: 6646.153846 | BA83: 6646.153846 | BB83: 6646.153846 | BC83: 6646.153846 | BD83: 0 | BE83: 0 | BF83: 0 | BG83: 0 | BH83: 0 | BI83: 0 | BJ83: 0 | BK83: 0 | BL83: 0 | BM83: 0 | BN83: 0 | BO83: 0 | BP83: 0 | BQ83: 0 | BR83: 0 | BS83: 0
D85: Sufficient Production for Demand | G85: Test | H85: =AND(N85:BS85) -> TRUE | N85: =N83<=N80 -> TRUE | O85: =O83<=O80 -> TRUE | P85: TRUE | Q85: TRUE | R85: TRUE | S85: TRUE | T85: TRUE | U85: TRUE | V85: TRUE | W85: TRUE | X85: TRUE | Y85: TRUE | Z85: TRUE | AA85: TRUE | AB85: TRUE | AC85: TRUE | AD85: TRUE | AE85: TRUE | AF85: TRUE | AG85: TRUE | AH85: TRUE | AI85: TRUE | AJ85: TRUE | AK85: TRUE | AL85: TRUE | AM85: TRUE | AN85: TRUE | AO85: TRUE | AP85: TRUE | AQ85: TRUE | AR85: TRUE | AS85: TRUE | AT85: TRUE | AU85: TRUE | AV85: TRUE | AW85: TRUE | AX85: TRUE | AY85: TRUE | AZ85: TRUE | BA85: TRUE | BB85: TRUE | BC85: TRUE | BD85: TRUE | BE85: TRUE | BF85: TRUE | BG85: TRUE | BH85: TRUE | BI85: TRUE | BJ85: TRUE | BK85: TRUE | BL85: TRUE | BM85: TRUE | BN85: TRUE | BO85: TRUE | BP85: TRUE | BQ85: TRUE | BR85: TRUE | BS85: TRUE
B87: Pumping Nozzel Capacity and Use
C88: Capacity
D89: Filling Rate per Nozzel in M3/Hour | G89: M3/Hour | H89: =Inputs!F110 -> 3200 | K89: =MAX(Z89:BS89) -> 3200 | N89: =$H$89*N8 -> 0 | O89: 0 | P89: 0 | Q89: 0 | R89: 0 | S89: 0 | T89: 0 | U89: 0 | V89: 0 | W89: 0 | X89: 0 | Y89: 0 | Z89: 3200 | AA89: 3200 | AB89: 3200 | AC89: 3200 | AD89: 3200 | AE89: 3200 | AF89: 3200 | AG89: 3200 | AH89: 3200 | AI89: 3200 | AJ89: 3200 | AK89: 3200 | AL89: 3200 | AM89: 3200 | AN89: 3200 | AO89: 3200 | AP89: 3200 | AQ89: 3200 | AR89: 3200 | AS89: 3200 | AT89: =$H$89*AT8 -> 3200 | AU89: 3200 | AV89: 3200 | AW89: 3200 | AX89: 3200 | AY89: 3200 | AZ89: 3200 | BA89: 3200 | BB89: 3200 | BC89: 3200 | BD89: 0 | BE89: 0 | BF89: 0 | BG89: 0 | BH89: 0 | BI89: 0 | BJ89: 0 | BK89: 0 | BL89: 0 | BM89: 0 | BN89: 0 | BO89: 0 | BP89: 0 | BQ89: 0 | BR89: 0 | BS89: 0
D90: Filling Rate per Nozzel in kg/Hour | G90: kg/Hour | H90: =Inputs!F112 -> 0.7513589683 | K90: =MAX(Z90:BS90) -> 2404.348699 | N90: =N89*$H$90 -> 0 | O90: =O89*$H$90 -> 0 | P90: 0 | Q90: 0 | R90: 0 | S90: 0 | T90: 0 | U90: 0 | V90: 0 | W90: 0 | X90: 0 | Y90: 0 | Z90: 2404.348699 | AA90: 2404.348699 | AB90: 2404.348699 | AC90: 2404.348699 | AD90: 2404.348699 | AE90: 2404.348699 | AF90: 2404.348699 | AG90: 2404.348699 | AH90: 2404.348699 | AI90: 2404.348699 | AJ90: 2404.348699 | AK90: 2404.348699 | AL90: 2404.348699 | AM90: 2404.348699 | AN90: 2404.348699 | AO90: 2404.348699 | AP90: 2404.348699 | AQ90: 2404.348699 | AR90: 2404.348699 | AS90: 2404.348699 | AT90: 2404.348699 | AU90: 2404.348699 | AV90: 2404.348699 | AW90: 2404.348699 | AX90: 2404.348699 | AY90: 2404.348699 | AZ90: 2404.348699 | BA90: 2404.348699 | BB90: 2404.348699 | BC90: 2404.348699 | BD90: 0 | BE90: 0 | BF90: 0 | BG90: 0 | BH90: 0 | BI90: 0 | BJ90: 0 | BK90: 0 | BL90: 0 | BM90: 0 | BN90: 0 | BO90: 0 | BP90: 0 | BQ90: 0 | BR90: 0 | BS90: 0
D91: Fillling Rate per Nozzel in kg/Minute | G91: kg/Minute | H91: 60 | K91: =MAX(Z91:BS91) -> 40.07247831 | N91: =N90/$H$91 -> 0 | O91: =O90/$H$91 -> 0 | P91: 0 | Q91: 0 | R91: 0 | S91: 0 | T91: 0 | U91: 0 | V91: 0 | W91: 0 | X91: 0 | Y91: 0 | Z91: 40.07247831 | AA91: 40.07247831 | AB91: 40.07247831 | AC91: 40.07247831 | AD91: 40.07247831 | AE91: 40.07247831 | AF91: 40.07247831 | AG91: 40.07247831 | AH91: 40.07247831 | AI91: 40.07247831 | AJ91: 40.07247831 | AK91: 40.07247831 | AL91: 40.07247831 | AM91: 40.07247831 | AN91: 40.07247831 | AO91: 40.07247831 | AP91: 40.07247831 | AQ91: 40.07247831 | AR91: 40.07247831 | AS91: 40.07247831 | AT91: 40.07247831 | AU91: 40.07247831 | AV91: 40.07247831 | AW91: 40.07247831 | AX91: 40.07247831 | AY91: 40.07247831 | AZ91: 40.07247831 | BA91: 40.07247831 | BB91: 40.07247831 | BC91: 40.07247831 | BD91: 0 | BE91: 0 | BF91: 0 | BG91: 0 | BH91: 0 | BI91: 0 | BJ91: 0 | BK91: 0 | BL91: 0 | BM91: 0 | BN91: 0 | BO91: 0 | BP91: 0 | BQ91: 0 | BR91: 0 | BS91: 0
D92: Inverse of Filling Rate in Minutes/kg | G92: Minute/kg | H92: =MAX(N92:BS92) -> 0.02495478299 | K92: =MAX(N92:BS92) -> 0.02495478299 | N92: =IF(N91,1/N91) -> FALSE | O92: =IF(O91,1/O91) -> FALSE | P92: FALSE | Q92: FALSE | R92: FALSE | S92: FALSE | T92: FALSE | U92: FALSE | V92: FALSE | W92: FALSE | X92: FALSE | Y92: FALSE | Z92: 0.02495478299 | AA92: 0.02495478299 | AB92: 0.02495478299 | AC92: 0.02495478299 | AD92: 0.02495478299 | AE92: 0.02495478299 | AF92: 0.02495478299 | AG92: 0.02495478299 | AH92: 0.02495478299 | AI92: 0.02495478299 | AJ92: 0.02495478299 | AK92: 0.02495478299 | AL92: 0.02495478299 | AM92: 0.02495478299 | AN92: 0.02495478299 | AO92: 0.02495478299 | AP92: 0.02495478299 | AQ92: 0.02495478299 | AR92: 0.02495478299 | AS92: 0.02495478299 | AT92: 0.02495478299 | AU92: 0.02495478299 | AV92: 0.02495478299 | AW92: 0.02495478299 | AX92: 0.02495478299 | AY92: 0.02495478299 | AZ92: 0.02495478299 | BA92: 0.02495478299 | BB92: 0.02495478299 | BC92: 0.02495478299 | BD92: FALSE | BE92: FALSE | BF92: FALSE | BG92: FALSE | BH92: FALSE | BI92: FALSE | BJ92: FALSE | BK92: FALSE | BL92: FALSE | BM92: FALSE | BN92: FALSE | BO92: FALSE | BP92: FALSE | BQ92: FALSE | BR92: FALSE | BS92: FALSE
D94: Dempand per Hour in kg for All Trucks | G94: kg/Hour | K94: =MAX(N94:BS94) -> 185.4783282 | N94: =N34 -> 0 | O94: 0 | P94: 0 | Q94: 0 | R94: 0 | S94: 0 | T94: 0 | U94: 0 | V94: 0 | W94: 0 | X94: 0 | Y94: 0 | Z94: 185.4783282 | AA94: 185.4783282 | AB94: 185.4783282 | AC94: 185.4783282 | AD94: 185.4783282 | AE94: 185.4783282 | AF94: 185.4783282 | AG94: 185.4783282 | AH94: 185.4783282 | AI94: 185.4783282 | AJ94: 185.4783282 | AK94: 185.4783282 | AL94: 185.4783282 | AM94: 185.4783282 | AN94: 185.4783282 | AO94: 185.4783282 | AP94: 185.4783282 | AQ94: 185.4783282 | AR94: 185.4783282 | AS94: 185.4783282 | AT94: =AT34 -> 185.4783282 | AU94: 185.4783282 | AV94: 185.4783282 | AW94: 185.4783282 | AX94: 185.4783282 | AY94: 185.4783282 | AZ94: 185.4783282 | BA94: 185.4783282 | BB94: 185.4783282 | BC94: 185.4783282 | BD94: 0 | BE94: 0 | BF94: 0 | BG94: 0 | BH94: 0 | BI94: 0 | BJ94: 0 | BK94: 0 | BL94: 0 | BM94: 0 | BN94: 0 | BO94: 0 | BP94: 0 | BQ94: 0 | BR94: 0 | BS94: 0
D95: Total Required kg per Day for All Trucks | G95: kg/Day | H95: 24 | K95: =MAX(Z95:BS95) -> 4451.479876 | N95: =N34*$H$95 -> 0 | O95: 0 | P95: 0 | Q95: 0 | R95: 0 | S95: 0 | T95: 0 | U95: 0 | V95: 0 | W95: 0 | X95: 0 | Y95: 0 | Z95: 4451.479876 | AA95: 4451.479876 | AB95: 4451.479876 | AC95: 4451.479876 | AD95: 4451.479876 | AE95: 4451.479876 | AF95: 4451.479876 | AG95: 4451.479876 | AH95: 4451.479876 | AI95: 4451.479876 | AJ95: 4451.479876 | AK95: 4451.479876 | AL95: 4451.479876 | AM95: 4451.479876 | AN95: 4451.479876 | AO95: 4451.479876 | AP95: 4451.479876 | AQ95: 4451.479876 | AR95: 4451.479876 | AS95: 4451.479876 | AT95: =AT34*$H$95 -> 4451.479876 | AU95: 4451.479876 | AV95: 4451.479876 | AW95: 4451.479876 | AX95: 4451.479876 | AY95: 4451.479876 | AZ95: 4451.479876 | BA95: 4451.479876 | BB95: 4451.479876 | BC95: 4451.479876 | BD95: 0 | BE95: 0 | BF95: 0 | BG95: 0 | BH95: 0 | BI95: 0 | BJ95: 0 | BK95: 0 | BL95: 0 | BM95: 0 | BN95: 0 | BO95: 0 | BP95: 0 | BQ95: 0 | BR95: 0 | BS95: 0
D96: Total Trucks | G96: Number | K96: =MAX(Z96:BS96) -> 50 | N96: =N19 -> 0 | O96: 0 | P96: 0 | Q96: 0 | R96: 0 | S96: 0 | T96: 0 | U96: 0 | V96: 0 | W96: 0 | X96: 0 | Y96: 0 | Z96: 50 | AA96: 50 | AB96: 50 | AC96: 50 | AD96: 50 | AE96: 50 | AF96: 50 | AG96: 50 | AH96: 50 | AI96: 50 | AJ96: 50 | AK96: 50 | AL96: 50 | AM96: 50 | AN96: 50 | AO96: 50 | AP96: 50 | AQ96: 50 | AR96: 50 | AS96: 50 | AT96: =AT19 -> 50 | AU96: 50 | AV96: 50 | AW96: 50 | AX96: 50 | AY96: 50 | AZ96: 50 | BA96: 50 | BB96: 50 | BC96: 50 | BD96: 0 | BE96: 0 | BF96: 0 | BG96: 0 | BH96: 0 | BI96: 0 | BJ96: 0 | BK96: 0 | BL96: 0 | BM96: 0 | BN96: 0 | BO96: 0 | BP96: 0 | BQ96: 0 | BR96: 0 | BS96: 0
D97: Required kg per Day per Truck | G97: kg/Truck/Day | K97: =MAX(Z97:BS97) -> 89.02959752 | N97: =IF(N96,N95/N96)*1 -> 0 | O97: =IF(O96,O95/O96)*1 -> 0 | P97: 0 | Q97: 0 | R97: 0 | S97: 0 | T97: 0 | U97: 0 | V97: 0 | W97: 0 | X97: 0 | Y97: 0 | Z97: 89.02959752 | AA97: 89.02959752 | AB97: 89.02959752 | AC97: 89.02959752 | AD97: 89.02959752 | AE97: 89.02959752 | AF97: 89.02959752 | AG97: 89.02959752 | AH97: 89.02959752 | AI97: 89.02959752 | AJ97: 89.02959752 | AK97: 89.02959752 | AL97: 89.02959752 | AM97: 89.02959752 | AN97: 89.02959752 | AO97: 89.02959752 | AP97: 89.02959752 | AQ97: 89.02959752 | AR97: 89.02959752 | AS97: 89.02959752 | AT97: 89.02959752 | AU97: 89.02959752 | AV97: 89.02959752 | AW97: 89.02959752 | AX97: 89.02959752 | AY97: 89.02959752 | AZ97: 89.02959752 | BA97: 89.02959752 | BB97: 89.02959752 | BC97: 89.02959752 | BD97: 0 | BE97: 0 | BF97: 0 | BG97: 0 | BH97: 0 | BI97: 0 | BJ97: 0 | BK97: 0 | BL97: 0 | BM97: 0 | BN97: 0 | BO97: 0 | BP97: 0 | BQ97: 0 | BR97: 0 | BS97: 0
D98: Minutes of Filling per Day/Truck | G98: Minutes/Day | K98: =MAX(N98:BS98) -> 2.221714286 | N98: =N97*N92 -> 0 | O98: =O97*O92 -> 0 | P98: 0 | Q98: 0 | R98: 0 | S98: 0 | T98: 0 | U98: 0 | V98: 0 | W98: 0 | X98: 0 | Y98: 0 | Z98: 2.221714286 | AA98: 2.221714286 | AB98: 2.221714286 | AC98: 2.221714286 | AD98: 2.221714286 | AE98: 2.221714286 | AF98: 2.221714286 | AG98: 2.221714286 | AH98: 2.221714286 | AI98: 2.221714286 | AJ98: 2.221714286 | AK98: 2.221714286 | AL98: 2.221714286 | AM98: 2.221714286 | AN98: 2.221714286 | AO98: 2.221714286 | AP98: 2.221714286 | AQ98: 2.221714286 | AR98: 2.221714286 | AS98: 2.221714286 | AT98: 2.221714286 | AU98: 2.221714286 | AV98: 2.221714286 | AW98: 2.221714286 | AX98: 2.221714286 | AY98: 2.221714286 | AZ98: 2.221714286 | BA98: 2.221714286 | BB98: 2.221714286 | BC98: 2.221714286 | BD98: 0 | BE98: 0 | BF98: 0 | BG98: 0 | BH98: 0 | BI98: 0 | BJ98: 0 | BK98: 0 | BL98: 0 | BM98: 0 | BN98: 0 | BO98: 0 | BP98: 0 | BQ98: 0 | BR98: 0 | BS98: 0
D100: Tank Size per Truck | G100: kg | H100: =Inputs!F120 -> 60.693114 | K100: =MAX(Z100:BS100) -> 60.693114 | N100: =$H$100 -> 60.693114 | O100: 60.693114 | P100: 60.693114 | Q100: 60.693114 | R100: 60.693114 | S100: 60.693114 | T100: 60.693114 | U100: 60.693114 | V100: 60.693114 | W100: 60.693114 | X100: 60.693114 | Y100: 60.693114 | Z100: 60.693114 | AA100: 60.693114 | AB100: 60.693114 | AC100: 60.693114 | AD100: 60.693114 | AE100: 60.693114 | AF100: 60.693114 | AG100: 60.693114 | AH100: 60.693114 | AI100: 60.693114 | AJ100: 60.693114 | AK100: 60.693114 | AL100: 60.693114 | AM100: 60.693114 | AN100: 60.693114 | AO100: 60.693114 | AP100: 60.693114 | AQ100: 60.693114 | AR100: 60.693114 | AS100: 60.693114 | AT100: =$H$100 -> 60.693114 | AU100: 60.693114 | AV100: 60.693114 | AW100: 60.693114 | AX100: 60.693114 | AY100: 60.693114 | AZ100: 60.693114 | BA100: 60.693114 | BB100: 60.693114 | BC100: 60.693114 | BD100: 60.693114 | BE100: 60.693114 | BF100: 60.693114 | BG100: 60.693114 | BH100: 60.693114 | BI100: 60.693114 | BJ100: 60.693114 | BK100: 60.693114 | BL100: 60.693114 | BM100: 60.693114 | BN100: 60.693114 | BO100: 60.693114 | BP100: 60.693114 | BQ100: 60.693114 | BR100: 60.693114 | BS100: 60.693114
D101: Required Two Fillings | G101: Flag | K101: =MAX(N101:BS101) -> 1 | N101: =(N97>N100)*1 -> 0 | O101: =(O97>O100)*1 -> 0 | P101: 0 | Q101: 0 | R101: 0 | S101: 0 | T101: 0 | U101: 0 | V101: 0 | W101: 0 | X101: 0 | Y101: 0 | Z101: 1 | AA101: 1 | AB101: 1 | AC101: 1 | AD101: 1 | AE101: 1 | AF101: 1 | AG101: 1 | AH101: 1 | AI101: 1 | AJ101: 1 | AK101: 1 | AL101: 1 | AM101: 1 | AN101: 1 | AO101: 1 | AP101: 1 | AQ101: 1 | AR101: 1 | AS101: 1 | AT101: 1 | AU101: 1 | AV101: 1 | AW101: 1 | AX101: 1 | AY101: 1 | AZ101: 1 | BA101: 1 | BB101: 1 | BC101: 1 | BD101: 0 | BE101: 0 | BF101: 0 | BG101: 0 | BH101: 0 | BI101: 0 | BJ101: 0 | BK101: 0 | BL101: 0 | BM101: 0 | BN101: 0 | BO101: 0 | BP101: 0 | BQ101: 0 | BR101: 0 | BS101: 0
D102: Required Fillings | G102: Number | K102: =MAX(Z102:BS102) -> 2 | N102: =IF(N101,2,1) -> 1 | O102: 1 | P102: 1 | Q102: 1 | R102: 1 | S102: 1 | T102: 1 | U102: 1 | V102: 1 | W102: 1 | X102: 1 | Y102: 1 | Z102: 2 | AA102: 2 | AB102: 2 | AC102: 2 | AD102: 2 | AE102: 2 | AF102: 2 | AG102: 2 | AH102: 2 | AI102: 2 | AJ102: 2 | AK102: 2 | AL102: 2 | AM102: 2 | AN102: 2 | AO102: 2 | AP102: 2 | AQ102: 2 | AR102: 2 | AS102: 2 | AT102: =IF(AT101,2,1) -> 2 | AU102: 2 | AV102: 2 | AW102: 2 | AX102: 2 | AY102: 2 | AZ102: 2 | BA102: 2 | BB102: 2 | BC102: 2 | BD102: 1 | BE102: 1 | BF102: 1 | BG102: 1 | BH102: 1 | BI102: 1 | BJ102: 1 | BK102: 1 | BL102: 1 | BM102: 1 | BN102: 1 | BO102: 1 | BP102: 1 | BQ102: 1 | BR102: 1 | BS102: 1
D104: Total Trucks - Repeated | G104: Number | K104: =MAX(N104:BS104) -> 50 | N104: =N96 -> 0 | O104: =O96 -> 0 | P104: 0 | Q104: 0 | R104: 0 | S104: 0 | T104: 0 | U104: 0 | V104: 0 | W104: 0 | X104: 0 | Y104: 0 | Z104: 50 | AA104: 50 | AB104: 50 | AC104: 50 | AD104: 50 | AE104: 50 | AF104: 50 | AG104: 50 | AH104: 50 | AI104: 50 | AJ104: 50 | AK104: 50 | AL104: 50 | AM104: 50 | AN104: 50 | AO104: 50 | AP104: 50 | AQ104: 50 | AR104: 50 | AS104: 50 | AT104: 50 | AU104: 50 | AV104: 50 | AW104: 50 | AX104: 50 | AY104: 50 | AZ104: 50 | BA104: 50 | BB104: 50 | BC104: 50 | BD104: 0 | BE104: 0 | BF104: 0 | BG104: 0 | BH104: 0 | BI104: 0 | BJ104: 0 | BK104: 0 | BL104: 0 | BM104: 0 | BN104: 0 | BO104: 0 | BP104: 0 | BQ104: 0 | BR104: 0 | BS104: 0
D105: Minutes of Filling without Manovering for All Trucks | G105: Minutes | K105: =MAX(Z105:BS105) -> 111.0857143 | N105: =N104*N98 -> 0 | O105: =O104*O98 -> 0 | P105: 0 | Q105: 0 | R105: 0 | S105: 0 | T105: 0 | U105: 0 | V105: 0 | W105: 0 | X105: 0 | Y105: 0 | Z105: 111.0857143 | AA105: 111.0857143 | AB105: 111.0857143 | AC105: 111.0857143 | AD105: 111.0857143 | AE105: 111.0857143 | AF105: 111.0857143 | AG105: 111.0857143 | AH105: 111.0857143 | AI105: 111.0857143 | AJ105: 111.0857143 | AK105: 111.0857143 | AL105: 111.0857143 | AM105: 111.0857143 | AN105: 111.0857143 | AO105: 111.0857143 | AP105: 111.0857143 | AQ105: 111.0857143 | AR105: 111.0857143 | AS105: 111.0857143 | AT105: 111.0857143 | AU105: 111.0857143 | AV105: 111.0857143 | AW105: 111.0857143 | AX105: 111.0857143 | AY105: 111.0857143 | AZ105: 111.0857143 | BA105: 111.0857143 | BB105: 111.0857143 | BC105: 111.0857143 | BD105: 0 | BE105: 0 | BF105: 0 | BG105: 0 | BH105: 0 | BI105: 0 | BJ105: 0 | BK105: 0 | BL105: 0 | BM105: 0 | BN105: 0 | BO105: 0 | BP105: 0 | BQ105: 0 | BR105: 0 | BS105: 0
D106: Minutes per Filling | G106: Minutes/Fill | K106: 1.110857143 | N106: =N98/N102 -> 0 | O106: =O98/O102 -> 0 | P106: 0 | Q106: 0 | R106: 0 | S106: 0 | T106: 0 | U106: 0 | V106: 0 | W106: 0 | X106: 0 | Y106: 0 | Z106: 1.110857143 | AA106: 1.110857143 | AB106: 1.110857143 | AC106: 1.110857143 | AD106: 1.110857143 | AE106: 1.110857143 | AF106: 1.110857143 | AG106: 1.110857143 | AH106: 1.110857143 | AI106: 1.110857143 | AJ106: 1.110857143 | AK106: 1.110857143 | AL106: 1.110857143 | AM106: 1.110857143 | AN106: 1.110857143 | AO106: 1.110857143 | AP106: 1.110857143 | AQ106: 1.110857143 | AR106: 1.110857143 | AS106: 1.110857143 | AT106: 1.110857143 | AU106: 1.110857143 | AV106: 1.110857143 | AW106: 1.110857143 | AX106: 1.110857143 | AY106: 1.110857143 | AZ106: 1.110857143 | BA106: 1.110857143 | BB106: 1.110857143 | BC106: 1.110857143 | BD106: 0 | BE106: 0 | BF106: 0 | BG106: 0 | BH106: 0 | BI106: 0 | BJ106: 0 | BK106: 0 | BL106: 0 | BM106: 0 | BN106: 0 | BO106: 0 | BP106: 0 | BQ106: 0 | BR106: 0 | BS106: 0
D107: Manouvering Time | G107: Minutes | H107: =Inputs!F115 -> 1 | K107: 1 | N107: =$H$107 -> 1 | O107: =$H$107 -> 1 | P107: 1 | Q107: 1 | R107: 1 | S107: 1 | T107: 1 | U107: 1 | V107: 1 | W107: 1 | X107: 1 | Y107: 1 | Z107: 1 | AA107: 1 | AB107: 1 | AC107: 1 | AD107: 1 | AE107: 1 | AF107: 1 | AG107: 1 | AH107: 1 | AI107: 1 | AJ107: 1 | AK107: 1 | AL107: 1 | AM107: 1 | AN107: 1 | AO107: 1 | AP107: 1 | AQ107: 1 | AR107: 1 | AS107: 1 | AT107: 1 | AU107: 1 | AV107: 1 | AW107: 1 | AX107: 1 | AY107: 1 | AZ107: 1 | BA107: 1 | BB107: 1 | BC107: 1 | BD107: 1 | BE107: 1 | BF107: 1 | BG107: 1 | BH107: 1 | BI107: 1 | BJ107: 1 | BK107: 1 | BL107: 1 | BM107: 1 | BN107: 1 | BO107: 1 | BP107: 1 | BQ107: 1 | BR107: 1 | BS107: 1
D108: Total Required Minutes per Truck per Fill | G108: Minutes | K108: 2.110857143 | N108: =N106+N107 -> 1 | O108: =O106+O107 -> 1 | P108: 1 | Q108: 1 | R108: 1 | S108: 1 | T108: 1 | U108: 1 | V108: 1 | W108: 1 | X108: 1 | Y108: 1 | Z108: 2.110857143 | AA108: 2.110857143 | AB108: 2.110857143 | AC108: 2.110857143 | AD108: 2.110857143 | AE108: 2.110857143 | AF108: 2.110857143 | AG108: 2.110857143 | AH108: 2.110857143 | AI108: 2.110857143 | AJ108: 2.110857143 | AK108: 2.110857143 | AL108: 2.110857143 | AM108: 2.110857143 | AN108: 2.110857143 | AO108: 2.110857143 | AP108: 2.110857143 | AQ108: 2.110857143 | AR108: 2.110857143 | AS108: 2.110857143 | AT108: 2.110857143 | AU108: 2.110857143 | AV108: 2.110857143 | AW108: 2.110857143 | AX108: 2.110857143 | AY108: 2.110857143 | AZ108: 2.110857143 | BA108: 2.110857143 | BB108: 2.110857143 | BC108: 2.110857143 | BD108: 1 | BE108: 1 | BF108: 1 | BG108: 1 | BH108: 1 | BI108: 1 | BJ108: 1 | BK108: 1 | BL108: 1 | BM108: 1 | BN108: 1 | BO108: 1 | BP108: 1 | BQ108: 1 | BR108: 1 | BS108: 1
D109: Total Required Time per Filling Period | G109: Minutes | K109: 105.5428571 | N109: =N108*N96 -> 0 | O109: 0 | P109: 0 | Q109: 0 | R109: 0 | S109: 0 | T109: 0 | U109: 0 | V109: 0 | W109: 0 | X109: 0 | Y109: 0 | Z109: 105.5428571 | AA109: 105.5428571 | AB109: 105.5428571 | AC109: 105.5428571 | AD109: 105.5428571 | AE109: 105.5428571 | AF109: 105.5428571 | AG109: 105.5428571 | AH109: 105.5428571 | AI109: 105.5428571 | AJ109: 105.5428571 | AK109: 105.5428571 | AL109: 105.5428571 | AM109: 105.5428571 | AN109: 105.5428571 | AO109: 105.5428571 | AP109: 105.5428571 | AQ109: 105.5428571 | AR109: 105.5428571 | AS109: 105.5428571 | AT109: =AT108*AT96 -> 105.5428571 | AU109: 105.5428571 | AV109: 105.5428571 | AW109: 105.5428571 | AX109: 105.5428571 | AY109: 105.5428571 | AZ109: 105.5428571 | BA109: 105.5428571 | BB109: 105.5428571 | BC109: 105.5428571 | BD109: 0 | BE109: 0 | BF109: 0 | BG109: 0 | BH109: 0 | BI109: 0 | BJ109: 0 | BK109: 0 | BL109: 0 | BM109: 0 | BN109: 0 | BO109: 0 | BP109: 0 | BQ109: 0 | BR109: 0 | BS109: 0
D111: Target Time for Filling | G111: Minutes | H111: =Inputs!F118 -> 60 | N111: =$H$111 -> 60 | O111: =$H$111 -> 60 | P111: 60 | Q111: 60 | R111: 60 | S111: 60 | T111: 60 | U111: 60 | V111: 60 | W111: 60 | X111: 60 | Y111: 60 | Z111: 60 | AA111: 60 | AB111: 60 | AC111: 60 | AD111: 60 | AE111: 60 | AF111: 60 | AG111: 60 | AH111: 60 | AI111: 60 | AJ111: 60 | AK111: 60 | AL111: 60 | AM111: 60 | AN111: 60 | AO111: 60 | AP111: 60 | AQ111: 60 | AR111: 60 | AS111: 60 | AT111: 60 | AU111: 60 | AV111: 60 | AW111: 60 | AX111: 60 | AY111: 60 | AZ111: 60 | BA111: 60 | BB111: 60 | BC111: 60 | BD111: 60 | BE111: 60 | BF111: 60 | BG111: 60 | BH111: 60 | BI111: 60 | BJ111: 60 | BK111: 60 | BL111: 60 | BM111: 60 | BN111: 60 | BO111: 60 | BP111: 60 | BQ111: 60 | BR111: 60 | BS111: 60
D112: Required Pumps for Filling | G112: Pumps | K112: =MAX(N112:BS112) -> 1.759047619 | N112: =N109/N111 -> 0 | O112: =O109/O111 -> 0 | P112: 0 | Q112: 0 | R112: 0 | S112: 0 | T112: 0 | U112: 0 | V112: 0 | W112: 0 | X112: 0 | Y112: 0 | Z112: 1.759047619 | AA112: 1.759047619 | AB112: 1.759047619 | AC112: 1.759047619 | AD112: 1.759047619 | AE112: 1.759047619 | AF112: 1.759047619 | AG112: 1.759047619 | AH112: 1.759047619 | AI112: 1.759047619 | AJ112: 1.759047619 | AK112: 1.759047619 | AL112: 1.759047619 | AM112: 1.759047619 | AN112: 1.759047619 | AO112: 1.759047619 | AP112: 1.759047619 | AQ112: 1.759047619 | AR112: 1.759047619 | AS112: 1.759047619 | AT112: 1.759047619 | AU112: 1.759047619 | AV112: 1.759047619 | AW112: 1.759047619 | AX112: 1.759047619 | AY112: 1.759047619 | AZ112: 1.759047619 | BA112: 1.759047619 | BB112: 1.759047619 | BC112: 1.759047619 | BD112: 0 | BE112: 0 | BF112: 0 | BG112: 0 | BH112: 0 | BI112: 0 | BJ112: 0 | BK112: 0 | BL112: 0 | BM112: 0 | BN112: 0 | BO112: 0 | BP112: 0 | BQ112: 0 | BR112: 0 | BS112: 0
D113: Rounded Pumps | G113: Pumps | K113: =MAX(N113:BS113) -> 2 | N113: =ROUNDUP(N112,0) -> 0 | O113: =ROUNDUP(O112,0) -> 0 | P113: 0 | Q113: 0 | R113: 0 | S113: 0 | T113: 0 | U113: 0 | V113: 0 | W113: 0 | X113: 0 | Y113: 0 | Z113: 2 | AA113: 2 | AB113: 2 | AC113: 2 | AD113: 2 | AE113: 2 | AF113: 2 | AG113: 2 | AH113: 2 | AI113: 2 | AJ113: 2 | AK113: 2 | AL113: 2 | AM113: 2 | AN113: 2 | AO113: 2 | AP113: 2 | AQ113: 2 | AR113: 2 | AS113: 2 | AT113: 2 | AU113: 2 | AV113: 2 | AW113: 2 | AX113: 2 | AY113: 2 | AZ113: 2 | BA113: 2 | BB113: 2 | BC113: 2 | BD113: 0 | BE113: 0 | BF113: 0 | BG113: 0 | BH113: 0 | BI113: 0 | BJ113: 0 | BK113: 0 | BL113: 0 | BM113: 0 | BN113: 0 | BO113: 0 | BP113: 0 | BQ113: 0 | BR113: 0 | BS113: 0
D114: Minutes Used Per Pump Per Filling | G114: Minutes | K114: =MAX(N114:BS114) -> 52.77142857 | N114: =IF(N113,N109/N113) -> FALSE | O114: =IF(O113,O109/O113) -> FALSE | P114: FALSE | Q114: FALSE | R114: FALSE | S114: FALSE | T114: FALSE | U114: FALSE | V114: FALSE | W114: FALSE | X114: FALSE | Y114: FALSE | Z114: 52.77142857 | AA114: 52.77142857 | AB114: 52.77142857 | AC114: 52.77142857 | AD114: 52.77142857 | AE114: 52.77142857 | AF114: 52.77142857 | AG114: 52.77142857 | AH114: 52.77142857 | AI114: 52.77142857 | AJ114: 52.77142857 | AK114: 52.77142857 | AL114: 52.77142857 | AM114: 52.77142857 | AN114: 52.77142857 | AO114: 52.77142857 | AP114: 52.77142857 | AQ114: 52.77142857 | AR114: 52.77142857 | AS114: 52.77142857 | AT114: 52.77142857 | AU114: 52.77142857 | AV114: 52.77142857 | AW114: 52.77142857 | AX114: 52.77142857 | AY114: 52.77142857 | AZ114: 52.77142857 | BA114: 52.77142857 | BB114: 52.77142857 | BC114: 52.77142857 | BD114: FALSE | BE114: FALSE | BF114: FALSE | BG114: FALSE | BH114: FALSE | BI114: FALSE | BJ114: FALSE | BK114: FALSE | BL114: FALSE | BM114: FALSE | BN114: FALSE | BO114: FALSE | BP114: FALSE | BQ114: FALSE | BR114: FALSE | BS114: FALSE
D116: Applied Number of Nozzels | G116: Nozzels | H116: =Inputs!F109 -> 6 | K116: =MAX(Z116:BS116) -> 6 | N116: =IF(N113<$H$116,$H$116,N113) -> 6 | O116: =IF(O113<$H$116,$H$116,O113) -> 6 | P116: 6 | Q116: 6 | R116: 6 | S116: 6 | T116: 6 | U116: 6 | V116: 6 | W116: 6 | X116: 6 | Y116: 6 | Z116: 6 | AA116: 6 | AB116: 6 | AC116: 6 | AD116: 6 | AE116: 6 | AF116: 6 | AG116: 6 | AH116: 6 | AI116: 6 | AJ116: 6 | AK116: 6 | AL116: 6 | AM116: 6 | AN116: 6 | AO116: 6 | AP116: 6 | AQ116: 6 | AR116: 6 | AS116: 6 | AT116: 6 | AU116: 6 | AV116: 6 | AW116: 6 | AX116: 6 | AY116: 6 | AZ116: 6 | BA116: 6 | BB116: 6 | BC116: 6 | BD116: 6 | BE116: 6 | BF116: 6 | BG116: 6 | BH116: 6 | BI116: 6 | BJ116: 6 | BK116: 6 | BL116: 6 | BM116: 6 | BN116: 6 | BO116: 6 | BP116: 6 | BQ116: 6 | BR116: 6 | BS116: 6
B118: Operating Expenses Other Than Electricity
D120: Inflation Index | G120: Index | H120: =Inputs!F138 -> 0 | M120: 1 | N120: =M120*(1+$H$120*N8) -> 1 | O120: 1 | P120: 1 | Q120: 1 | R120: 1 | S120: 1 | T120: 1 | U120: 1 | V120: 1 | W120: 1 | X120: 1 | Y120: 1 | Z120: 1 | AA120: 1 | AB120: 1 | AC120: 1 | AD120: 1 | AE120: 1 | AF120: 1 | AG120: 1 | AH120: 1 | AI120: 1 | AJ120: 1 | AK120: 1 | AL120: 1 | AM120: 1 | AN120: 1 | AO120: 1 | AP120: 1 | AQ120: 1 | AR120: 1 | AS120: 1 | AT120: =AS120*(1+$H$120*AT8) -> 1 | AU120: 1 | AV120: 1 | AW120: 1 | AX120: 1 | AY120: 1 | AZ120: 1 | BA120: 1 | BB120: 1 | BC120: 1 | BD120: 1 | BE120: 1 | BF120: 1 | BG120: 1 | BH120: 1 | BI120: 1 | BJ120: 1 | BK120: 1 | BL120: 1 | BM120: 1 | BN120: 1 | BO120: 1 | BP120: 1 | BQ120: 1 | BR120: 1 | BS120: 1
D122: Lagoon Maintenance | G122: USD | H122: =Inputs!F143 -> 18298.8 | K122: =MAX(N122:BS122) -> 18298.8 | N122: =$H$122*N120*N8 -> 0 | O122: 0 | P122: 0 | Q122: 0 | R122: 0 | S122: 0 | T122: 0 | U122: 0 | V122: 0 | W122: 0 | X122: 0 | Y122: 0 | Z122: 18298.8 | AA122: 18298.8 | AB122: 18298.8 | AC122: 18298.8 | AD122: 18298.8 | AE122: 18298.8 | AF122: 18298.8 | AG122: 18298.8 | AH122: 18298.8 | AI122: 18298.8 | AJ122: 18298.8 | AK122: 18298.8 | AL122: 18298.8 | AM122: 18298.8 | AN122: 18298.8 | AO122: 18298.8 | AP122: 18298.8 | AQ122: 18298.8 | AR122: 18298.8 | AS122: 18298.8 | AT122: =$H$122*AT120*AT8 -> 18298.8 | AU122: 18298.8 | AV122: 18298.8 | AW122: 18298.8 | AX122: 18298.8 | AY122: 18298.8 | AZ122: 18298.8 | BA122: 18298.8 | BB122: 18298.8 | BC122: 18298.8 | BD122: 0 | BE122: 0 | BF122: 0 | BG122: 0 | BH122: 0 | BI122: 0 | BJ122: 0 | BK122: 0 | BL122: 0 | BM122: 0 | BN122: 0 | BO122: 0 | BP122: 0 | BQ122: 0 | BR122: 0 | BS122: 0
D123: Upgrader Cost | G123: USD | H123: =Inputs!F147 -> 65910 | K123: =MAX(N123:BS123) -> 65910 | N123: =$H$123*N120*N8 -> 0 | O123: 0 | P123: 0 | Q123: 0 | R123: 0 | S123: 0 | T123: 0 | U123: 0 | V123: 0 | W123: 0 | X123: 0 | Y123: 0 | Z123: 65910 | AA123: 65910 | AB123: 65910 | AC123: 65910 | AD123: 65910 | AE123: 65910 | AF123: 65910 | AG123: 65910 | AH123: 65910 | AI123: 65910 | AJ123: 65910 | AK123: 65910 | AL123: 65910 | AM123: 65910 | AN123: 65910 | AO123: 65910 | AP123: 65910 | AQ123: 65910 | AR123: 65910 | AS123: 65910 | AT123: =$H$123*AT120*AT8 -> 65910 | AU123: 65910 | AV123: 65910 | AW123: 65910 | AX123: 65910 | AY123: 65910 | AZ123: 65910 | BA123: 65910 | BB123: 65910 | BC123: 65910 | BD123: 0 | BE123: 0 | BF123: 0 | BG123: 0 | BH123: 0 | BI123: 0 | BJ123: 0 | BK123: 0 | BL123: 0 | BM123: 0 | BN123: 0 | BO123: 0 | BP123: 0 | BQ123: 0 | BR123: 0 | BS123: 0
D124: Overhead | G124: USD | H124: =Inputs!F160 -> 35000 | K124: =MAX(N124:BS124) -> 35000 | N124: =$H$124*N120*N8 -> 0 | O124: 0 | P124: 0 | Q124: 0 | R124: 0 | S124: 0 | T124: 0 | U124: 0 | V124: 0 | W124: 0 | X124: 0 | Y124: 0 | Z124: 35000 | AA124: 35000 | AB124: 35000 | AC124: 35000 | AD124: 35000 | AE124: 35000 | AF124: 35000 | AG124: 35000 | AH124: 35000 | AI124: 35000 | AJ124: 35000 | AK124: 35000 | AL124: 35000 | AM124: 35000 | AN124: 35000 | AO124: 35000 | AP124: 35000 | AQ124: 35000 | AR124: 35000 | AS124: 35000 | AT124: =$H$124*AT120*AT8 -> 35000 | AU124: 35000 | AV124: 35000 | AW124: 35000 | AX124: 35000 | AY124: 35000 | AZ124: 35000 | BA124: 35000 | BB124: 35000 | BC124: 35000 | BD124: 0 | BE124: 0 | BF124: 0 | BG124: 0 | BH124: 0 | BI124: 0 | BJ124: 0 | BK124: 0 | BL124: 0 | BM124: 0 | BN124: 0 | BO124: 0 | BP124: 0 | BQ124: 0 | BR124: 0 | BS124: 0
D126: Minutes per Day per Truck of Pumping | G126: Minutes
D127: Total Hours of Pumping | G127: Hours | H127: =Inputs!F91 -> 350
D128: Total Hours of Upgrader | G128: Hours | H128: =Inputs!$F$83 -> 8400 | N128: =$H$128*N8 -> 0 | O128: 0 | P128: 0 | Q128: 0 | R128: 0 | S128: 0 | T128: 0 | U128: 0 | V128: 0 | W128: 0 | X128: 0 | Y128: 0 | Z128: 8400 | AA128: 8400 | AB128: 8400 | AC128: 8400 | AD128: 8400 | AE128: 8400 | AF128: 8400 | AG128: 8400 | AH128: 8400 | AI128: 8400 | AJ128: 8400 | AK128: 8400 | AL128: 8400 | AM128: 8400 | AN128: 8400 | AO128: 8400 | AP128: 8400 | AQ128: 8400 | AR128: 8400 | AS128: 8400 | AT128: =$H$128*AT8 -> 8400 | AU128: 8400 | AV128: 8400 | AW128: 8400 | AX128: 8400 | AY128: 8400 | AZ128: 8400 | BA128: 8400 | BB128: 8400 | BC128: 8400 | BD128: 0 | BE128: 0 | BF128: 0 | BG128: 0 | BH128: 0 | BI128: 0 | BJ128: 0 | BK128: 0 | BL128: 0 | BM128: 0 | BN128: 0 | BO128: 0 | BP128: 0 | BQ128: 0 | BR128: 0 | BS128: 0
D129: Cost per Hour | G129: Cost/Hour | H129: =Inputs!F151 -> 5 | N129: =$H$129*N120 -> 5 | O129: 5 | P129: 5 | Q129: 5 | R129: 5 | S129: 5 | T129: 5 | U129: 5 | V129: 5 | W129: 5 | X129: 5 | Y129: 5 | Z129: 5 | AA129: 5 | AB129: 5 | AC129: 5 | AD129: 5 | AE129: 5 | AF129: 5 | AG129: 5 | AH129: 5 | AI129: 5 | AJ129: 5 | AK129: 5 | AL129: 5 | AM129: 5 | AN129: 5 | AO129: 5 | AP129: 5 | AQ129: 5 | AR129: 5 | AS129: 5 | AT129: =$H$129*AT120 -> 5 | AU129: 5 | AV129: 5 | AW129: 5 | AX129: 5 | AY129: 5 | AZ129: 5 | BA129: 5 | BB129: 5 | BC129: 5 | BD129: 5 | BE129: 5 | BF129: 5 | BG129: 5 | BH129: 5 | BI129: 5 | BJ129: 5 | BK129: 5 | BL129: 5 | BM129: 5 | BN129: 5 | BO129: 5 | BP129: 5 | BQ129: 5 | BR129: 5 | BS129: 5
D130: Total Pumping Cost | G130: USD | H130: =Z130 -> 42000 | K130: =MAX(N130:BS130) -> 42000 | N130: =N129*N128 -> 0 | O130: =O129*O128 -> 0 | P130: 0 | Q130: 0 | R130: 0 | S130: 0 | T130: 0 | U130: 0 | V130: 0 | W130: 0 | X130: 0 | Y130: 0 | Z130: 42000 | AA130: 42000 | AB130: 42000 | AC130: 42000 | AD130: 42000 | AE130: 42000 | AF130: 42000 | AG130: 42000 | AH130: 42000 | AI130: 42000 | AJ130: 42000 | AK130: 42000 | AL130: 42000 | AM130: 42000 | AN130: 42000 | AO130: 42000 | AP130: 42000 | AQ130: 42000 | AR130: 42000 | AS130: 42000 | AT130: 42000 | AU130: 42000 | AV130: 42000 | AW130: 42000 | AX130: 42000 | AY130: 42000 | AZ130: 42000 | BA130: 42000 | BB130: 42000 | BC130: 42000 | BD130: 0 | BE130: 0 | BF130: 0 | BG130: 0 | BH130: 0 | BI130: 0 | BJ130: 0 | BK130: 0 | BL130: 0 | BM130: 0 | BN130: 0 | BO130: 0 | BP130: 0 | BQ130: 0 | BR130: 0 | BS130: 0
D132: Maintenance Paid by Investor
E133: km Travelled | G133: km/Year | K133: =MAX(N133:BS133) -> 4320000 | N133: =N20 -> 0 | O133: 0 | P133: 0 | Q133: 0 | R133: 0 | S133: 0 | T133: 0 | U133: 0 | V133: 0 | W133: 0 | X133: 0 | Y133: 0 | Z133: 4320000 | AA133: 4320000 | AB133: 4320000 | AC133: 4320000 | AD133: 4320000 | AE133: 4320000 | AF133: 4320000 | AG133: 4320000 | AH133: 4320000 | AI133: 4320000 | AJ133: 4320000 | AK133: 4320000 | AL133: 4320000 | AM133: 4320000 | AN133: 4320000 | AO133: 4320000 | AP133: 4320000 | AQ133: 4320000 | AR133: 4320000 | AS133: 4320000 | AT133: =AT20 -> 4320000 | AU133: 4320000 | AV133: 4320000 | AW133: 4320000 | AX133: 4320000 | AY133: 4320000 | AZ133: 4320000 | BA133: 4320000 | BB133: 4320000 | BC133: 4320000 | BD133: 0 | BE133: 0 | BF133: 0 | BG133: 0 | BH133: 0 | BI133: 0 | BJ133: 0 | BK133: 0 | BL133: 0 | BM133: 0 | BN133: 0 | BO133: 0 | BP133: 0 | BQ133: 0 | BR133: 0 | BS133: 0
E134: Cost of Maintenacne | G134: USD/km | H134: =Inputs!F154 -> 0.0057 | I134: =Inputs!F155 -> TRUE | K134: =MAX(N134:BS134) -> 24624 | N134: =N133*$H$134*$I$134*N120 -> 0 | O134: 0 | P134: 0 | Q134: 0 | R134: 0 | S134: 0 | T134: 0 | U134: 0 | V134: 0 | W134: 0 | X134: 0 | Y134: 0 | Z134: 24624 | AA134: 24624 | AB134: 24624 | AC134: 24624 | AD134: 24624 | AE134: 24624 | AF134: 24624 | AG134: 24624 | AH134: 24624 | AI134: 24624 | AJ134: 24624 | AK134: 24624 | AL134: 24624 | AM134: 24624 | AN134: 24624 | AO134: 24624 | AP134: 24624 | AQ134: 24624 | AR134: 24624 | AS134: 24624 | AT134: =AT133*$H$134*$I$134*AT120 -> 24624 | AU134: 24624 | AV134: 24624 | AW134: 24624 | AX134: 24624 | AY134: 24624 | AZ134: 24624 | BA134: 24624 | BB134: 24624 | BC134: 24624 | BD134: 0 | BE134: 0 | BF134: 0 | BG134: 0 | BH134: 0 | BI134: 0 | BJ134: 0 | BK134: 0 | BL134: 0 | BM134: 0 | BN134: 0 | BO134: 0 | BP134: 0 | BQ134: 0 | BR134: 0 | BS134: 0
E136: Total Operating and Maintenance Expense | H136: =H130+H124+H123+H122 -> 161208.8 | K136: =MAX(N136:BS136) -> 185832.8 | N136: =N124+N130+N123+N122+N134 -> 0 | O136: =O124+O130+O123+O122+O134 -> 0 | P136: 0 | Q136: 0 | R136: 0 | S136: 0 | T136: 0 | U136: 0 | V136: 0 | W136: 0 | X136: 0 | Y136: 0 | Z136: 185832.8 | AA136: 185832.8 | AB136: 185832.8 | AC136: 185832.8 | AD136: 185832.8 | AE136: 185832.8 | AF136: 185832.8 | AG136: 185832.8 | AH136: 185832.8 | AI136: 185832.8 | AJ136: 185832.8 | AK136: 185832.8 | AL136: 185832.8 | AM136: 185832.8 | AN136: 185832.8 | AO136: 185832.8 | AP136: 185832.8 | AQ136: 185832.8 | AR136: 185832.8 | AS136: 185832.8 | AT136: 185832.8 | AU136: 185832.8 | AV136: 185832.8 | AW136: 185832.8 | AX136: 185832.8 | AY136: 185832.8 | AZ136: 185832.8 | BA136: 185832.8 | BB136: 185832.8 | BC136: 185832.8 | BD136: 0 | BE136: 0 | BF136: 0 | BG136: 0 | BH136: 0 | BI136: 0 | BJ136: 0 | BK136: 0 | BL136: 0 | BM136: 0 | BN136: 0 | BO136: 0 | BP136: 0 | BQ136: 0 | BR136: 0 | BS136: 0
B138: Potential Electricity Generation from Biogass
C139: Capacity of Upgarader in M3/Hour (Could be Used for Electricity) | G139: M3/Hour | H139: =Inputs!F82 -> 507 | N139: =$H$139*N8 -> 0 | O139: 0 | P139: 0 | Q139: 0 | R139: 0 | S139: 0 | T139: 0 | U139: 0 | V139: 0 | W139: 0 | X139: 0 | Y139: 0 | Z139: 507 | AA139: 507 | AB139: 507 | AC139: 507 | AD139: 507 | AE139: 507 | AF139: 507 | AG139: 507 | AH139: 507 | AI139: 507 | AJ139: 507 | AK139: 507 | AL139: 507 | AM139: 507 | AN139: 507 | AO139: 507 | AP139: 507 | AQ139: 507 | AR139: 507 | AS139: 507 | AT139: =$H$139*AT8 -> 507 | AU139: 507 | AV139: 507 | AW139: 507 | AX139: 507 | AY139: 507 | AZ139: 507 | BA139: 507 | BB139: 507 | BC139: 507 | BD139: 0 | BE139: 0 | BF139: 0 | BG139: 0 | BH139: 0 | BI139: 0 | BJ139: 0 | BK139: 0 | BL139: 0 | BM139: 0 | BN139: 0 | BO139: 0 | BP139: 0 | BQ139: 0 | BR139: 0 | BS139: 0
E141: Operating Hours of Mill (Above) (??????) | G141: Hours | H141: =Inputs!$F$83 -> 8400 | K141: =SUM(N141:BS141) -> 487200 | N141: =$H$141 -> 8400 | O141: =$H$141 -> 8400 | P141: 8400 | Q141: 8400 | R141: 8400 | S141: 8400 | T141: 8400 | U141: 8400 | V141: 8400 | W141: 8400 | X141: 8400 | Y141: 8400 | Z141: 8400 | AA141: 8400 | AB141: 8400 | AC141: 8400 | AD141: 8400 | AE141: 8400 | AF141: 8400 | AG141: 8400 | AH141: 8400 | AI141: 8400 | AJ141: 8400 | AK141: 8400 | AL141: 8400 | AM141: 8400 | AN141: 8400 | AO141: 8400 | AP141: 8400 | AQ141: 8400 | AR141: 8400 | AS141: 8400 | AT141: 8400 | AU141: 8400 | AV141: 8400 | AW141: 8400 | AX141: 8400 | AY141: 8400 | AZ141: 8400 | BA141: 8400 | BB141: 8400 | BC141: 8400 | BD141: 8400 | BE141: 8400 | BF141: 8400 | BG141: 8400 | BH141: 8400 | BI141: 8400 | BJ141: 8400 | BK141: 8400 | BL141: 8400 | BM141: 8400 | BN141: 8400 | BO141: 8400 | BP141: 8400 | BQ141: 8400 | BR141: 8400 | BS141: 8400
E142: Methane Production as Fraction of Biogass Production | G142: % | H142: =Inputs!F85 -> 0.58 | K142: =MAX(N142:BS142) -> 0.58 | N142: =$H$142 -> 0.58 | O142: =$H$142 -> 0.58 | P142: 0.58 | Q142: 0.58 | R142: 0.58 | S142: 0.58 | T142: 0.58 | U142: 0.58 | V142: 0.58 | W142: 0.58 | X142: 0.58 | Y142: 0.58 | Z142: 0.58 | AA142: 0.58 | AB142: 0.58 | AC142: 0.58 | AD142: 0.58 | AE142: 0.58 | AF142: 0.58 | AG142: 0.58 | AH142: 0.58 | AI142: 0.58 | AJ142: 0.58 | AK142: 0.58 | AL142: 0.58 | AM142: 0.58 | AN142: 0.58 | AO142: 0.58 | AP142: 0.58 | AQ142: 0.58 | AR142: 0.58 | AS142: 0.58 | AT142: 0.58 | AU142: 0.58 | AV142: 0.58 | AW142: 0.58 | AX142: 0.58 | AY142: 0.58 | AZ142: 0.58 | BA142: 0.58 | BB142: 0.58 | BC142: 0.58 | BD142: 0.58 | BE142: 0.58 | BF142: 0.58 | BG142: 0.58 | BH142: 0.58 | BI142: 0.58 | BJ142: 0.58 | BK142: 0.58 | BL142: 0.58 | BM142: 0.58 | BN142: 0.58 | BO142: 0.58 | BP142: 0.58 | BQ142: 0.58 | BR142: 0.58 | BS142: 0.58
E143: Total Possible Methane Production for Electricity | G143: M3 per Year | K143: =MAX(N143:BS143) -> 2470104 | N143: =N139*N141*N142 -> 0 | O143: =O139*O141*O142 -> 0 | P143: 0 | Q143: 0 | R143: 0 | S143: 0 | T143: 0 | U143: 0 | V143: 0 | W143: 0 | X143: 0 | Y143: 0 | Z143: 2470104 | AA143: 2470104 | AB143: 2470104 | AC143: 2470104 | AD143: 2470104 | AE143: 2470104 | AF143: 2470104 | AG143: 2470104 | AH143: 2470104 | AI143: 2470104 | AJ143: 2470104 | AK143: 2470104 | AL143: 2470104 | AM143: 2470104 | AN143: 2470104 | AO143: 2470104 | AP143: 2470104 | AQ143: 2470104 | AR143: 2470104 | AS143: 2470104 | AT143: 2470104 | AU143: 2470104 | AV143: 2470104 | AW143: 2470104 | AX143: 2470104 | AY143: 2470104 | AZ143: 2470104 | BA143: 2470104 | BB143: 2470104 | BC143: 2470104 | BD143: 0 | BE143: 0 | BF143: 0 | BG143: 0 | BH143: 0 | BI143: 0 | BJ143: 0 | BK143: 0 | BL143: 0 | BM143: 0 | BN143: 0 | BO143: 0 | BP143: 0 | BQ143: 0 | BR143: 0 | BS143: 0
E144: Total Possible Methane Production for Electricity | G144: M3 per Hour | H144: =Inputs!F83 -> 8400 | K144: =MAX(N144:BS144) -> 294.06 | N144: =N143/$H$144 -> 0 | O144: =O143/$H$144 -> 0 | P144: 0 | Q144: 0 | R144: 0 | S144: 0 | T144: 0 | U144: 0 | V144: 0 | W144: 0 | X144: 0 | Y144: 0 | Z144: 294.06 | AA144: 294.06 | AB144: 294.06 | AC144: 294.06 | AD144: 294.06 | AE144: 294.06 | AF144: 294.06 | AG144: 294.06 | AH144: 294.06 | AI144: 294.06 | AJ144: 294.06 | AK144: 294.06 | AL144: 294.06 | AM144: 294.06 | AN144: 294.06 | AO144: 294.06 | AP144: 294.06 | AQ144: 294.06 | AR144: 294.06 | AS144: 294.06 | AT144: 294.06 | AU144: 294.06 | AV144: 294.06 | AW144: 294.06 | AX144: 294.06 | AY144: 294.06 | AZ144: 294.06 | BA144: 294.06 | BB144: 294.06 | BC144: 294.06 | BD144: 0 | BE144: 0 | BF144: 0 | BG144: 0 | BH144: 0 | BI144: 0 | BJ144: 0 | BK144: 0 | BL144: 0 | BM144: 0 | BN144: 0 | BO144: 0 | BP144: 0 | BQ144: 0 | BR144: 0 | BS144: 0
E145: Energy Value of Methane (Convert from M3/kWh) | G145: M3/kWh | H145: =Inputs!$F$172 -> 9.97 | N145: =$H$145 -> 9.97 | O145: =$H$145 -> 9.97 | P145: 9.97 | Q145: 9.97 | R145: 9.97 | S145: 9.97 | T145: 9.97 | U145: 9.97 | V145: 9.97 | W145: 9.97 | X145: 9.97 | Y145: 9.97 | Z145: 9.97 | AA145: 9.97 | AB145: 9.97 | AC145: 9.97 | AD145: 9.97 | AE145: 9.97 | AF145: 9.97 | AG145: 9.97 | AH145: 9.97 | AI145: 9.97 | AJ145: 9.97 | AK145: 9.97 | AL145: 9.97 | AM145: 9.97 | AN145: 9.97 | AO145: 9.97 | AP145: 9.97 | AQ145: 9.97 | AR145: 9.97 | AS145: 9.97 | AT145: 9.97 | AU145: 9.97 | AV145: 9.97 | AW145: 9.97 | AX145: 9.97 | AY145: 9.97 | AZ145: 9.97 | BA145: 9.97 | BB145: 9.97 | BC145: 9.97 | BD145: 9.97 | BE145: 9.97 | BF145: 9.97 | BG145: 9.97 | BH145: 9.97 | BI145: 9.97 | BJ145: 9.97 | BK145: 9.97 | BL145: 9.97 | BM145: 9.97 | BN145: 9.97 | BO145: 9.97 | BP145: 9.97 | BQ145: 9.97 | BR145: 9.97 | BS145: 9.97
E146: Total Potential Energy Value of Methane | G146: kWh/Year | K146: =MAX(N146:BS146) -> 24626936.88 | N146: =N145*N143 -> 0 | O146: =O145*O143 -> 0 | P146: 0 | Q146: 0 | R146: 0 | S146: 0 | T146: 0 | U146: 0 | V146: 0 | W146: 0 | X146: 0 | Y146: 0 | Z146: 24626936.88 | AA146: 24626936.88 | AB146: 24626936.88 | AC146: 24626936.88 | AD146: 24626936.88 | AE146: 24626936.88 | AF146: 24626936.88 | AG146: 24626936.88 | AH146: 24626936.88 | AI146: 24626936.88 | AJ146: 24626936.88 | AK146: 24626936.88 | AL146: 24626936.88 | AM146: 24626936.88 | AN146: 24626936.88 | AO146: 24626936.88 | AP146: 24626936.88 | AQ146: 24626936.88 | AR146: 24626936.88 | AS146: 24626936.88 | AT146: 24626936.88 | AU146: 24626936.88 | AV146: 24626936.88 | AW146: 24626936.88 | AX146: 24626936.88 | AY146: 24626936.88 | AZ146: 24626936.88 | BA146: 24626936.88 | BB146: 24626936.88 | BC146: 24626936.88 | BD146: 0 | BE146: 0 | BF146: 0 | BG146: 0 | BH146: 0 | BI146: 0 | BJ146: 0 | BK146: 0 | BL146: 0 | BM146: 0 | BN146: 0 | BO146: 0 | BP146: 0 | BQ146: 0 | BR146: 0 | BS146: 0
E147: Energy Efficiency for Measuring Energy Generation | G147: % | H147: =Inputs!F173 -> 0.4 | K147: =MAX(N147:BS147) -> 0.4 | N147: =$H$147 -> 0.4 | O147: =$H$147 -> 0.4 | P147: 0.4 | Q147: 0.4 | R147: 0.4 | S147: 0.4 | T147: 0.4 | U147: 0.4 | V147: 0.4 | W147: 0.4 | X147: 0.4 | Y147: 0.4 | Z147: 0.4 | AA147: 0.4 | AB147: 0.4 | AC147: 0.4 | AD147: 0.4 | AE147: 0.4 | AF147: 0.4 | AG147: 0.4 | AH147: 0.4 | AI147: 0.4 | AJ147: 0.4 | AK147: 0.4 | AL147: 0.4 | AM147: 0.4 | AN147: 0.4 | AO147: 0.4 | AP147: 0.4 | AQ147: 0.4 | AR147: 0.4 | AS147: 0.4 | AT147: 0.4 | AU147: 0.4 | AV147: 0.4 | AW147: 0.4 | AX147: 0.4 | AY147: 0.4 | AZ147: 0.4 | BA147: 0.4 | BB147: 0.4 | BC147: 0.4 | BD147: 0.4 | BE147: 0.4 | BF147: 0.4 | BG147: 0.4 | BH147: 0.4 | BI147: 0.4 | BJ147: 0.4 | BK147: 0.4 | BL147: 0.4 | BM147: 0.4 | BN147: 0.4 | BO147: 0.4 | BP147: 0.4 | BQ147: 0.4 | BR147: 0.4 | BS147: 0.4
E148: Potential Energy Available | G148: kWh/Year | K148: =MAX(N148:BS148) -> 9850774.752 | N148: =N146*N147 -> 0 | O148: =O146*O147 -> 0 | P148: 0 | Q148: 0 | R148: 0 | S148: 0 | T148: 0 | U148: 0 | V148: 0 | W148: 0 | X148: 0 | Y148: 0 | Z148: 9850774.752 | AA148: 9850774.752 | AB148: 9850774.752 | AC148: 9850774.752 | AD148: 9850774.752 | AE148: 9850774.752 | AF148: 9850774.752 | AG148: 9850774.752 | AH148: 9850774.752 | AI148: 9850774.752 | AJ148: 9850774.752 | AK148: 9850774.752 | AL148: 9850774.752 | AM148: 9850774.752 | AN148: 9850774.752 | AO148: 9850774.752 | AP148: 9850774.752 | AQ148: 9850774.752 | AR148: 9850774.752 | AS148: 9850774.752 | AT148: 9850774.752 | AU148: 9850774.752 | AV148: 9850774.752 | AW148: 9850774.752 | AX148: 9850774.752 | AY148: 9850774.752 | AZ148: 9850774.752 | BA148: 9850774.752 | BB148: 9850774.752 | BC148: 9850774.752 | BD148: 0 | BE148: 0 | BF148: 0 | BG148: 0 | BH148: 0 | BI148: 0 | BJ148: 0 | BK148: 0 | BL148: 0 | BM148: 0 | BN148: 0 | BO148: 0 | BP148: 0 | BQ148: 0 | BR148: 0 | BS148: 0
E149: Required Electricity Capacity from Upgrader Capacity | G149: kW | K149: =MAX(N149:BS149) -> 1172.71128 | N149: =N148/N141 -> 0 | O149: =O148/O141 -> 0 | P149: 0 | Q149: 0 | R149: 0 | S149: 0 | T149: 0 | U149: 0 | V149: 0 | W149: 0 | X149: 0 | Y149: 0 | Z149: 1172.71128 | AA149: 1172.71128 | AB149: 1172.71128 | AC149: 1172.71128 | AD149: 1172.71128 | AE149: 1172.71128 | AF149: 1172.71128 | AG149: 1172.71128 | AH149: 1172.71128 | AI149: 1172.71128 | AJ149: 1172.71128 | AK149: 1172.71128 | AL149: 1172.71128 | AM149: 1172.71128 | AN149: 1172.71128 | AO149: 1172.71128 | AP149: 1172.71128 | AQ149: 1172.71128 | AR149: 1172.71128 | AS149: 1172.71128 | AT149: 1172.71128 | AU149: 1172.71128 | AV149: 1172.71128 | AW149: 1172.71128 | AX149: 1172.71128 | AY149: 1172.71128 | AZ149: 1172.71128 | BA149: 1172.71128 | BB149: 1172.71128 | BC149: 1172.71128 | BD149: 0 | BE149: 0 | BF149: 0 | BG149: 0 | BH149: 0 | BI149: 0 | BJ149: 0 | BK149: 0 | BL149: 0 | BM149: 0 | BN149: 0 | BO149: 0 | BP149: 0 | BQ149: 0 | BR149: 0 | BS149: 0
E150: Total Potential kWh (No Methane Production for Trucks) | G150: kWh/Year | H150: =Inputs!F83 -> 8400 | K150: =MAX(N150:BS150) -> 9850774.752 | N150: =$H$150*N149 -> 0 | O150: =$H$150*O149 -> 0 | P150: 0 | Q150: 0 | R150: 0 | S150: 0 | T150: 0 | U150: 0 | V150: 0 | W150: 0 | X150: 0 | Y150: 0 | Z150: 9850774.752 | AA150: 9850774.752 | AB150: 9850774.752 | AC150: 9850774.752 | AD150: 9850774.752 | AE150: 9850774.752 | AF150: 9850774.752 | AG150: 9850774.752 | AH150: 9850774.752 | AI150: 9850774.752 | AJ150: 9850774.752 | AK150: 9850774.752 | AL150: 9850774.752 | AM150: 9850774.752 | AN150: 9850774.752 | AO150: 9850774.752 | AP150: 9850774.752 | AQ150: 9850774.752 | AR150: 9850774.752 | AS150: 9850774.752 | AT150: 9850774.752 | AU150: 9850774.752 | AV150: 9850774.752 | AW150: 9850774.752 | AX150: 9850774.752 | AY150: 9850774.752 | AZ150: 9850774.752 | BA150: 9850774.752 | BB150: 9850774.752 | BC150: 9850774.752 | BD150: 0 | BE150: 0 | BF150: 0 | BG150: 0 | BH150: 0 | BI150: 0 | BJ150: 0 | BK150: 0 | BL150: 0 | BM150: 0 | BN150: 0 | BO150: 0 | BP150: 0 | BQ150: 0 | BR150: 0 | BS150: 0
B152: Use of Mehane for Electricity Production if Self Generate
C154: Electricity Production for Lagoon
D155: Percent of Potential Capacity Used for Lagoon | G155: % | H155: =Inputs!F175 -> 0.03 | N155: =$H$155 -> 0.03 | O155: =$H$155 -> 0.03 | P155: 0.03 | Q155: 0.03 | R155: 0.03 | S155: 0.03 | T155: 0.03 | U155: 0.03 | V155: 0.03 | W155: 0.03 | X155: 0.03 | Y155: 0.03 | Z155: 0.03 | AA155: 0.03 | AB155: 0.03 | AC155: 0.03 | AD155: 0.03 | AE155: 0.03 | AF155: 0.03 | AG155: 0.03 | AH155: 0.03 | AI155: 0.03 | AJ155: 0.03 | AK155: 0.03 | AL155: 0.03 | AM155: 0.03 | AN155: 0.03 | AO155: 0.03 | AP155: 0.03 | AQ155: 0.03 | AR155: 0.03 | AS155: 0.03 | AT155: 0.03 | AU155: 0.03 | AV155: 0.03 | AW155: 0.03 | AX155: 0.03 | AY155: 0.03 | AZ155: 0.03 | BA155: 0.03 | BB155: 0.03 | BC155: 0.03 | BD155: 0.03 | BE155: 0.03 | BF155: 0.03 | BG155: 0.03 | BH155: 0.03 | BI155: 0.03 | BJ155: 0.03 | BK155: 0.03 | BL155: 0.03 | BM155: 0.03 | BN155: 0.03 | BO155: 0.03 | BP155: 0.03 | BQ155: 0.03 | BR155: 0.03 | BS155: 0.03
D156: kW for Lagoon | G156: kW | K156: =MAX(N156:BS156) -> 35.1813384 | N156: =N155*N149 -> 0 | O156: 0 | P156: 0 | Q156: 0 | R156: 0 | S156: 0 | T156: 0 | U156: 0 | V156: 0 | W156: 0 | X156: 0 | Y156: 0 | Z156: 35.1813384 | AA156: 35.1813384 | AB156: 35.1813384 | AC156: 35.1813384 | AD156: 35.1813384 | AE156: 35.1813384 | AF156: 35.1813384 | AG156: 35.1813384 | AH156: 35.1813384 | AI156: 35.1813384 | AJ156: 35.1813384 | AK156: 35.1813384 | AL156: 35.1813384 | AM156: 35.1813384 | AN156: 35.1813384 | AO156: 35.1813384 | AP156: 35.1813384 | AQ156: 35.1813384 | AR156: 35.1813384 | AS156: 35.1813384 | AT156: =AT155*AT149 -> 35.1813384 | AU156: 35.1813384 | AV156: 35.1813384 | AW156: 35.1813384 | AX156: 35.1813384 | AY156: 35.1813384 | AZ156: 35.1813384 | BA156: 35.1813384 | BB156: 35.1813384 | BC156: 35.1813384 | BD156: 0 | BE156: 0 | BF156: 0 | BG156: 0 | BH156: 0 | BI156: 0 | BJ156: 0 | BK156: 0 | BL156: 0 | BM156: 0 | BN156: 0 | BO156: 0 | BP156: 0 | BQ156: 0 | BR156: 0 | BS156: 0
D157: kWh per year for Lagoon | G157: kWh/Year | H157: =Inputs!$F$83 -> 8400 | K157: =MAX(N157:BS157) -> 295523.2426 | N157: =N156*$H$157 -> 0 | O157: =O156*$H$157 -> 0 | P157: 0 | Q157: 0 | R157: 0 | S157: 0 | T157: 0 | U157: 0 | V157: 0 | W157: 0 | X157: 0 | Y157: 0 | Z157: 295523.2426 | AA157: 295523.2426 | AB157: 295523.2426 | AC157: 295523.2426 | AD157: 295523.2426 | AE157: 295523.2426 | AF157: 295523.2426 | AG157: 295523.2426 | AH157: 295523.2426 | AI157: 295523.2426 | AJ157: 295523.2426 | AK157: 295523.2426 | AL157: 295523.2426 | AM157: 295523.2426 | AN157: 295523.2426 | AO157: 295523.2426 | AP157: 295523.2426 | AQ157: 295523.2426 | AR157: 295523.2426 | AS157: 295523.2426 | AT157: 295523.2426 | AU157: 295523.2426 | AV157: 295523.2426 | AW157: 295523.2426 | AX157: 295523.2426 | AY157: 295523.2426 | AZ157: 295523.2426 | BA157: 295523.2426 | BB157: 295523.2426 | BC157: 295523.2426 | BD157: 0 | BE157: 0 | BF157: 0 | BG157: 0 | BH157: 0 | BI157: 0 | BJ157: 0 | BK157: 0 | BL157: 0 | BM157: 0 | BN157: 0 | BO157: 0 | BP157: 0 | BQ157: 0 | BR157: 0 | BS157: 0
C159: Electricity Production for Upgrader
D160: Biogas kW per M3 of Biogass for Upgrader | G160: kW/M3 | H160: =Inputs!F169 -> 0.8 | N160: =$H$160 -> 0.8 | O160: =$H$160 -> 0.8 | P160: 0.8 | Q160: 0.8 | R160: 0.8 | S160: 0.8 | T160: 0.8 | U160: 0.8 | V160: 0.8 | W160: 0.8 | X160: 0.8 | Y160: 0.8 | Z160: 0.8 | AA160: 0.8 | AB160: 0.8 | AC160: 0.8 | AD160: 0.8 | AE160: 0.8 | AF160: 0.8 | AG160: 0.8 | AH160: 0.8 | AI160: 0.8 | AJ160: 0.8 | AK160: 0.8 | AL160: 0.8 | AM160: 0.8 | AN160: 0.8 | AO160: 0.8 | AP160: 0.8 | AQ160: 0.8 | AR160: 0.8 | AS160: 0.8 | AT160: 0.8 | AU160: 0.8 | AV160: 0.8 | AW160: 0.8 | AX160: 0.8 | AY160: 0.8 | AZ160: 0.8 | BA160: 0.8 | BB160: 0.8 | BC160: 0.8 | BD160: 0.8 | BE160: 0.8 | BF160: 0.8 | BG160: 0.8 | BH160: 0.8 | BI160: 0.8 | BJ160: 0.8 | BK160: 0.8 | BL160: 0.8 | BM160: 0.8 | BN160: 0.8 | BO160: 0.8 | BP160: 0.8 | BQ160: 0.8 | BR160: 0.8 | BS160: 0.8
D161: M3 of Biogass to Meet Demand | G161: M3/Hour | K161: =MAX(N161:BS161) -> 417.0174653 | N161: =N62 -> 0 | O161: 0 | P161: 0 | Q161: 0 | R161: 0 | S161: 0 | T161: 0 | U161: 0 | V161: 0 | W161: 0 | X161: 0 | Y161: 0 | Z161: 417.0174653 | AA161: 417.0174653 | AB161: 417.0174653 | AC161: 417.0174653 | AD161: 417.0174653 | AE161: 417.0174653 | AF161: 417.0174653 | AG161: 417.0174653 | AH161: 417.0174653 | AI161: 417.0174653 | AJ161: 417.0174653 | AK161: 417.0174653 | AL161: 417.0174653 | AM161: 417.0174653 | AN161: 417.0174653 | AO161: 417.0174653 | AP161: 417.0174653 | AQ161: 417.0174653 | AR161: 417.0174653 | AS161: 417.0174653 | AT161: =AT62 -> 417.0174653 | AU161: 417.0174653 | AV161: 417.0174653 | AW161: 417.0174653 | AX161: 417.0174653 | AY161: 417.0174653 | AZ161: 417.0174653 | BA161: 417.0174653 | BB161: 417.0174653 | BC161: 417.0174653 | BD161: 0 | BE161: 0 | BF161: 0 | BG161: 0 | BH161: 0 | BI161: 0 | BJ161: 0 | BK161: 0 | BL161: 0 | BM161: 0 | BN161: 0 | BO161: 0 | BP161: 0 | BQ161: 0 | BR161: 0 | BS161: 0
D162: kWh for Upgrader | G162: kWh/Year | H162: =Inputs!$F$83 -> 8400 | K162: =MAX(N162:BS162) -> 2802357.367 | N162: =N160*N161*$H$162 -> 0 | O162: =O160*O161*$H$162 -> 0 | P162: 0 | Q162: 0 | R162: 0 | S162: 0 | T162: 0 | U162: 0 | V162: 0 | W162: 0 | X162: 0 | Y162: 0 | Z162: 2802357.367 | AA162: 2802357.367 | AB162: 2802357.367 | AC162: 2802357.367 | AD162: 2802357.367 | AE162: 2802357.367 | AF162: 2802357.367 | AG162: 2802357.367 | AH162: 2802357.367 | AI162: 2802357.367 | AJ162: 2802357.367 | AK162: 2802357.367 | AL162: 2802357.367 | AM162: 2802357.367 | AN162: 2802357.367 | AO162: 2802357.367 | AP162: 2802357.367 | AQ162: 2802357.367 | AR162: 2802357.367 | AS162: 2802357.367 | AT162: 2802357.367 | AU162: 2802357.367 | AV162: 2802357.367 | AW162: 2802357.367 | AX162: 2802357.367 | AY162: 2802357.367 | AZ162: 2802357.367 | BA162: 2802357.367 | BB162: 2802357.367 | BC162: 2802357.367 | BD162: 0 | BE162: 0 | BF162: 0 | BG162: 0 | BH162: 0 | BI162: 0 | BJ162: 0 | BK162: 0 | BL162: 0 | BM162: 0 | BN162: 0 | BO162: 0 | BP162: 0 | BQ162: 0 | BR162: 0 | BS162: 0
C164: Electricity Production for Filling
D165: Methane (CNG) Used for Trucks | G165: M3/Hour | K165: =MAX(N165:BS165) -> 246.8571429 | N165: =N68 -> 0 | O165: 0 | P165: 0 | Q165: 0 | R165: 0 | S165: 0 | T165: 0 | U165: 0 | V165: 0 | W165: 0 | X165: 0 | Y165: 0 | Z165: 246.8571429 | AA165: 246.8571429 | AB165: 246.8571429 | AC165: 246.8571429 | AD165: 246.8571429 | AE165: 246.8571429 | AF165: 246.8571429 | AG165: 246.8571429 | AH165: 246.8571429 | AI165: 246.8571429 | AJ165: 246.8571429 | AK165: 246.8571429 | AL165: 246.8571429 | AM165: 246.8571429 | AN165: 246.8571429 | AO165: 246.8571429 | AP165: 246.8571429 | AQ165: 246.8571429 | AR165: 246.8571429 | AS165: 246.8571429 | AT165: =AT68 -> 246.8571429 | AU165: 246.8571429 | AV165: 246.8571429 | AW165: 246.8571429 | AX165: 246.8571429 | AY165: 246.8571429 | AZ165: 246.8571429 | BA165: 246.8571429 | BB165: 246.8571429 | BC165: 246.8571429 | BD165: 0 | BE165: 0 | BF165: 0 | BG165: 0 | BH165: 0 | BI165: 0 | BJ165: 0 | BK165: 0 | BL165: 0 | BM165: 0 | BN165: 0 | BO165: 0 | BP165: 0 | BQ165: 0 | BR165: 0 | BS165: 0
D166: Pumping Electricity per M3 for Pumping | G166: kW/M3 | H166: =Inputs!F176 -> 0.6 | N166: =$H$166 -> 0.6 | O166: =$H$166 -> 0.6 | P166: 0.6 | Q166: 0.6 | R166: 0.6 | S166: 0.6 | T166: 0.6 | U166: 0.6 | V166: 0.6 | W166: 0.6 | X166: 0.6 | Y166: 0.6 | Z166: 0.6 | AA166: 0.6 | AB166: 0.6 | AC166: 0.6 | AD166: 0.6 | AE166: 0.6 | AF166: 0.6 | AG166: 0.6 | AH166: 0.6 | AI166: 0.6 | AJ166: 0.6 | AK166: 0.6 | AL166: 0.6 | AM166: 0.6 | AN166: 0.6 | AO166: 0.6 | AP166: 0.6 | AQ166: 0.6 | AR166: 0.6 | AS166: 0.6 | AT166: 0.6 | AU166: 0.6 | AV166: 0.6 | AW166: 0.6 | AX166: 0.6 | AY166: 0.6 | AZ166: 0.6 | BA166: 0.6 | BB166: 0.6 | BC166: 0.6 | BD166: 0.6 | BE166: 0.6 | BF166: 0.6 | BG166: 0.6 | BH166: 0.6 | BI166: 0.6 | BJ166: 0.6 | BK166: 0.6 | BL166: 0.6 | BM166: 0.6 | BN166: 0.6 | BO166: 0.6 | BP166: 0.6 | BQ166: 0.6 | BR166: 0.6 | BS166: 0.6
D167: Electricity for Pumping Use | G167: kWh/Hour | K167: =MAX(N167:BS167) -> 148.1142857 | N167: =N165*N166 -> 0 | O167: =O165*O166 -> 0 | P167: 0 | Q167: 0 | R167: 0 | S167: 0 | T167: 0 | U167: 0 | V167: 0 | W167: 0 | X167: 0 | Y167: 0 | Z167: 148.1142857 | AA167: 148.1142857 | AB167: 148.1142857 | AC167: 148.1142857 | AD167: 148.1142857 | AE167: 148.1142857 | AF167: 148.1142857 | AG167: 148.1142857 | AH167: 148.1142857 | AI167: 148.1142857 | AJ167: 148.1142857 | AK167: 148.1142857 | AL167: 148.1142857 | AM167: 148.1142857 | AN167: 148.1142857 | AO167: 148.1142857 | AP167: 148.1142857 | AQ167: 148.1142857 | AR167: 148.1142857 | AS167: 148.1142857 | AT167: 148.1142857 | AU167: 148.1142857 | AV167: 148.1142857 | AW167: 148.1142857 | AX167: 148.1142857 | AY167: 148.1142857 | AZ167: 148.1142857 | BA167: 148.1142857 | BB167: 148.1142857 | BC167: 148.1142857 | BD167: 0 | BE167: 0 | BF167: 0 | BG167: 0 | BH167: 0 | BI167: 0 | BJ167: 0 | BK167: 0 | BL167: 0 | BM167: 0 | BN167: 0 | BO167: 0 | BP167: 0 | BQ167: 0 | BR167: 0 | BS167: 0
D168: Total Electricity for Pumping | G168: kWh/Year | H168: =Inputs!$F$83 -> 8400 | K168: =MAX(N168:BS168) -> 1244160 | N168: =$H$168*N167 -> 0 | O168: =$H$168*O167 -> 0 | P168: 0 | Q168: 0 | R168: 0 | S168: 0 | T168: 0 | U168: 0 | V168: 0 | W168: 0 | X168: 0 | Y168: 0 | Z168: 1244160 | AA168: 1244160 | AB168: 1244160 | AC168: 1244160 | AD168: 1244160 | AE168: 1244160 | AF168: 1244160 | AG168: 1244160 | AH168: 1244160 | AI168: 1244160 | AJ168: 1244160 | AK168: 1244160 | AL168: 1244160 | AM168: 1244160 | AN168: 1244160 | AO168: 1244160 | AP168: 1244160 | AQ168: 1244160 | AR168: 1244160 | AS168: 1244160 | AT168: 1244160 | AU168: 1244160 | AV168: 1244160 | AW168: 1244160 | AX168: 1244160 | AY168: 1244160 | AZ168: 1244160 | BA168: 1244160 | BB168: 1244160 | BC168: 1244160 | BD168: 0 | BE168: 0 | BF168: 0 | BG168: 0 | BH168: 0 | BI168: 0 | BJ168: 0 | BK168: 0 | BL168: 0 | BM168: 0 | BN168: 0 | BO168: 0 | BP168: 0 | BQ168: 0 | BR168: 0 | BS168: 0
D170: Total kWh for Lagoon, Upgrader and Pumping | G170: kWh/Year | K170: =MAX(N170:BS170) -> 4342040.609 | N170: =N168+N162+N157 -> 0 | O170: 0 | P170: 0 | Q170: 0 | R170: 0 | S170: 0 | T170: 0 | U170: 0 | V170: 0 | W170: 0 | X170: 0 | Y170: 0 | Z170: 4342040.609 | AA170: 4342040.609 | AB170: 4342040.609 | AC170: 4342040.609 | AD170: 4342040.609 | AE170: 4342040.609 | AF170: 4342040.609 | AG170: 4342040.609 | AH170: 4342040.609 | AI170: 4342040.609 | AJ170: 4342040.609 | AK170: 4342040.609 | AL170: 4342040.609 | AM170: 4342040.609 | AN170: 4342040.609 | AO170: 4342040.609 | AP170: 4342040.609 | AQ170: 4342040.609 | AR170: 4342040.609 | AS170: 4342040.609 | AT170: =AT168+AT162+AT157 -> 4342040.609 | AU170: 4342040.609 | AV170: 4342040.609 | AW170: 4342040.609 | AX170: 4342040.609 | AY170: 4342040.609 | AZ170: 4342040.609 | BA170: 4342040.609 | BB170: 4342040.609 | BC170: 4342040.609 | BD170: 0 | BE170: 0 | BF170: 0 | BG170: 0 | BH170: 0 | BI170: 0 | BJ170: 0 | BK170: 0 | BL170: 0 | BM170: 0 | BN170: 0 | BO170: 0 | BP170: 0 | BQ170: 0 | BR170: 0 | BS170: 0
C172: Methane Requirements for Electricity
D173: Total Methane per Year for Electricity at 100% Efficiency | G173: M3/Year | H173: =Inputs!$F$172 -> 9.97 | K173: =MAX(N173:BS173) -> 435510.5927 | N173: =N170/$H$173 -> 0 | O173: 0 | P173: 0 | Q173: 0 | R173: 0 | S173: 0 | T173: 0 | U173: 0 | V173: 0 | W173: 0 | X173: 0 | Y173: 0 | Z173: 435510.5927 | AA173: 435510.5927 | AB173: 435510.5927 | AC173: 435510.5927 | AD173: 435510.5927 | AE173: 435510.5927 | AF173: 435510.5927 | AG173: 435510.5927 | AH173: 435510.5927 | AI173: 435510.5927 | AJ173: 435510.5927 | AK173: 435510.5927 | AL173: 435510.5927 | AM173: 435510.5927 | AN173: 435510.5927 | AO173: 435510.5927 | AP173: 435510.5927 | AQ173: 435510.5927 | AR173: 435510.5927 | AS173: 435510.5927 | AT173: =AT170/$H$173 -> 435510.5927 | AU173: 435510.5927 | AV173: 435510.5927 | AW173: 435510.5927 | AX173: 435510.5927 | AY173: 435510.5927 | AZ173: 435510.5927 | BA173: 435510.5927 | BB173: 435510.5927 | BC173: 435510.5927 | BD173: 0 | BE173: 0 | BF173: 0 | BG173: 0 | BH173: 0 | BI173: 0 | BJ173: 0 | BK173: 0 | BL173: 0 | BM173: 0 | BN173: 0 | BO173: 0 | BP173: 0 | BQ173: 0 | BR173: 0 | BS173: 0
D174: Total Methane per Year for Electricity at Efficiency | G174: M3/Year | H174: =Inputs!F173 -> 0.4 | K174: =MAX(N174:BS174) -> 1088776.482 | N174: =N173/$H$174 -> 0 | O174: =O173/$H$174 -> 0 | P174: 0 | Q174: 0 | R174: 0 | S174: 0 | T174: 0 | U174: 0 | V174: 0 | W174: 0 | X174: 0 | Y174: 0 | Z174: 1088776.482 | AA174: 1088776.482 | AB174: 1088776.482 | AC174: 1088776.482 | AD174: 1088776.482 | AE174: 1088776.482 | AF174: 1088776.482 | AG174: 1088776.482 | AH174: 1088776.482 | AI174: 1088776.482 | AJ174: 1088776.482 | AK174: 1088776.482 | AL174: 1088776.482 | AM174: 1088776.482 | AN174: 1088776.482 | AO174: 1088776.482 | AP174: 1088776.482 | AQ174: 1088776.482 | AR174: 1088776.482 | AS174: 1088776.482 | AT174: 1088776.482 | AU174: 1088776.482 | AV174: 1088776.482 | AW174: 1088776.482 | AX174: 1088776.482 | AY174: 1088776.482 | AZ174: 1088776.482 | BA174: 1088776.482 | BB174: 1088776.482 | BC174: 1088776.482 | BD174: 0 | BE174: 0 | BF174: 0 | BG174: 0 | BH174: 0 | BI174: 0 | BJ174: 0 | BK174: 0 | BL174: 0 | BM174: 0 | BN174: 0 | BO174: 0 | BP174: 0 | BQ174: 0 | BR174: 0 | BS174: 0
D175: Total Methane per Hour for Electricity - Self Generation | G175: M3/Hour | H175: =Inputs!F83 -> 8400 | K175: =MAX(N175:BS175) -> 129.6162478 | N175: =N174/$H$175 -> 0 | O175: =O174/$H$175 -> 0 | P175: 0 | Q175: 0 | R175: 0 | S175: 0 | T175: 0 | U175: 0 | V175: 0 | W175: 0 | X175: 0 | Y175: 0 | Z175: 129.6162478 | AA175: 129.6162478 | AB175: 129.6162478 | AC175: 129.6162478 | AD175: 129.6162478 | AE175: 129.6162478 | AF175: 129.6162478 | AG175: 129.6162478 | AH175: 129.6162478 | AI175: 129.6162478 | AJ175: 129.6162478 | AK175: 129.6162478 | AL175: 129.6162478 | AM175: 129.6162478 | AN175: 129.6162478 | AO175: 129.6162478 | AP175: 129.6162478 | AQ175: 129.6162478 | AR175: 129.6162478 | AS175: 129.6162478 | AT175: 129.6162478 | AU175: 129.6162478 | AV175: 129.6162478 | AW175: 129.6162478 | AX175: 129.6162478 | AY175: 129.6162478 | AZ175: 129.6162478 | BA175: 129.6162478 | BB175: 129.6162478 | BC175: 129.6162478 | BD175: 0 | BE175: 0 | BF175: 0 | BG175: 0 | BH175: 0 | BI175: 0 | BJ175: 0 | BK175: 0 | BL175: 0 | BM175: 0 | BN175: 0 | BO175: 0 | BP175: 0 | BQ175: 0 | BR175: 0 | BS175: 0
D177: Total Potential Methane from Full Upgrader Capacity | G177: M3/Hour | K177: =MAX(N177:BS177) -> 300.1230928 | N177: =N$70 -> 0 | O177: =O$70 -> 0 | P177: 0 | Q177: 0 | R177: 0 | S177: 0 | T177: 0 | U177: 0 | V177: 0 | W177: 0 | X177: 0 | Y177: 0 | Z177: 300.1230928 | AA177: 300.1230928 | AB177: 300.1230928 | AC177: 300.1230928 | AD177: 300.1230928 | AE177: 300.1230928 | AF177: 300.1230928 | AG177: 300.1230928 | AH177: 300.1230928 | AI177: 300.1230928 | AJ177: 300.1230928 | AK177: 300.1230928 | AL177: 300.1230928 | AM177: 300.1230928 | AN177: 300.1230928 | AO177: 300.1230928 | AP177: 300.1230928 | AQ177: 300.1230928 | AR177: 300.1230928 | AS177: 300.1230928 | AT177: 300.1230928 | AU177: 300.1230928 | AV177: 300.1230928 | AW177: 300.1230928 | AX177: 300.1230928 | AY177: 300.1230928 | AZ177: 300.1230928 | BA177: 300.1230928 | BB177: 300.1230928 | BC177: 300.1230928 | BD177: 0 | BE177: 0 | BF177: 0 | BG177: 0 | BH177: 0 | BI177: 0 | BJ177: 0 | BK177: 0 | BL177: 0 | BM177: 0 | BN177: 0 | BO177: 0 | BP177: 0 | BQ177: 0 | BR177: 0 | BS177: 0
D178: Remaining Methane for Trucks | G178: M3/Hour | K178: 170.506845 | N178: =N177-N175 -> 0 | O178: =O177-O175 -> 0 | P178: 0 | Q178: 0 | R178: 0 | S178: 0 | T178: 0 | U178: 0 | V178: 0 | W178: 0 | X178: 0 | Y178: 0 | Z178: 170.506845 | AA178: 170.506845 | AB178: 170.506845 | AC178: 170.506845 | AD178: 170.506845 | AE178: 170.506845 | AF178: 170.506845 | AG178: 170.506845 | AH178: 170.506845 | AI178: 170.506845 | AJ178: 170.506845 | AK178: 170.506845 | AL178: 170.506845 | AM178: 170.506845 | AN178: 170.506845 | AO178: 170.506845 | AP178: 170.506845 | AQ178: 170.506845 | AR178: 170.506845 | AS178: 170.506845 | AT178: 170.506845 | AU178: 170.506845 | AV178: 170.506845 | AW178: 170.506845 | AX178: 170.506845 | AY178: 170.506845 | AZ178: 170.506845 | BA178: 170.506845 | BB178: 170.506845 | BC178: 170.506845 | BD178: 0 | BE178: 0 | BF178: 0 | BG178: 0 | BH178: 0 | BI178: 0 | BJ178: 0 | BK178: 0 | BL178: 0 | BM178: 0 | BN178: 0 | BO178: 0 | BP178: 0 | BQ178: 0 | BR178: 0 | BS178: 0
D179: Remaining Methane for Trucks per Year | G179: M3/Year | H179: =Inputs!$F$83 -> 8400 | K179: 1432257.498 | N179: =N178*$H$179 -> 0 | O179: =O178*$H$179 -> 0 | P179: 0 | Q179: 0 | R179: 0 | S179: 0 | T179: 0 | U179: 0 | V179: 0 | W179: 0 | X179: 0 | Y179: 0 | Z179: 1432257.498 | AA179: 1432257.498 | AB179: 1432257.498 | AC179: 1432257.498 | AD179: 1432257.498 | AE179: 1432257.498 | AF179: 1432257.498 | AG179: 1432257.498 | AH179: 1432257.498 | AI179: 1432257.498 | AJ179: 1432257.498 | AK179: 1432257.498 | AL179: 1432257.498 | AM179: 1432257.498 | AN179: 1432257.498 | AO179: 1432257.498 | AP179: 1432257.498 | AQ179: 1432257.498 | AR179: 1432257.498 | AS179: 1432257.498 | AT179: 1432257.498 | AU179: 1432257.498 | AV179: 1432257.498 | AW179: 1432257.498 | AX179: 1432257.498 | AY179: 1432257.498 | AZ179: 1432257.498 | BA179: 1432257.498 | BB179: 1432257.498 | BC179: 1432257.498 | BD179: 0 | BE179: 0 | BF179: 0 | BG179: 0 | BH179: 0 | BI179: 0 | BJ179: 0 | BK179: 0 | BL179: 0 | BM179: 0 | BN179: 0 | BO179: 0 | BP179: 0 | BQ179: 0 | BR179: 0 | BS179: 0
D180: Potential km from Remaining Use | G180: km/Year | H180: =(Inputs!$F$100/100) -> 2.083333333 | K180: 2983869.787 | N180: =N179*$H$180 -> 0 | O180: =O179*$H$180 -> 0 | P180: 0 | Q180: 0 | R180: 0 | S180: 0 | T180: 0 | U180: 0 | V180: 0 | W180: 0 | X180: 0 | Y180: 0 | Z180: 2983869.787 | AA180: 2983869.787 | AB180: 2983869.787 | AC180: 2983869.787 | AD180: 2983869.787 | AE180: 2983869.787 | AF180: 2983869.787 | AG180: 2983869.787 | AH180: 2983869.787 | AI180: 2983869.787 | AJ180: 2983869.787 | AK180: 2983869.787 | AL180: 2983869.787 | AM180: 2983869.787 | AN180: 2983869.787 | AO180: 2983869.787 | AP180: 2983869.787 | AQ180: 2983869.787 | AR180: 2983869.787 | AS180: 2983869.787 | AT180: 2983869.787 | AU180: 2983869.787 | AV180: 2983869.787 | AW180: 2983869.787 | AX180: 2983869.787 | AY180: 2983869.787 | AZ180: 2983869.787 | BA180: 2983869.787 | BB180: 2983869.787 | BC180: 2983869.787 | BD180: 0 | BE180: 0 | BF180: 0 | BG180: 0 | BH180: 0 | BI180: 0 | BJ180: 0 | BK180: 0 | BL180: 0 | BM180: 0 | BN180: 0 | BO180: 0 | BP180: 0 | BQ180: 0 | BR180: 0 | BS180: 0
D181: Annual km/ truck | G181: km/Truck | K181: 86400 | N181: =N18 -> 86400 | O181: =O18 -> 86400 | P181: 86400 | Q181: 86400 | R181: 86400 | S181: 86400 | T181: 86400 | U181: 86400 | V181: 86400 | W181: 86400 | X181: 86400 | Y181: 86400 | Z181: 86400 | AA181: 86400 | AB181: 86400 | AC181: 86400 | AD181: 86400 | AE181: 86400 | AF181: 86400 | AG181: 86400 | AH181: 86400 | AI181: 86400 | AJ181: 86400 | AK181: 86400 | AL181: 86400 | AM181: 86400 | AN181: 86400 | AO181: 86400 | AP181: 86400 | AQ181: 86400 | AR181: 86400 | AS181: 86400 | AT181: 86400 | AU181: 86400 | AV181: 86400 | AW181: 86400 | AX181: 86400 | AY181: 86400 | AZ181: 86400 | BA181: 86400 | BB181: 86400 | BC181: 86400 | BD181: 86400 | BE181: 86400 | BF181: 86400 | BG181: 86400 | BH181: 86400 | BI181: 86400 | BJ181: 86400 | BK181: 86400 | BL181: 86400 | BM181: 86400 | BN181: 86400 | BO181: 86400 | BP181: 86400 | BQ181: 86400 | BR181: 86400 | BS181: 86400
D182: Break Even Trucks after Electricity Use | G182: Trucks | K182: 34.53552994 | N182: =N180/N181 -> 0 | O182: =O180/O181 -> 0 | P182: 0 | Q182: 0 | R182: 0 | S182: 0 | T182: 0 | U182: 0 | V182: 0 | W182: 0 | X182: 0 | Y182: 0 | Z182: 34.53552994 | AA182: 34.53552994 | AB182: 34.53552994 | AC182: 34.53552994 | AD182: 34.53552994 | AE182: 34.53552994 | AF182: 34.53552994 | AG182: 34.53552994 | AH182: 34.53552994 | AI182: 34.53552994 | AJ182: 34.53552994 | AK182: 34.53552994 | AL182: 34.53552994 | AM182: 34.53552994 | AN182: 34.53552994 | AO182: 34.53552994 | AP182: 34.53552994 | AQ182: 34.53552994 | AR182: 34.53552994 | AS182: 34.53552994 | AT182: 34.53552994 | AU182: 34.53552994 | AV182: 34.53552994 | AW182: 34.53552994 | AX182: 34.53552994 | AY182: 34.53552994 | AZ182: 34.53552994 | BA182: 34.53552994 | BB182: 34.53552994 | BC182: 34.53552994 | BD182: 0 | BE182: 0 | BF182: 0 | BG182: 0 | BH182: 0 | BI182: 0 | BJ182: 0 | BK182: 0 | BL182: 0 | BM182: 0 | BN182: 0 | BO182: 0 | BP182: 0 | BQ182: 0 | BR182: 0 | BS182: 0
C184: Required Electricity Purchases or Surplus Methane
D185: Total Potential Methane from Full Upgrader Capacity | G185: M3/Hour | K185: =MAX(N185:BS185) -> 300.1230928 | N185: =N$70 -> 0 | O185: =O70 -> 0 | P185: 0 | Q185: 0 | R185: 0 | S185: 0 | T185: 0 | U185: 0 | V185: 0 | W185: 0 | X185: 0 | Y185: 0 | Z185: 300.1230928 | AA185: 300.1230928 | AB185: 300.1230928 | AC185: 300.1230928 | AD185: 300.1230928 | AE185: 300.1230928 | AF185: 300.1230928 | AG185: 300.1230928 | AH185: 300.1230928 | AI185: 300.1230928 | AJ185: 300.1230928 | AK185: 300.1230928 | AL185: 300.1230928 | AM185: 300.1230928 | AN185: 300.1230928 | AO185: 300.1230928 | AP185: 300.1230928 | AQ185: 300.1230928 | AR185: 300.1230928 | AS185: 300.1230928 | AT185: 300.1230928 | AU185: =AU70 -> 300.1230928 | AV185: 300.1230928 | AW185: 300.1230928 | AX185: 300.1230928 | AY185: 300.1230928 | AZ185: 300.1230928 | BA185: 300.1230928 | BB185: 300.1230928 | BC185: 300.1230928 | BD185: 0 | BE185: 0 | BF185: 0 | BG185: 0 | BH185: 0 | BI185: 0 | BJ185: 0 | BK185: 0 | BL185: 0 | BM185: 0 | BN185: 0 | BO185: 0 | BP185: 0 | BQ185: 0 | BR185: 0 | BS185: 0
D186: Methane Required for Truck Use | G186: M3/Hour | K186: =MAX(N186:BS186) -> 246.8571429 | N186: =N68 -> 0 | O186: 0 | P186: 0 | Q186: 0 | R186: 0 | S186: 0 | T186: 0 | U186: 0 | V186: 0 | W186: 0 | X186: 0 | Y186: 0 | Z186: 246.8571429 | AA186: 246.8571429 | AB186: 246.8571429 | AC186: 246.8571429 | AD186: 246.8571429 | AE186: 246.8571429 | AF186: 246.8571429 | AG186: 246.8571429 | AH186: 246.8571429 | AI186: 246.8571429 | AJ186: 246.8571429 | AK186: 246.8571429 | AL186: 246.8571429 | AM186: 246.8571429 | AN186: 246.8571429 | AO186: 246.8571429 | AP186: 246.8571429 | AQ186: 246.8571429 | AR186: 246.8571429 | AS186: 246.8571429 | AT186: =AT68 -> 246.8571429 | AU186: 246.8571429 | AV186: 246.8571429 | AW186: 246.8571429 | AX186: 246.8571429 | AY186: 246.8571429 | AZ186: 246.8571429 | BA186: 246.8571429 | BB186: 246.8571429 | BC186: 246.8571429 | BD186: 0 | BE186: 0 | BF186: 0 | BG186: 0 | BH186: 0 | BI186: 0 | BJ186: 0 | BK186: 0 | BL186: 0 | BM186: 0 | BN186: 0 | BO186: 0 | BP186: 0 | BQ186: 0 | BR186: 0 | BS186: 0
D187: Methane Available After Electricity Use | G187: M3/Hour | K187: =MAX(N187:BS187) -> 170.506845 | N187: =N185-N175 -> 0 | O187: 0 | P187: 0 | Q187: 0 | R187: 0 | S187: 0 | T187: 0 | U187: 0 | V187: 0 | W187: 0 | X187: 0 | Y187: 0 | Z187: 170.506845 | AA187: 170.506845 | AB187: 170.506845 | AC187: 170.506845 | AD187: 170.506845 | AE187: 170.506845 | AF187: 170.506845 | AG187: 170.506845 | AH187: 170.506845 | AI187: 170.506845 | AJ187: 170.506845 | AK187: 170.506845 | AL187: 170.506845 | AM187: 170.506845 | AN187: 170.506845 | AO187: 170.506845 | AP187: 170.506845 | AQ187: 170.506845 | AR187: 170.506845 | AS187: 170.506845 | AT187: =AT185-AT175 -> 170.506845 | AU187: 170.506845 | AV187: 170.506845 | AW187: 170.506845 | AX187: 170.506845 | AY187: 170.506845 | AZ187: 170.506845 | BA187: 170.506845 | BB187: 170.506845 | BC187: 170.506845 | BD187: 0 | BE187: 0 | BF187: 0 | BG187: 0 | BH187: 0 | BI187: 0 | BJ187: 0 | BK187: 0 | BL187: 0 | BM187: 0 | BN187: 0 | BO187: 0 | BP187: 0 | BQ187: 0 | BR187: 0 | BS187: 0
D188: Surplus Methane after Electricity Use | G188: M3/Hour | K188: =MIN(N188:BS188) -> 0 | N188: =MAX(N187-N186,0) -> 0 | O188: 0 | P188: 0 | Q188: 0 | R188: 0 | S188: 0 | T188: 0 | U188: 0 | V188: 0 | W188: 0 | X188: 0 | Y188: 0 | Z188: 0 | AA188: 0 | AB188: 0 | AC188: 0 | AD188: 0 | AE188: 0 | AF188: 0 | AG188: 0 | AH188: 0 | AI188: 0 | AJ188: 0 | AK188: 0 | AL188: 0 | AM188: 0 | AN188: 0 | AO188: 0 | AP188: 0 | AQ188: 0 | AR188: 0 | AS188: 0 | AT188: =MAX(AT187-AT186,0) -> 0 | AU188: 0 | AV188: 0 | AW188: 0 | AX188: 0 | AY188: 0 | AZ188: 0 | BA188: 0 | BB188: 0 | BC188: 0 | BD188: 0 | BE188: 0 | BF188: 0 | BG188: 0 | BH188: 0 | BI188: 0 | BJ188: 0 | BK188: 0 | BL188: 0 | BM188: 0 | BN188: 0 | BO188: 0 | BP188: 0 | BQ188: 0 | BR188: 0 | BS188: 0
D189: Deficit Methane After Electricity Use | G189: M3/Hour | K189: =MAX(N189:BS189) -> 76.3502979 | N189: =MAX(-N187+N186,0) -> 0 | O189: 0 | P189: 0 | Q189: 0 | R189: 0 | S189: 0 | T189: 0 | U189: 0 | V189: 0 | W189: 0 | X189: 0 | Y189: 0 | Z189: 76.3502979 | AA189: 76.3502979 | AB189: 76.3502979 | AC189: 76.3502979 | AD189: 76.3502979 | AE189: 76.3502979 | AF189: 76.3502979 | AG189: 76.3502979 | AH189: 76.3502979 | AI189: 76.3502979 | AJ189: 76.3502979 | AK189: 76.3502979 | AL189: 76.3502979 | AM189: 76.3502979 | AN189: 76.3502979 | AO189: 76.3502979 | AP189: 76.3502979 | AQ189: 76.3502979 | AR189: 76.3502979 | AS189: 76.3502979 | AT189: =MAX(-AT187+AT186,0) -> 76.3502979 | AU189: 76.3502979 | AV189: 76.3502979 | AW189: 76.3502979 | AX189: 76.3502979 | AY189: 76.3502979 | AZ189: 76.3502979 | BA189: 76.3502979 | BB189: 76.3502979 | BC189: 76.3502979 | BD189: 0 | BE189: 0 | BF189: 0 | BG189: 0 | BH189: 0 | BI189: 0 | BJ189: 0 | BK189: 0 | BL189: 0 | BM189: 0 | BN189: 0 | BO189: 0 | BP189: 0 | BQ189: 0 | BR189: 0 | BS189: 0
D191: Percent of Electricity Purchased if Self-Generate | G191: % | K191: =MAX(N191:BS191) -> 0.5890488205 | N191: =IF(N175,N189/N175)*1 -> 0 | O191: 0 | P191: 0 | Q191: 0 | R191: 0 | S191: 0 | T191: 0 | U191: 0 | V191: 0 | W191: 0 | X191: 0 | Y191: 0 | Z191: 0.5890488205 | AA191: 0.5890488205 | AB191: 0.5890488205 | AC191: 0.5890488205 | AD191: 0.5890488205 | AE191: 0.5890488205 | AF191: 0.5890488205 | AG191: 0.5890488205 | AH191: 0.5890488205 | AI191: 0.5890488205 | AJ191: 0.5890488205 | AK191: 0.5890488205 | AL191: 0.5890488205 | AM191: 0.5890488205 | AN191: 0.5890488205 | AO191: 0.5890488205 | AP191: 0.5890488205 | AQ191: 0.5890488205 | AR191: 0.5890488205 | AS191: 0.5890488205 | AT191: =IF(AT175,AT189/AT175)*1 -> 0.5890488205 | AU191: 0.5890488205 | AV191: 0.5890488205 | AW191: 0.5890488205 | AX191: 0.5890488205 | AY191: 0.5890488205 | AZ191: 0.5890488205 | BA191: 0.5890488205 | BB191: 0.5890488205 | BC191: 0.5890488205 | BD191: 0 | BE191: 0 | BF191: 0 | BG191: 0 | BH191: 0 | BI191: 0 | BJ191: 0 | BK191: 0 | BL191: 0 | BM191: 0 | BN191: 0 | BO191: 0 | BP191: 0 | BQ191: 0 | BR191: 0 | BS191: 0
D192: Amount of kWh Purchased if Self-Generate | G192: kWh | K192: =SUM(N192:BS192) -> 76730216.99 | N192: =N191*N170 -> 0 | O192: 0 | P192: 0 | Q192: 0 | R192: 0 | S192: 0 | T192: 0 | U192: 0 | V192: 0 | W192: 0 | X192: 0 | Y192: 0 | Z192: 2557673.9 | AA192: 2557673.9 | AB192: 2557673.9 | AC192: 2557673.9 | AD192: 2557673.9 | AE192: 2557673.9 | AF192: 2557673.9 | AG192: 2557673.9 | AH192: 2557673.9 | AI192: 2557673.9 | AJ192: 2557673.9 | AK192: 2557673.9 | AL192: 2557673.9 | AM192: 2557673.9 | AN192: 2557673.9 | AO192: 2557673.9 | AP192: 2557673.9 | AQ192: 2557673.9 | AR192: 2557673.9 | AS192: 2557673.9 | AT192: =AT191*AT170 -> 2557673.9 | AU192: 2557673.9 | AV192: 2557673.9 | AW192: 2557673.9 | AX192: 2557673.9 | AY192: 2557673.9 | AZ192: 2557673.9 | BA192: 2557673.9 | BB192: 2557673.9 | BC192: 2557673.9 | BD192: 0 | BE192: 0 | BF192: 0 | BG192: 0 | BH192: 0 | BI192: 0 | BJ192: 0 | BK192: 0 | BL192: 0 | BM192: 0 | BN192: 0 | BO192: 0 | BP192: 0 | BQ192: 0 | BR192: 0 | BS192: 0
B194: Electricity Costs (Purchased or Own Generation)
D196: Electricity for Lagoon | G196: kWh/Year | K196: =MAX(N196:BS196) -> 295523.2426 | N196: =N157 -> 0 | O196: 0 | P196: 0 | Q196: 0 | R196: 0 | S196: 0 | T196: 0 | U196: 0 | V196: 0 | W196: 0 | X196: 0 | Y196: 0 | Z196: 295523.2426 | AA196: 295523.2426 | AB196: 295523.2426 | AC196: 295523.2426 | AD196: 295523.2426 | AE196: 295523.2426 | AF196: 295523.2426 | AG196: 295523.2426 | AH196: 295523.2426 | AI196: 295523.2426 | AJ196: 295523.2426 | AK196: 295523.2426 | AL196: 295523.2426 | AM196: 295523.2426 | AN196: 295523.2426 | AO196: 295523.2426 | AP196: 295523.2426 | AQ196: 295523.2426 | AR196: 295523.2426 | AS196: 295523.2426 | AT196: =AT157 -> 295523.2426 | AU196: 295523.2426 | AV196: 295523.2426 | AW196: 295523.2426 | AX196: 295523.2426 | AY196: 295523.2426 | AZ196: 295523.2426 | BA196: 295523.2426 | BB196: 295523.2426 | BC196: 295523.2426 | BD196: 0 | BE196: 0 | BF196: 0 | BG196: 0 | BH196: 0 | BI196: 0 | BJ196: 0 | BK196: 0 | BL196: 0 | BM196: 0 | BN196: 0 | BO196: 0 | BP196: 0 | BQ196: 0 | BR196: 0 | BS196: 0
D197: Electricity for Upgrader | G197: kWh/Year | K197: =MAX(N197:BS197) -> 2802357.367 | N197: =N162 -> 0 | O197: 0 | P197: 0 | Q197: 0 | R197: 0 | S197: 0 | T197: 0 | U197: 0 | V197: 0 | W197: 0 | X197: 0 | Y197: 0 | Z197: 2802357.367 | AA197: 2802357.367 | AB197: 2802357.367 | AC197: 2802357.367 | AD197: 2802357.367 | AE197: 2802357.367 | AF197: 2802357.367 | AG197: 2802357.367 | AH197: 2802357.367 | AI197: 2802357.367 | AJ197: 2802357.367 | AK197: 2802357.367 | AL197: 2802357.367 | AM197: 2802357.367 | AN197: 2802357.367 | AO197: 2802357.367 | AP197: 2802357.367 | AQ197: 2802357.367 | AR197: 2802357.367 | AS197: 2802357.367 | AT197: =AT162 -> 2802357.367 | AU197: 2802357.367 | AV197: 2802357.367 | AW197: 2802357.367 | AX197: 2802357.367 | AY197: 2802357.367 | AZ197: 2802357.367 | BA197: 2802357.367 | BB197: 2802357.367 | BC197: 2802357.367 | BD197: 0 | BE197: 0 | BF197: 0 | BG197: 0 | BH197: 0 | BI197: 0 | BJ197: 0 | BK197: 0 | BL197: 0 | BM197: 0 | BN197: 0 | BO197: 0 | BP197: 0 | BQ197: 0 | BR197: 0 | BS197: 0
D198: Electricity for Filling Station | G198: kWh/Year | K198: 1244160 | N198: =N168 -> 0 | O198: 0 | P198: 0 | Q198: 0 | R198: 0 | S198: 0 | T198: 0 | U198: 0 | V198: 0 | W198: 0 | X198: 0 | Y198: 0 | Z198: 1244160 | AA198: 1244160 | AB198: 1244160 | AC198: 1244160 | AD198: 1244160 | AE198: 1244160 | AF198: 1244160 | AG198: 1244160 | AH198: 1244160 | AI198: 1244160 | AJ198: 1244160 | AK198: 1244160 | AL198: 1244160 | AM198: 1244160 | AN198: 1244160 | AO198: 1244160 | AP198: 1244160 | AQ198: 1244160 | AR198: 1244160 | AS198: 1244160 | AT198: =AT168 -> 1244160 | AU198: 1244160 | AV198: 1244160 | AW198: 1244160 | AX198: 1244160 | AY198: 1244160 | AZ198: 1244160 | BA198: 1244160 | BB198: 1244160 | BC198: 1244160 | BD198: 0 | BE198: 0 | BF198: 0 | BG198: 0 | BH198: 0 | BI198: 0 | BJ198: 0 | BK198: 0 | BL198: 0 | BM198: 0 | BN198: 0 | BO198: 0 | BP198: 0 | BQ198: 0 | BR198: 0 | BS198: 0
D199: Total Electricity Required | G199: kWh/Year | K199: =MAX(N199:BS199) -> 4342040.609 | N199: =SUM(N196:N198) -> 0 | O199: =SUM(O196:O198) -> 0 | P199: 0 | Q199: 0 | R199: 0 | S199: 0 | T199: 0 | U199: 0 | V199: 0 | W199: 0 | X199: 0 | Y199: 0 | Z199: 4342040.609 | AA199: 4342040.609 | AB199: 4342040.609 | AC199: 4342040.609 | AD199: 4342040.609 | AE199: 4342040.609 | AF199: 4342040.609 | AG199: 4342040.609 | AH199: 4342040.609 | AI199: 4342040.609 | AJ199: 4342040.609 | AK199: 4342040.609 | AL199: 4342040.609 | AM199: 4342040.609 | AN199: 4342040.609 | AO199: 4342040.609 | AP199: 4342040.609 | AQ199: 4342040.609 | AR199: 4342040.609 | AS199: 4342040.609 | AT199: 4342040.609 | AU199: 4342040.609 | AV199: 4342040.609 | AW199: 4342040.609 | AX199: 4342040.609 | AY199: 4342040.609 | AZ199: 4342040.609 | BA199: 4342040.609 | BB199: 4342040.609 | BC199: 4342040.609 | BD199: 0 | BE199: 0 | BF199: 0 | BG199: 0 | BH199: 0 | BI199: 0 | BJ199: 0 | BK199: 0 | BL199: 0 | BM199: 0 | BN199: 0 | BO199: 0 | BP199: 0 | BQ199: 0 | BR199: 0 | BS199: 0
D201: Self Generation Flag (True is Self Option) | G201: Flag | H201: =Inputs!F163 -> TRUE | N201: =$H$201 -> TRUE | O201: TRUE | P201: TRUE | Q201: TRUE | R201: TRUE | S201: TRUE | T201: TRUE | U201: TRUE | V201: TRUE | W201: TRUE | X201: TRUE | Y201: TRUE | Z201: TRUE | AA201: TRUE | AB201: TRUE | AC201: TRUE | AD201: TRUE | AE201: TRUE | AF201: TRUE | AG201: TRUE | AH201: TRUE | AI201: TRUE | AJ201: TRUE | AK201: TRUE | AL201: TRUE | AM201: TRUE | AN201: TRUE | AO201: TRUE | AP201: TRUE | AQ201: TRUE | AR201: TRUE | AS201: TRUE | AT201: =$H$201 -> TRUE | AU201: TRUE | AV201: TRUE | AW201: TRUE | AX201: TRUE | AY201: TRUE | AZ201: TRUE | BA201: TRUE | BB201: TRUE | BC201: TRUE | BD201: TRUE | BE201: TRUE | BF201: TRUE | BG201: TRUE | BH201: TRUE | BI201: TRUE | BJ201: TRUE | BK201: TRUE | BL201: TRUE | BM201: TRUE | BN201: TRUE | BO201: TRUE | BP201: TRUE | BQ201: TRUE | BR201: TRUE | BS201: TRUE
D202: Percent Purchased if Self Generate | G202: Percent | K202: =MAX(N202:BS202) -> 0.5890488205 | N202: =N191 -> 0 | O202: 0 | P202: 0 | Q202: 0 | R202: 0 | S202: 0 | T202: 0 | U202: 0 | V202: 0 | W202: 0 | X202: 0 | Y202: 0 | Z202: 0.5890488205 | AA202: 0.5890488205 | AB202: 0.5890488205 | AC202: 0.5890488205 | AD202: 0.5890488205 | AE202: 0.5890488205 | AF202: 0.5890488205 | AG202: 0.5890488205 | AH202: 0.5890488205 | AI202: 0.5890488205 | AJ202: 0.5890488205 | AK202: 0.5890488205 | AL202: 0.5890488205 | AM202: 0.5890488205 | AN202: 0.5890488205 | AO202: 0.5890488205 | AP202: 0.5890488205 | AQ202: 0.5890488205 | AR202: 0.5890488205 | AS202: 0.5890488205 | AT202: =AT191 -> 0.5890488205 | AU202: 0.5890488205 | AV202: 0.5890488205 | AW202: 0.5890488205 | AX202: 0.5890488205 | AY202: 0.5890488205 | AZ202: 0.5890488205 | BA202: 0.5890488205 | BB202: 0.5890488205 | BC202: 0.5890488205 | BD202: 0 | BE202: 0 | BF202: 0 | BG202: 0 | BH202: 0 | BI202: 0 | BJ202: 0 | BK202: 0 | BL202: 0 | BM202: 0 | BN202: 0 | BO202: 0 | BP202: 0 | BQ202: 0 | BR202: 0 | BS202: 0
D203: Total Electricity Requied if Self Generate | G203: kWh/Year | K203: =MAX(N203:BS203) -> 2557673.9 | N203: =N202*N199*N201 -> 0 | O203: =O202*O199*O201 -> 0 | P203: 0 | Q203: 0 | R203: 0 | S203: 0 | T203: 0 | U203: 0 | V203: 0 | W203: 0 | X203: 0 | Y203: 0 | Z203: 2557673.9 | AA203: 2557673.9 | AB203: 2557673.9 | AC203: 2557673.9 | AD203: 2557673.9 | AE203: 2557673.9 | AF203: 2557673.9 | AG203: 2557673.9 | AH203: 2557673.9 | AI203: 2557673.9 | AJ203: 2557673.9 | AK203: 2557673.9 | AL203: 2557673.9 | AM203: 2557673.9 | AN203: 2557673.9 | AO203: 2557673.9 | AP203: 2557673.9 | AQ203: 2557673.9 | AR203: 2557673.9 | AS203: 2557673.9 | AT203: 2557673.9 | AU203: 2557673.9 | AV203: 2557673.9 | AW203: 2557673.9 | AX203: 2557673.9 | AY203: 2557673.9 | AZ203: 2557673.9 | BA203: 2557673.9 | BB203: 2557673.9 | BC203: 2557673.9 | BD203: 0 | BE203: 0 | BF203: 0 | BG203: 0 | BH203: 0 | BI203: 0 | BJ203: 0 | BK203: 0 | BL203: 0 | BM203: 0 | BN203: 0 | BO203: 0 | BP203: 0 | BQ203: 0 | BR203: 0 | BS203: 0
D205: Total Electricity Purchased without Self Generation | G205: kWh/Year | K205: =MAX(N205:BS205) -> 0 | N205: =N199*NOT(N201) -> 0 | O205: =O199*NOT(O201) -> 0 | P205: 0 | Q205: 0 | R205: 0 | S205: 0 | T205: 0 | U205: 0 | V205: 0 | W205: 0 | X205: 0 | Y205: 0 | Z205: 0 | AA205: 0 | AB205: 0 | AC205: 0 | AD205: 0 | AE205: 0 | AF205: 0 | AG205: 0 | AH205: 0 | AI205: 0 | AJ205: 0 | AK205: 0 | AL205: 0 | AM205: 0 | AN205: 0 | AO205: 0 | AP205: 0 | AQ205: 0 | AR205: 0 | AS205: 0 | AT205: 0 | AU205: 0 | AV205: 0 | AW205: 0 | AX205: 0 | AY205: 0 | AZ205: 0 | BA205: 0 | BB205: 0 | BC205: 0 | BD205: 0 | BE205: 0 | BF205: 0 | BG205: 0 | BH205: 0 | BI205: 0 | BJ205: 0 | BK205: 0 | BL205: 0 | BM205: 0 | BN205: 0 | BO205: 0 | BP205: 0 | BQ205: 0 | BR205: 0 | BS205: 0
D206: Total Electricity Purchased | G206: kWh/Year | K206: =MAX(N206:BS206) -> 2557673.9 | N206: =N203+N205 -> 0 | O206: =O203+O205 -> 0 | P206: 0 | Q206: 0 | R206: 0 | S206: 0 | T206: 0 | U206: 0 | V206: 0 | W206: 0 | X206: 0 | Y206: 0 | Z206: 2557673.9 | AA206: 2557673.9 | AB206: 2557673.9 | AC206: 2557673.9 | AD206: 2557673.9 | AE206: 2557673.9 | AF206: 2557673.9 | AG206: 2557673.9 | AH206: 2557673.9 | AI206: 2557673.9 | AJ206: 2557673.9 | AK206: 2557673.9 | AL206: 2557673.9 | AM206: 2557673.9 | AN206: 2557673.9 | AO206: 2557673.9 | AP206: 2557673.9 | AQ206: 2557673.9 | AR206: 2557673.9 | AS206: 2557673.9 | AT206: 2557673.9 | AU206: 2557673.9 | AV206: 2557673.9 | AW206: 2557673.9 | AX206: 2557673.9 | AY206: 2557673.9 | AZ206: 2557673.9 | BA206: 2557673.9 | BB206: 2557673.9 | BC206: 2557673.9 | BD206: 0 | BE206: 0 | BF206: 0 | BG206: 0 | BH206: 0 | BI206: 0 | BJ206: 0 | BK206: 0 | BL206: 0 | BM206: 0 | BN206: 0 | BO206: 0 | BP206: 0 | BQ206: 0 | BR206: 0 | BS206: 0
D207: Total Electricity Produced | G207: kWh/Year | K207: =MAX(N207:BS207) -> 1784366.71 | N207: =N199-N206 -> 0 | O207: =O199-O206 -> 0 | P207: 0 | Q207: 0 | R207: 0 | S207: 0 | T207: 0 | U207: 0 | V207: 0 | W207: 0 | X207: 0 | Y207: 0 | Z207: 1784366.71 | AA207: 1784366.71 | AB207: 1784366.71 | AC207: 1784366.71 | AD207: 1784366.71 | AE207: 1784366.71 | AF207: 1784366.71 | AG207: 1784366.71 | AH207: 1784366.71 | AI207: 1784366.71 | AJ207: 1784366.71 | AK207: 1784366.71 | AL207: 1784366.71 | AM207: 1784366.71 | AN207: 1784366.71 | AO207: 1784366.71 | AP207: 1784366.71 | AQ207: 1784366.71 | AR207: 1784366.71 | AS207: 1784366.71 | AT207: 1784366.71 | AU207: 1784366.71 | AV207: 1784366.71 | AW207: 1784366.71 | AX207: 1784366.71 | AY207: 1784366.71 | AZ207: 1784366.71 | BA207: 1784366.71 | BB207: 1784366.71 | BC207: 1784366.71 | BD207: 0 | BE207: 0 | BF207: 0 | BG207: 0 | BH207: 0 | BI207: 0 | BJ207: 0 | BK207: 0 | BL207: 0 | BM207: 0 | BN207: 0 | BO207: 0 | BP207: 0 | BQ207: 0 | BR207: 0 | BS207: 0
D209: Inflation Index for Electricity | G209: Index | H209: =Inputs!F179 -> 0 | M209: 1 | N209: =M209*(1+$H$209*N8) -> 1 | O209: 1 | P209: 1 | Q209: 1 | R209: 1 | S209: 1 | T209: 1 | U209: 1 | V209: 1 | W209: 1 | X209: 1 | Y209: 1 | Z209: 1 | AA209: 1 | AB209: 1 | AC209: 1 | AD209: 1 | AE209: 1 | AF209: 1 | AG209: 1 | AH209: 1 | AI209: 1 | AJ209: 1 | AK209: 1 | AL209: 1 | AM209: 1 | AN209: 1 | AO209: 1 | AP209: 1 | AQ209: 1 | AR209: 1 | AS209: 1 | AT209: =AS209*(1+$H$209*AT8) -> 1 | AU209: 1 | AV209: 1 | AW209: 1 | AX209: 1 | AY209: 1 | AZ209: 1 | BA209: 1 | BB209: 1 | BC209: 1 | BD209: 1 | BE209: 1 | BF209: 1 | BG209: 1 | BH209: 1 | BI209: 1 | BJ209: 1 | BK209: 1 | BL209: 1 | BM209: 1 | BN209: 1 | BO209: 1 | BP209: 1 | BQ209: 1 | BR209: 1 | BS209: 1
D210: Fuel Cost | G210: USD/kWh | H210: =Inputs!F180 -> 0.02 | K210: =MAX(N210:BS210) -> 0.02 | N210: =$H$210*N209 -> 0.02 | O210: =$H$210*O209 -> 0.02 | P210: 0.02 | Q210: 0.02 | R210: 0.02 | S210: 0.02 | T210: 0.02 | U210: 0.02 | V210: 0.02 | W210: 0.02 | X210: 0.02 | Y210: 0.02 | Z210: 0.02 | AA210: 0.02 | AB210: 0.02 | AC210: 0.02 | AD210: 0.02 | AE210: 0.02 | AF210: 0.02 | AG210: 0.02 | AH210: 0.02 | AI210: 0.02 | AJ210: 0.02 | AK210: 0.02 | AL210: 0.02 | AM210: 0.02 | AN210: 0.02 | AO210: 0.02 | AP210: 0.02 | AQ210: 0.02 | AR210: 0.02 | AS210: 0.02 | AT210: 0.02 | AU210: 0.02 | AV210: 0.02 | AW210: 0.02 | AX210: 0.02 | AY210: 0.02 | AZ210: 0.02 | BA210: 0.02 | BB210: 0.02 | BC210: 0.02 | BD210: 0.02 | BE210: 0.02 | BF210: 0.02 | BG210: 0.02 | BH210: 0.02 | BI210: 0.02 | BJ210: 0.02 | BK210: 0.02 | BL210: 0.02 | BM210: 0.02 | BN210: 0.02 | BO210: 0.02 | BP210: 0.02 | BQ210: 0.02 | BR210: 0.02 | BS210: 0.02
D211: Total Cost of Electricity Purchases | G211: USD | K211: =MAX(N211:BS211) -> 51153.47799 | N211: =N210*N206 -> 0 | O211: =O210*O206 -> 0 | P211: 0 | Q211: 0 | R211: 0 | S211: 0 | T211: 0 | U211: 0 | V211: 0 | W211: 0 | X211: 0 | Y211: 0 | Z211: 51153.47799 | AA211: 51153.47799 | AB211: 51153.47799 | AC211: 51153.47799 | AD211: 51153.47799 | AE211: 51153.47799 | AF211: 51153.47799 | AG211: 51153.47799 | AH211: 51153.47799 | AI211: 51153.47799 | AJ211: 51153.47799 | AK211: 51153.47799 | AL211: 51153.47799 | AM211: 51153.47799 | AN211: 51153.47799 | AO211: 51153.47799 | AP211: 51153.47799 | AQ211: 51153.47799 | AR211: 51153.47799 | AS211: 51153.47799 | AT211: 51153.47799 | AU211: 51153.47799 | AV211: 51153.47799 | AW211: 51153.47799 | AX211: 51153.47799 | AY211: 51153.47799 | AZ211: 51153.47799 | BA211: 51153.47799 | BB211: 51153.47799 | BC211: 51153.47799 | BD211: 0 | BE211: 0 | BF211: 0 | BG211: 0 | BH211: 0 | BI211: 0 | BJ211: 0 | BK211: 0 | BL211: 0 | BM211: 0 | BN211: 0 | BO211: 0 | BP211: 0 | BQ211: 0 | BR211: 0 | BS211: 0
D213: Electricity Maintenance Cost | G213: USD/kWh | H213: =Inputs!F190 -> 0.01 | J213: =Inputs!F163 -> TRUE | N213: =$H$213*$J$213*N209 -> 0.01 | O213: =$H$213*$J$213*O209 -> 0.01 | P213: 0.01 | Q213: 0.01 | R213: 0.01 | S213: 0.01 | T213: 0.01 | U213: 0.01 | V213: 0.01 | W213: 0.01 | X213: 0.01 | Y213: 0.01 | Z213: 0.01 | AA213: 0.01 | AB213: 0.01 | AC213: 0.01 | AD213: 0.01 | AE213: 0.01 | AF213: 0.01 | AG213: 0.01 | AH213: 0.01 | AI213: 0.01 | AJ213: 0.01 | AK213: 0.01 | AL213: 0.01 | AM213: 0.01 | AN213: 0.01 | AO213: 0.01 | AP213: 0.01 | AQ213: 0.01 | AR213: 0.01 | AS213: 0.01 | AT213: 0.01 | AU213: 0.01 | AV213: 0.01 | AW213: 0.01 | AX213: 0.01 | AY213: 0.01 | AZ213: 0.01 | BA213: 0.01 | BB213: 0.01 | BC213: 0.01 | BD213: 0.01 | BE213: 0.01 | BF213: 0.01 | BG213: 0.01 | BH213: 0.01 | BI213: 0.01 | BJ213: 0.01 | BK213: 0.01 | BL213: 0.01 | BM213: 0.01 | BN213: 0.01 | BO213: 0.01 | BP213: 0.01 | BQ213: 0.01 | BR213: 0.01 | BS213: 0.01
D214: Total Maintenance Cost | G214: USD | H214: =Inputs!F188 -> 32930.15949 | K214: =MAX(N214:BS214) -> 32930.15949 | N214: =$H$214*N8 -> 0 | O214: 0 | P214: 0 | Q214: 0 | R214: 0 | S214: 0 | T214: 0 | U214: 0 | V214: 0 | W214: 0 | X214: 0 | Y214: 0 | Z214: 32930.15949 | AA214: 32930.15949 | AB214: 32930.15949 | AC214: 32930.15949 | AD214: 32930.15949 | AE214: 32930.15949 | AF214: 32930.15949 | AG214: 32930.15949 | AH214: 32930.15949 | AI214: 32930.15949 | AJ214: 32930.15949 | AK214: 32930.15949 | AL214: 32930.15949 | AM214: 32930.15949 | AN214: 32930.15949 | AO214: 32930.15949 | AP214: 32930.15949 | AQ214: 32930.15949 | AR214: 32930.15949 | AS214: 32930.15949 | AT214: =$H$214*AT8 -> 32930.15949 | AU214: 32930.15949 | AV214: 32930.15949 | AW214: 32930.15949 | AX214: 32930.15949 | AY214: 32930.15949 | AZ214: 32930.15949 | BA214: 32930.15949 | BB214: 32930.15949 | BC214: 32930.15949 | BD214: 0 | BE214: 0 | BF214: 0 | BG214: 0 | BH214: 0 | BI214: 0 | BJ214: 0 | BK214: 0 | BL214: 0 | BM214: 0 | BN214: 0 | BO214: 0 | BP214: 0 | BQ214: 0 | BR214: 0 | BS214: 0
D216: Hours Until Major Maintenance | G216: Hours | H216: =Inputs!$F$83 -> 8400 | N216: =M216+N8*$H$216 -> 0 | O216: 0 | P216: 0 | Q216: 0 | R216: 0 | S216: 0 | T216: 0 | U216: 0 | V216: 0 | W216: 0 | X216: 0 | Y216: 0 | Z216: 8400 | AA216: 16800 | AB216: 25200 | AC216: 33600 | AD216: 42000 | AE216: 50400 | AF216: 58800 | AG216: 67200 | AH216: 75600 | AI216: 84000 | AJ216: 92400 | AK216: 100800 | AL216: 109200 | AM216: 117600 | AN216: 126000 | AO216: 134400 | AP216: 142800 | AQ216: 151200 | AR216: 159600 | AS216: 168000 | AT216: =AS216+AT8*$H$216 -> 176400 | AU216: 184800 | AV216: 193200 | AW216: 201600 | AX216: 210000 | AY216: 218400 | AZ216: 226800 | BA216: 235200 | BB216: 243600 | BC216: 252000 | BD216: 252000 | BE216: 252000 | BF216: 252000 | BG216: 252000 | BH216: 252000 | BI216: 252000 | BJ216: 252000 | BK216: 252000 | BL216: 252000 | BM216: 252000 | BN216: 252000 | BO216: 252000 | BP216: 252000 | BQ216: 252000 | BR216: 252000 | BS216: 252000
D217: Brought Forward Hours | G217: Hours | N217: =M220 -> 0 | O217: =N220 -> 0 | P217: 0 | Q217: 0 | R217: 0 | S217: 0 | T217: 0 | U217: 0 | V217: 0 | W217: 0 | X217: 0 | Y217: 0 | Z217: 0 | AA217: 8400 | AB217: 16800 | AC217: 25200 | AD217: 33600 | AE217: 42000 | AF217: 50400 | AG217: 58800 | AH217: 67200 | AI217: 75600 | AJ217: 84000 | AK217: 92400 | AL217: 100800 | AM217: 109200 | AN217: 117600 | AO217: 126000 | AP217: 134400 | AQ217: 142800 | AR217: 151200 | AS217: 159600 | AT217: 168000 | AU217: 176400 | AV217: 184800 | AW217: 193200 | AX217: 201600 | AY217: 210000 | AZ217: 218400 | BA217: 226800 | BB217: 235200 | BC217: 243600 | BD217: 252000 | BE217: 252000 | BF217: 252000 | BG217: 252000 | BH217: 252000 | BI217: 252000 | BJ217: 252000 | BK217: 252000 | BL217: 252000 | BM217: 252000 | BN217: 252000 | BO217: 252000 | BP217: 252000 | BQ217: 252000 | BR217: 252000 | BS217: 252000
D218: Add: Hours Operated | G218: Hours | H218: =Inputs!$F$83 -> 8400 | N218: =$H$218*N8 -> 0 | O218: 0 | P218: 0 | Q218: 0 | R218: 0 | S218: 0 | T218: 0 | U218: 0 | V218: 0 | W218: 0 | X218: 0 | Y218: 0 | Z218: 8400 | AA218: 8400 | AB218: 8400 | AC218: 8400 | AD218: 8400 | AE218: 8400 | AF218: 8400 | AG218: 8400 | AH218: 8400 | AI218: 8400 | AJ218: 8400 | AK218: 8400 | AL218: 8400 | AM218: 8400 | AN218: 8400 | AO218: 8400 | AP218: 8400 | AQ218: 8400 | AR218: 8400 | AS218: 8400 | AT218: =$H$218*AT8 -> 8400 | AU218: 8400 | AV218: 8400 | AW218: 8400 | AX218: 8400 | AY218: 8400 | AZ218: 8400 | BA218: 8400 | BB218: 8400 | BC218: 8400 | BD218: 0 | BE218: 0 | BF218: 0 | BG218: 0 | BH218: 0 | BI218: 0 | BJ218: 0 | BK218: 0 | BL218: 0 | BM218: 0 | BN218: 0 | BO218: 0 | BP218: 0 | BQ218: 0 | BR218: 0 | BS218: 0
D219: Less: Reset | G219: Hours | H219: =Inputs!F193 -> 60000
D220: Carried Forward | G220: Hours | N220: =N217+N218-N219 -> 0 | O220: =O217+O218-O219 -> 0 | P220: 0 | Q220: 0 | R220: 0 | S220: 0 | T220: 0 | U220: 0 | V220: 0 | W220: 0 | X220: 0 | Y220: 0 | Z220: 8400 | AA220: 16800 | AB220: 25200 | AC220: 33600 | AD220: 42000 | AE220: 50400 | AF220: 58800 | AG220: 67200 | AH220: 75600 | AI220: 84000 | AJ220: 92400 | AK220: 100800 | AL220: 109200 | AM220: 117600 | AN220: 126000 | AO220: 134400 | AP220: 142800 | AQ220: 151200 | AR220: 159600 | AS220: 168000 | AT220: 176400 | AU220: 184800 | AV220: 193200 | AW220: 201600 | AX220: 210000 | AY220: 218400 | AZ220: 226800 | BA220: 235200 | BB220: 243600 | BC220: 252000 | BD220: 252000 | BE220: 252000 | BF220: 252000 | BG220: 252000 | BH220: 252000 | BI220: 252000 | BJ220: 252000 | BK220: 252000 | BL220: 252000 | BM220: 252000 | BN220: 252000 | BO220: 252000 | BP220: 252000 | BQ220: 252000 | BR220: 252000 | BS220: 252000
D221: Flag for Maintenance Period | G221: Flag
D223: Major Maintenance Cost
E225: Total Electricity Cost | G225: USD | K225: =SUM(N225:BS225) -> 2522509.125 | N225: =N211+N214 -> 0 | O225: 0 | P225: 0 | Q225: 0 | R225: 0 | S225: 0 | T225: 0 | U225: 0 | V225: 0 | W225: 0 | X225: 0 | Y225: 0 | Z225: 84083.63748 | AA225: 84083.63748 | AB225: 84083.63748 | AC225: 84083.63748 | AD225: 84083.63748 | AE225: 84083.63748 | AF225: 84083.63748 | AG225: 84083.63748 | AH225: 84083.63748 | AI225: 84083.63748 | AJ225: 84083.63748 | AK225: 84083.63748 | AL225: 84083.63748 | AM225: 84083.63748 | AN225: 84083.63748 | AO225: 84083.63748 | AP225: 84083.63748 | AQ225: 84083.63748 | AR225: 84083.63748 | AS225: 84083.63748 | AT225: =AT211+AT214 -> 84083.63748 | AU225: 84083.63748 | AV225: 84083.63748 | AW225: 84083.63748 | AX225: 84083.63748 | AY225: 84083.63748 | AZ225: 84083.63748 | BA225: 84083.63748 | BB225: 84083.63748 | BC225: 84083.63748 | BD225: 0 | BE225: 0 | BF225: 0 | BG225: 0 | BH225: 0 | BI225: 0 | BJ225: 0 | BK225: 0 | BL225: 0 | BM225: 0 | BN225: 0 | BO225: 0 | BP225: 0 | BQ225: 0 | BR225: 0 | BS225: 0
B227: Capital Expenditure
C229: Lagoon Capital Expenditure
D230: =Inputs!D224 -> Civil Works | G230: USD | H230: =Inputs!I224 -> 200000 | K230: =1/$H$3 -> 0.08333333333 | N230: =$H230*$K230*N$3 -> 16666.66667 | O230: 16666.66667 | P230: 16666.66667 | Q230: 16666.66667 | R230: 16666.66667 | S230: 16666.66667 | T230: 16666.66667 | U230: 16666.66667 | V230: 16666.66667 | W230: 16666.66667 | X230: =$H230*$K230*X$3 -> 16666.66667 | Y230: 16666.66667 | Z230: 0 | AA230: 0 | AB230: 0 | AC230: 0 | AD230: 0 | AE230: 0 | AF230: 0 | AG230: 0 | AH230: =$H230*$K230*AH$3 -> 0 | AI230: 0 | AJ230: 0 | AK230: 0 | AL230: 0 | AM230: 0 | AN230: 0 | AO230: 0 | AP230: 0 | AQ230: 0 | AR230: =$H230*$K230*AR$3 -> 0 | AS230: 0 | AT230: 0 | AU230: 0 | AV230: 0 | AW230: 0 | AX230: 0 | AY230: 0 | AZ230: 0 | BA230: 0 | BB230: =$H230*$K230*BB$3 -> 0 | BC230: 0 | BD230: 0 | BE230: 0 | BF230: 0 | BG230: 0 | BH230: 0 | BI230: 0 | BJ230: 0 | BK230: 0 | BL230: =$H230*$K230*BL$3 -> 0 | BM230: 0 | BN230: 0 | BO230: 0 | BP230: 0 | BQ230: 0 | BR230: 0 | BS230: 0
D231: =Inputs!D225 -> Gasometrical Cover | G231: USD | H231: =Inputs!I225 -> 200000 | K231: =1/$H$3 -> 0.08333333333 | N231: 16666.66667 | O231: 16666.66667 | P231: 16666.66667 | Q231: 16666.66667 | R231: 16666.66667 | S231: 16666.66667 | T231: 16666.66667 | U231: 16666.66667 | V231: 16666.66667 | W231: 16666.66667 | X231: 16666.66667 | Y231: 16666.66667 | Z231: 0 | AA231: 0 | AB231: 0 | AC231: 0 | AD231: 0 | AE231: 0 | AF231: 0 | AG231: 0 | AH231: 0 | AI231: 0 | AJ231: 0 | AK231: 0 | AL231: 0 | AM231: 0 | AN231: 0 | AO231: 0 | AP231: 0 | AQ231: 0 | AR231: 0 | AS231: 0 | AT231: 0 | AU231: 0 | AV231: 0 | AW231: 0 | AX231: 0 | AY231: 0 | AZ231: 0 | BA231: 0 | BB231: 0 | BC231: 0 | BD231: 0 | BE231: 0 | BF231: 0 | BG231: 0 | BH231: 0 | BI231: 0 | BJ231: 0 | BK231: 0 | BL231: 0 | BM231: 0 | BN231: 0 | BO231: 0 | BP231: 0 | BQ231: 0 | BR231: 0 | BS231: 0
D232: =Inputs!D226 -> Liner | G232: USD | H232: =Inputs!I226 -> 200000 | K232: 0.08333333333 | N232: 16666.66667 | O232: 16666.66667 | P232: 16666.66667 | Q232: 16666.66667 | R232: 16666.66667 | S232: 16666.66667 | T232: 16666.66667 | U232: 16666.66667 | V232: 16666.66667 | W232: 16666.66667 | X232: 16666.66667 | Y232: 16666.66667 | Z232: 0 | AA232: 0 | AB232: 0 | AC232: 0 | AD232: 0 | AE232: 0 | AF232: 0 | AG232: 0 | AH232: 0 | AI232: 0 | AJ232: 0 | AK232: 0 | AL232: 0 | AM232: 0 | AN232: 0 | AO232: 0 | AP232: 0 | AQ232: 0 | AR232: 0 | AS232: 0 | AT232: 0 | AU232: 0 | AV232: 0 | AW232: 0 | AX232: 0 | AY232: 0 | AZ232: 0 | BA232: 0 | BB232: 0 | BC232: 0 | BD232: 0 | BE232: 0 | BF232: 0 | BG232: 0 | BH232: 0 | BI232: 0 | BJ232: 0 | BK232: 0 | BL232: 0 | BM232: 0 | BN232: 0 | BO232: 0 | BP232: 0 | BQ232: 0 | BR232: 0 | BS232: 0
D233: =Inputs!D227 -> Piping and Technology | G233: USD | H233: =Inputs!I227 -> 900000 | J233: 20 | K233: 0.08333333333 | N233: 75000 | O233: 75000 | P233: 75000 | Q233: 75000 | R233: 75000 | S233: 75000 | T233: 75000 | U233: 75000 | V233: 75000 | W233: 75000 | X233: 75000 | Y233: 75000 | Z233: 0 | AA233: 0 | AB233: 0 | AC233: 0 | AD233: 0 | AE233: 0 | AF233: 0 | AG233: 0 | AH233: 0 | AI233: 0 | AJ233: 0 | AK233: 0 | AL233: 0 | AM233: 0 | AN233: 0 | AO233: 0 | AP233: 0 | AQ233: 0 | AR233: 0 | AS233: 0 | AT233: 0 | AU233: 0 | AV233: 0 | AW233: 0 | AX233: 0 | AY233: 0 | AZ233: 0 | BA233: 0 | BB233: 0 | BC233: 0 | BD233: 0 | BE233: 0 | BF233: 0 | BG233: 0 | BH233: 0 | BI233: 0 | BJ233: 0 | BK233: 0 | BL233: 0 | BM233: 0 | BN233: 0 | BO233: 0 | BP233: 0 | BQ233: 0 | BR233: 0 | BS233: 0
E234: Total | G234: USD | H234: =SUM(H230:H233) -> 1500000 | N234: =SUM(N230:N233) -> 125000 | O234: =SUM(O230:O233) -> 125000 | P234: 125000 | Q234: 125000 | R234: 125000 | S234: 125000 | T234: 125000 | U234: 125000 | V234: 125000 | W234: 125000 | X234: 125000 | Y234: 125000 | Z234: 0 | AA234: 0 | AB234: 0 | AC234: 0 | AD234: 0 | AE234: 0 | AF234: 0 | AG234: 0 | AH234: 0 | AI234: 0 | AJ234: 0 | AK234: 0 | AL234: 0 | AM234: 0 | AN234: 0 | AO234: 0 | AP234: 0 | AQ234: 0 | AR234: 0 | AS234: 0 | AT234: 0 | AU234: 0 | AV234: 0 | AW234: 0 | AX234: 0 | AY234: 0 | AZ234: 0 | BA234: 0 | BB234: 0 | BC234: 0 | BD234: 0 | BE234: 0 | BF234: 0 | BG234: 0 | BH234: 0 | BI234: 0 | BJ234: 0 | BK234: 0 | BL234: 0 | BM234: 0 | BN234: 0 | BO234: 0 | BP234: 0 | BQ234: 0 | BR234: 0 | BS234: 0
C236: Upgrader Unit
D237: =Inputs!D224 -> Civil Works | G237: USD | H237: =Inputs!I238 -> 300000 | J237: 20 | K237: =1/$H$3 -> 0.08333333333 | N237: =$H237*$K237*N$3 -> 25000 | O237: 25000 | P237: 25000 | Q237: 25000 | R237: 25000 | S237: 25000 | T237: 25000 | U237: 25000 | V237: 25000 | W237: 25000 | X237: =$H237*$K237*X$3 -> 25000 | Y237: 25000 | Z237: 0 | AA237: 0 | AB237: 0 | AC237: 0 | AD237: 0 | AE237: 0 | AF237: 0 | AG237: 0 | AH237: =$H237*$K237*AH$3 -> 0 | AI237: 0 | AJ237: 0 | AK237: 0 | AL237: 0 | AM237: 0 | AN237: 0 | AO237: 0 | AP237: 0 | AQ237: 0 | AR237: =$H237*$K237*AR$3 -> 0 | AS237: 0 | AT237: 0 | AU237: 0 | AV237: 0 | AW237: 0 | AX237: 0 | AY237: 0 | AZ237: 0 | BA237: 0 | BB237: =$H237*$K237*BB$3 -> 0 | BC237: 0 | BD237: 0 | BE237: 0 | BF237: 0 | BG237: 0 | BH237: 0 | BI237: 0 | BJ237: 0 | BK237: 0 | BL237: =$H237*$K237*BL$3 -> 0 | BM237: 0 | BN237: 0 | BO237: 0 | BP237: 0 | BQ237: 0 | BR237: 0 | BS237: 0
D238: Gasometrical Cover | G238: USD | H238: =Inputs!I239 -> 300000 | J238: 30 | K238: =1/$H$3 -> 0.08333333333 | N238: 25000 | O238: 25000 | P238: 25000 | Q238: 25000 | R238: 25000 | S238: 25000 | T238: 25000 | U238: 25000 | V238: 25000 | W238: 25000 | X238: 25000 | Y238: 25000 | Z238: 0 | AA238: 0 | AB238: 0 | AC238: 0 | AD238: 0 | AE238: 0 | AF238: 0 | AG238: 0 | AH238: 0 | AI238: 0 | AJ238: 0 | AK238: 0 | AL238: 0 | AM238: 0 | AN238: 0 | AO238: 0 | AP238: 0 | AQ238: 0 | AR238: 0 | AS238: 0 | AT238: 0 | AU238: 0 | AV238: 0 | AW238: 0 | AX238: 0 | AY238: 0 | AZ238: 0 | BA238: 0 | BB238: 0 | BC238: 0 | BD238: 0 | BE238: 0 | BF238: 0 | BG238: 0 | BH238: 0 | BI238: 0 | BJ238: 0 | BK238: 0 | BL238: 0 | BM238: 0 | BN238: 0 | BO238: 0 | BP238: 0 | BQ238: 0 | BR238: 0 | BS238: 0
D239: Liner | G239: USD | H239: =Inputs!I240 -> 200000 | K239: 0.08333333333 | N239: 16666.66667 | O239: 16666.66667 | P239: 16666.66667 | Q239: 16666.66667 | R239: 16666.66667 | S239: 16666.66667 | T239: 16666.66667 | U239: 16666.66667 | V239: 16666.66667 | W239: 16666.66667 | X239: 16666.66667 | Y239: 16666.66667 | Z239: 0 | AA239: 0 | AB239: 0 | AC239: 0 | AD239: 0 | AE239: 0 | AF239: 0 | AG239: 0 | AH239: 0 | AI239: 0 | AJ239: 0 | AK239: 0 | AL239: 0 | AM239: 0 | AN239: 0 | AO239: 0 | AP239: 0 | AQ239: 0 | AR239: 0 | AS239: 0 | AT239: 0 | AU239: 0 | AV239: 0 | AW239: 0 | AX239: 0 | AY239: 0 | AZ239: 0 | BA239: 0 | BB239: 0 | BC239: 0 | BD239: 0 | BE239: 0 | BF239: 0 | BG239: 0 | BH239: 0 | BI239: 0 | BJ239: 0 | BK239: 0 | BL239: 0 | BM239: 0 | BN239: 0 | BO239: 0 | BP239: 0 | BQ239: 0 | BR239: 0 | BS239: 0
D240: Piping and Technology | G240: USD | H240: =Inputs!I241 -> 1000000 | J240: 20 | K240: 0.08333333333 | N240: 83333.33333 | O240: 83333.33333 | P240: 83333.33333 | Q240: 83333.33333 | R240: 83333.33333 | S240: 83333.33333 | T240: 83333.33333 | U240: 83333.33333 | V240: 83333.33333 | W240: 83333.33333 | X240: 83333.33333 | Y240: 83333.33333 | Z240: 0 | AA240: 0 | AB240: 0 | AC240: 0 | AD240: 0 | AE240: 0 | AF240: 0 | AG240: 0 | AH240: 0 | AI240: 0 | AJ240: 0 | AK240: 0 | AL240: 0 | AM240: 0 | AN240: 0 | AO240: 0 | AP240: 0 | AQ240: 0 | AR240: 0 | AS240: 0 | AT240: 0 | AU240: 0 | AV240: 0 | AW240: 0 | AX240: 0 | AY240: 0 | AZ240: 0 | BA240: 0 | BB240: 0 | BC240: 0 | BD240: 0 | BE240: 0 | BF240: 0 | BG240: 0 | BH240: 0 | BI240: 0 | BJ240: 0 | BK240: 0 | BL240: 0 | BM240: 0 | BN240: 0 | BO240: 0 | BP240: 0 | BQ240: 0 | BR240: 0 | BS240: 0
E241: Total | G241: USD | H241: =SUM(H237:H240) -> 1800000 | N241: =SUM(N237:N240) -> 150000 | O241: =SUM(O237:O240) -> 150000 | P241: 150000 | Q241: 150000 | R241: 150000 | S241: 150000 | T241: 150000 | U241: 150000 | V241: 150000 | W241: 150000 | X241: 150000 | Y241: 150000 | Z241: 0 | AA241: 0 | AB241: 0 | AC241: 0 | AD241: 0 | AE241: 0 | AF241: 0 | AG241: 0 | AH241: 0 | AI241: 0 | AJ241: 0 | AK241: 0 | AL241: 0 | AM241: 0 | AN241: 0 | AO241: 0 | AP241: 0 | AQ241: 0 | AR241: 0 | AS241: 0 | AT241: 0 | AU241: 0 | AV241: 0 | AW241: 0 | AX241: 0 | AY241: 0 | AZ241: 0 | BA241: 0 | BB241: 0 | BC241: 0 | BD241: 0 | BE241: 0 | BF241: 0 | BG241: 0 | BH241: 0 | BI241: 0 | BJ241: 0 | BK241: 0 | BL241: 0 | BM241: 0 | BN241: 0 | BO241: 0 | BP241: 0 | BQ241: 0 | BR241: 0 | BS241: 0
C243: CNG Station
D244: Compressor | G244: USD | H244: =Inputs!H250 -> 150000 | J244: 15 | K244: =1/$H$3 -> 0.08333333333 | N244: =$H244*$K244*N$3 -> 12500 | O244: 12500 | P244: 12500 | Q244: 12500 | R244: 12500 | S244: 12500 | T244: 12500 | U244: 12500 | V244: 12500 | W244: 12500 | X244: =$H244*$K244*X$3 -> 12500 | Y244: 12500 | Z244: 0 | AA244: 0 | AB244: 0 | AC244: 0 | AD244: 0 | AE244: 0 | AF244: 0 | AG244: 0 | AH244: =$H244*$K244*AH$3 -> 0 | AI244: 0 | AJ244: 0 | AK244: 0 | AL244: 0 | AM244: 0 | AN244: 0 | AO244: 0 | AP244: 0 | AQ244: 0 | AR244: =$H244*$K244*AR$3 -> 0 | AS244: 0 | AT244: 0 | AU244: 0 | AV244: 0 | AW244: 0 | AX244: 0 | AY244: 0 | AZ244: 0 | BA244: 0 | BB244: =$H244*$K244*BB$3 -> 0 | BC244: 0 | BD244: 0 | BE244: 0 | BF244: 0 | BG244: 0 | BH244: 0 | BI244: 0 | BJ244: 0 | BK244: 0 | BL244: =$H244*$K244*BL$3 -> 0 | BM244: 0 | BN244: 0 | BO244: 0 | BP244: 0 | BQ244: 0 | BR244: 0 | BS244: 0
D245: Storage Skid | G245: USD | H245: =Inputs!H251 -> 150000 | J245: 20 | K245: 0.08333333333 | N245: 12500 | O245: 12500 | P245: 12500 | Q245: 12500 | R245: 12500 | S245: 12500 | T245: 12500 | U245: 12500 | V245: 12500 | W245: 12500 | X245: 12500 | Y245: 12500 | Z245: 0 | AA245: 0 | AB245: 0 | AC245: 0 | AD245: 0 | AE245: 0 | AF245: 0 | AG245: 0 | AH245: 0 | AI245: 0 | AJ245: 0 | AK245: 0 | AL245: 0 | AM245: 0 | AN245: 0 | AO245: 0 | AP245: 0 | AQ245: 0 | AR245: 0 | AS245: 0 | AT245: 0 | AU245: 0 | AV245: 0 | AW245: 0 | AX245: 0 | AY245: 0 | AZ245: 0 | BA245: 0 | BB245: 0 | BC245: 0 | BD245: 0 | BE245: 0 | BF245: 0 | BG245: 0 | BH245: 0 | BI245: 0 | BJ245: 0 | BK245: 0 | BL245: 0 | BM245: 0 | BN245: 0 | BO245: 0 | BP245: 0 | BQ245: 0 | BR245: 0 | BS245: 0
D246: Filing Station | G246: USD | H246: =Inputs!H252 -> 250000 | J246: 15 | K246: 0.08333333333 | N246: 20833.33333 | O246: 20833.33333 | P246: 20833.33333 | Q246: 20833.33333 | R246: 20833.33333 | S246: 20833.33333 | T246: 20833.33333 | U246: 20833.33333 | V246: 20833.33333 | W246: 20833.33333 | X246: 20833.33333 | Y246: 20833.33333 | Z246: 0 | AA246: 0 | AB246: 0 | AC246: 0 | AD246: 0 | AE246: 0 | AF246: 0 | AG246: 0 | AH246: 0 | AI246: 0 | AJ246: 0 | AK246: 0 | AL246: 0 | AM246: 0 | AN246: 0 | AO246: 0 | AP246: 0 | AQ246: 0 | AR246: 0 | AS246: 0 | AT246: 0 | AU246: 0 | AV246: 0 | AW246: 0 | AX246: 0 | AY246: 0 | AZ246: 0 | BA246: 0 | BB246: 0 | BC246: 0 | BD246: 0 | BE246: 0 | BF246: 0 | BG246: 0 | BH246: 0 | BI246: 0 | BJ246: 0 | BK246: 0 | BL246: 0 | BM246: 0 | BN246: 0 | BO246: 0 | BP246: 0 | BQ246: 0 | BR246: 0 | BS246: 0
E247: Total | G247: USD | H247: =SUM(H244:H246) -> 550000 | N247: =SUM(N244:N246) -> 45833.33333 | O247: =SUM(O244:O246) -> 45833.33333 | P247: 45833.33333 | Q247: 45833.33333 | R247: 45833.33333 | S247: 45833.33333 | T247: 45833.33333 | U247: 45833.33333 | V247: 45833.33333 | W247: 45833.33333 | X247: 45833.33333 | Y247: 45833.33333 | Z247: 0 | AA247: 0 | AB247: 0 | AC247: 0 | AD247: 0 | AE247: 0 | AF247: 0 | AG247: 0 | AH247: 0 | AI247: 0 | AJ247: 0 | AK247: 0 | AL247: 0 | AM247: 0 | AN247: 0 | AO247: 0 | AP247: 0 | AQ247: 0 | AR247: 0 | AS247: 0 | AT247: 0 | AU247: 0 | AV247: 0 | AW247: 0 | AX247: 0 | AY247: 0 | AZ247: 0 | BA247: 0 | BB247: 0 | BC247: 0 | BD247: 0 | BE247: 0 | BF247: 0 | BG247: 0 | BH247: 0 | BI247: 0 | BJ247: 0 | BK247: 0 | BL247: 0 | BM247: 0 | BN247: 0 | BO247: 0 | BP247: 0 | BQ247: 0 | BR247: 0 | BS247: 0
D249: Truck Conversion | G249: USD | H249: =Inputs!F253 -> 550000 | K249: =K245 -> 0.08333333333 | N249: =$H249*$K249*N$3 -> 45833.33333 | O249: 45833.33333 | P249: 45833.33333 | Q249: 45833.33333 | R249: 45833.33333 | S249: 45833.33333 | T249: 45833.33333 | U249: 45833.33333 | V249: 45833.33333 | W249: 45833.33333 | X249: 45833.33333 | Y249: 45833.33333 | Z249: 0 | AA249: 0 | AB249: 0 | AC249: 0 | AD249: 0 | AE249: 0 | AF249: 0 | AG249: 0 | AH249: 0 | AI249: 0 | AJ249: 0 | AK249: 0 | AL249: 0 | AM249: 0 | AN249: 0 | AO249: 0 | AP249: 0 | AQ249: 0 | AR249: 0 | AS249: 0 | AT249: =$H249*$K249*AT$3 -> 0 | AU249: 0 | AV249: 0 | AW249: 0 | AX249: 0 | AY249: 0 | AZ249: 0 | BA249: 0 | BB249: 0 | BC249: 0 | BD249: 0 | BE249: 0 | BF249: 0 | BG249: 0 | BH249: 0 | BI249: 0 | BJ249: 0 | BK249: 0 | BL249: 0 | BM249: 0 | BN249: 0 | BO249: 0 | BP249: 0 | BQ249: 0 | BR249: 0 | BS249: 0
D251: Electricity Plant | H251: =Inputs!F265 -> 400000 | J251: =Inputs!F163 -> TRUE | K251: =K249 -> 0.08333333333 | N251: =$H$251*$J$251*$K$251*N3 -> 33333.33333 | O251: 33333.33333 | P251: 33333.33333 | Q251: 33333.33333 | R251: 33333.33333 | S251: 33333.33333 | T251: 33333.33333 | U251: 33333.33333 | V251: 33333.33333 | W251: 33333.33333 | X251: 33333.33333 | Y251: 33333.33333 | Z251: 0 | AA251: 0 | AB251: 0 | AC251: 0 | AD251: 0 | AE251: 0 | AF251: 0 | AG251: 0 | AH251: 0 | AI251: 0 | AJ251: 0 | AK251: 0 | AL251: 0 | AM251: 0 | AN251: 0 | AO251: 0 | AP251: 0 | AQ251: 0 | AR251: 0 | AS251: 0 | AT251: =$H$251*$J$251*$K$251*AT3 -> 0 | AU251: 0 | AV251: 0 | AW251: 0 | AX251: 0 | AY251: 0 | AZ251: 0 | BA251: 0 | BB251: 0 | BC251: 0 | BD251: 0 | BE251: 0 | BF251: 0 | BG251: 0 | BH251: 0 | BI251: 0 | BJ251: 0 | BK251: 0 | BL251: 0 | BM251: 0 | BN251: 0 | BO251: 0 | BP251: 0 | BQ251: 0 | BR251: 0 | BS251: 0
E253: Grand Total | H253: =H234+H241+H247+H249+H251 -> 4800000 | K253: =SUM(N253:BS253) -> 4800000 | N253: =N247+N234+N241+N249+N251 -> 400000 | O253: =O247+O234+O241+O249+O251 -> 400000 | P253: 400000 | Q253: 400000 | R253: 400000 | S253: 400000 | T253: 400000 | U253: 400000 | V253: 400000 | W253: 400000 | X253: 400000 | Y253: 400000 | Z253: 0 | AA253: 0 | AB253: 0 | AC253: 0 | AD253: 0 | AE253: 0 | AF253: 0 | AG253: 0 | AH253: 0 | AI253: 0 | AJ253: 0 | AK253: 0 | AL253: 0 | AM253: 0 | AN253: 0 | AO253: 0 | AP253: 0 | AQ253: 0 | AR253: 0 | AS253: 0 | AT253: 0 | AU253: 0 | AV253: 0 | AW253: 0 | AX253: 0 | AY253: 0 | AZ253: 0 | BA253: 0 | BB253: 0 | BC253: 0 | BD253: 0 | BE253: 0 | BF253: 0 | BG253: 0 | BH253: 0 | BI253: 0 | BJ253: 0 | BK253: 0 | BL253: 0 | BM253: 0 | BN253: 0 | BO253: 0 | BP253: 0 | BQ253: 0 | BR253: 0 | BS253: 0
B255: Major Capital Expenditures after Operation
D257: Operating Year | G257: Year | N257: =M257+N8 -> 0 | O257: 0 | P257: 0 | Q257: 0 | R257: 0 | S257: 0 | T257: 0 | U257: 0 | V257: 0 | W257: 0 | X257: 0 | Y257: 0 | Z257: 1 | AA257: 2 | AB257: 3 | AC257: 4 | AD257: 5 | AE257: 6 | AF257: 7 | AG257: 8 | AH257: 9 | AI257: 10 | AJ257: 11 | AK257: 12 | AL257: 13 | AM257: 14 | AN257: 15 | AO257: 16 | AP257: 17 | AQ257: 18 | AR257: 19 | AS257: 20 | AT257: =AS257+AT8 -> 21 | AU257: 22 | AV257: 23 | AW257: 24 | AX257: 25 | AY257: 26 | AZ257: 27 | BA257: 28 | BB257: 29 | BC257: 30 | BD257: 30 | BE257: 30 | BF257: 30 | BG257: 30 | BH257: 30 | BI257: 30 | BJ257: 30 | BK257: 30 | BL257: 30 | BM257: 30 | BN257: 30 | BO257: 30 | BP257: 30 | BQ257: 30 | BR257: 30 | BS257: 30
... 70 more rows

Sheet Financial Model
B1: Timeline | H1: Driver 1 | I1: Driver 2 | J1: Sum
C2: Period | M2: 1 | N2: 2 | O2: 3 | P2: 4 | Q2: 5 | R2: 6 | S2: 7 | T2: 8 | U2: 9 | V2: 10 | W2: 11 | X2: 12 | Y2: 13 | Z2: 14 | AA2: 15 | AB2: 16 | AC2: 17 | AD2: 18 | AE2: 19 | AF2: 20 | AG2: 21 | AH2: 22 | AI2: 23 | AJ2: 24 | AK2: 25 | AL2: 26 | AM2: 27 | AN2: 28 | AO2: 29 | AP2: 30 | AQ2: 31 | AR2: 32 | AS2: 33 | AT2: 34 | AU2: 35 | AV2: 36 | AW2: 37 | AX2: 38 | AY2: 39 | AZ2: 40 | BA2: 41 | BB2: 42
C3: Construction | G3: Flag | H3: =Inputs!F4 -> 12 | M3: =M2<=$H$3 -> TRUE | N3: TRUE | O3: TRUE | P3: TRUE | Q3: TRUE | R3: TRUE | S3: TRUE | T3: TRUE | U3: TRUE | V3: TRUE | W3: TRUE | X3: TRUE | Y3: FALSE | Z3: FALSE | AA3: FALSE | AB3: FALSE | AC3: FALSE | AD3: FALSE | AE3: FALSE | AF3: FALSE | AG3: FALSE | AH3: FALSE | AI3: FALSE | AJ3: FALSE | AK3: FALSE | AL3: FALSE | AM3: FALSE | AN3: FALSE | AO3: FALSE | AP3: FALSE | AQ3: FALSE | AR3: FALSE | AS3: FALSE | AT3: FALSE | AU3: FALSE | AV3: FALSE | AW3: FALSE | AX3: FALSE | AY3: FALSE | AZ3: FALSE | BA3: FALSE | BB3: FALSE
C4: Periods per Year | G4: Months | H4: =Inputs!F12 -> 1 | I4: =Inputs!F11 -> 12 | M4: =IF(M$3,$H4,$I4) -> 1 | N4: 1 | O4: 1 | P4: 1 | Q4: 1 | R4: 1 | S4: 1 | T4: 1 | U4: 1 | V4: 1 | W4: 1 | X4: 1 | Y4: 12 | Z4: 12 | AA4: 12 | AB4: 12 | AC4: 12 | AD4: 12 | AE4: 12 | AF4: 12 | AG4: 12 | AH4: 12 | AI4: 12 | AJ4: 12 | AK4: 12 | AL4: 12 | AM4: 12 | AN4: 12 | AO4: 12 | AP4: 12 | AQ4: 12 | AR4: 12 | AS4: 12 | AT4: 12 | AU4: 12 | AV4: 12 | AW4: 12 | AX4: 12 | AY4: 12 | AZ4: 12 | BA4: 12 | BB4: 12
C5: Start of Period | G5: Date | M5: =L6+1 -> 2020-01-01 | N5: =M6+1 -> 2020-02-01 | O5: 2020-03-01 | P5: 2020-04-01 | Q5: 2020-05-01 | R5: 2020-06-01 | S5: 2020-07-01 | T5: 2020-08-01 | U5: 2020-09-01 | V5: 2020-10-01 | W5: 2020-11-01 | X5: 2020-12-01 | Y5: 2021-01-01 | Z5: 2022-01-01 | AA5: 2023-01-01 | AB5: 2024-01-01 | AC5: 2025-01-01 | AD5: 2026-01-01 | AE5: 2027-01-01 | AF5: 2028-01-01 | AG5: 2029-01-01 | AH5: 2030-01-01 | AI5: 2031-01-01 | AJ5: 2032-01-01 | AK5: 2033-01-01 | AL5: 2034-01-01 | AM5: 2035-01-01 | AN5: 2036-01-01 | AO5: 2037-01-01 | AP5: 2038-01-01 | AQ5: 2039-01-01 | AR5: 2040-01-01 | AS5: 2041-01-01 | AT5: 2042-01-01 | AU5: 2043-01-01 | AV5: 2044-01-01 | AW5: 2045-01-01 | AX5: 2046-01-01 | AY5: 2047-01-01 | AZ5: 2048-01-01 | BA5: 2049-01-01 | BB5: 2050-01-01
C6: End of Period | G6: Date | L6: =Inputs!F3-1 -> 2019-12-31 | M6: =EDATE(M5,M4)-1 -> 2020-01-31 | N6: =EDATE(N5,N4)-1 -> 2020-02-29 | O6: 2020-03-31 | P6: 2020-04-30 | Q6: 2020-05-31 | R6: 2020-06-30 | S6: 2020-07-31 | T6: 2020-08-31 | U6: 2020-09-30 | V6: 2020-10-31 | W6: 2020-11-30 | X6: 2020-12-31 | Y6: 2021-12-31 | Z6: 2022-12-31 | AA6: 2023-12-31 | AB6: 2024-12-31 | AC6: 2025-12-31 | AD6: 2026-12-31 | AE6: 2027-12-31 | AF6: 2028-12-31 | AG6: 2029-12-31 | AH6: 2030-12-31 | AI6: 2031-12-31 | AJ6: 2032-12-31 | AK6: 2033-12-31 | AL6: 2034-12-31 | AM6: 2035-12-31 | AN6: 2036-12-31 | AO6: 2037-12-31 | AP6: 2038-12-31 | AQ6: 2039-12-31 | AR6: 2040-12-31 | AS6: 2041-12-31 | AT6: 2042-12-31 | AU6: 2043-12-31 | AV6: 2044-12-31 | AW6: 2045-12-31 | AX6: 2046-12-31 | AY6: 2047-12-31 | AZ6: 2048-12-31 | BA6: 2049-12-31 | BB6: 2050-12-31
C7: BOT Period | G7: Flag | H7: =Inputs!F5 -> 2021-01-01 | I7: =Inputs!F7 -> 2031-01-01 | M7: =AND(M$5>=$H7,M$5<$I7)*1 -> 0 | N7: =AND(N5>=$H$7,N5<$I$7)*1 -> 0 | O7: 0 | P7: 0 | Q7: 0 | R7: 0 | S7: 0 | T7: 0 | U7: 0 | V7: 0 | W7: 0 | X7: 0 | Y7: 1 | Z7: 1 | AA7: 1 | AB7: 1 | AC7: 1 | AD7: 1 | AE7: 1 | AF7: 1 | AG7: 1 | AH7: 1 | AI7: 0 | AJ7: 0 | AK7: 0 | AL7: 0 | AM7: 0 | AN7: 0 | AO7: 0 | AP7: 0 | AQ7: 0 | AR7: 0 | AS7: 0 | AT7: 0 | AU7: 0 | AV7: 0 | AW7: 0 | AX7: 0 | AY7: 0 | AZ7: 0 | BA7: 0 | BB7: 0
C8: Evaluation Period | G8: Flag | H8: =Inputs!F5 -> 2021-01-01 | I8: =Inputs!F9 -> 2051-01-01 | M8: =AND(M$5>=$H8,M$5<$I8)*1 -> 0 | N8: =AND(N$5>=$H8,N$5<$I8)*1 -> 0 | O8: 0 | P8: 0 | Q8: 0 | R8: 0 | S8: 0 | T8: 0 | U8: 0 | V8: 0 | W8: 0 | X8: 0 | Y8: 1 | Z8: 1 | AA8: 1 | AB8: 1 | AC8: 1 | AD8: 1 | AE8: 1 | AF8: 1 | AG8: 1 | AH8: 1 | AI8: 1 | AJ8: 1 | AK8: 1 | AL8: 1 | AM8: 1 | AN8: 1 | AO8: 1 | AP8: 1 | AQ8: 1 | AR8: 1 | AS8: 1 | AT8: 1 | AU8: 1 | AV8: 1 | AW8: 1 | AX8: 1 | AY8: 1 | AZ8: 1 | BA8: 1 | BB8: 1
C9: Post BOT Period | G9: Flag | M9: =AND(M8,NOT(M7))*1 -> 0 | N9: =AND(N8,NOT(N7))*1 -> 0 | O9: 0 | P9: 0 | Q9: 0 | R9: 0 | S9: 0 | T9: 0 | U9: 0 | V9: 0 | W9: 0 | X9: 0 | Y9: 0 | Z9: 0 | AA9: 0 | AB9: 0 | AC9: 0 | AD9: 0 | AE9: 0 | AF9: 0 | AG9: 0 | AH9: 0 | AI9: 1 | AJ9: 1 | AK9: 1 | AL9: 1 | AM9: 1 | AN9: 1 | AO9: 1 | AP9: 1 | AQ9: 1 | AR9: 1 | AS9: 1 | AT9: 1 | AU9: 1 | AV9: 1 | AW9: 1 | AX9: 1 | AY9: 1 | AZ9: 1 | BA9: 1 | BB9: 1
B11: Operating Cash Flow
C12: Total CNG Sold in Equivalent km | M12: ='Operating Model'!N284 -> 0 | N12: ='Operating Model'!O284 -> 0 | O12: ='Operating Model'!P284 -> 0 | P12: ='Operating Model'!Q284 -> 0 | Q12: ='Operating Model'!R284 -> 0 | R12: ='Operating Model'!S284 -> 0 | S12: ='Operating Model'!T284 -> 0 | T12: ='Operating Model'!U284 -> 0 | U12: ='Operating Model'!V284 -> 0 | V12: ='Operating Model'!W284 -> 0 | W12: ='Operating Model'!X284 -> 0 | X12: ='Operating Model'!Y284 -> 0 | Y12: ='Operating Model'!Z284 -> 974592 | Z12: ='Operating Model'!AA284 -> 974592 | AA12: ='Operating Model'!AB284 -> 974592 | AB12: ='Operating Model'!AC284 -> 974592 | AC12: ='Operating Model'!AD284 -> 974592 | AD12: ='Operating Model'!AE284 -> 974592 | AE12: ='Operating Model'!AF284 -> 974592 | AF12: ='Operating Model'!AG284 -> 974592 | AG12: ='Operating Model'!AH284 -> 974592 | AH12: ='Operating Model'!AI284 -> 974592 | AI12: ='Operating Model'!AJ284 -> 0 | AJ12: ='Operating Model'!AK284 -> 0 | AK12: ='Operating Model'!AL284 -> 0 | AL12: ='Operating Model'!AM284 -> 0 | AM12: ='Operating Model'!AN284 -> 0 | AN12: ='Operating Model'!AO284 -> 0 | AO12: ='Operating Model'!AP284 -> 0 | AP12: ='Operating Model'!AQ284 -> 0 | AQ12: ='Operating Model'!AR284 -> 0 | AR12: ='Operating Model'!AS284 -> 0 | AS12: ='Operating Model'!AT284 -> 0 | AT12: ='Operating Model'!AU284 -> 0 | AU12: ='Operating Model'!AV284 -> 0 | AV12: ='Operating Model'!AW284 -> 0 | AW12: ='Operating Model'!AX284 -> 0 | AX12: ='Operating Model'!AY284 -> 0 | AY12: ='Operating Model'!AZ284 -> 0 | AZ12: ='Operating Model'!BA284 -> 0 | BA12: ='Operating Model'!BB284 -> 0 | BB12: ='Operating Model'!BC284 -> 0
C13: Liters Required | M13: ='Operating Model'!N276 -> 0 | N13: ='Operating Model'!O276 -> 0 | O13: ='Operating Model'!P276 -> 0 | P13: ='Operating Model'!Q276 -> 0 | Q13: ='Operating Model'!R276 -> 0 | R13: ='Operating Model'!S276 -> 0 | S13: ='Operating Model'!T276 -> 0 | T13: ='Operating Model'!U276 -> 0 | U13: ='Operating Model'!V276 -> 0 | V13: ='Operating Model'!W276 -> 0 | W13: ='Operating Model'!X276 -> 0 | X13: ='Operating Model'!Y276 -> 0 | Y13: ='Operating Model'!Z276 -> 172800000 | Z13: ='Operating Model'!AA276 -> 172800000 | AA13: ='Operating Model'!AB276 -> 172800000 | AB13: ='Operating Model'!AC276 -> 172800000 | AC13: ='Operating Model'!AD276 -> 172800000 | AD13: ='Operating Model'!AE276 -> 172800000 | AE13: ='Operating Model'!AF276 -> 172800000 | AF13: ='Operating Model'!AG276 -> 172800000 | AG13: ='Operating Model'!AH276 -> 172800000 | AH13: ='Operating Model'!AI276 -> 172800000 | AI13: ='Operating Model'!AJ276 -> 172800000 | AJ13: ='Operating Model'!AK276 -> 172800000 | AK13: ='Operating Model'!AL276 -> 172800000 | AL13: ='Operating Model'!AM276 -> 172800000 | AM13: ='Operating Model'!AN276 -> 172800000 | AN13: ='Operating Model'!AO276 -> 172800000 | AO13: ='Operating Model'!AP276 -> 172800000 | AP13: ='Operating Model'!AQ276 -> 172800000 | AQ13: ='Operating Model'!AR276 -> 172800000 | AR13: ='Operating Model'!AS276 -> 172800000 | AS13: ='Operating Model'!AT276 -> 172800000 | AT13: ='Operating Model'!AU276 -> 172800000 | AU13: ='Operating Model'!AV276 -> 172800000 | AV13: ='Operating Model'!AW276 -> 172800000 | AW13: ='Operating Model'!AX276 -> 172800000 | AX13: ='Operating Model'!AY276 -> 172800000 | AY13: ='Operating Model'!AZ276 -> 172800000 | AZ13: ='Operating Model'!BA276 -> 172800000 | BA13: ='Operating Model'!BB276 -> 172800000 | BB13: ='Operating Model'!BC276 -> 172800000
M14: ='Operating Model'!N277 -> 0 | N14: ='Operating Model'!O277 -> 0 | O14: ='Operating Model'!P277 -> 0 | P14: ='Operating Model'!Q277 -> 0 | Q14: ='Operating Model'!R277 -> 0 | R14: ='Operating Model'!S277 -> 0 | S14: ='Operating Model'!T277 -> 0 | T14: ='Operating Model'!U277 -> 0 | U14: ='Operating Model'!V277 -> 0 | V14: ='Operating Model'!W277 -> 0 | W14: ='Operating Model'!X277 -> 0 | X14: ='Operating Model'!Y277 -> 0 | Y14: ='Operating Model'!Z277 -> 0 | Z14: ='Operating Model'!AA277 -> 0 | AA14: ='Operating Model'!AB277 -> 0 | AB14: ='Operating Model'!AC277 -> 0 | AC14: ='Operating Model'!AD277 -> 0 | AD14: ='Operating Model'!AE277 -> 0 | AE14: ='Operating Model'!AF277 -> 0 | AF14: ='Operating Model'!AG277 -> 0 | AG14: ='Operating Model'!AH277 -> 0 | AH14: ='Operating Model'!AI277 -> 0 | AI14: ='Operating Model'!AJ277 -> 0 | AJ14: ='Operating Model'!AK277 -> 0 | AK14: ='Operating Model'!AL277 -> 0 | AL14: ='Operating Model'!AM277 -> 0 | AM14: ='Operating Model'!AN277 -> 0 | AN14: ='Operating Model'!AO277 -> 0 | AO14: ='Operating Model'!AP277 -> 0 | AP14: ='Operating Model'!AQ277 -> 0 | AQ14: ='Operating Model'!AR277 -> 0 | AR14: ='Operating Model'!AS277 -> 0 | AS14: ='Operating Model'!AT277 -> 0 | AT14: ='Operating Model'!AU277 -> 0 | AU14: ='Operating Model'!AV277 -> 0 | AV14: ='Operating Model'!AW277 -> 0 | AW14: ='Operating Model'!AX277 -> 0 | AX14: ='Operating Model'!AY277 -> 0 | AY14: ='Operating Model'!AZ277 -> 0 | AZ14: ='Operating Model'!BA277 -> 0 | BA14: ='Operating Model'!BB277 -> 0 | BB14: ='Operating Model'!BC277 -> 0
C15: Real Diesel Price | M15: ='Operating Model'!N278 -> 0.564 | N15: ='Operating Model'!O278 -> 0.564 | O15: ='Operating Model'!P278 -> 0.564 | P15: ='Operating Model'!Q278 -> 0.564 | Q15: ='Operating Model'!R278 -> 0.564 | R15: ='Operating Model'!S278 -> 0.564 | S15: ='Operating Model'!T278 -> 0.564 | T15: ='Operating Model'!U278 -> 0.564 | U15: ='Operating Model'!V278 -> 0.564 | V15: ='Operating Model'!W278 -> 0.564 | W15: ='Operating Model'!X278 -> 0.564 | X15: ='Operating Model'!Y278 -> 0.564 | Y15: ='Operating Model'!Z278 -> 0.564 | Z15: ='Operating Model'!AA278 -> 0.564 | AA15: ='Operating Model'!AB278 -> 0.564 | AB15: ='Operating Model'!AC278 -> 0.564 | AC15: ='Operating Model'!AD278 -> 0.564 | AD15: ='Operating Model'!AE278 -> 0.564 | AE15: ='Operating Model'!AF278 -> 0.564 | AF15: ='Operating Model'!AG278 -> 0.564 | AG15: ='Operating Model'!AH278 -> 0.564 | AH15: ='Operating Model'!AI278 -> 0.564 | AI15: ='Operating Model'!AJ278 -> 0.564 | AJ15: ='Operating Model'!AK278 -> 0.564 | AK15: ='Operating Model'!AL278 -> 0.564 | AL15: ='Operating Model'!AM278 -> 0.564 | AM15: ='Operating Model'!AN278 -> 0.564 | AN15: ='Operating Model'!AO278 -> 0.564 | AO15: ='Operating Model'!AP278 -> 0.564 | AP15: ='Operating Model'!AQ278 -> 0.564 | AQ15: ='Operating Model'!AR278 -> 0.564 | AR15: ='Operating Model'!AS278 -> 0.564 | AS15: ='Operating Model'!AT278 -> 0.564 | AT15: ='Operating Model'!AU278 -> 0.564 | AU15: ='Operating Model'!AV278 -> 0.564 | AV15: ='Operating Model'!AW278 -> 0.564 | AW15: ='Operating Model'!AX278 -> 0.564 | AX15: ='Operating Model'!AY278 -> 0.564 | AY15: ='Operating Model'!AZ278 -> 0.564 | AZ15: ='Operating Model'!BA278 -> 0.564 | BA15: ='Operating Model'!BB278 -> 0.564 | BB15: ='Operating Model'!BC278 -> 0.564
C16: Inflation Flag | M16: ='Operating Model'!N279 -> 0 | N16: ='Operating Model'!O279 -> 0 | O16: ='Operating Model'!P279 -> 0 | P16: ='Operating Model'!Q279 -> 0 | Q16: ='Operating Model'!R279 -> 0 | R16: ='Operating Model'!S279 -> 0 | S16: ='Operating Model'!T279 -> 0 | T16: ='Operating Model'!U279 -> 0 | U16: ='Operating Model'!V279 -> 0 | V16: ='Operating Model'!W279 -> 0 | W16: ='Operating Model'!X279 -> 0 | X16: ='Operating Model'!Y279 -> 0 | Y16: ='Operating Model'!Z279 -> 0 | Z16: ='Operating Model'!AA279 -> 1 | AA16: ='Operating Model'!AB279 -> 1 | AB16: ='Operating Model'!AC279 -> 1 | AC16: ='Operating Model'!AD279 -> 1 | AD16: ='Operating Model'!AE279 -> 1 | AE16: ='Operating Model'!AF279 -> 1 | AF16: ='Operating Model'!AG279 -> 1 | AG16: ='Operating Model'!AH279 -> 1 | AH16: ='Operating Model'!AI279 -> 1 | AI16: ='Operating Model'!AJ279 -> 1 | AJ16: ='Operating Model'!AK279 -> 1 | AK16: ='Operating Model'!AL279 -> 1 | AL16: ='Operating Model'!AM279 -> 1 | AM16: ='Operating Model'!AN279 -> 1 | AN16: ='Operating Model'!AO279 -> 1 | AO16: ='Operating Model'!AP279 -> 1 | AP16: ='Operating Model'!AQ279 -> 1 | AQ16: ='Operating Model'!AR279 -> 1 | AR16: ='Operating Model'!AS279 -> 1 | AS16: ='Operating Model'!AT279 -> 1 | AT16: ='Operating Model'!AU279 -> 1 | AU16: ='Operating Model'!AV279 -> 1 | AV16: ='Operating Model'!AW279 -> 1 | AW16: ='Operating Model'!AX279 -> 1 | AX16: ='Operating Model'!AY279 -> 1 | AY16: ='Operating Model'!AZ279 -> 1 | AZ16: ='Operating Model'!BA279 -> 1 | BA16: ='Operating Model'!BB279 -> 1 | BB16: ='Operating Model'!BC279 -> 1
C17: Inflation Index | M17: ='Operating Model'!N280 -> 1 | N17: ='Operating Model'!O280 -> 1 | O17: ='Operating Model'!P280 -> 1 | P17: ='Operating Model'!Q280 -> 1 | Q17: ='Operating Model'!R280 -> 1 | R17: ='Operating Model'!S280 -> 1 | S17: ='Operating Model'!T280 -> 1 | T17: ='Operating Model'!U280 -> 1 | U17: ='Operating Model'!V280 -> 1 | V17: ='Operating Model'!W280 -> 1 | W17: ='Operating Model'!X280 -> 1 | X17: ='Operating Model'!Y280 -> 1 | Y17: ='Operating Model'!Z280 -> 1 | Z17: ='Operating Model'!AA280 -> 1 | AA17: ='Operating Model'!AB280 -> 1 | AB17: ='Operating Model'!AC280 -> 1 | AC17: ='Operating Model'!AD280 -> 1 | AD17: ='Operating Model'!AE280 -> 1 | AE17: ='Operating Model'!AF280 -> 1 | AF17: ='Operating Model'!AG280 -> 1 | AG17: ='Operating Model'!AH280 -> 1 | AH17: ='Operating Model'!AI280 -> 1 | AI17: ='Operating Model'!AJ280 -> 1 | AJ17: ='Operating Model'!AK280 -> 1 | AK17: ='Operating Model'!AL280 -> 1 | AL17: ='Operating Model'!AM280 -> 1 | AM17: ='Operating Model'!AN280 -> 1 | AN17: ='Operating Model'!AO280 -> 1 | AO17: ='Operating Model'!AP280 -> 1 | AP17: ='Operating Model'!AQ280 -> 1 | AQ17: ='Operating Model'!AR280 -> 1 | AR17: ='Operating Model'!AS280 -> 1 | AS17: ='Operating Model'!AT280 -> 1 | AT17: ='Operating Model'!AU280 -> 1 | AU17: ='Operating Model'!AV280 -> 1 | AV17: ='Operating Model'!AW280 -> 1 | AW17: ='Operating Model'!AX280 -> 1 | AX17: ='Operating Model'!AY280 -> 1 | AY17: ='Operating Model'!AZ280 -> 1 | AZ17: ='Operating Model'!BA280 -> 1 | BA17: ='Operating Model'!BB280 -> 1 | BB17: ='Operating Model'!BC280 -> 1
C18: Nominal Diesel Price | M18: ='Operating Model'!N281 -> 0.564 | N18: ='Operating Model'!O281 -> 0.564 | O18: ='Operating Model'!P281 -> 0.564 | P18: ='Operating Model'!Q281 -> 0.564 | Q18: ='Operating Model'!R281 -> 0.564 | R18: ='Operating Model'!S281 -> 0.564 | S18: ='Operating Model'!T281 -> 0.564 | T18: ='Operating Model'!U281 -> 0.564 | U18: ='Operating Model'!V281 -> 0.564 | V18: ='Operating Model'!W281 -> 0.564 | W18: ='Operating Model'!X281 -> 0.564 | X18: ='Operating Model'!Y281 -> 0.564 | Y18: ='Operating Model'!Z281 -> 0.564 | Z18: ='Operating Model'!AA281 -> 0.564 | AA18: ='Operating Model'!AB281 -> 0.564 | AB18: ='Operating Model'!AC281 -> 0.564 | AC18: ='Operating Model'!AD281 -> 0.564 | AD18: ='Operating Model'!AE281 -> 0.564 | AE18: ='Operating Model'!AF281 -> 0.564 | AF18: ='Operating Model'!AG281 -> 0.564 | AG18: ='Operating Model'!AH281 -> 0.564 | AH18: ='Operating Model'!AI281 -> 0.564 | AI18: ='Operating Model'!AJ281 -> 0.564 | AJ18: ='Operating Model'!AK281 -> 0.564 | AK18: ='Operating Model'!AL281 -> 0.564 | AL18: ='Operating Model'!AM281 -> 0.564 | AM18: ='Operating Model'!AN281 -> 0.564 | AN18: ='Operating Model'!AO281 -> 0.564 | AO18: ='Operating Model'!AP281 -> 0.564 | AP18: ='Operating Model'!AQ281 -> 0.564 | AQ18: ='Operating Model'!AR281 -> 0.564 | AR18: ='Operating Model'!AS281 -> 0.564 | AS18: ='Operating Model'!AT281 -> 0.564 | AT18: ='Operating Model'!AU281 -> 0.564 | AU18: ='Operating Model'!AV281 -> 0.564 | AV18: ='Operating Model'!AW281 -> 0.564 | AW18: ='Operating Model'!AX281 -> 0.564 | AX18: ='Operating Model'!AY281 -> 0.564 | AY18: ='Operating Model'!AZ281 -> 0.564 | AZ18: ='Operating Model'!BA281 -> 0.564 | BA18: ='Operating Model'!BB281 -> 0.564 | BB18: ='Operating Model'!BC281 -> 0.564
C19: Discount to Diesel Price | M19: ='Operating Model'!N282 -> 0 | N19: ='Operating Model'!O282 -> 0 | O19: ='Operating Model'!P282 -> 0 | P19: ='Operating Model'!Q282 -> 0 | Q19: ='Operating Model'!R282 -> 0 | R19: ='Operating Model'!S282 -> 0 | S19: ='Operating Model'!T282 -> 0 | T19: ='Operating Model'!U282 -> 0 | U19: ='Operating Model'!V282 -> 0 | V19: ='Operating Model'!W282 -> 0 | W19: ='Operating Model'!X282 -> 0 | X19: ='Operating Model'!Y282 -> 0 | Y19: ='Operating Model'!Z282 -> 0 | Z19: ='Operating Model'!AA282 -> 0 | AA19: ='Operating Model'!AB282 -> 0 | AB19: ='Operating Model'!AC282 -> 0 | AC19: ='Operating Model'!AD282 -> 0 | AD19: ='Operating Model'!AE282 -> 0 | AE19: ='Operating Model'!AF282 -> 0 | AF19: ='Operating Model'!AG282 -> 0 | AG19: ='Operating Model'!AH282 -> 0 | AH19: ='Operating Model'!AI282 -> 0 | AI19: ='Operating Model'!AJ282 -> 0 | AJ19: ='Operating Model'!AK282 -> 0 | AK19: ='Operating Model'!AL282 -> 0 | AL19: ='Operating Model'!AM282 -> 0 | AM19: ='Operating Model'!AN282 -> 0 | AN19: ='Operating Model'!AO282 -> 0 | AO19: ='Operating Model'!AP282 -> 0 | AP19: ='Operating Model'!AQ282 -> 0 | AQ19: ='Operating Model'!AR282 -> 0 | AR19: ='Operating Model'!AS282 -> 0 | AS19: ='Operating Model'!AT282 -> 0 | AT19: ='Operating Model'!AU282 -> 0 | AU19: ='Operating Model'!AV282 -> 0 | AV19: ='Operating Model'!AW282 -> 0 | AW19: ='Operating Model'!AX282 -> 0 | AX19: ='Operating Model'!AY282 -> 0 | AY19: ='Operating Model'!AZ282 -> 0 | AZ19: ='Operating Model'!BA282 -> 0 | BA19: ='Operating Model'!BB282 -> 0 | BB19: ='Operating Model'!BC282 -> 0
C20: Final Sale Price | M20: ='Operating Model'!N283 -> 0.564 | N20: ='Operating Model'!O283 -> 0.564 | O20: ='Operating Model'!P283 -> 0.564 | P20: ='Operating Model'!Q283 -> 0.564 | Q20: ='Operating Model'!R283 -> 0.564 | R20: ='Operating Model'!S283 -> 0.564 | S20: ='Operating Model'!T283 -> 0.564 | T20: ='Operating Model'!U283 -> 0.564 | U20: ='Operating Model'!V283 -> 0.564 | V20: ='Operating Model'!W283 -> 0.564 | W20: ='Operating Model'!X283 -> 0.564 | X20: ='Operating Model'!Y283 -> 0.564 | Y20: ='Operating Model'!Z283 -> 0.564 | Z20: ='Operating Model'!AA283 -> 0.564 | AA20: ='Operating Model'!AB283 -> 0.564 | AB20: ='Operating Model'!AC283 -> 0.564 | AC20: ='Operating Model'!AD283 -> 0.564 | AD20: ='Operating Model'!AE283 -> 0.564 | AE20: ='Operating Model'!AF283 -> 0.564 | AF20: ='Operating Model'!AG283 -> 0.564 | AG20: ='Operating Model'!AH283 -> 0.564 | AH20: ='Operating Model'!AI283 -> 0.564 | AI20: ='Operating Model'!AJ283 -> 0.564 | AJ20: ='Operating Model'!AK283 -> 0.564 | AK20: ='Operating Model'!AL283 -> 0.564 | AL20: ='Operating Model'!AM283 -> 0.564 | AM20: ='Operating Model'!AN283 -> 0.564 | AN20: ='Operating Model'!AO283 -> 0.564 | AO20: ='Operating Model'!AP283 -> 0.564 | AP20: ='Operating Model'!AQ283 -> 0.564 | AQ20: ='Operating Model'!AR283 -> 0.564 | AR20: ='Operating Model'!AS283 -> 0.564 | AS20: ='Operating Model'!AT283 -> 0.564 | AT20: ='Operating Model'!AU283 -> 0.564 | AU20: ='Operating Model'!AV283 -> 0.564 | AV20: ='Operating Model'!AW283 -> 0.564 | AW20: ='Operating Model'!AX283 -> 0.564 | AX20: ='Operating Model'!AY283 -> 0.564 | AY20: ='Operating Model'!AZ283 -> 0.564 | AZ20: ='Operating Model'!BA283 -> 0.564 | BA20: ='Operating Model'!BB283 -> 0.564 | BB20: ='Operating Model'!BC283 -> 0.564
D21: Total Revenues | J21: =SUM(M21:BR21) -> 9745920 | M21: ='Operating Model'!N284 -> 0 | N21: ='Operating Model'!O284 -> 0 | O21: ='Operating Model'!P284 -> 0 | P21: ='Operating Model'!Q284 -> 0 | Q21: ='Operating Model'!R284 -> 0 | R21: ='Operating Model'!S284 -> 0 | S21: ='Operating Model'!T284 -> 0 | T21: ='Operating Model'!U284 -> 0 | U21: ='Operating Model'!V284 -> 0 | V21: ='Operating Model'!W284 -> 0 | W21: ='Operating Model'!X284 -> 0 | X21: ='Operating Model'!Y284 -> 0 | Y21: ='Operating Model'!Z284 -> 974592 | Z21: ='Operating Model'!AA284 -> 974592 | AA21: ='Operating Model'!AB284 -> 974592 | AB21: ='Operating Model'!AC284 -> 974592 | AC21: ='Operating Model'!AD284 -> 974592 | AD21: ='Operating Model'!AE284 -> 974592 | AE21: ='Operating Model'!AF284 -> 974592 | AF21: ='Operating Model'!AG284 -> 974592 | AG21: ='Operating Model'!AH284 -> 974592 | AH21: ='Operating Model'!AI284 -> 974592 | AI21: ='Operating Model'!AJ284 -> 0 | AJ21: ='Operating Model'!AK284 -> 0 | AK21: ='Operating Model'!AL284 -> 0 | AL21: ='Operating Model'!AM284 -> 0 | AM21: ='Operating Model'!AN284 -> 0 | AN21: ='Operating Model'!AO284 -> 0 | AO21: ='Operating Model'!AP284 -> 0 | AP21: ='Operating Model'!AQ284 -> 0 | AQ21: ='Operating Model'!AR284 -> 0 | AR21: ='Operating Model'!AS284 -> 0 | AS21: ='Operating Model'!AT284 -> 0 | AT21: ='Operating Model'!AU284 -> 0 | AU21: ='Operating Model'!AV284 -> 0 | AV21: ='Operating Model'!AW284 -> 0 | AW21: ='Operating Model'!AX284 -> 0 | AX21: ='Operating Model'!AY284 -> 0 | AY21: ='Operating Model'!AZ284 -> 0 | AZ21: ='Operating Model'!BA284 -> 0 | BA21: ='Operating Model'!BB284 -> 0 | BB21: ='Operating Model'!BC284 -> 0
M22: ='Operating Model'!N285 -> 0 | N22: ='Operating Model'!O285 -> 0 | O22: ='Operating Model'!P285 -> 0 | P22: ='Operating Model'!Q285 -> 0 | Q22: ='Operating Model'!R285 -> 0 | R22: ='Operating Model'!S285 -> 0 | S22: ='Operating Model'!T285 -> 0 | T22: ='Operating Model'!U285 -> 0 | U22: ='Operating Model'!V285 -> 0 | V22: ='Operating Model'!W285 -> 0 | W22: ='Operating Model'!X285 -> 0 | X22: ='Operating Model'!Y285 -> 0 | Y22: ='Operating Model'!Z285 -> 0 | Z22: ='Operating Model'!AA285 -> 0 | AA22: ='Operating Model'!AB285 -> 0 | AB22: ='Operating Model'!AC285 -> 0 | AC22: ='Operating Model'!AD285 -> 0 | AD22: ='Operating Model'!AE285 -> 0 | AE22: ='Operating Model'!AF285 -> 0 | AF22: ='Operating Model'!AG285 -> 0 | AG22: ='Operating Model'!AH285 -> 0 | AH22: ='Operating Model'!AI285 -> 0 | AI22: ='Operating Model'!AJ285 -> 0 | AJ22: ='Operating Model'!AK285 -> 0 | AK22: ='Operating Model'!AL285 -> 0 | AL22: ='Operating Model'!AM285 -> 0 | AM22: ='Operating Model'!AN285 -> 0 | AN22: ='Operating Model'!AO285 -> 0 | AO22: ='Operating Model'!AP285 -> 0 | AP22: ='Operating Model'!AQ285 -> 0 | AQ22: ='Operating Model'!AR285 -> 0 | AR22: ='Operating Model'!AS285 -> 0 | AS22: ='Operating Model'!AT285 -> 0 | AT22: ='Operating Model'!AU285 -> 0 | AU22: ='Operating Model'!AV285 -> 0 | AV22: ='Operating Model'!AW285 -> 0 | AW22: ='Operating Model'!AX285 -> 0 | AX22: ='Operating Model'!AY285 -> 0 | AY22: ='Operating Model'!AZ285 -> 0 | AZ22: ='Operating Model'!BA285 -> 0 | BA22: ='Operating Model'!BB285 -> 0 | BB22: ='Operating Model'!BC285 -> 0
C23: Maintenance Contract over BOT Period | J23: =SUM(M23:BR23) -> 1858328 | M23: ='Operating Model'!N287 -> 0 | N23: ='Operating Model'!O287 -> 0 | O23: ='Operating Model'!P287 -> 0 | P23: ='Operating Model'!Q287 -> 0 | Q23: ='Operating Model'!R287 -> 0 | R23: ='Operating Model'!S287 -> 0 | S23: ='Operating Model'!T287 -> 0 | T23: ='Operating Model'!U287 -> 0 | U23: ='Operating Model'!V287 -> 0 | V23: ='Operating Model'!W287 -> 0 | W23: ='Operating Model'!X287 -> 0 | X23: ='Operating Model'!Y287 -> 0 | Y23: ='Operating Model'!Z287 -> 185832.8 | Z23: ='Operating Model'!AA287 -> 185832.8 | AA23: ='Operating Model'!AB287 -> 185832.8 | AB23: ='Operating Model'!AC287 -> 185832.8 | AC23: ='Operating Model'!AD287 -> 185832.8 | AD23: ='Operating Model'!AE287 -> 185832.8 | AE23: ='Operating Model'!AF287 -> 185832.8 | AF23: ='Operating Model'!AG287 -> 185832.8 | AG23: ='Operating Model'!AH287 -> 185832.8 | AH23: ='Operating Model'!AI287 -> 185832.8 | AI23: ='Operating Model'!AJ287 -> 0 | AJ23: ='Operating Model'!AK287 -> 0 | AK23: ='Operating Model'!AL287 -> 0 | AL23: ='Operating Model'!AM287 -> 0 | AM23: ='Operating Model'!AN287 -> 0 | AN23: ='Operating Model'!AO287 -> 0 | AO23: ='Operating Model'!AP287 -> 0 | AP23: ='Operating Model'!AQ287 -> 0 | AQ23: ='Operating Model'!AR287 -> 0 | AR23: ='Operating Model'!AS287 -> 0 | AS23: ='Operating Model'!AT287 -> 0 | AT23: ='Operating Model'!AU287 -> 0 | AU23: ='Operating Model'!AV287 -> 0 | AV23: ='Operating Model'!AW287 -> 0 | AW23: ='Operating Model'!AX287 -> 0 | AX23: ='Operating Model'!AY287 -> 0 | AY23: ='Operating Model'!AZ287 -> 0 | AZ23: ='Operating Model'!BA287 -> 0 | BA23: ='Operating Model'!BB287 -> 0 | BB23: ='Operating Model'!BC287 -> 0
C24: Electricity Cost over BOT Period | J24: =SUM(M24:BR24) -> 840836.3748 | M24: ='Operating Model'!N288 -> 0 | N24: ='Operating Model'!O288 -> 0 | O24: ='Operating Model'!P288 -> 0 | P24: ='Operating Model'!Q288 -> 0 | Q24: ='Operating Model'!R288 -> 0 | R24: ='Operating Model'!S288 -> 0 | S24: ='Operating Model'!T288 -> 0 | T24: ='Operating Model'!U288 -> 0 | U24: ='Operating Model'!V288 -> 0 | V24: ='Operating Model'!W288 -> 0 | W24: ='Operating Model'!X288 -> 0 | X24: ='Operating Model'!Y288 -> 0 | Y24: ='Operating Model'!Z288 -> 84083.63748 | Z24: ='Operating Model'!AA288 -> 84083.63748 | AA24: ='Operating Model'!AB288 -> 84083.63748 | AB24: ='Operating Model'!AC288 -> 84083.63748 | AC24: ='Operating Model'!AD288 -> 84083.63748 | AD24: ='Operating Model'!AE288 -> 84083.63748 | AE24: ='Operating Model'!AF288 -> 84083.63748 | AF24: ='Operating Model'!AG288 -> 84083.63748 | AG24: ='Operating Model'!AH288 -> 84083.63748 | AH24: ='Operating Model'!AI288 -> 84083.63748 | AI24: ='Operating Model'!AJ288 -> 0 | AJ24: ='Operating Model'!AK288 -> 0 | AK24: ='Operating Model'!AL288 -> 0 | AL24: ='Operating Model'!AM288 -> 0 | AM24: ='Operating Model'!AN288 -> 0 | AN24: ='Operating Model'!AO288 -> 0 | AO24: ='Operating Model'!AP288 -> 0 | AP24: ='Operating Model'!AQ288 -> 0 | AQ24: ='Operating Model'!AR288 -> 0 | AR24: ='Operating Model'!AS288 -> 0 | AS24: ='Operating Model'!AT288 -> 0 | AT24: ='Operating Model'!AU288 -> 0 | AU24: ='Operating Model'!AV288 -> 0 | AV24: ='Operating Model'!AW288 -> 0 | AW24: ='Operating Model'!AX288 -> 0 | AX24: ='Operating Model'!AY288 -> 0 | AY24: ='Operating Model'!AZ288 -> 0 | AZ24: ='Operating Model'!BA288 -> 0 | BA24: ='Operating Model'!BB288 -> 0 | BB24: ='Operating Model'!BC288 -> 0
D25: EBITDA | J25: =SUM(M25:BR25) -> 7046755.625 | M25: ='Operating Model'!N289 -> 0 | N25: ='Operating Model'!O289 -> 0 | O25: ='Operating Model'!P289 -> 0 | P25: ='Operating Model'!Q289 -> 0 | Q25: ='Operating Model'!R289 -> 0 | R25: ='Operating Model'!S289 -> 0 | S25: ='Operating Model'!T289 -> 0 | T25: ='Operating Model'!U289 -> 0 | U25: ='Operating Model'!V289 -> 0 | V25: ='Operating Model'!W289 -> 0 | W25: ='Operating Model'!X289 -> 0 | X25: ='Operating Model'!Y289 -> 0 | Y25: ='Operating Model'!Z289 -> 704675.5625 | Z25: ='Operating Model'!AA289 -> 704675.5625 | AA25: ='Operating Model'!AB289 -> 704675.5625 | AB25: ='Operating Model'!AC289 -> 704675.5625 | AC25: ='Operating Model'!AD289 -> 704675.5625 | AD25: ='Operating Model'!AE289 -> 704675.5625 | AE25: ='Operating Model'!AF289 -> 704675.5625 | AF25: ='Operating Model'!AG289 -> 704675.5625 | AG25: ='Operating Model'!AH289 -> 704675.5625 | AH25: ='Operating Model'!AI289 -> 704675.5625 | AI25: ='Operating Model'!AJ289 -> 0 | AJ25: ='Operating Model'!AK289 -> 0 | AK25: ='Operating Model'!AL289 -> 0 | AL25: ='Operating Model'!AM289 -> 0 | AM25: ='Operating Model'!AN289 -> 0 | AN25: ='Operating Model'!AO289 -> 0 | AO25: ='Operating Model'!AP289 -> 0 | AP25: ='Operating Model'!AQ289 -> 0 | AQ25: ='Operating Model'!AR289 -> 0 | AR25: ='Operating Model'!AS289 -> 0 | AS25: ='Operating Model'!AT289 -> 0 | AT25: ='Operating Model'!AU289 -> 0 | AU25: ='Operating Model'!AV289 -> 0 | AV25: ='Operating Model'!AW289 -> 0 | AW25: ='Operating Model'!AX289 -> 0 | AX25: ='Operating Model'!AY289 -> 0 | AY25: ='Operating Model'!AZ289 -> 0 | AZ25: ='Operating Model'!BA289 -> 0 | BA25: ='Operating Model'!BB289 -> 0 | BB25: ='Operating Model'!BC289 -> 0
M26: ='Operating Model'!N290 -> 0 | N26: ='Operating Model'!O290 -> 0 | O26: ='Operating Model'!P290 -> 0 | P26: ='Operating Model'!Q290 -> 0 | Q26: ='Operating Model'!R290 -> 0 | R26: ='Operating Model'!S290 -> 0 | S26: ='Operating Model'!T290 -> 0 | T26: ='Operating Model'!U290 -> 0 | U26: ='Operating Model'!V290 -> 0 | V26: ='Operating Model'!W290 -> 0 | W26: ='Operating Model'!X290 -> 0 | X26: ='Operating Model'!Y290 -> 0 | Y26: ='Operating Model'!Z290 -> 0 | Z26: ='Operating Model'!AA290 -> 0 | AA26: ='Operating Model'!AB290 -> 0 | AB26: ='Operating Model'!AC290 -> 0 | AC26: ='Operating Model'!AD290 -> 0 | AD26: ='Operating Model'!AE290 -> 0 | AE26: ='Operating Model'!AF290 -> 0 | AF26: ='Operating Model'!AG290 -> 0 | AG26: ='Operating Model'!AH290 -> 0 | AH26: ='Operating Model'!AI290 -> 0 | AI26: ='Operating Model'!AJ290 -> 0 | AJ26: ='Operating Model'!AK290 -> 0 | AK26: ='Operating Model'!AL290 -> 0 | AL26: ='Operating Model'!AM290 -> 0 | AM26: ='Operating Model'!AN290 -> 0 | AN26: ='Operating Model'!AO290 -> 0 | AO26: ='Operating Model'!AP290 -> 0 | AP26: ='Operating Model'!AQ290 -> 0 | AQ26: ='Operating Model'!AR290 -> 0 | AR26: ='Operating Model'!AS290 -> 0 | AS26: ='Operating Model'!AT290 -> 0 | AT26: ='Operating Model'!AU290 -> 0 | AU26: ='Operating Model'!AV290 -> 0 | AV26: ='Operating Model'!AW290 -> 0 | AW26: ='Operating Model'!AX290 -> 0 | AX26: ='Operating Model'!AY290 -> 0 | AY26: ='Operating Model'!AZ290 -> 0 | AZ26: ='Operating Model'!BA290 -> 0 | BA26: ='Operating Model'!BB290 -> 0 | BB26: ='Operating Model'!BC290 -> 0
D27: Pre-tax Cash Flow | M27: ='Operating Model'!N291 -> -400000 | N27: ='Operating Model'!O291 -> -400000 | O27: ='Operating Model'!P291 -> -400000 | P27: ='Operating Model'!Q291 -> -400000 | Q27: ='Operating Model'!R291 -> -400000 | R27: ='Operating Model'!S291 -> -400000 | S27: ='Operating Model'!T291 -> -400000 | T27: ='Operating Model'!U291 -> -400000 | U27: ='Operating Model'!V291 -> -400000 | V27: ='Operating Model'!W291 -> -400000 | W27: ='Operating Model'!X291 -> -400000 | X27: ='Operating Model'!Y291 -> -400000 | Y27: ='Operating Model'!Z291 -> 704675.5625 | Z27: ='Operating Model'!AA291 -> 704675.5625 | AA27: ='Operating Model'!AB291 -> 704675.5625 | AB27: ='Operating Model'!AC291 -> 704675.5625 | AC27: ='Operating Model'!AD291 -> 704675.5625 | AD27: ='Operating Model'!AE291 -> 704675.5625 | AE27: ='Operating Model'!AF291 -> 704675.5625 | AF27: ='Operating Model'!AG291 -> 704675.5625 | AG27: ='Operating Model'!AH291 -> 704675.5625 | AH27: ='Operating Model'!AI291 -> 704675.5625 | AI27: ='Operating Model'!AJ291 -> 0 | AJ27: ='Operating Model'!AK291 -> 0 | AK27: ='Operating Model'!AL291 -> 0 | AL27: ='Operating Model'!AM291 -> 0 | AM27: ='Operating Model'!AN291 -> 0 | AN27: ='Operating Model'!AO291 -> 0 | AO27: ='Operating Model'!AP291 -> 0 | AP27: ='Operating Model'!AQ291 -> 0 | AQ27: ='Operating Model'!AR291 -> 0 | AR27: ='Operating Model'!AS291 -> 0 | AS27: ='Operating Model'!AT291 -> 0 | AT27: ='Operating Model'!AU291 -> 0 | AU27: ='Operating Model'!AV291 -> 0 | AV27: ='Operating Model'!AW291 -> 0 | AW27: ='Operating Model'!AX291 -> 0 | AX27: ='Operating Model'!AY291 -> 0 | AY27: ='Operating Model'!AZ291 -> 0 | AZ27: ='Operating Model'!BA291 -> 0 | BA27: ='Operating Model'!BB291 -> 0 | BB27: ='Operating Model'!BC291 -> 0
D28: IRR | M28: ='Operating Model'!N292 -> 0 | N28: ='Operating Model'!O292 -> 0 | O28: ='Operating Model'!P292 -> 0 | P28: ='Operating Model'!Q292 -> 0 | Q28: ='Operating Model'!R292 -> 0 | R28: ='Operating Model'!S292 -> 0 | S28: ='Operating Model'!T292 -> 0 | T28: ='Operating Model'!U292 -> 0 | U28: ='Operating Model'!V292 -> 0 | V28: ='Operating Model'!W292 -> 0 | W28: ='Operating Model'!X292 -> 0 | X28: ='Operating Model'!Y292 -> 0 | Y28: ='Operating Model'!Z292 -> 0 | Z28: ='Operating Model'!AA292 -> 0 | AA28: ='Operating Model'!AB292 -> 0 | AB28: ='Operating Model'!AC292 -> 0 | AC28: ='Operating Model'!AD292 -> 0 | AD28: ='Operating Model'!AE292 -> 0 | AE28: ='Operating Model'!AF292 -> 0 | AF28: ='Operating Model'!AG292 -> 0 | AG28: ='Operating Model'!AH292 -> 0 | AH28: ='Operating Model'!AI292 -> 0 | AI28: ='Operating Model'!AJ292 -> 0 | AJ28: ='Operating Model'!AK292 -> 0 | AK28: ='Operating Model'!AL292 -> 0 | AL28: ='Operating Model'!AM292 -> 0 | AM28: ='Operating Model'!AN292 -> 0 | AN28: ='Operating Model'!AO292 -> 0 | AO28: ='Operating Model'!AP292 -> 0 | AP28: ='Operating Model'!AQ292 -> 0 | AQ28: ='Operating Model'!AR292 -> 0 | AR28: ='Operating Model'!AS292 -> 0 | AS28: ='Operating Model'!AT292 -> 0 | AT28: ='Operating Model'!AU292 -> 0 | AU28: ='Operating Model'!AV292 -> 0 | AV28: ='Operating Model'!AW292 -> 0 | AW28: ='Operating Model'!AX292 -> 0 | AX28: ='Operating Model'!AY292 -> 0 | AY28: ='Operating Model'!AZ292 -> 0 | AZ28: ='Operating Model'!BA292 -> 0 | BA28: ='Operating Model'!BB292 -> 0 | BB28: ='Operating Model'!BC292 -> 0
B30: Capital Expenditure
C32: Lagoon Capital Expenditure | M32: ='Operating Model'!N229 -> 0 | N32: ='Operating Model'!O229 -> 0 | O32: ='Operating Model'!P229 -> 0 | P32: ='Operating Model'!Q229 -> 0 | Q32: ='Operating Model'!R229 -> 0 | R32: ='Operating Model'!S229 -> 0 | S32: ='Operating Model'!T229 -> 0 | T32: ='Operating Model'!U229 -> 0 | U32: ='Operating Model'!V229 -> 0 | V32: ='Operating Model'!W229 -> 0 | W32: ='Operating Model'!X229 -> 0 | X32: ='Operating Model'!Y229 -> 0 | Y32: ='Operating Model'!Z229 -> 0 | Z32: ='Operating Model'!AA229 -> 0 | AA32: ='Operating Model'!AB229 -> 0 | AB32: ='Operating Model'!AC229 -> 0 | AC32: ='Operating Model'!AD229 -> 0 | AD32: ='Operating Model'!AE229 -> 0 | AE32: ='Operating Model'!AF229 -> 0 | AF32: ='Operating Model'!AG229 -> 0 | AG32: ='Operating Model'!AH229 -> 0 | AH32: ='Operating Model'!AI229 -> 0 | AI32: ='Operating Model'!AJ229 -> 0 | AJ32: ='Operating Model'!AK229 -> 0 | AK32: ='Operating Model'!AL229 -> 0 | AL32: ='Operating Model'!AM229 -> 0 | AM32: ='Operating Model'!AN229 -> 0 | AN32: ='Operating Model'!AO229 -> 0 | AO32: ='Operating Model'!AP229 -> 0 | AP32: ='Operating Model'!AQ229 -> 0 | AQ32: ='Operating Model'!AR229 -> 0 | AR32: ='Operating Model'!AS229 -> 0 | AS32: ='Operating Model'!AT229 -> 0 | AT32: ='Operating Model'!AU229 -> 0 | AU32: ='Operating Model'!AV229 -> 0 | AV32: ='Operating Model'!AW229 -> 0 | AW32: ='Operating Model'!AX229 -> 0 | AX32: ='Operating Model'!AY229 -> 0 | AY32: ='Operating Model'!AZ229 -> 0 | AZ32: ='Operating Model'!BA229 -> 0 | BA32: ='Operating Model'!BB229 -> 0 | BB32: ='Operating Model'!BC229 -> 0
D33: Compressor | M33: ='Operating Model'!N230 -> 16666.66667 | N33: ='Operating Model'!O230 -> 16666.66667 | O33: ='Operating Model'!P230 -> 16666.66667 | P33: ='Operating Model'!Q230 -> 16666.66667 | Q33: ='Operating Model'!R230 -> 16666.66667 | R33: ='Operating Model'!S230 -> 16666.66667 | S33: ='Operating Model'!T230 -> 16666.66667 | T33: ='Operating Model'!U230 -> 16666.66667 | U33: ='Operating Model'!V230 -> 16666.66667 | V33: ='Operating Model'!W230 -> 16666.66667 | W33: ='Operating Model'!X230 -> 16666.66667 | X33: ='Operating Model'!Y230 -> 16666.66667 | Y33: ='Operating Model'!Z230 -> 0 | Z33: ='Operating Model'!AA230 -> 0 | AA33: ='Operating Model'!AB230 -> 0 | AB33: ='Operating Model'!AC230 -> 0 | AC33: ='Operating Model'!AD230 -> 0 | AD33: ='Operating Model'!AE230 -> 0 | AE33: ='Operating Model'!AF230 -> 0 | AF33: ='Operating Model'!AG230 -> 0 | AG33: ='Operating Model'!AH230 -> 0 | AH33: ='Operating Model'!AI230 -> 0 | AI33: ='Operating Model'!AJ230 -> 0 | AJ33: ='Operating Model'!AK230 -> 0 | AK33: ='Operating Model'!AL230 -> 0 | AL33: ='Operating Model'!AM230 -> 0 | AM33: ='Operating Model'!AN230 -> 0 | AN33: ='Operating Model'!AO230 -> 0 | AO33: ='Operating Model'!AP230 -> 0 | AP33: ='Operating Model'!AQ230 -> 0 | AQ33: ='Operating Model'!AR230 -> 0 | AR33: ='Operating Model'!AS230 -> 0 | AS33: ='Operating Model'!AT230 -> 0 | AT33: ='Operating Model'!AU230 -> 0 | AU33: ='Operating Model'!AV230 -> 0 | AV33: ='Operating Model'!AW230 -> 0 | AW33: ='Operating Model'!AX230 -> 0 | AX33: ='Operating Model'!AY230 -> 0 | AY33: ='Operating Model'!AZ230 -> 0 | AZ33: ='Operating Model'!BA230 -> 0 | BA33: ='Operating Model'!BB230 -> 0 | BB33: ='Operating Model'!BC230 -> 0
D34: Membranes | M34: ='Operating Model'!N231 -> 16666.66667 | N34: ='Operating Model'!O231 -> 16666.66667 | O34: ='Operating Model'!P231 -> 16666.66667 | P34: ='Operating Model'!Q231 -> 16666.66667 | Q34: ='Operating Model'!R231 -> 16666.66667 | R34: ='Operating Model'!S231 -> 16666.66667 | S34: ='Operating Model'!T231 -> 16666.66667 | T34: ='Operating Model'!U231 -> 16666.66667 | U34: ='Operating Model'!V231 -> 16666.66667 | V34: ='Operating Model'!W231 -> 16666.66667 | W34: ='Operating Model'!X231 -> 16666.66667 | X34: ='Operating Model'!Y231 -> 16666.66667 | Y34: ='Operating Model'!Z231 -> 0 | Z34: ='Operating Model'!AA231 -> 0 | AA34: ='Operating Model'!AB231 -> 0 | AB34: ='Operating Model'!AC231 -> 0 | AC34: ='Operating Model'!AD231 -> 0 | AD34: ='Operating Model'!AE231 -> 0 | AE34: ='Operating Model'!AF231 -> 0 | AF34: ='Operating Model'!AG231 -> 0 | AG34: ='Operating Model'!AH231 -> 0 | AH34: ='Operating Model'!AI231 -> 0 | AI34: ='Operating Model'!AJ231 -> 0 | AJ34: ='Operating Model'!AK231 -> 0 | AK34: ='Operating Model'!AL231 -> 0 | AL34: ='Operating Model'!AM231 -> 0 | AM34: ='Operating Model'!AN231 -> 0 | AN34: ='Operating Model'!AO231 -> 0 | AO34: ='Operating Model'!AP231 -> 0 | AP34: ='Operating Model'!AQ231 -> 0 | AQ34: ='Operating Model'!AR231 -> 0 | AR34: ='Operating Model'!AS231 -> 0 | AS34: ='Operating Model'!AT231 -> 0 | AT34: ='Operating Model'!AU231 -> 0 | AU34: ='Operating Model'!AV231 -> 0 | AV34: ='Operating Model'!AW231 -> 0 | AW34: ='Operating Model'!AX231 -> 0 | AX34: ='Operating Model'!AY231 -> 0 | AY34: ='Operating Model'!AZ231 -> 0 | AZ34: ='Operating Model'!BA231 -> 0 | BA34: ='Operating Model'!BB231 -> 0 | BB34: ='Operating Model'!BC231 -> 0
D35: Pretreatment | M35: ='Operating Model'!N232 -> 16666.66667 | N35: ='Operating Model'!O232 -> 16666.66667 | O35: ='Operating Model'!P232 -> 16666.66667 | P35: ='Operating Model'!Q232 -> 16666.66667 | Q35: ='Operating Model'!R232 -> 16666.66667 | R35: ='Operating Model'!S232 -> 16666.66667 | S35: ='Operating Model'!T232 -> 16666.66667 | T35: ='Operating Model'!U232 -> 16666.66667 | U35: ='Operating Model'!V232 -> 16666.66667 | V35: ='Operating Model'!W232 -> 16666.66667 | W35: ='Operating Model'!X232 -> 16666.66667 | X35: ='Operating Model'!Y232 -> 16666.66667 | Y35: ='Operating Model'!Z232 -> 0 | Z35: ='Operating Model'!AA232 -> 0 | AA35: ='Operating Model'!AB232 -> 0 | AB35: ='Operating Model'!AC232 -> 0 | AC35: ='Operating Model'!AD232 -> 0 | AD35: ='Operating Model'!AE232 -> 0 | AE35: ='Operating Model'!AF232 -> 0 | AF35: ='Operating Model'!AG232 -> 0 | AG35: ='Operating Model'!AH232 -> 0 | AH35: ='Operating Model'!AI232 -> 0 | AI35: ='Operating Model'!AJ232 -> 0 | AJ35: ='Operating Model'!AK232 -> 0 | AK35: ='Operating Model'!AL232 -> 0 | AL35: ='Operating Model'!AM232 -> 0 | AM35: ='Operating Model'!AN232 -> 0 | AN35: ='Operating Model'!AO232 -> 0 | AO35: ='Operating Model'!AP232 -> 0 | AP35: ='Operating Model'!AQ232 -> 0 | AQ35: ='Operating Model'!AR232 -> 0 | AR35: ='Operating Model'!AS232 -> 0 | AS35: ='Operating Model'!AT232 -> 0 | AT35: ='Operating Model'!AU232 -> 0 | AU35: ='Operating Model'!AV232 -> 0 | AV35: ='Operating Model'!AW232 -> 0 | AW35: ='Operating Model'!AX232 -> 0 | AX35: ='Operating Model'!AY232 -> 0 | AY35: ='Operating Model'!AZ232 -> 0 | AZ35: ='Operating Model'!BA232 -> 0 | BA35: ='Operating Model'!BB232 -> 0 | BB35: ='Operating Model'!BC232 -> 0
D36: Compressor | M36: ='Operating Model'!N233 -> 75000 | N36: ='Operating Model'!O233 -> 75000 | O36: ='Operating Model'!P233 -> 75000 | P36: ='Operating Model'!Q233 -> 75000 | Q36: ='Operating Model'!R233 -> 75000 | R36: ='Operating Model'!S233 -> 75000 | S36: ='Operating Model'!T233 -> 75000 | T36: ='Operating Model'!U233 -> 75000 | U36: ='Operating Model'!V233 -> 75000 | V36: ='Operating Model'!W233 -> 75000 | W36: ='Operating Model'!X233 -> 75000 | X36: ='Operating Model'!Y233 -> 75000 | Y36: ='Operating Model'!Z233 -> 0 | Z36: ='Operating Model'!AA233 -> 0 | AA36: ='Operating Model'!AB233 -> 0 | AB36: ='Operating Model'!AC233 -> 0 | AC36: ='Operating Model'!AD233 -> 0 | AD36: ='Operating Model'!AE233 -> 0 | AE36: ='Operating Model'!AF233 -> 0 | AF36: ='Operating Model'!AG233 -> 0 | AG36: ='Operating Model'!AH233 -> 0 | AH36: ='Operating Model'!AI233 -> 0 | AI36: ='Operating Model'!AJ233 -> 0 | AJ36: ='Operating Model'!AK233 -> 0 | AK36: ='Operating Model'!AL233 -> 0 | AL36: ='Operating Model'!AM233 -> 0 | AM36: ='Operating Model'!AN233 -> 0 | AN36: ='Operating Model'!AO233 -> 0 | AO36: ='Operating Model'!AP233 -> 0 | AP36: ='Operating Model'!AQ233 -> 0 | AQ36: ='Operating Model'!AR233 -> 0 | AR36: ='Operating Model'!AS233 -> 0 | AS36: ='Operating Model'!AT233 -> 0 | AT36: ='Operating Model'!AU233 -> 0 | AU36: ='Operating Model'!AV233 -> 0 | AV36: ='Operating Model'!AW233 -> 0 | AW36: ='Operating Model'!AX233 -> 0 | AX36: ='Operating Model'!AY233 -> 0 | AY36: ='Operating Model'!AZ233 -> 0 | AZ36: ='Operating Model'!BA233 -> 0 | BA36: ='Operating Model'!BB233 -> 0 | BB36: ='Operating Model'!BC233 -> 0
E37: Total | M37: ='Operating Model'!N234 -> 125000 | N37: ='Operating Model'!O234 -> 125000 | O37: ='Operating Model'!P234 -> 125000 | P37: ='Operating Model'!Q234 -> 125000 | Q37: ='Operating Model'!R234 -> 125000 | R37: ='Operating Model'!S234 -> 125000 | S37: ='Operating Model'!T234 -> 125000 | T37: ='Operating Model'!U234 -> 125000 | U37: ='Operating Model'!V234 -> 125000 | V37: ='Operating Model'!W234 -> 125000 | W37: ='Operating Model'!X234 -> 125000 | X37: ='Operating Model'!Y234 -> 125000 | Y37: ='Operating Model'!Z234 -> 0 | Z37: ='Operating Model'!AA234 -> 0 | AA37: ='Operating Model'!AB234 -> 0 | AB37: ='Operating Model'!AC234 -> 0 | AC37: ='Operating Model'!AD234 -> 0 | AD37: ='Operating Model'!AE234 -> 0 | AE37: ='Operating Model'!AF234 -> 0 | AF37: ='Operating Model'!AG234 -> 0 | AG37: ='Operating Model'!AH234 -> 0 | AH37: ='Operating Model'!AI234 -> 0 | AI37: ='Operating Model'!AJ234 -> 0 | AJ37: ='Operating Model'!AK234 -> 0 | AK37: ='Operating Model'!AL234 -> 0 | AL37: ='Operating Model'!AM234 -> 0 | AM37: ='Operating Model'!AN234 -> 0 | AN37: ='Operating Model'!AO234 -> 0 | AO37: ='Operating Model'!AP234 -> 0 | AP37: ='Operating Model'!AQ234 -> 0 | AQ37: ='Operating Model'!AR234 -> 0 | AR37: ='Operating Model'!AS234 -> 0 | AS37: ='Operating Model'!AT234 -> 0 | AT37: ='Operating Model'!AU234 -> 0 | AU37: ='Operating Model'!AV234 -> 0 | AV37: ='Operating Model'!AW234 -> 0 | AW37: ='Operating Model'!AX234 -> 0 | AX37: ='Operating Model'!AY234 -> 0 | AY37: ='Operating Model'!AZ234 -> 0 | AZ37: ='Operating Model'!BA234 -> 0 | BA37: ='Operating Model'!BB234 -> 0 | BB37: ='Operating Model'!BC234 -> 0
M38: ='Operating Model'!N235 -> 0 | N38: ='Operating Model'!O235 -> 0 | O38: ='Operating Model'!P235 -> 0 | P38: ='Operating Model'!Q235 -> 0 | Q38: ='Operating Model'!R235 -> 0 | R38: ='Operating Model'!S235 -> 0 | S38: ='Operating Model'!T235 -> 0 | T38: ='Operating Model'!U235 -> 0 | U38: ='Operating Model'!V235 -> 0 | V38: ='Operating Model'!W235 -> 0 | W38: ='Operating Model'!X235 -> 0 | X38: ='Operating Model'!Y235 -> 0 | Y38: ='Operating Model'!Z235 -> 0 | Z38: ='Operating Model'!AA235 -> 0 | AA38: ='Operating Model'!AB235 -> 0 | AB38: ='Operating Model'!AC235 -> 0 | AC38: ='Operating Model'!AD235 -> 0 | AD38: ='Operating Model'!AE235 -> 0 | AE38: ='Operating Model'!AF235 -> 0 | AF38: ='Operating Model'!AG235 -> 0 | AG38: ='Operating Model'!AH235 -> 0 | AH38: ='Operating Model'!AI235 -> 0 | AI38: ='Operating Model'!AJ235 -> 0 | AJ38: ='Operating Model'!AK235 -> 0 | AK38: ='Operating Model'!AL235 -> 0 | AL38: ='Operating Model'!AM235 -> 0 | AM38: ='Operating Model'!AN235 -> 0 | AN38: ='Operating Model'!AO235 -> 0 | AO38: ='Operating Model'!AP235 -> 0 | AP38: ='Operating Model'!AQ235 -> 0 | AQ38: ='Operating Model'!AR235 -> 0 | AR38: ='Operating Model'!AS235 -> 0 | AS38: ='Operating Model'!AT235 -> 0 | AT38: ='Operating Model'!AU235 -> 0 | AU38: ='Operating Model'!AV235 -> 0 | AV38: ='Operating Model'!AW235 -> 0 | AW38: ='Operating Model'!AX235 -> 0 | AX38: ='Operating Model'!AY235 -> 0 | AY38: ='Operating Model'!AZ235 -> 0 | AZ38: ='Operating Model'!BA235 -> 0 | BA38: ='Operating Model'!BB235 -> 0 | BB38: ='Operating Model'!BC235 -> 0
C39: Upgrader Unit
D40: Civil Works | M40: ='Operating Model'!N237 -> 25000 | N40: ='Operating Model'!O237 -> 25000 | O40: ='Operating Model'!P237 -> 25000 | P40: ='Operating Model'!Q237 -> 25000 | Q40: ='Operating Model'!R237 -> 25000 | R40: ='Operating Model'!S237 -> 25000 | S40: ='Operating Model'!T237 -> 25000 | T40: ='Operating Model'!U237 -> 25000 | U40: ='Operating Model'!V237 -> 25000 | V40: ='Operating Model'!W237 -> 25000 | W40: ='Operating Model'!X237 -> 25000 | X40: ='Operating Model'!Y237 -> 25000 | Y40: ='Operating Model'!Z237 -> 0 | Z40: ='Operating Model'!AA237 -> 0 | AA40: ='Operating Model'!AB237 -> 0 | AB40: ='Operating Model'!AC237 -> 0 | AC40: ='Operating Model'!AD237 -> 0 | AD40: ='Operating Model'!AE237 -> 0 | AE40: ='Operating Model'!AF237 -> 0 | AF40: ='Operating Model'!AG237 -> 0 | AG40: ='Operating Model'!AH237 -> 0 | AH40: ='Operating Model'!AI237 -> 0 | AI40: ='Operating Model'!AJ237 -> 0 | AJ40: ='Operating Model'!AK237 -> 0 | AK40: ='Operating Model'!AL237 -> 0 | AL40: ='Operating Model'!AM237 -> 0 | AM40: ='Operating Model'!AN237 -> 0 | AN40: ='Operating Model'!AO237 -> 0 | AO40: ='Operating Model'!AP237 -> 0 | AP40: ='Operating Model'!AQ237 -> 0 | AQ40: ='Operating Model'!AR237 -> 0 | AR40: ='Operating Model'!AS237 -> 0 | AS40: ='Operating Model'!AT237 -> 0 | AT40: ='Operating Model'!AU237 -> 0 | AU40: ='Operating Model'!AV237 -> 0 | AV40: ='Operating Model'!AW237 -> 0 | AW40: ='Operating Model'!AX237 -> 0 | AX40: ='Operating Model'!AY237 -> 0 | AY40: ='Operating Model'!AZ237 -> 0 | AZ40: ='Operating Model'!BA237 -> 0 | BA40: ='Operating Model'!BB237 -> 0 | BB40: ='Operating Model'!BC237 -> 0
D41: Gasometrical Cover | M41: ='Operating Model'!N238 -> 25000 | N41: ='Operating Model'!O238 -> 25000 | O41: ='Operating Model'!P238 -> 25000 | P41: ='Operating Model'!Q238 -> 25000 | Q41: ='Operating Model'!R238 -> 25000 | R41: ='Operating Model'!S238 -> 25000 | S41: ='Operating Model'!T238 -> 25000 | T41: ='Operating Model'!U238 -> 25000 | U41: ='Operating Model'!V238 -> 25000 | V41: ='Operating Model'!W238 -> 25000 | W41: ='Operating Model'!X238 -> 25000 | X41: ='Operating Model'!Y238 -> 25000 | Y41: ='Operating Model'!Z238 -> 0 | Z41: ='Operating Model'!AA238 -> 0 | AA41: ='Operating Model'!AB238 -> 0 | AB41: ='Operating Model'!AC238 -> 0 | AC41: ='Operating Model'!AD238 -> 0 | AD41: ='Operating Model'!AE238 -> 0 | AE41: ='Operating Model'!AF238 -> 0 | AF41: ='Operating Model'!AG238 -> 0 | AG41: ='Operating Model'!AH238 -> 0 | AH41: ='Operating Model'!AI238 -> 0 | AI41: ='Operating Model'!AJ238 -> 0 | AJ41: ='Operating Model'!AK238 -> 0 | AK41: ='Operating Model'!AL238 -> 0 | AL41: ='Operating Model'!AM238 -> 0 | AM41: ='Operating Model'!AN238 -> 0 | AN41: ='Operating Model'!AO238 -> 0 | AO41: ='Operating Model'!AP238 -> 0 | AP41: ='Operating Model'!AQ238 -> 0 | AQ41: ='Operating Model'!AR238 -> 0 | AR41: ='Operating Model'!AS238 -> 0 | AS41: ='Operating Model'!AT238 -> 0 | AT41: ='Operating Model'!AU238 -> 0 | AU41: ='Operating Model'!AV238 -> 0 | AV41: ='Operating Model'!AW238 -> 0 | AW41: ='Operating Model'!AX238 -> 0 | AX41: ='Operating Model'!AY238 -> 0 | AY41: ='Operating Model'!AZ238 -> 0 | AZ41: ='Operating Model'!BA238 -> 0 | BA41: ='Operating Model'!BB238 -> 0 | BB41: ='Operating Model'!BC238 -> 0
D42: Liner | M42: ='Operating Model'!N239 -> 16666.66667 | N42: ='Operating Model'!O239 -> 16666.66667 | O42: ='Operating Model'!P239 -> 16666.66667 | P42: ='Operating Model'!Q239 -> 16666.66667 | Q42: ='Operating Model'!R239 -> 16666.66667 | R42: ='Operating Model'!S239 -> 16666.66667 | S42: ='Operating Model'!T239 -> 16666.66667 | T42: ='Operating Model'!U239 -> 16666.66667 | U42: ='Operating Model'!V239 -> 16666.66667 | V42: ='Operating Model'!W239 -> 16666.66667 | W42: ='Operating Model'!X239 -> 16666.66667 | X42: ='Operating Model'!Y239 -> 16666.66667 | Y42: ='Operating Model'!Z239 -> 0 | Z42: ='Operating Model'!AA239 -> 0 | AA42: ='Operating Model'!AB239 -> 0 | AB42: ='Operating Model'!AC239 -> 0 | AC42: ='Operating Model'!AD239 -> 0 | AD42: ='Operating Model'!AE239 -> 0 | AE42: ='Operating Model'!AF239 -> 0 | AF42: ='Operating Model'!AG239 -> 0 | AG42: ='Operating Model'!AH239 -> 0 | AH42: ='Operating Model'!AI239 -> 0 | AI42: ='Operating Model'!AJ239 -> 0 | AJ42: ='Operating Model'!AK239 -> 0 | AK42: ='Operating Model'!AL239 -> 0 | AL42: ='Operating Model'!AM239 -> 0 | AM42: ='Operating Model'!AN239 -> 0 | AN42: ='Operating Model'!AO239 -> 0 | AO42: ='Operating Model'!AP239 -> 0 | AP42: ='Operating Model'!AQ239 -> 0 | AQ42: ='Operating Model'!AR239 -> 0 | AR42: ='Operating Model'!AS239 -> 0 | AS42: ='Operating Model'!AT239 -> 0 | AT42: ='Operating Model'!AU239 -> 0 | AU42: ='Operating Model'!AV239 -> 0 | AV42: ='Operating Model'!AW239 -> 0 | AW42: ='Operating Model'!AX239 -> 0 | AX42: ='Operating Model'!AY239 -> 0 | AY42: ='Operating Model'!AZ239 -> 0 | AZ42: ='Operating Model'!BA239 -> 0 | BA42: ='Operating Model'!BB239 -> 0 | BB42: ='Operating Model'!BC239 -> 0
D43: Piping and Technology | M43: ='Operating Model'!N240 -> 83333.33333 | N43: ='Operating Model'!O240 -> 83333.33333 | O43: ='Operating Model'!P240 -> 83333.33333 | P43: ='Operating Model'!Q240 -> 83333.33333 | Q43: ='Operating Model'!R240 -> 83333.33333 | R43: ='Operating Model'!S240 -> 83333.33333 | S43: ='Operating Model'!T240 -> 83333.33333 | T43: ='Operating Model'!U240 -> 83333.33333 | U43: ='Operating Model'!V240 -> 83333.33333 | V43: ='Operating Model'!W240 -> 83333.33333 | W43: ='Operating Model'!X240 -> 83333.33333 | X43: ='Operating Model'!Y240 -> 83333.33333 | Y43: ='Operating Model'!Z240 -> 0 | Z43: ='Operating Model'!AA240 -> 0 | AA43: ='Operating Model'!AB240 -> 0 | AB43: ='Operating Model'!AC240 -> 0 | AC43: ='Operating Model'!AD240 -> 0 | AD43: ='Operating Model'!AE240 -> 0 | AE43: ='Operating Model'!AF240 -> 0 | AF43: ='Operating Model'!AG240 -> 0 | AG43: ='Operating Model'!AH240 -> 0 | AH43: ='Operating Model'!AI240 -> 0 | AI43: ='Operating Model'!AJ240 -> 0 | AJ43: ='Operating Model'!AK240 -> 0 | AK43: ='Operating Model'!AL240 -> 0 | AL43: ='Operating Model'!AM240 -> 0 | AM43: ='Operating Model'!AN240 -> 0 | AN43: ='Operating Model'!AO240 -> 0 | AO43: ='Operating Model'!AP240 -> 0 | AP43: ='Operating Model'!AQ240 -> 0 | AQ43: ='Operating Model'!AR240 -> 0 | AR43: ='Operating Model'!AS240 -> 0 | AS43: ='Operating Model'!AT240 -> 0 | AT43: ='Operating Model'!AU240 -> 0 | AU43: ='Operating Model'!AV240 -> 0 | AV43: ='Operating Model'!AW240 -> 0 | AW43: ='Operating Model'!AX240 -> 0 | AX43: ='Operating Model'!AY240 -> 0 | AY43: ='Operating Model'!AZ240 -> 0 | AZ43: ='Operating Model'!BA240 -> 0 | BA43: ='Operating Model'!BB240 -> 0 | BB43: ='Operating Model'!BC240 -> 0
E44: Total | M44: ='Operating Model'!N241 -> 150000 | N44: ='Operating Model'!O241 -> 150000 | O44: ='Operating Model'!P241 -> 150000 | P44: ='Operating Model'!Q241 -> 150000 | Q44: ='Operating Model'!R241 -> 150000 | R44: ='Operating Model'!S241 -> 150000 | S44: ='Operating Model'!T241 -> 150000 | T44: ='Operating Model'!U241 -> 150000 | U44: ='Operating Model'!V241 -> 150000 | V44: ='Operating Model'!W241 -> 150000 | W44: ='Operating Model'!X241 -> 150000 | X44: ='Operating Model'!Y241 -> 150000 | Y44: ='Operating Model'!Z241 -> 0 | Z44: ='Operating Model'!AA241 -> 0 | AA44: ='Operating Model'!AB241 -> 0 | AB44: ='Operating Model'!AC241 -> 0 | AC44: ='Operating Model'!AD241 -> 0 | AD44: ='Operating Model'!AE241 -> 0 | AE44: ='Operating Model'!AF241 -> 0 | AF44: ='Operating Model'!AG241 -> 0 | AG44: ='Operating Model'!AH241 -> 0 | AH44: ='Operating Model'!AI241 -> 0 | AI44: ='Operating Model'!AJ241 -> 0 | AJ44: ='Operating Model'!AK241 -> 0 | AK44: ='Operating Model'!AL241 -> 0 | AL44: ='Operating Model'!AM241 -> 0 | AM44: ='Operating Model'!AN241 -> 0 | AN44: ='Operating Model'!AO241 -> 0 | AO44: ='Operating Model'!AP241 -> 0 | AP44: ='Operating Model'!AQ241 -> 0 | AQ44: ='Operating Model'!AR241 -> 0 | AR44: ='Operating Model'!AS241 -> 0 | AS44: ='Operating Model'!AT241 -> 0 | AT44: ='Operating Model'!AU241 -> 0 | AU44: ='Operating Model'!AV241 -> 0 | AV44: ='Operating Model'!AW241 -> 0 | AW44: ='Operating Model'!AX241 -> 0 | AX44: ='Operating Model'!AY241 -> 0 | AY44: ='Operating Model'!AZ241 -> 0 | AZ44: ='Operating Model'!BA241 -> 0 | BA44: ='Operating Model'!BB241 -> 0 | BB44: ='Operating Model'!BC241 -> 0
C46: CNG Station | M46: ='Operating Model'!N243 -> 0 | N46: ='Operating Model'!O243 -> 0 | O46: ='Operating Model'!P243 -> 0 | P46: ='Operating Model'!Q243 -> 0 | Q46: ='Operating Model'!R243 -> 0 | R46: ='Operating Model'!S243 -> 0 | S46: ='Operating Model'!T243 -> 0 | T46: ='Operating Model'!U243 -> 0 | U46: ='Operating Model'!V243 -> 0 | V46: ='Operating Model'!W243 -> 0 | W46: ='Operating Model'!X243 -> 0 | X46: ='Operating Model'!Y243 -> 0 | Y46: ='Operating Model'!Z243 -> 0 | Z46: ='Operating Model'!AA243 -> 0 | AA46: ='Operating Model'!AB243 -> 0 | AB46: ='Operating Model'!AC243 -> 0 | AC46: ='Operating Model'!AD243 -> 0 | AD46: ='Operating Model'!AE243 -> 0 | AE46: ='Operating Model'!AF243 -> 0 | AF46: ='Operating Model'!AG243 -> 0 | AG46: ='Operating Model'!AH243 -> 0 | AH46: ='Operating Model'!AI243 -> 0 | AI46: ='Operating Model'!AJ243 -> 0 | AJ46: ='Operating Model'!AK243 -> 0 | AK46: ='Operating Model'!AL243 -> 0 | AL46: ='Operating Model'!AM243 -> 0 | AM46: ='Operating Model'!AN243 -> 0 | AN46: ='Operating Model'!AO243 -> 0 | AO46: ='Operating Model'!AP243 -> 0 | AP46: ='Operating Model'!AQ243 -> 0 | AQ46: ='Operating Model'!AR243 -> 0 | AR46: ='Operating Model'!AS243 -> 0 | AS46: ='Operating Model'!AT243 -> 0 | AT46: ='Operating Model'!AU243 -> 0 | AU46: ='Operating Model'!AV243 -> 0 | AV46: ='Operating Model'!AW243 -> 0 | AW46: ='Operating Model'!AX243 -> 0 | AX46: ='Operating Model'!AY243 -> 0 | AY46: ='Operating Model'!AZ243 -> 0 | AZ46: ='Operating Model'!BA243 -> 0 | BA46: ='Operating Model'!BB243 -> 0 | BB46: ='Operating Model'!BC243 -> 0
D47: Compressor | M47: ='Operating Model'!N244 -> 12500 | N47: ='Operating Model'!O244 -> 12500 | O47: ='Operating Model'!P244 -> 12500 | P47: ='Operating Model'!Q244 -> 12500 | Q47: ='Operating Model'!R244 -> 12500 | R47: ='Operating Model'!S244 -> 12500 | S47: ='Operating Model'!T244 -> 12500 | T47: ='Operating Model'!U244 -> 12500 | U47: ='Operating Model'!V244 -> 12500 | V47: ='Operating Model'!W244 -> 12500 | W47: ='Operating Model'!X244 -> 12500 | X47: ='Operating Model'!Y244 -> 12500 | Y47: ='Operating Model'!Z244 -> 0 | Z47: ='Operating Model'!AA244 -> 0 | AA47: ='Operating Model'!AB244 -> 0 | AB47: ='Operating Model'!AC244 -> 0 | AC47: ='Operating Model'!AD244 -> 0 | AD47: ='Operating Model'!AE244 -> 0 | AE47: ='Operating Model'!AF244 -> 0 | AF47: ='Operating Model'!AG244 -> 0 | AG47: ='Operating Model'!AH244 -> 0 | AH47: ='Operating Model'!AI244 -> 0 | AI47: ='Operating Model'!AJ244 -> 0 | AJ47: ='Operating Model'!AK244 -> 0 | AK47: ='Operating Model'!AL244 -> 0 | AL47: ='Operating Model'!AM244 -> 0 | AM47: ='Operating Model'!AN244 -> 0 | AN47: ='Operating Model'!AO244 -> 0 | AO47: ='Operating Model'!AP244 -> 0 | AP47: ='Operating Model'!AQ244 -> 0 | AQ47: ='Operating Model'!AR244 -> 0 | AR47: ='Operating Model'!AS244 -> 0 | AS47: ='Operating Model'!AT244 -> 0 | AT47: ='Operating Model'!AU244 -> 0 | AU47: ='Operating Model'!AV244 -> 0 | AV47: ='Operating Model'!AW244 -> 0 | AW47: ='Operating Model'!AX244 -> 0 | AX47: ='Operating Model'!AY244 -> 0 | AY47: ='Operating Model'!AZ244 -> 0 | AZ47: ='Operating Model'!BA244 -> 0 | BA47: ='Operating Model'!BB244 -> 0 | BB47: ='Operating Model'!BC244 -> 0
D48: Storage Skid | M48: ='Operating Model'!N245 -> 12500 | N48: ='Operating Model'!O245 -> 12500 | O48: ='Operating Model'!P245 -> 12500 | P48: ='Operating Model'!Q245 -> 12500 | Q48: ='Operating Model'!R245 -> 12500 | R48: ='Operating Model'!S245 -> 12500 | S48: ='Operating Model'!T245 -> 12500 | T48: ='Operating Model'!U245 -> 12500 | U48: ='Operating Model'!V245 -> 12500 | V48: ='Operating Model'!W245 -> 12500 | W48: ='Operating Model'!X245 -> 12500 | X48: ='Operating Model'!Y245 -> 12500 | Y48: ='Operating Model'!Z245 -> 0 | Z48: ='Operating Model'!AA245 -> 0 | AA48: ='Operating Model'!AB245 -> 0 | AB48: ='Operating Model'!AC245 -> 0 | AC48: ='Operating Model'!AD245 -> 0 | AD48: ='Operating Model'!AE245 -> 0 | AE48: ='Operating Model'!AF245 -> 0 | AF48: ='Operating Model'!AG245 -> 0 | AG48: ='Operating Model'!AH245 -> 0 | AH48: ='Operating Model'!AI245 -> 0 | AI48: ='Operating Model'!AJ245 -> 0 | AJ48: ='Operating Model'!AK245 -> 0 | AK48: ='Operating Model'!AL245 -> 0 | AL48: ='Operating Model'!AM245 -> 0 | AM48: ='Operating Model'!AN245 -> 0 | AN48: ='Operating Model'!AO245 -> 0 | AO48: ='Operating Model'!AP245 -> 0 | AP48: ='Operating Model'!AQ245 -> 0 | AQ48: ='Operating Model'!AR245 -> 0 | AR48: ='Operating Model'!AS245 -> 0 | AS48: ='Operating Model'!AT245 -> 0 | AT48: ='Operating Model'!AU245 -> 0 | AU48: ='Operating Model'!AV245 -> 0 | AV48: ='Operating Model'!AW245 -> 0 | AW48: ='Operating Model'!AX245 -> 0 | AX48: ='Operating Model'!AY245 -> 0 | AY48: ='Operating Model'!AZ245 -> 0 | AZ48: ='Operating Model'!BA245 -> 0 | BA48: ='Operating Model'!BB245 -> 0 | BB48: ='Operating Model'!BC245 -> 0
D49: Filing Station | M49: ='Operating Model'!N246 -> 20833.33333 | N49: ='Operating Model'!O246 -> 20833.33333 | O49: ='Operating Model'!P246 -> 20833.33333 | P49: ='Operating Model'!Q246 -> 20833.33333 | Q49: ='Operating Model'!R246 -> 20833.33333 | R49: ='Operating Model'!S246 -> 20833.33333 | S49: ='Operating Model'!T246 -> 20833.33333 | T49: ='Operating Model'!U246 -> 20833.33333 | U49: ='Operating Model'!V246 -> 20833.33333 | V49: ='Operating Model'!W246 -> 20833.33333 | W49: ='Operating Model'!X246 -> 20833.33333 | X49: ='Operating Model'!Y246 -> 20833.33333 | Y49: ='Operating Model'!Z246 -> 0 | Z49: ='Operating Model'!AA246 -> 0 | AA49: ='Operating Model'!AB246 -> 0 | AB49: ='Operating Model'!AC246 -> 0 | AC49: ='Operating Model'!AD246 -> 0 | AD49: ='Operating Model'!AE246 -> 0 | AE49: ='Operating Model'!AF246 -> 0 | AF49: ='Operating Model'!AG246 -> 0 | AG49: ='Operating Model'!AH246 -> 0 | AH49: ='Operating Model'!AI246 -> 0 | AI49: ='Operating Model'!AJ246 -> 0 | AJ49: ='Operating Model'!AK246 -> 0 | AK49: ='Operating Model'!AL246 -> 0 | AL49: ='Operating Model'!AM246 -> 0 | AM49: ='Operating Model'!AN246 -> 0 | AN49: ='Operating Model'!AO246 -> 0 | AO49: ='Operating Model'!AP246 -> 0 | AP49: ='Operating Model'!AQ246 -> 0 | AQ49: ='Operating Model'!AR246 -> 0 | AR49: ='Operating Model'!AS246 -> 0 | AS49: ='Operating Model'!AT246 -> 0 | AT49: ='Operating Model'!AU246 -> 0 | AU49: ='Operating Model'!AV246 -> 0 | AV49: ='Operating Model'!AW246 -> 0 | AW49: ='Operating Model'!AX246 -> 0 | AX49: ='Operating Model'!AY246 -> 0 | AY49: ='Operating Model'!AZ246 -> 0 | AZ49: ='Operating Model'!BA246 -> 0 | BA49: ='Operating Model'!BB246 -> 0 | BB49: ='Operating Model'!BC246 -> 0
E50: Total | M50: ='Operating Model'!N247 -> 45833.33333 | N50: ='Operating Model'!O247 -> 45833.33333 | O50: ='Operating Model'!P247 -> 45833.33333 | P50: ='Operating Model'!Q247 -> 45833.33333 | Q50: ='Operating Model'!R247 -> 45833.33333 | R50: ='Operating Model'!S247 -> 45833.33333 | S50: ='Operating Model'!T247 -> 45833.33333 | T50: ='Operating Model'!U247 -> 45833.33333 | U50: ='Operating Model'!V247 -> 45833.33333 | V50: ='Operating Model'!W247 -> 45833.33333 | W50: ='Operating Model'!X247 -> 45833.33333 | X50: ='Operating Model'!Y247 -> 45833.33333 | Y50: ='Operating Model'!Z247 -> 0 | Z50: ='Operating Model'!AA247 -> 0 | AA50: ='Operating Model'!AB247 -> 0 | AB50: ='Operating Model'!AC247 -> 0 | AC50: ='Operating Model'!AD247 -> 0 | AD50: ='Operating Model'!AE247 -> 0 | AE50: ='Operating Model'!AF247 -> 0 | AF50: ='Operating Model'!AG247 -> 0 | AG50: ='Operating Model'!AH247 -> 0 | AH50: ='Operating Model'!AI247 -> 0 | AI50: ='Operating Model'!AJ247 -> 0 | AJ50: ='Operating Model'!AK247 -> 0 | AK50: ='Operating Model'!AL247 -> 0 | AL50: ='Operating Model'!AM247 -> 0 | AM50: ='Operating Model'!AN247 -> 0 | AN50: ='Operating Model'!AO247 -> 0 | AO50: ='Operating Model'!AP247 -> 0 | AP50: ='Operating Model'!AQ247 -> 0 | AQ50: ='Operating Model'!AR247 -> 0 | AR50: ='Operating Model'!AS247 -> 0 | AS50: ='Operating Model'!AT247 -> 0 | AT50: ='Operating Model'!AU247 -> 0 | AU50: ='Operating Model'!AV247 -> 0 | AV50: ='Operating Model'!AW247 -> 0 | AW50: ='Operating Model'!AX247 -> 0 | AX50: ='Operating Model'!AY247 -> 0 | AY50: ='Operating Model'!AZ247 -> 0 | AZ50: ='Operating Model'!BA247 -> 0 | BA50: ='Operating Model'!BB247 -> 0 | BB50: ='Operating Model'!BC247 -> 0
M51: ='Operating Model'!N248 -> 0 | N51: ='Operating Model'!O248 -> 0 | O51: ='Operating Model'!P248 -> 0 | P51: ='Operating Model'!Q248 -> 0 | Q51: ='Operating Model'!R248 -> 0 | R51: ='Operating Model'!S248 -> 0 | S51: ='Operating Model'!T248 -> 0 | T51: ='Operating Model'!U248 -> 0 | U51: ='Operating Model'!V248 -> 0 | V51: ='Operating Model'!W248 -> 0 | W51: ='Operating Model'!X248 -> 0 | X51: ='Operating Model'!Y248 -> 0 | Y51: ='Operating Model'!Z248 -> 0 | Z51: ='Operating Model'!AA248 -> 0 | AA51: ='Operating Model'!AB248 -> 0 | AB51: ='Operating Model'!AC248 -> 0 | AC51: ='Operating Model'!AD248 -> 0 | AD51: ='Operating Model'!AE248 -> 0 | AE51: ='Operating Model'!AF248 -> 0 | AF51: ='Operating Model'!AG248 -> 0 | AG51: ='Operating Model'!AH248 -> 0 | AH51: ='Operating Model'!AI248 -> 0 | AI51: ='Operating Model'!AJ248 -> 0 | AJ51: ='Operating Model'!AK248 -> 0 | AK51: ='Operating Model'!AL248 -> 0 | AL51: ='Operating Model'!AM248 -> 0 | AM51: ='Operating Model'!AN248 -> 0 | AN51: ='Operating Model'!AO248 -> 0 | AO51: ='Operating Model'!AP248 -> 0 | AP51: ='Operating Model'!AQ248 -> 0 | AQ51: ='Operating Model'!AR248 -> 0 | AR51: ='Operating Model'!AS248 -> 0 | AS51: ='Operating Model'!AT248 -> 0 | AT51: ='Operating Model'!AU248 -> 0 | AU51: ='Operating Model'!AV248 -> 0 | AV51: ='Operating Model'!AW248 -> 0 | AW51: ='Operating Model'!AX248 -> 0 | AX51: ='Operating Model'!AY248 -> 0 | AY51: ='Operating Model'!AZ248 -> 0 | AZ51: ='Operating Model'!BA248 -> 0 | BA51: ='Operating Model'!BB248 -> 0 | BB51: ='Operating Model'!BC248 -> 0
D52: Truck Conversion | M52: ='Operating Model'!N249 -> 45833.33333 | N52: ='Operating Model'!O249 -> 45833.33333 | O52: ='Operating Model'!P249 -> 45833.33333 | P52: ='Operating Model'!Q249 -> 45833.33333 | Q52: ='Operating Model'!R249 -> 45833.33333 | R52: ='Operating Model'!S249 -> 45833.33333 | S52: ='Operating Model'!T249 -> 45833.33333 | T52: ='Operating Model'!U249 -> 45833.33333 | U52: ='Operating Model'!V249 -> 45833.33333 | V52: ='Operating Model'!W249 -> 45833.33333 | W52: ='Operating Model'!X249 -> 45833.33333 | X52: ='Operating Model'!Y249 -> 45833.33333 | Y52: ='Operating Model'!Z249 -> 0 | Z52: ='Operating Model'!AA249 -> 0 | AA52: ='Operating Model'!AB249 -> 0 | AB52: ='Operating Model'!AC249 -> 0 | AC52: ='Operating Model'!AD249 -> 0 | AD52: ='Operating Model'!AE249 -> 0 | AE52: ='Operating Model'!AF249 -> 0 | AF52: ='Operating Model'!AG249 -> 0 | AG52: ='Operating Model'!AH249 -> 0 | AH52: ='Operating Model'!AI249 -> 0 | AI52: ='Operating Model'!AJ249 -> 0 | AJ52: ='Operating Model'!AK249 -> 0 | AK52: ='Operating Model'!AL249 -> 0 | AL52: ='Operating Model'!AM249 -> 0 | AM52: ='Operating Model'!AN249 -> 0 | AN52: ='Operating Model'!AO249 -> 0 | AO52: ='Operating Model'!AP249 -> 0 | AP52: ='Operating Model'!AQ249 -> 0 | AQ52: ='Operating Model'!AR249 -> 0 | AR52: ='Operating Model'!AS249 -> 0 | AS52: ='Operating Model'!AT249 -> 0 | AT52: ='Operating Model'!AU249 -> 0 | AU52: ='Operating Model'!AV249 -> 0 | AV52: ='Operating Model'!AW249 -> 0 | AW52: ='Operating Model'!AX249 -> 0 | AX52: ='Operating Model'!AY249 -> 0 | AY52: ='Operating Model'!AZ249 -> 0 | AZ52: ='Operating Model'!BA249 -> 0 | BA52: ='Operating Model'!BB249 -> 0 | BB52: ='Operating Model'!BC249 -> 0
M53: ='Operating Model'!N250 -> 0 | N53: ='Operating Model'!O250 -> 0 | O53: ='Operating Model'!P250 -> 0 | P53: ='Operating Model'!Q250 -> 0 | Q53: ='Operating Model'!R250 -> 0 | R53: ='Operating Model'!S250 -> 0 | S53: ='Operating Model'!T250 -> 0 | T53: ='Operating Model'!U250 -> 0 | U53: ='Operating Model'!V250 -> 0 | V53: ='Operating Model'!W250 -> 0 | W53: ='Operating Model'!X250 -> 0 | X53: ='Operating Model'!Y250 -> 0 | Y53: ='Operating Model'!Z250 -> 0 | Z53: ='Operating Model'!AA250 -> 0 | AA53: ='Operating Model'!AB250 -> 0 | AB53: ='Operating Model'!AC250 -> 0 | AC53: ='Operating Model'!AD250 -> 0 | AD53: ='Operating Model'!AE250 -> 0 | AE53: ='Operating Model'!AF250 -> 0 | AF53: ='Operating Model'!AG250 -> 0 | AG53: ='Operating Model'!AH250 -> 0 | AH53: ='Operating Model'!AI250 -> 0 | AI53: ='Operating Model'!AJ250 -> 0 | AJ53: ='Operating Model'!AK250 -> 0 | AK53: ='Operating Model'!AL250 -> 0 | AL53: ='Operating Model'!AM250 -> 0 | AM53: ='Operating Model'!AN250 -> 0 | AN53: ='Operating Model'!AO250 -> 0 | AO53: ='Operating Model'!AP250 -> 0 | AP53: ='Operating Model'!AQ250 -> 0 | AQ53: ='Operating Model'!AR250 -> 0 | AR53: ='Operating Model'!AS250 -> 0 | AS53: ='Operating Model'!AT250 -> 0 | AT53: ='Operating Model'!AU250 -> 0 | AU53: ='Operating Model'!AV250 -> 0 | AV53: ='Operating Model'!AW250 -> 0 | AW53: ='Operating Model'!AX250 -> 0 | AX53: ='Operating Model'!AY250 -> 0 | AY53: ='Operating Model'!AZ250 -> 0 | AZ53: ='Operating Model'!BA250 -> 0 | BA53: ='Operating Model'!BB250 -> 0 | BB53: ='Operating Model'!BC250 -> 0
D54: Electricity Plant | M54: ='Operating Model'!N251 -> 33333.33333 | N54: ='Operating Model'!O251 -> 33333.33333 | O54: ='Operating Model'!P251 -> 33333.33333 | P54: ='Operating Model'!Q251 -> 33333.33333 | Q54: ='Operating Model'!R251 -> 33333.33333 | R54: ='Operating Model'!S251 -> 33333.33333 | S54: ='Operating Model'!T251 -> 33333.33333 | T54: ='Operating Model'!U251 -> 33333.33333 | U54: ='Operating Model'!V251 -> 33333.33333 | V54: ='Operating Model'!W251 -> 33333.33333 | W54: ='Operating Model'!X251 -> 33333.33333 | X54: ='Operating Model'!Y251 -> 33333.33333 | Y54: ='Operating Model'!Z251 -> 0 | Z54: ='Operating Model'!AA251 -> 0 | AA54: ='Operating Model'!AB251 -> 0 | AB54: ='Operating Model'!AC251 -> 0 | AC54: ='Operating Model'!AD251 -> 0 | AD54: ='Operating Model'!AE251 -> 0 | AE54: ='Operating Model'!AF251 -> 0 | AF54: ='Operating Model'!AG251 -> 0 | AG54: ='Operating Model'!AH251 -> 0 | AH54: ='Operating Model'!AI251 -> 0 | AI54: ='Operating Model'!AJ251 -> 0 | AJ54: ='Operating Model'!AK251 -> 0 | AK54: ='Operating Model'!AL251 -> 0 | AL54: ='Operating Model'!AM251 -> 0 | AM54: ='Operating Model'!AN251 -> 0 | AN54: ='Operating Model'!AO251 -> 0 | AO54: ='Operating Model'!AP251 -> 0 | AP54: ='Operating Model'!AQ251 -> 0 | AQ54: ='Operating Model'!AR251 -> 0 | AR54: ='Operating Model'!AS251 -> 0 | AS54: ='Operating Model'!AT251 -> 0 | AT54: ='Operating Model'!AU251 -> 0 | AU54: ='Operating Model'!AV251 -> 0 | AV54: ='Operating Model'!AW251 -> 0 | AW54: ='Operating Model'!AX251 -> 0 | AX54: ='Operating Model'!AY251 -> 0 | AY54: ='Operating Model'!AZ251 -> 0 | AZ54: ='Operating Model'!BA251 -> 0 | BA54: ='Operating Model'!BB251 -> 0 | BB54: ='Operating Model'!BC251 -> 0
M55: ='Operating Model'!N252 -> 0 | N55: ='Operating Model'!O252 -> 0 | O55: ='Operating Model'!P252 -> 0 | P55: ='Operating Model'!Q252 -> 0 | Q55: ='Operating Model'!R252 -> 0 | R55: ='Operating Model'!S252 -> 0 | S55: ='Operating Model'!T252 -> 0 | T55: ='Operating Model'!U252 -> 0 | U55: ='Operating Model'!V252 -> 0 | V55: ='Operating Model'!W252 -> 0 | W55: ='Operating Model'!X252 -> 0 | X55: ='Operating Model'!Y252 -> 0 | Y55: ='Operating Model'!Z252 -> 0 | Z55: ='Operating Model'!AA252 -> 0 | AA55: ='Operating Model'!AB252 -> 0 | AB55: ='Operating Model'!AC252 -> 0 | AC55: ='Operating Model'!AD252 -> 0 | AD55: ='Operating Model'!AE252 -> 0 | AE55: ='Operating Model'!AF252 -> 0 | AF55: ='Operating Model'!AG252 -> 0 | AG55: ='Operating Model'!AH252 -> 0 | AH55: ='Operating Model'!AI252 -> 0 | AI55: ='Operating Model'!AJ252 -> 0 | AJ55: ='Operating Model'!AK252 -> 0 | AK55: ='Operating Model'!AL252 -> 0 | AL55: ='Operating Model'!AM252 -> 0 | AM55: ='Operating Model'!AN252 -> 0 | AN55: ='Operating Model'!AO252 -> 0 | AO55: ='Operating Model'!AP252 -> 0 | AP55: ='Operating Model'!AQ252 -> 0 | AQ55: ='Operating Model'!AR252 -> 0 | AR55: ='Operating Model'!AS252 -> 0 | AS55: ='Operating Model'!AT252 -> 0 | AT55: ='Operating Model'!AU252 -> 0 | AU55: ='Operating Model'!AV252 -> 0 | AV55: ='Operating Model'!AW252 -> 0 | AW55: ='Operating Model'!AX252 -> 0 | AX55: ='Operating Model'!AY252 -> 0 | AY55: ='Operating Model'!AZ252 -> 0 | AZ55: ='Operating Model'!BA252 -> 0 | BA55: ='Operating Model'!BB252 -> 0 | BB55: ='Operating Model'!BC252 -> 0
E56: Grand Total | J56: =SUM(M56:BR56) -> 4800000 | M56: ='Operating Model'!N253 -> 400000 | N56: ='Operating Model'!O253 -> 400000 | O56: ='Operating Model'!P253 -> 400000 | P56: ='Operating Model'!Q253 -> 400000 | Q56: ='Operating Model'!R253 -> 400000 | R56: ='Operating Model'!S253 -> 400000 | S56: ='Operating Model'!T253 -> 400000 | T56: ='Operating Model'!U253 -> 400000 | U56: ='Operating Model'!V253 -> 400000 | V56: ='Operating Model'!W253 -> 400000 | W56: ='Operating Model'!X253 -> 400000 | X56: ='Operating Model'!Y253 -> 400000 | Y56: ='Operating Model'!Z253 -> 0 | Z56: ='Operating Model'!AA253 -> 0 | AA56: ='Operating Model'!AB253 -> 0 | AB56: ='Operating Model'!AC253 -> 0 | AC56: ='Operating Model'!AD253 -> 0 | AD56: ='Operating Model'!AE253 -> 0 | AE56: ='Operating Model'!AF253 -> 0 | AF56: ='Operating Model'!AG253 -> 0 | AG56: ='Operating Model'!AH253 -> 0 | AH56: ='Operating Model'!AI253 -> 0 | AI56: ='Operating Model'!AJ253 -> 0 | AJ56: ='Operating Model'!AK253 -> 0 | AK56: ='Operating Model'!AL253 -> 0 | AL56: ='Operating Model'!AM253 -> 0 | AM56: ='Operating Model'!AN253 -> 0 | AN56: ='Operating Model'!AO253 -> 0 | AO56: ='Operating Model'!AP253 -> 0 | AP56: ='Operating Model'!AQ253 -> 0 | AQ56: ='Operating Model'!AR253 -> 0 | AR56: ='Operating Model'!AS253 -> 0 | AS56: ='Operating Model'!AT253 -> 0 | AT56: ='Operating Model'!AU253 -> 0 | AU56: ='Operating Model'!AV253 -> 0 | AV56: ='Operating Model'!AW253 -> 0 | AW56: ='Operating Model'!AX253 -> 0 | AX56: ='Operating Model'!AY253 -> 0 | AY56: ='Operating Model'!AZ253 -> 0 | AZ56: ='Operating Model'!BA253 -> 0 | BA56: ='Operating Model'!BB253 -> 0 | BB56: ='Operating Model'!BC253 -> 0
B58: Sources and Uses Summary
C59: Uses of Funds
D60: Capital Expenditures | H60: =SUM(M56:BR56) -> 4800000
D61: Interest During Construction
D62: Fees During Construction
D63: DSRA Account
E64: Total Uses of Funds | H64: =SUM(H60:H63) -> 4800000
C66: Sources of Funds
D67: Senior Debt Financing | G67: =Inputs!F309 -> 0.5 | H67: =H64*G67 -> 2400000
D68: Mezzanine Debt Financing | G68: =Inputs!F323 -> 0.2 | H68: =H64*G68 -> 960000
D69: Equity Financing | H69: =H64-H67-H68 -> 1440000
E70: Total Sources of Funds | H70: =SUM(H67:H69) -> 4800000
B73: Periodic Funding
C74: Funding Needs
D75: Capital Expenditures | M75: =M56 -> 400000 | N75: 400000 | O75: 400000 | P75: 400000 | Q75: 400000 | R75: 400000 | S75: 400000 | T75: 400000 | U75: 400000 | V75: 400000 | W75: 400000 | X75: 400000 | Y75: 0 | Z75: 0 | AA75: 0 | AB75: 0 | AC75: 0 | AD75: 0 | AE75: 0 | AF75: 0 | AG75: 0 | AH75: 0 | AI75: 0 | AJ75: 0 | AK75: 0 | AL75: 0 | AM75: 0 | AN75: 0 | AO75: 0 | AP75: 0 | AQ75: 0 | AR75: 0 | AS75: 0 | AT75: 0 | AU75: 0 | AV75: 0 | AW75: 0 | AX75: 0 | AY75: 0 | AZ75: 0 | BA75: 0 | BB75: 0
D76: Interest During Construction
D77: Fees During Construction
D78: DSRA Account
E79: Total Uses of Funds | H79: =SUM(M79:BR79) -> 4800000 | J79: =SUM(M79:BR79) -> 4800000 | M79: =SUM(M75:M78) -> 400000 | N79: =SUM(N75:N78) -> 400000 | O79: 400000 | P79: 400000 | Q79: 400000 | R79: 400000 | S79: 400000 | T79: 400000 | U79: 400000 | V79: 400000 | W79: 400000 | X79: 400000 | Y79: 0 | Z79: 0 | AA79: 0 | AB79: 0 | AC79: 0 | AD79: 0 | AE79: 0 | AF79: 0 | AG79: 0 | AH79: 0 | AI79: 0 | AJ79: 0 | AK79: 0 | AL79: 0 | AM79: 0 | AN79: 0 | AO79: 0 | AP79: 0 | AQ79: 0 | AR79: 0 | AS79: 0 | AT79: 0 | AU79: 0 | AV79: 0 | AW79: 0 | AX79: 0 | AY79: 0 | AZ79: 0 | BA79: 0 | BB79: 0
D81: Pro-Rata Percent | H81: =H79 -> 4800000 | M81: =M79/$H$81 -> 0.08333333333 | N81: 0.08333333333 | O81: 0.08333333333 | P81: 0.08333333333 | Q81: 0.08333333333 | R81: 0.08333333333 | S81: 0.08333333333 | T81: 0.08333333333 | U81: 0.08333333333 | V81: 0.08333333333 | W81: 0.08333333333 | X81: 0.08333333333 | Y81: 0 | Z81: 0 | AA81: 0 | AB81: 0 | AC81: 0 | AD81: 0 | AE81: 0 | AF81: 0 | AG81: 0 | AH81: 0 | AI81: 0 | AJ81: 0 | AK81: 0 | AL81: 0 | AM81: 0 | AN81: 0 | AO81: 0 | AP81: 0 | AQ81: 0 | AR81: 0 | AS81: 0 | AT81: 0 | AU81: 0 | AV81: 0 | AW81: 0 | AX81: 0 | AY81: 0 | AZ81: 0 | BA81: 0 | BB81: 0
D82: Senior Debt Financing | H82: =H67 -> 2400000 | J82: =SUM(M82:BR82) -> 2400000 | M82: =$H$82*M81 -> 200000 | N82: 200000 | O82: 200000 | P82: 200000 | Q82: 200000 | R82: 200000 | S82: 200000 | T82: 200000 | U82: 200000 | V82: 200000 | W82: 200000 | X82: 200000 | Y82: 0 | Z82: 0 | AA82: 0 | AB82: 0 | AC82: 0 | AD82: 0 | AE82: 0 | AF82: 0 | AG82: 0 | AH82: 0 | AI82: 0 | AJ82: 0 | AK82: 0 | AL82: 0 | AM82: 0 | AN82: 0 | AO82: 0 | AP82: 0 | AQ82: 0 | AR82: 0 | AS82: 0 | AT82: 0 | AU82: 0 | AV82: 0 | AW82: 0 | AX82: 0 | AY82: 0 | AZ82: 0 | BA82: 0 | BB82: 0
D83: Mezzanine Debt Financing | H83: =H68 -> 960000 | M83: =$H$83*M81 -> 80000 | N83: =$H$83*N81 -> 80000 | O83: 80000 | P83: 80000 | Q83: 80000 | R83: 80000 | S83: 80000 | T83: 80000 | U83: 80000 | V83: 80000 | W83: 80000 | X83: 80000 | Y83: 0 | Z83: 0 | AA83: 0 | AB83: 0 | AC83: 0 | AD83: 0 | AE83: 0 | AF83: 0 | AG83: 0 | AH83: 0 | AI83: 0 | AJ83: 0 | AK83: 0 | AL83: 0 | AM83: 0 | AN83: 0 | AO83: 0 | AP83: 0 | AQ83: 0 | AR83: 0 | AS83: 0 | AT83: 0 | AU83: 0 | AV83: 0 | AW83: 0 | AX83: 0 | AY83: 0 | AZ83: 0 | BA83: 0 | BB83: 0
D85: Equity Financing | M85: =M79-M82-M83 -> 120000 | N85: =N79-N82-N83 -> 120000 | O85: 120000 | P85: 120000 | Q85: 120000 | R85: 120000 | S85: 120000 | T85: 120000 | U85: 120000 | V85: 120000 | W85: 120000 | X85: 120000 | Y85: 0 | Z85: 0 | AA85: 0 | AB85: 0 | AC85: 0 | AD85: 0 | AE85: 0 | AF85: 0 | AG85: 0 | AH85: 0 | AI85: 0 | AJ85: 0 | AK85: 0 | AL85: 0 | AM85: 0 | AN85: 0 | AO85: 0 | AP85: 0 | AQ85: 0 | AR85: 0 | AS85: 0 | AT85: 0 | AU85: 0 | AV85: 0 | AW85: 0 | AX85: 0 | AY85: 0 | AZ85: 0 | BA85: 0 | BB85: 0
B87: Debt Accounts | H87: =Inputs!F315 -> 2021-01-01 | I87: =Inputs!F316 -> 2029-01-01
C88: Repayment Period | M88: =AND(M5>=$H$87,M5<$I$87)*1 -> 0 | N88: 0 | O88: 0 | P88: 0 | Q88: 0 | R88: 0 | S88: 0 | T88: 0 | U88: 0 | V88: 0 | W88: 0 | X88: 1 | Y88: =AND(Y5>=$H$87,Y5<$I$87)*1 -> 1 | Z88: 1 | AA88: 1 | AB88: 1 | AC88: 1 | AD88: 1 | AE88: 1 | AF88: 0 | AG88: =AND(AG5>=$H$87,AG5<$I$87)*1 -> 0 | AH88: 0 | AI88: 0 | AJ88: 0 | AK88: 0 | AL88: 0 | AM88: 0 | AN88: 0 | AO88: 0 | AP88: 0 | AQ88: 0 | AR88: 0 | AS88: 0 | AT88: 0 | AU88: 0 | AV88: 0 | AW88: 0 | AX88: 0 | AY88: 0 | AZ88: 0 | BA88: 0 | BB88: 0
C89: Repayment with Varying Interest Rate | H89: 9 | J89: =SUM(M89:BR89) -> 0.8664732129 | M89: =repayment_varying_rate(H89,97:97,88:88) -> 0 | N89: 0 | O89: 0 | P89: 0 | Q89: 0 | R89: 0 | S89: 0 | T89: 0 | U89: 0 | V89: 0 | W89: 0 | X89: 0 | Y89: 0.1092720923 | Z89: 0.09162384603 | AA89: 0.09666315756 | AB89: 0.1019796312 | AC89: 0.1075885109 | AD89: 0.113505879 | AE89: 0.1195139017 | AF89: 0.1263261941 | AG89: 0 | AH89: 0 | AI89: 0 | AJ89: 0 | AK89: 0 | AL89: 0 | AM89: 0 | AN89: 0 | AO89: 0 | AP89: 0 | AQ89: 0 | AR89: 0 | AS89: 0 | AT89: 0 | AU89: 0 | AV89: 0 | AW89: 0 | AX89: 0 | AY89: 0 | AZ89: 0 | BA89: 0 | BB89: 0 | BC89: 0 | BD89: 0 | BE89: 0 | BF89: 0 | BG89: 0 | BH89: 0 | BI89: 0 | BJ89: 0 | BK89: 0 | BL89: 0 | BM89: 0 | BN89: 0 | BO89: 0 | BP89: 0 | BQ89: 0 | BR89: 0
C91: Senior Debt Schedule
D92: Opening Balance | M92: =L95 -> 0 | N92: =M95 -> 200000 | O92: 400000 | P92: 600000 | Q92: 800000 | R92: 1000000 | S92: 1200000 | T92: 1400000 | U92: 1600000 | V92: 1800000 | W92: 2000000 | X92: 2200000 | Y92: 2400000 | Z92: 2137746.978 | AA92: 1917849.748 | AB92: 1685858.17 | AC92: 1441107.055 | AD92: 1182894.629 | AE92: 910480.5189 | AF92: 623647.1549 | AG92: 320464.2891 | AH92: 320464.2891 | AI92: 320464.2891 | AJ92: 320464.2891 | AK92: 320464.2891 | AL92: 320464.2891 | AM92: 320464.2891 | AN92: 320464.2891 | AO92: 320464.2891 | AP92: 320464.2891 | AQ92: 320464.2891 | AR92: 320464.2891 | AS92: 320464.2891 | AT92: 320464.2891 | AU92: 320464.2891 | AV92: 320464.2891 | AW92: 320464.2891 | AX92: 320464.2891 | AY92: 320464.2891 | AZ92: 320464.2891 | BA92: 320464.2891 | BB92: 320464.2891
D93: Add: Draws | M93: =M82 -> 200000 | N93: 200000 | O93: 200000 | P93: 200000 | Q93: 200000 | R93: 200000 | S93: 200000 | T93: 200000 | U93: 200000 | V93: 200000 | W93: 200000 | X93: 200000 | Y93: 0 | Z93: 0 | AA93: 0 | AB93: 0 | AC93: 0 | AD93: 0 | AE93: 0 | AF93: 0 | AG93: 0 | AH93: 0 | AI93: 0 | AJ93: 0 | AK93: 0 | AL93: 0 | AM93: 0 | AN93: 0 | AO93: 0 | AP93: 0 | AQ93: 0 | AR93: 0 | AS93: 0 | AT93: 0 | AU93: 0 | AV93: 0 | AW93: 0 | AX93: 0 | AY93: 0 | AZ93: 0 | BA93: 0 | BB93: 0
D94: Less: Repayments | H94: =H82 -> 2400000 | M94: =M89*$H$94 -> 0 | N94: 0 | O94: 0 | P94: 0 | Q94: 0 | R94: 0 | S94: 0 | T94: 0 | U94: 0 | V94: 0 | W94: 0 | X94: 0 | Y94: 262253.0216 | Z94: 219897.2305 | AA94: 231991.5781 | AB94: 244751.1149 | AC94: 258212.4263 | AD94: 272414.1097 | AE94: 286833.364 | AF94: 303182.8658 | AG94: 0 | AH94: 0 | AI94: 0 | AJ94: 0 | AK94: 0 | AL94: 0 | AM94: 0 | AN94: 0 | AO94: 0 | AP94: 0 | AQ94: 0 | AR94: 0 | AS94: 0 | AT94: 0 | AU94: 0 | AV94: 0 | AW94: 0 | AX94: 0 | AY94: 0 | AZ94: 0 | BA94: 0 | BB94: 0
D95: Closing Balance | M95: =M92+M93-M94 -> 200000 | N95: =N92+N93-N94 -> 400000 | O95: 600000 | P95: 800000 | Q95: 1000000 | R95: 1200000 | S95: 1400000 | T95: 1600000 | U95: 1800000 | V95: 2000000 | W95: 2200000 | X95: 2400000 | Y95: 2137746.978 | Z95: 1917849.748 | AA95: 1685858.17 | AB95: 1441107.055 | AC95: 1182894.629 | AD95: 910480.5189 | AE95: 623647.1549 | AF95: 320464.2891 | AG95: 320464.2891 | AH95: 320464.2891 | AI95: 320464.2891 | AJ95: 320464.2891 | AK95: 320464.2891 | AL95: 320464.2891 | AM95: 320464.2891 | AN95: 320464.2891 | AO95: 320464.2891 | AP95: 320464.2891 | AQ95: 320464.2891 | AR95: 320464.2891 | AS95: 320464.2891 | AT95: 320464.2891 | AU95: 320464.2891 | AV95: 320464.2891 | AW95: 320464.2891 | AX95: 320464.2891 | AY95: 320464.2891 | AZ95: 320464.2891 | BA95: 320464.2891 | BB95: 320464.2891
D97: Interest Rate | H97: =Inputs!$F$321 -> 0.05 | M97: =LOOKUP(M5,Inputs!318:318,Inputs!321:321)/12*M4 -> 0.004166666667 | N97: =LOOKUP(N5,Inputs!318:318,Inputs!321:321)/12*N4 -> 0.004166666667 | O97: =LOOKUP(O5,Inputs!318:318,Inputs!321:321)/12*O4 -> 0.004166666667 | P97: =LOOKUP(P5,Inputs!318:318,Inputs!321:321)/12*P4 -> 0.004166666667 | Q97: =LOOKUP(Q5,Inputs!318:318,Inputs!321:321)/12*Q4 -> 0.004166666667 | R97: =LOOKUP(R5,Inputs!318:318,Inputs!321:321)/12*R4 -> 0.004166666667 | S97: =LOOKUP(S5,Inputs!318:318,Inputs!321:321)/12*S4 -> 0.004166666667 | T97: =LOOKUP(T5,Inputs!318:318,Inputs!321:321)/12*T4 -> 0.004166666667 | U97: =LOOKUP(U5,Inputs!318:318,Inputs!321:321)/12*U4 -> 0.004166666667 | V97: =LOOKUP(V5,Inputs!318:318,Inputs!321:321)/12*V4 -> 0.004166666667 | W97: =LOOKUP(W5,Inputs!318:318,Inputs!321:321)/12*W4 -> 0.004166666667 | X97: =LOOKUP(X5,Inputs!318:318,Inputs!321:321)/12*X4 -> 0.004166666667 | Y97: =LOOKUP(Y5,Inputs!318:318,Inputs!321:321)/12*Y4 -> 0.055 | Z97: =LOOKUP(Z5,Inputs!318:318,Inputs!321:321)/12*Z4 -> 0.055 | AA97: =LOOKUP(AA5,Inputs!318:318,Inputs!321:321)/12*AA4 -> 0.055 | AB97: =LOOKUP(AB5,Inputs!318:318,Inputs!321:321)/12*AB4 -> 0.055 | AC97: =LOOKUP(AC5,Inputs!318:318,Inputs!321:321)/12*AC4 -> 0.055 | AD97: =LOOKUP(AD5,Inputs!318:318,Inputs!321:321)/12*AD4 -> 0.057 | AE97: =LOOKUP(AE5,Inputs!318:318,Inputs!321:321)/12*AE4 -> 0.057 | AF97: =LOOKUP(AF5,Inputs!318:318,Inputs!321:321)/12*AF4 -> 0.057 | AG97: =LOOKUP(AG5,Inputs!318:318,Inputs!321:321)/12*AG4 -> 0.06 | AH97: =LOOKUP(AH5,Inputs!318:318,Inputs!321:321)/12*AH4 -> 0.06 | AI97: =LOOKUP(AI5,Inputs!318:318,Inputs!321:321)/12*AI4 -> 0.06 | AJ97: =LOOKUP(AJ5,Inputs!318:318,Inputs!321:321)/12*AJ4 -> 0.06 | AK97: =LOOKUP(AK5,Inputs!318:318,Inputs!321:321)/12*AK4 -> 0.06 | AL97: =LOOKUP(AL5,Inputs!318:318,Inputs!321:321)/12*AL4 -> 0.06 | AM97: =LOOKUP(AM5,Inputs!318:318,Inputs!321:321)/12*AM4 -> 0.06 | AN97: =LOOKUP(AN5,Inputs!318:318,Inputs!321:321)/12*AN4 -> 0.06 | AO97: =LOOKUP(AO5,Inputs!318:318,Inputs!321:321)/12*AO4 -> 0.06 | AP97: =LOOKUP(AP5,Inputs!318:318,Inputs!321:321)/12*AP4 -> 0.06 | AQ97: =LOOKUP(AQ5,Inputs!318:318,Inputs!321:321)/12*AQ4 -> 0.06 | AR97: =LOOKUP(AR5,Inputs!318:318,Inputs!321:321)/12*AR4 -> 0.06 | AS97: =LOOKUP(AS5,Inputs!318:318,Inputs!321:321)/12*AS4 -> 0.06 | AT97: =LOOKUP(AT5,Inputs!318:318,Inputs!321:321)/12*AT4 -> 0.06 | AU97: =LOOKUP(AU5,Inputs!318:318,Inputs!321:321)/12*AU4 -> 0.06 | AV97: =LOOKUP(AV5,Inputs!318:318,Inputs!321:321)/12*AV4 -> 0.06 | AW97: =LOOKUP(AW5,Inputs!318:318,Inputs!321:321)/12*AW4 -> 0.06 | AX97: =LOOKUP(AX5,Inputs!318:318,Inputs!321:321)/12*AX4 -> 0.06 | AY97: =LOOKUP(AY5,Inputs!318:318,Inputs!321:321)/12*AY4 -> 0.06 | AZ97: =LOOKUP(AZ5,Inputs!318:318,Inputs!321:321)/12*AZ4 -> 0.06 | BA97: =LOOKUP(BA5,Inputs!318:318,Inputs!321:321)/12*BA4 -> 0.06 | BB97: =LOOKUP(BB5,Inputs!318:318,Inputs!321:321)/12*BB4 -> 0.06
D98: Interest Cost | M98: =M97*M92 -> 0 | N98: =N97*N92 -> 833.3333333 | O98: 1666.666667 | P98: 2500 | Q98: 3333.333333 | R98: 4166.666667 | S98: 5000 | T98: 5833.333333 | U98: 6666.666667 | V98: 7500 | W98: 8333.333333 | X98: 9166.666667 | Y98: 132000 | Z98: 117576.0838 | AA98: 105481.7361 | AB98: 92722.19934 | AC98: 79260.88802 | AD98: 67424.99383 | AE98: 51897.38958 | AF98: 35547.88783 | AG98: 19227.85735 | AH98: 19227.85735 | AI98: 19227.85735 | AJ98: 19227.85735 | AK98: 19227.85735 | AL98: 19227.85735 | AM98: 19227.85735 | AN98: 19227.85735 | AO98: 19227.85735 | AP98: 19227.85735 | AQ98: 19227.85735 | AR98: 19227.85735 | AS98: 19227.85735 | AT98: 19227.85735 | AU98: 19227.85735 | AV98: 19227.85735 | AW98: 19227.85735 | AX98: 19227.85735 | AY98: 19227.85735 | AZ98: 19227.85735 | BA98: 19227.85735 | BB98: 19227.85735
D99: Interest During Construction | M99: =M98*M3 -> 0 | N99: 833.3333333 | O99: 1666.666667 | P99: 2500 | Q99: 3333.333333 | R99: 4166.666667 | S99: 5000 | T99: 5833.333333 | U99: 6666.666667 | V99: 7500 | W99: 8333.333333 | X99: 9166.666667 | Y99: 0 | Z99: 0 | AA99: 0 | AB99: 0 | AC99: 0 | AD99: 0 | AE99: 0 | AF99: 0 | AG99: 0 | AH99: 0 | AI99: 0 | AJ99: 0 | AK99: 0 | AL99: 0 | AM99: 0 | AN99: 0 | AO99: 0 | AP99: 0 | AQ99: 0 | AR99: 0 | AS99: 0 | AT99: 0 | AU99: 0 | AV99: 0 | AW99: 0 | AX99: 0 | AY99: 0 | AZ99: 0 | BA99: 0 | BB99: 0
D100: Interest Expense | M100: =M98-M99 -> 0 | N100: =N98-N99 -> 0 | O100: 0 | P100: 0 | Q100: 0 | R100: 0 | S100: 0 | T100: 0 | U100: 0 | V100: 0 | W100: 0 | X100: 0 | Y100: 132000 | Z100: 117576.0838 | AA100: 105481.7361 | AB100: 92722.19934 | AC100: 79260.88802 | AD100: 67424.99383 | AE100: 51897.38958 | AF100: 35547.88783 | AG100: 19227.85735 | AH100: 19227.85735 | AI100: 19227.85735 | AJ100: 19227.85735 | AK100: 19227.85735 | AL100: 19227.85735 | AM100: 19227.85735 | AN100: 19227.85735 | AO100: 19227.85735 | AP100: 19227.85735 | AQ100: 19227.85735 | AR100: 19227.85735 | AS100: 19227.85735 | AT100: 19227.85735 | AU100: 19227.85735 | AV100: 19227.85735 | AW100: 19227.85735 | AX100: 19227.85735 | AY100: 19227.85735 | AZ100: 19227.85735 | BA100: 19227.85735 | BB100: 19227.85735
D102: Debt Cash Flow
C104: Mezzanine Debt Schedule
D105: Opening Balance | M105: =L109 -> 0 | N105: =M109 -> 80000 | O105: 160433.3333 | P105: 241302.3472 | Q105: 322609.4016 | R105: 404356.8692 | S105: 486547.1356 | T105: 569182.5992 | U105: 652265.6716 | V105: 735798.7774 | W105: 819784.3541 | X105: 904224.8526 | Y105: 989122.7373 | Z105: 807286.1522 | AA105: 545031.1037 | AB105: 248682.899 | AC105: 16164.38843 | AD105: 1050.685248 | AE105: 68.29454113 | AF105: 4.439145173 | AG105: 0.2885444363 | AH105: 0.01875538836 | AI105: 0.001219100243 | AJ105: 0.001298341759 | AK105: 0.001382733973 | AL105: 0.001472611682 | AM105: 0.001568331441 | AN105: 0.001670272985 | AO105: 0.001778840729 | AP105: 0.001894465376 | AQ105: 0.002017605625 | AR105: 0.002148749991 | AS105: 0.00228841874 | AT105: 0.002437165959 | AU105: 0.002595581746 | AV105: 0.002764294559 | AW105: 0.002943973706 | AX105: 0.003135331997 | AY105: 0.003339128576 | AZ105: 0.003556171934 | BA105: 0.003787323109 | BB105: 0.004033499112
D106: Add: Draws | M106: =M83 -> 80000 | N106: =N83 -> 80000 | O106: 80000 | P106: 80000 | Q106: 80000 | R106: 80000 | S106: 80000 | T106: 80000 | U106: 80000 | V106: 80000 | W106: 80000 | X106: 80000 | Y106: 0 | Z106: 0 | AA106: 0 | AB106: 0 | AC106: 0 | AD106: 0 | AE106: 0 | AF106: 0 | AG106: 0 | AH106: 0 | AI106: 0 | AJ106: 0 | AK106: 0 | AL106: 0 | AM106: 0 | AN106: 0 | AO106: 0 | AP106: 0 | AQ106: 0 | AR106: 0 | AS106: 0 | AT106: 0 | AU106: 0 | AV106: 0 | AW106: 0 | AX106: 0 | AY106: 0 | AZ106: 0 | BA106: 0 | BB106: 0
D107: Add: Interest | M107: =M112 -> 0 | N107: =N112 -> 433.3333333 | O107: 869.0138889 | P107: 1307.054381 | Q107: 1747.467592 | R107: 2190.266375 | S107: 2635.463651 | T107: 3083.072412 | U107: 3533.105721 | V107: 3985.576711 | W107: 4440.498585 | X107: 4897.884619 | Y107: 64292.97792 | Z107: 52473.59989 | AA107: 35427.02174 | AB107: 16164.38843 | AC107: 1050.685248 | AD107: 68.29454113 | AE107: 4.439145173 | AF107: 0.2885444363 | AG107: 0.01875538836 | AH107: 0.001219100243 | AI107: 7.924151581e-05 | AJ107: 8.439221433e-05 | AK107: 8.987770827e-05 | AL107: 9.57197593e-05 | AM107: 0.0001019415437 | AN107: 0.000108567744 | AO107: 0.0001156246474 | AP107: 0.0001231402494 | AQ107: 0.0001311443656 | AR107: 0.0001396687494 | AS107: 0.0001487472181 | AT107: 0.0001584157873 | AU107: 0.0001687128135 | AV107: 0.0001796791464 | AW107: 0.0001913582909 | AX107: 0.0002037965798 | AY107: 0.0002170433575 | AZ107: 0.0002311511757 | BA107: 0.0002461760021 | BB107: 0.0002621774423
D108: Less: Repayments | M108: =M137 -> 0 | N108: =N137 -> 0 | O108: 0 | P108: 0 | Q108: 0 | R108: 0 | S108: 0 | T108: 0 | U108: 0 | V108: 0 | W108: 0 | X108: 0 | Y108: 246129.563 | Z108: 314728.6483 | AA108: 331775.2265 | AB108: 248682.899 | AC108: 16164.38843 | AD108: 1050.685248 | AE108: 68.29454113 | AF108: 4.439145173 | AG108: 0.2885444363 | AH108: 0.01875538836 | AI108: 0 | AJ108: 0 | AK108: 0 | AL108: 0 | AM108: 0 | AN108: 0 | AO108: 0 | AP108: 0 | AQ108: 0 | AR108: 0 | AS108: 0 | AT108: 0 | AU108: 0 | AV108: 0 | AW108: 0 | AX108: 0 | AY108: 0 | AZ108: 0 | BA108: 0 | BB108: 0
D109: Closing Balance | M109: =M105+M106-M108+M107 -> 80000 | N109: =N105+N106-N108+N107 -> 160433.3333 | O109: 241302.3472 | P109: 322609.4016 | Q109: 404356.8692 | R109: 486547.1356 | S109: 569182.5992 | T109: 652265.6716 | U109: 735798.7774 | V109: 819784.3541 | W109: 904224.8526 | X109: 989122.7373 | Y109: 807286.1522 | Z109: 545031.1037 | AA109: 248682.899 | AB109: 16164.38843 | AC109: 1050.685248 | AD109: 68.29454113 | AE109: 4.439145173 | AF109: 0.2885444363 | AG109: 0.01875538836 | AH109: 0.001219100243 | AI109: 0.001298341759 | AJ109: 0.001382733973 | AK109: 0.001472611682 | AL109: 0.001568331441 | AM109: 0.001670272985 | AN109: 0.001778840729 | AO109: 0.001894465376 | AP109: 0.002017605625 | AQ109: 0.002148749991 | AR109: 0.00228841874 | AS109: 0.002437165959 | AT109: 0.002595581746 | AU109: 0.002764294559 | AV109: 0.002943973706 | AW109: 0.003135331997 | AX109: 0.003339128576 | AY109: 0.003556171934 | AZ109: 0.003787323109 | BA109: 0.004033499112 | BB109: 0.004295676554
D111: Interest Rate | H111: =Inputs!F328 -> 0.065 | M111: =$H$111/12*M4 -> 0.005416666667 | N111: =$H$111/12*N4 -> 0.005416666667 | O111: 0.005416666667 | P111: 0.005416666667 | Q111: 0.005416666667 | R111: 0.005416666667 | S111: 0.005416666667 | T111: 0.005416666667 | U111: 0.005416666667 | V111: 0.005416666667 | W111: 0.005416666667 | X111: 0.005416666667 | Y111: 0.065 | Z111: 0.065 | AA111: 0.065 | AB111: 0.065 | AC111: 0.065 | AD111: 0.065 | AE111: 0.065 | AF111: 0.065 | AG111: 0.065 | AH111: 0.065 | AI111: 0.065 | AJ111: 0.065 | AK111: 0.065 | AL111: 0.065 | AM111: 0.065 | AN111: 0.065 | AO111: 0.065 | AP111: 0.065 | AQ111: 0.065 | AR111: 0.065 | AS111: 0.065 | AT111: 0.065 | AU111: 0.065 | AV111: 0.065 | AW111: 0.065 | AX111: 0.065 | AY111: 0.065 | AZ111: 0.065 | BA111: 0.065 | BB111: 0.065
D112: Interest Cost | M112: =M111*M105 -> 0 | N112: =N111*N105 -> 433.3333333 | O112: 869.0138889 | P112: 1307.054381 | Q112: 1747.467592 | R112: 2190.266375 | S112: 2635.463651 | T112: 3083.072412 | U112: 3533.105721 | V112: 3985.576711 | W112: 4440.498585 | X112: 4897.884619 | Y112: 64292.97792 | Z112: 52473.59989 | AA112: 35427.02174 | AB112: 16164.38843 | AC112: 1050.685248 | AD112: 68.29454113 | AE112: 4.439145173 | AF112: 0.2885444363 | AG112: 0.01875538836 | AH112: 0.001219100243 | AI112: 7.924151581e-05 | AJ112: 8.439221433e-05 | AK112: 8.987770827e-05 | AL112: 9.57197593e-05 | AM112: 0.0001019415437 | AN112: 0.000108567744 | AO112: 0.0001156246474 | AP112: 0.0001231402494 | AQ112: 0.0001311443656 | AR112: 0.0001396687494 | AS112: 0.0001487472181 | AT112: 0.0001584157873 | AU112: 0.0001687128135 | AV112: 0.0001796791464 | AW112: 0.0001913582909 | AX112: 0.0002037965798 | AY112: 0.0002170433575 | AZ112: 0.0002311511757 | BA112: 0.0002461760021 | BB112: 0.0002621774423
D113: Interest During Construction | M113: =M112*M3 -> 0 | N113: =N112*N3 -> 433.3333333 | O113: 869.0138889 | P113: 1307.054381 | Q113: 1747.467592 | R113: 2190.266375 | S113: 2635.463651 | T113: 3083.072412 | U113: 3533.105721 | V113: 3985.576711 | W113: 4440.498585 | X113: 4897.884619 | Y113: 0 | Z113: 0 | AA113: 0 | AB113: 0 | AC113: 0 | AD113: 0 | AE113: 0 | AF113: 0 | AG113: 0 | AH113: 0 | AI113: 0 | AJ113: 0 | AK113: 0 | AL113: 0 | AM113: 0 | AN113: 0 | AO113: 0 | AP113: 0 | AQ113: 0 | AR113: 0 | AS113: 0 | AT113: 0 | AU113: 0 | AV113: 0 | AW113: 0 | AX113: 0 | AY113: 0 | AZ113: 0 | BA113: 0 | BB113: 0
D114: Interest Expense | M114: =M112-M113 -> 0 | N114: =N112-N113 -> 0 | O114: 0 | P114: 0 | Q114: 0 | R114: 0 | S114: 0 | T114: 0 | U114: 0 | V114: 0 | W114: 0 | X114: 0 | Y114: 64292.97792 | Z114: 52473.59989 | AA114: 35427.02174 | AB114: 16164.38843 | AC114: 1050.685248 | AD114: 68.29454113 | AE114: 4.439145173 | AF114: 0.2885444363 | AG114: 0.01875538836 | AH114: 0.001219100243 | AI114: 7.924151581e-05 | AJ114: 8.439221433e-05 | AK114: 8.987770827e-05 | AL114: 9.57197593e-05 | AM114: 0.0001019415437 | AN114: 0.000108567744 | AO114: 0.0001156246474 | AP114: 0.0001231402494 | AQ114: 0.0001311443656 | AR114: 0.0001396687494 | AS114: 0.0001487472181 | AT114: 0.0001584157873 | AU114: 0.0001687128135 | AV114: 0.0001796791464 | AW114: 0.0001913582909 | AX114: 0.0002037965798 | AY114: 0.0002170433575 | AZ114: 0.0002311511757 | BA114: 0.0002461760021 | BB114: 0.0002621774423
D116: Debt Cash Flow
B119: Profit and Loss
C120: Revenues | M120: =M21 -> 0 | N120: 0 | O120: 0 | P120: 0 | Q120: 0 | R120: 0 | S120: 0 | T120: 0 | U120: 0 | V120: 0 | W120: 0 | X120: 0 | Y120: 974592 | Z120: 974592 | AA120: 974592 | AB120: 974592 | AC120: 974592 | AD120: 974592 | AE120: 974592 | AF120: 974592 | AG120: 974592 | AH120: 974592 | AI120: 0 | AJ120: 0 | AK120: 0 | AL120: 0 | AM120: 0 | AN120: 0 | AO120: 0 | AP120: 0 | AQ120: 0 | AR120: 0 | AS120: =AS21 -> 0 | AT120: 0 | AU120: 0 | AV120: 0 | AW120: 0 | AX120: 0 | AY120: 0 | AZ120: 0 | BA120: 0 | BB120: 0 | BC120: 0 | BD120: 0 | BE120: 0 | BF120: 0 | BG120: 0 | BH120: 0 | BI120: 0 | BJ120: 0 | BK120: 0 | BL120: 0 | BM120: 0 | BN120: 0 | BO120: 0 | BP120: 0 | BQ120: 0 | BR120: 0
C121: Less: Expenses | M121: =M23+M24 -> 0 | N121: 0 | O121: 0 | P121: 0 | Q121: 0 | R121: 0 | S121: 0 | T121: 0 | U121: 0 | V121: 0 | W121: 0 | X121: 0 | Y121: 269916.4375 | Z121: 269916.4375 | AA121: 269916.4375 | AB121: 269916.4375 | AC121: 269916.4375 | AD121: 269916.4375 | AE121: 269916.4375 | AF121: 269916.4375 | AG121: 269916.4375 | AH121: 269916.4375 | AI121: 0 | AJ121: 0 | AK121: 0 | AL121: 0 | AM121: 0 | AN121: 0 | AO121: 0 | AP121: 0 | AQ121: 0 | AR121: 0 | AS121: =AS23+AS24 -> 0 | AT121: 0 | AU121: 0 | AV121: 0 | AW121: 0 | AX121: 0 | AY121: 0 | AZ121: 0 | BA121: 0 | BB121: 0 | BC121: 0 | BD121: 0 | BE121: 0 | BF121: 0 | BG121: 0 | BH121: 0 | BI121: 0 | BJ121: 0 | BK121: 0 | BL121: 0 | BM121: 0 | BN121: 0 | BO121: 0 | BP121: 0 | BQ121: 0 | BR121: 0
D122: EBITDA | M122: =M120-M121 -> 0 | N122: =N120-N121 -> 0 | O122: 0 | P122: 0 | Q122: 0 | R122: 0 | S122: 0 | T122: 0 | U122: 0 | V122: 0 | W122: 0 | X122: 0 | Y122: 704675.5625 | Z122: 704675.5625 | AA122: 704675.5625 | AB122: 704675.5625 | AC122: 704675.5625 | AD122: 704675.5625 | AE122: 704675.5625 | AF122: 704675.5625 | AG122: 704675.5625 | AH122: 704675.5625 | AI122: 0 | AJ122: 0 | AK122: 0 | AL122: 0 | AM122: 0 | AN122: 0 | AO122: 0 | AP122: 0 | AQ122: 0 | AR122: 0 | AS122: 0 | AT122: 0 | AU122: 0 | AV122: 0 | AW122: 0 | AX122: 0 | AY122: 0 | AZ122: 0 | BA122: 0 | BB122: 0 | BC122: 0 | BD122: 0 | BE122: 0 | BF122: 0 | BG122: 0 | BH122: 0 | BI122: 0 | BJ122: 0 | BK122: 0 | BL122: 0 | BM122: 0 | BN122: 0 | BO122: 0 | BP122: 0 | BQ122: 0 | BR122: 0
C123: Less: Depreciation Base
C124: Less: Depreciaiton IDC and Fees
D125: EBIT | M125: =M122-M123-M124 -> 0 | N125: =N122-N123-N124 -> 0 | O125: 0 | P125: 0 | Q125: 0 | R125: 0 | S125: 0 | T125: 0 | U125: 0 | V125: 0 | W125: 0 | X125: 0 | Y125: 704675.5625 | Z125: 704675.5625 | AA125: 704675.5625 | AB125: 704675.5625 | AC125: 704675.5625 | AD125: 704675.5625 | AE125: 704675.5625 | AF125: 704675.5625 | AG125: 704675.5625 | AH125: 704675.5625 | AI125: 0 | AJ125: 0 | AK125: 0 | AL125: 0 | AM125: 0 | AN125: 0 | AO125: 0 | AP125: 0 | AQ125: 0 | AR125: 0 | AS125: 0 | AT125: 0 | AU125: 0 | AV125: 0 | AW125: 0 | AX125: 0 | AY125: 0 | AZ125: 0 | BA125: 0 | BB125: 0 | BC125: 0 | BD125: 0 | BE125: 0 | BF125: 0 | BG125: 0 | BH125: 0 | BI125: 0 | BJ125: 0 | BK125: 0 | BL125: 0 | BM125: 0 | BN125: 0 | BO125: 0 | BP125: 0 | BQ125: 0 | BR125: 0
C126: Less Interest Expense | M126: =M100+M114 -> 0 | N126: =N100+N114 -> 0 | O126: 0 | P126: 0 | Q126: 0 | R126: 0 | S126: 0 | T126: 0 | U126: 0 | V126: 0 | W126: 0 | X126: 0 | Y126: 196292.9779 | Z126: 170049.6837 | AA126: 140908.7579 | AB126: 108886.5878 | AC126: 80311.57327 | AD126: 67493.28837 | AE126: 51901.82872 | AF126: 35548.17637 | AG126: 19227.8761 | AH126: 19227.85857 | AI126: 19227.85743 | AJ126: 19227.85743 | AK126: 19227.85744 | AL126: 19227.85744 | AM126: 19227.85745 | AN126: 19227.85746 | AO126: 19227.85746 | AP126: 19227.85747 | AQ126: 19227.85748 | AR126: 19227.85749 | AS126: 19227.8575 | AT126: 19227.85751 | AU126: 19227.85752 | AV126: 19227.85753 | AW126: 19227.85754 | AX126: 19227.85755 | AY126: 19227.85756 | AZ126: 19227.85758 | BA126: 19227.85759 | BB126: 19227.85761 | BC126: 0 | BD126: 0 | BE126: 0 | BF126: 0 | BG126: 0 | BH126: 0 | BI126: 0 | BJ126: 0 | BK126: 0 | BL126: 0 | BM126: 0 | BN126: 0 | BO126: 0 | BP126: 0 | BQ126: 0 | BR126: 0
D127: Less Taxes
C128: Earnings | M128: =M126-M127 -> 0 | N128: =N126-N127 -> 0 | O128: 0 | P128: 0 | Q128: 0 | R128: 0 | S128: 0 | T128: 0 | U128: 0 | V128: 0 | W128: 0 | X128: 0 | Y128: 196292.9779 | Z128: 170049.6837 | AA128: 140908.7579 | AB128: 108886.5878 | AC128: 80311.57327 | AD128: 67493.28837 | AE128: 51901.82872 | AF128: 35548.17637 | AG128: 19227.8761 | AH128: 19227.85857 | AI128: 19227.85743 | AJ128: 19227.85743 | AK128: 19227.85744 | AL128: 19227.85744 | AM128: 19227.85745 | AN128: 19227.85746 | AO128: 19227.85746 | AP128: 19227.85747 | AQ128: 19227.85748 | AR128: 19227.85749 | AS128: 19227.8575 | AT128: 19227.85751 | AU128: 19227.85752 | AV128: 19227.85753 | AW128: 19227.85754 | AX128: 19227.85755 | AY128: 19227.85756 | AZ128: 19227.85758 | BA128: 19227.85759 | BB128: 19227.85761 | BC128: 0 | BD128: 0 | BE128: 0 | BF128: 0 | BG128: 0 | BH128: 0 | BI128: 0 | BJ128: 0 | BK128: 0 | BL128: 0 | BM128: 0 | BN128: 0 | BO128: 0 | BP128: 0 | BQ128: 0 | BR128: 0
B130: Cash Flow Waterfall
C131: EBITDA | M131: =M122 -> 0 | N131: =N122 -> 0 | O131: 0 | P131: 0 | Q131: 0 | R131: 0 | S131: 0 | T131: 0 | U131: 0 | V131: 0 | W131: 0 | X131: 0 | Y131: 704675.5625 | Z131: 704675.5625 | AA131: 704675.5625 | AB131: 704675.5625 | AC131: 704675.5625 | AD131: 704675.5625 | AE131: 704675.5625 | AF131: 704675.5625 | AG131: 704675.5625 | AH131: 704675.5625 | AI131: 0 | AJ131: 0 | AK131: 0 | AL131: 0 | AM131: 0 | AN131: 0 | AO131: 0 | AP131: 0 | AQ131: 0 | AR131: 0 | AS131: 0 | AT131: 0 | AU131: 0 | AV131: 0 | AW131: 0 | AX131: 0 | AY131: 0 | AZ131: 0 | BA131: 0 | BB131: 0 | BC131: 0 | BD131: 0 | BE131: 0 | BF131: 0 | BG131: 0 | BH131: 0 | BI131: 0 | BJ131: 0 | BK131: 0 | BL131: 0 | BM131: 0 | BN131: 0 | BO131: 0 | BP131: 0 | BQ131: 0 | BR131: 0
C132: Less: Operating Taxes | M132: =M127 -> 0 | N132: =N127 -> 0 | O132: 0 | P132: 0 | Q132: 0 | R132: 0 | S132: 0 | T132: 0 | U132: 0 | V132: 0 | W132: 0 | X132: 0 | Y132: 0 | Z132: 0 | AA132: 0 | AB132: 0 | AC132: 0 | AD132: 0 | AE132: 0 | AF132: 0 | AG132: 0 | AH132: 0 | AI132: 0 | AJ132: 0 | AK132: 0 | AL132: 0 | AM132: 0 | AN132: 0 | AO132: 0 | AP132: 0 | AQ132: 0 | AR132: 0 | AS132: 0 | AT132: 0 | AU132: 0 | AV132: 0 | AW132: 0 | AX132: 0 | AY132: 0 | AZ132: 0 | BA132: 0 | BB132: 0 | BC132: 0 | BD132: 0 | BE132: 0 | BF132: 0 | BG132: 0 | BH132: 0 | BI132: 0 | BJ132: 0 | BK132: 0 | BL132: 0 | BM132: 0 | BN132: 0 | BO132: 0 | BP132: 0 | BQ132: 0 | BR132: 0
D133: Cash Flow Available for Debt Service | M133: =M131-M132 -> 0 | N133: =N131-N132 -> 0 | O133: 0 | P133: 0 | Q133: 0 | R133: 0 | S133: 0 | T133: 0 | U133: 0 | V133: 0 | W133: 0 | X133: 0 | Y133: 704675.5625 | Z133: 704675.5625 | AA133: 704675.5625 | AB133: 704675.5625 | AC133: 704675.5625 | AD133: 704675.5625 | AE133: 704675.5625 | AF133: 704675.5625 | AG133: 704675.5625 | AH133: 704675.5625 | AI133: 0 | AJ133: 0 | AK133: 0 | AL133: 0 | AM133: 0 | AN133: 0 | AO133: 0 | AP133: 0 | AQ133: 0 | AR133: 0 | AS133: 0 | AT133: 0 | AU133: 0 | AV133: 0 | AW133: 0 | AX133: 0 | AY133: 0 | AZ133: 0 | BA133: 0 | BB133: 0 | BC133: 0 | BD133: 0 | BE133: 0 | BF133: 0 | BG133: 0 | BH133: 0 | BI133: 0 | BJ133: 0 | BK133: 0 | BL133: 0 | BM133: 0 | BN133: 0 | BO133: 0 | BP133: 0 | BQ133: 0 | BR133: 0
C134: Less: Interest | M134: =M126 -> 0 | N134: =N126 -> 0 | O134: 0 | P134: 0 | Q134: 0 | R134: 0 | S134: 0 | T134: 0 | U134: 0 | V134: 0 | W134: 0 | X134: 0 | Y134: 196292.9779 | Z134: 170049.6837 | AA134: 140908.7579 | AB134: 108886.5878 | AC134: 80311.57327 | AD134: 67493.28837 | AE134: 51901.82872 | AF134: 35548.17637 | AG134: 19227.8761 | AH134: 19227.85857 | AI134: 19227.85743 | AJ134: 19227.85743 | AK134: 19227.85744 | AL134: 19227.85744 | AM134: 19227.85745 | AN134: 19227.85746 | AO134: 19227.85746 | AP134: 19227.85747 | AQ134: 19227.85748 | AR134: 19227.85749 | AS134: 19227.8575 | AT134: 19227.85751 | AU134: 19227.85752 | AV134: 19227.85753 | AW134: 19227.85754 | AX134: 19227.85755 | AY134: 19227.85756 | AZ134: 19227.85758 | BA134: 19227.85759 | BB134: 19227.85761 | BC134: 0 | BD134: 0 | BE134: 0 | BF134: 0 | BG134: 0 | BH134: 0 | BI134: 0 | BJ134: 0 | BK134: 0 | BL134: 0 | BM134: 0 | BN134: 0 | BO134: 0 | BP134: 0 | BQ134: 0 | BR134: 0
C135: Less: Senior Repayment | M135: =M94 -> 0 | N135: 0 | O135: 0 | P135: 0 | Q135: 0 | R135: 0 | S135: 0 | T135: 0 | U135: 0 | V135: 0 | W135: 0 | X135: 0 | Y135: 262253.0216 | Z135: 219897.2305 | AA135: 231991.5781 | AB135: 244751.1149 | AC135: 258212.4263 | AD135: 272414.1097 | AE135: 286833.364 | AF135: 303182.8658 | AG135: 0 | AH135: 0 | AI135: 0 | AJ135: 0 | AK135: 0 | AL135: 0 | AM135: 0 | AN135: 0 | AO135: 0 | AP135: 0 | AQ135: 0 | AR135: 0 | AS135: =AS94 -> 0 | AT135: 0 | AU135: 0 | AV135: 0 | AW135: 0 | AX135: 0 | AY135: 0 | AZ135: 0 | BA135: 0 | BB135: 0 | BC135: 0 | BD135: 0 | BE135: 0 | BF135: 0 | BG135: 0 | BH135: 0 | BI135: 0 | BJ135: 0 | BK135: 0 | BL135: 0 | BM135: 0 | BN135: 0 | BO135: 0 | BP135: 0 | BQ135: 0 | BR135: 0
D136: Cash Flow for Mezzanine | M136: =M133-M134-M135 -> 0 | N136: =N133-N134-N135 -> 0 | O136: 0 | P136: 0 | Q136: 0 | R136: 0 | S136: 0 | T136: 0 | U136: 0 | V136: 0 | W136: 0 | X136: 0 | Y136: 246129.563 | Z136: 314728.6483 | AA136: 331775.2265 | AB136: 351037.8598 | AC136: 366151.563 | AD136: 364768.1644 | AE136: 365940.3698 | AF136: 365944.5204 | AG136: 685447.6864 | AH136: 685447.7039 | AI136: -19227.85743 | AJ136: -19227.85743 | AK136: -19227.85744 | AL136: -19227.85744 | AM136: -19227.85745 | AN136: -19227.85746 | AO136: -19227.85746 | AP136: -19227.85747 | AQ136: -19227.85748 | AR136: -19227.85749 | AS136: -19227.8575 | AT136: -19227.85751 | AU136: -19227.85752 | AV136: -19227.85753 | AW136: -19227.85754 | AX136: -19227.85755 | AY136: -19227.85756 | AZ136: -19227.85758 | BA136: -19227.85759 | BB136: -19227.85761 | BC136: 0 | BD136: 0 | BE136: 0 | BF136: 0 | BG136: 0 | BH136: 0 | BI136: 0 | BJ136: 0 | BK136: 0 | BL136: 0 | BM136: 0 | BN136: 0 | BO136: 0 | BP136: 0 | BQ136: 0 | BR136: 0
C137: Less: Sweep on Mezzanine | M137: =MAX(MIN(M136,M105),0) -> 0 | N137: =MAX(MIN(N136,N105),0) -> 0 | O137: 0 | P137: 0 | Q137: 0 | R137: 0 | S137: 0 | T137: 0 | U137: 0 | V137: 0 | W137: 0 | X137: 0 | Y137: 246129.563 | Z137: 314728.6483 | AA137: 331775.2265 | AB137: 248682.899 | AC137: 16164.38843 | AD137: 1050.685248 | AE137: 68.29454113 | AF137: 4.439145173 | AG137: 0.2885444363 | AH137: 0.01875538836 | AI137: 0 | AJ137: 0 | AK137: 0 | AL137: 0 | AM137: 0 | AN137: 0 | AO137: 0 | AP137: 0 | AQ137: 0 | AR137: 0 | AS137: 0 | AT137: 0 | AU137: 0 | AV137: 0 | AW137: 0 | AX137: 0 | AY137: 0 | AZ137: 0 | BA137: 0 | BB137: 0 | BC137: 0 | BD137: 0 | BE137: 0 | BF137: 0 | BG137: 0 | BH137: 0 | BI137: 0 | BJ137: 0 | BK137: 0 | BL137: 0 | BM137: 0 | BN137: 0 | BO137: 0 | BP137: 0 | BQ137: 0 | BR137: 0
D138: Dividends | M138: =M136-M137 -> 0 | N138: =N136-N137 -> 0 | O138: 0 | P138: 0 | Q138: 0 | R138: 0 | S138: 0 | T138: 0 | U138: 0 | V138: 0 | W138: 0 | X138: 0 | Y138: 0 | Z138: 0 | AA138: 0 | AB138: 102354.9609 | AC138: 349987.1746 | AD138: 363717.4792 | AE138: 365872.0752 | AF138: 365940.0812 | AG138: 685447.3979 | AH138: 685447.6852 | AI138: -19227.85743 | AJ138: -19227.85743 | AK138: -19227.85744 | AL138: -19227.85744 | AM138: -19227.85745 | AN138: -19227.85746 | AO138: -19227.85746 | AP138: -19227.85747 | AQ138: -19227.85748 | AR138: -19227.85749 | AS138: -19227.8575 | AT138: -19227.85751 | AU138: -19227.85752 | AV138: -19227.85753 | AW138: -19227.85754 | AX138: -19227.85755 | AY138: -19227.85756 | AZ138: -19227.85758 | BA138: -19227.85759 | BB138: -19227.85761 | BC138: 0 | BD138: 0 | BE138: 0 | BF138: 0 | BG138: 0 | BH138: 0 | BI138: 0 | BJ138: 0 | BK138: 0 | BL138: 0 | BM138: 0 | BN138: 0 | BO138: 0 | BP138: 0 | BQ138: 0 | BR138: 0
D140: Equity Contributed | M140: =-M85 -> -120000 | N140: -120000 | O140: -120000 | P140: -120000 | Q140: -120000 | R140: -120000 | S140: -120000 | T140: -120000 | U140: -120000 | V140: -120000 | W140: -120000 | X140: -120000 | Y140: 0 | Z140: 0 | AA140: 0 | AB140: 0 | AC140: 0 | AD140: 0 | AE140: 0 | AF140: 0 | AG140: 0 | AH140: 0 | AI140: 0 | AJ140: 0 | AK140: 0 | AL140: 0 | AM140: 0 | AN140: 0 | AO140: 0 | AP140: 0 | AQ140: 0 | AR140: 0 | AS140: =-AS85 -> 0 | AT140: 0 | AU140: 0 | AV140: 0 | AW140: 0 | AX140: 0 | AY140: 0 | AZ140: 0 | BA140: 0 | BB140: 0 | BC140: 0 | BD140: 0 | BE140: 0 | BF140: 0 | BG140: 0 | BH140: 0 | BI140: 0 | BJ140: 0 | BK140: 0 | BL140: 0 | BM140: 0 | BN140: 0 | BO140: 0 | BP140: 0 | BQ140: 0 | BR140: 0
D141: Equity Cash Flow | M141: =M138+M140 -> -120000 | N141: =N138+N140 -> -120000 | O141: -120000 | P141: -120000 | Q141: -120000 | R141: -120000 | S141: -120000 | T141: -120000 | U141: -120000 | V141: -120000 | W141: -120000 | X141: -120000 | Y141: 0 | Z141: 0 | AA141: 0 | AB141: 102354.9609 | AC141: 349987.1746 | AD141: 363717.4792 | AE141: 365872.0752 | AF141: 365940.0812 | AG141: 685447.3979 | AH141: 685447.6852 | AI141: -19227.85743 | AJ141: -19227.85743 | AK141: -19227.85744 | AL141: -19227.85744 | AM141: -19227.85745 | AN141: -19227.85746 | AO141: -19227.85746 | AP141: -19227.85747 | AQ141: -19227.85748 | AR141: -19227.85749 | AS141: -19227.8575 | AT141: -19227.85751 | AU141: -19227.85752 | AV141: -19227.85753 | AW141: -19227.85754 | AX141: -19227.85755 | AY141: -19227.85756 | AZ141: -19227.85758 | BA141: -19227.85759 | BB141: -19227.85761 | BC141: 0 | BD141: 0 | BE141: 0 | BF141: 0 | BG141: 0 | BH141: 0 | BI141: 0 | BJ141: 0 | BK141: 0 | BL141: 0 | BM141: 0 | BN141: 0 | BO141: 0 | BP141: 0 | BQ141: 0 | BR141: 0
D143: Equity IRR | H143: =XIRR(M141:BR141,M6:BR6) -> 0.08327375352
D145: Project Cash Flow | H145: =XIRR(M145:BR145,M6:BR6) -> 0.06982557476 | M145: =M131-M75 -> -400000 | N145: -400000 | O145: -400000 | P145: -400000 | Q145: -400000 | R145: -400000 | S145: -400000 | T145: -400000 | U145: -400000 | V145: -400000 | W145: -400000 | X145: -400000 | Y145: 704675.5625 | Z145: 704675.5625 | AA145: 704675.5625 | AB145: 704675.5625 | AC145: 704675.5625 | AD145: 704675.5625 | AE145: 704675.5625 | AF145: 704675.5625 | AG145: 704675.5625 | AH145: 704675.5625 | AI145: 0 | AJ145: 0 | AK145: 0 | AL145: 0 | AM145: 0 | AN145: 0 | AO145: 0 | AP145: 0 | AQ145: 0 | AR145: 0 | AS145: =AS131-AS75 -> 0 | AT145: 0 | AU145: 0 | AV145: 0 | AW145: 0 | AX145: 0 | AY145: 0 | AZ145: 0 | BA145: 0 | BB145: 0 | BC145: 0 | BD145: 0 | BE145: 0 | BF145: 0 | BG145: 0 | BH145: 0 | BI145: 0 | BJ145: 0 | BK145: 0 | BL145: 0 | BM145: 0 | BN145: 0 | BO145: 0 | BP145: 0 | BQ145: 0 | BR145: 0
D147: DSCR | H147: =MIN(M147:BR147) -> 0 | M147: =IFERROR(M133/(M134+M135),FALSE) -> FALSE | N147: =IFERROR(N133/(N134+N135),FALSE) -> FALSE | O147: FALSE | P147: FALSE | Q147: FALSE | R147: FALSE | S147: FALSE | T147: FALSE | U147: FALSE | V147: FALSE | W147: FALSE | X147: FALSE | Y147: 1.536760899 | Z147: 1.807106396 | AA147: 1.889715547 | AB147: 1.992648287 | AC147: 2.081611831 | AD147: 2.073139821 | AE147: 2.080313996 | AF147: 2.080339487 | AG147: 36.64864277 | AH147: 36.64867619 | AI147: 0 | AJ147: 0 | AK147: 0 | AL147: 0 | AM147: 0 | AN147: 0 | AO147: 0 | AP147: 0 | AQ147: 0 | AR147: 0 | AS147: 0 | AT147: 0 | AU147: 0 | AV147: 0 | AW147: 0 | AX147: 0 | AY147: 0 | AZ147: 0 | BA147: 0 | BB147: 0 | BC147: FALSE | BD147: FALSE | BE147: FALSE | BF147: FALSE | BG147: FALSE | BH147: FALSE | BI147: FALSE | BJ147: FALSE | BK147: FALSE | BL147: FALSE | BM147: FALSE | BN147: FALSE | BO147: FALSE | BP147: FALSE | BQ147: FALSE | BR147: FALSE

Sheet Alternate Currency
B1: Timeline | H1: Driver 1 | I1: Driver 2 | J1: Sum
C2: Period | M2: 1 | N2: 2 | O2: 3 | P2: 4 | Q2: 5 | R2: 6 | S2: 7 | T2: 8 | U2: 9 | V2: 10 | W2: 11 | X2: 12 | Y2: 13 | Z2: 14 | AA2: 15 | AB2: 16 | AC2: 17 | AD2: 18 | AE2: 19 | AF2: 20 | AG2: 21 | AH2: 22 | AI2: 23 | AJ2: 24 | AK2: 25 | AL2: 26 | AM2: 27 | AN2: 28 | AO2: 29 | AP2: 30 | AQ2: 31 | AR2: 32 | AS2: 33 | AT2: 34 | AU2: 35 | AV2: 36 | AW2: 37 | AX2: 38 | AY2: 39 | AZ2: 40 | BA2: 41 | BB2: 42
C3: Construction | G3: Flag | H3: =Inputs!F4 -> 12 | M3: =M2<=$H$3 -> TRUE | N3: TRUE | O3: TRUE | P3: TRUE | Q3: TRUE | R3: TRUE | S3: TRUE | T3: TRUE | U3: TRUE | V3: TRUE | W3: TRUE | X3: TRUE | Y3: FALSE | Z3: FALSE | AA3: FALSE | AB3: FALSE | AC3: FALSE | AD3: FALSE | AE3: FALSE | AF3: FALSE | AG3: FALSE | AH3: FALSE | AI3: FALSE | AJ3: FALSE | AK3: FALSE | AL3: FALSE | AM3: FALSE | AN3: FALSE | AO3: FALSE | AP3: FALSE | AQ3: FALSE | AR3: FALSE | AS3: FALSE | AT3: FALSE | AU3: FALSE | AV3: FALSE | AW3: FALSE | AX3: FALSE | AY3: FALSE | AZ3: FALSE | BA3: FALSE | BB3: FALSE
C4: Periods per Year | G4: Months | H4: =Inputs!F12 -> 1 | I4: =Inputs!F11 -> 12 | M4: =IF(M$3,$H4,$I4) -> 1 | N4: 1 | O4: 1 | P4: 1 | Q4: 1 | R4: 1 | S4: 1 | T4: 1 | U4: 1 | V4: 1 | W4: 1 | X4: 1 | Y4: 12 | Z4: 12 | AA4: 12 | AB4: 12 | AC4: 12 | AD4: 12 | AE4: 12 | AF4: 12 | AG4: 12 | AH4: 12 | AI4: 12 | AJ4: 12 | AK4: 12 | AL4: 12 | AM4: 12 | AN4: 12 | AO4: 12 | AP4: 12 | AQ4: 12 | AR4: 12 | AS4: 12 | AT4: 12 | AU4: 12 | AV4: 12 | AW4: 12 | AX4: 12 | AY4: 12 | AZ4: 12 | BA4: 12 | BB4: 12
C5: Start of Period | G5: Date | M5: =L6+1 -> 2020-01-01 | N5: =M6+1 -> 2020-02-01 | O5: 2020-03-01 | P5: 2020-04-01 | Q5: 2020-05-01 | R5: 2020-06-01 | S5: 2020-07-01 | T5: 2020-08-01 | U5: 2020-09-01 | V5: 2020-10-01 | W5: 2020-11-01 | X5: 2020-12-01 | Y5: 2021-01-01 | Z5: 2022-01-01 | AA5: 2023-01-01 | AB5: 2024-01-01 | AC5: 2025-01-01 | AD5: 2026-01-01 | AE5: 2027-01-01 | AF5: 2028-01-01 | AG5: 2029-01-01 | AH5: 2030-01-01 | AI5: 2031-01-01 | AJ5: 2032-01-01 | AK5: 2033-01-01 | AL5: 2034-01-01 | AM5: 2035-01-01 | AN5: 2036-01-01 | AO5: 2037-01-01 | AP5: 2038-01-01 | AQ5: 2039-01-01 | AR5: 2040-01-01 | AS5: 2041-01-01 | AT5: 2042-01-01 | AU5: 2043-01-01 | AV5: 2044-01-01 | AW5: 2045-01-01 | AX5: 2046-01-01 | AY5: 2047-01-01 | AZ5: 2048-01-01 | BA5: 2049-01-01 | BB5: 2050-01-01
C6: End of Period | G6: Date | L6: =Inputs!F3-1 -> 2019-12-31 | M6: =EDATE(M5,M4)-1 -> 2020-01-31 | N6: =EDATE(N5,N4)-1 -> 2020-02-29 | O6: 2020-03-31 | P6: 2020-04-30 | Q6: 2020-05-31 | R6: 2020-06-30 | S6: 2020-07-31 | T6: 2020-08-31 | U6: 2020-09-30 | V6: 2020-10-31 | W6: 2020-11-30 | X6: 2020-12-31 | Y6: 2021-12-31 | Z6: 2022-12-31 | AA6: 2023-12-31 | AB6: 2024-12-31 | AC6: 2025-12-31 | AD6: 2026-12-31 | AE6: 2027-12-31 | AF6: 2028-12-31 | AG6: 2029-12-31 | AH6: 2030-12-31 | AI6: 2031-12-31 | AJ6: 2032-12-31 | AK6: 2033-12-31 | AL6: 2034-12-31 | AM6: 2035-12-31 | AN6: 2036-12-31 | AO6: 2037-12-31 | AP6: 2038-12-31 | AQ6: 2039-12-31 | AR6: 2040-12-31 | AS6: 2041-12-31 | AT6: 2042-12-31 | AU6: 2043-12-31 | AV6: 2044-12-31 | AW6: 2045-12-31 | AX6: 2046-12-31 | AY6: 2047-12-31 | AZ6: 2048-12-31 | BA6: 2049-12-31 | BB6: 2050-12-31
C7: BOT Period | G7: Flag | H7: =Inputs!F5 -> 2021-01-01 | I7: =Inputs!F7 -> 2031-01-01 | M7: =AND(M$5>=$H7,M$5<$I7)*1 -> 0 | N7: =AND(N5>=$H$7,N5<$I$7)*1 -> 0 | O7: 0 | P7: 0 | Q7: 0 | R7: 0 | S7: 0 | T7: 0 | U7: 0 | V7: 0 | W7: 0 | X7: 0 | Y7: 1 | Z7: 1 | AA7: 1 | AB7: 1 | AC7: 1 | AD7: 1 | AE7: 1 | AF7: 1 | AG7: 1 | AH7: 1 | AI7: 0 | AJ7: 0 | AK7: 0 | AL7: 0 | AM7: 0 | AN7: 0 | AO7: 0 | AP7: 0 | AQ7: 0 | AR7: 0 | AS7: 0 | AT7: 0 | AU7: 0 | AV7: 0 | AW7: 0 | AX7: 0 | AY7: 0 | AZ7: 0 | BA7: 0 | BB7: 0
C8: Evaluation Period | G8: Flag | H8: =Inputs!F5 -> 2021-01-01 | I8: =Inputs!F9 -> 2051-01-01 | M8: =AND(M$5>=$H8,M$5<$I8)*1 -> 0 | N8: =AND(N$5>=$H8,N$5<$I8)*1 -> 0 | O8: 0 | P8: 0 | Q8: 0 | R8: 0 | S8: 0 | T8: 0 | U8: 0 | V8: 0 | W8: 0 | X8: 0 | Y8: 1 | Z8: 1 | AA8: 1 | AB8: 1 | AC8: 1 | AD8: 1 | AE8: 1 | AF8: 1 | AG8: 1 | AH8: 1 | AI8: 1 | AJ8: 1 | AK8: 1 | AL8: 1 | AM8: 1 | AN8: 1 | AO8: 1 | AP8: 1 | AQ8: 1 | AR8: 1 | AS8: 1 | AT8: 1 | AU8: 1 | AV8: 1 | AW8: 1 | AX8: 1 | AY8: 1 | AZ8: 1 | BA8: 1 | BB8: 1
C9: Post BOT Period | G9: Flag | M9: =AND(M8,NOT(M7))*1 -> 0 | N9: =AND(N8,NOT(N7))*1 -> 0 | O9: 0 | P9: 0 | Q9: 0 | R9: 0 | S9: 0 | T9: 0 | U9: 0 | V9: 0 | W9: 0 | X9: 0 | Y9: 0 | Z9: 0 | AA9: 0 | AB9: 0 | AC9: 0 | AD9: 0 | AE9: 0 | AF9: 0 | AG9: 0 | AH9: 0 | AI9: 1 | AJ9: 1 | AK9: 1 | AL9: 1 | AM9: 1 | AN9: 1 | AO9: 1 | AP9: 1 | AQ9: 1 | AR9: 1 | AS9: 1 | AT9: 1 | AU9: 1 | AV9: 1 | AW9: 1 | AX9: 1 | AY9: 1 | AZ9: 1 | BA9: 1 | BB9: 1
B11: Exchange Rates and Inflation Rates
C12: Year | L12: =YEAR(L6) -> 2019 | M12: 2020 | N12: 2020 | O12: 2020 | P12: 2020 | Q12: 2020 | R12: 2020 | S12: 2020 | T12: 2020 | U12: 2020 | V12: 2020 | W12: 2020 | X12: 2020 | Y12: 2021 | Z12: 2022 | AA12: 2023 | AB12: 2024 | AC12: 2025 | AD12: 2026 | AE12: 2027 | AF12: 2028 | AG12: 2029 | AH12: 2030 | AI12: 2031 | AJ12: 2032 | AK12: 2033 | AL12: 2034 | AM12: 2035 | AN12: 2036 | AO12: 2037 | AP12: 2038 | AQ12: 2039 | AR12: 2040 | AS12: 2041 | AT12: 2042 | AU12: 2043 | AV12: 2044 | AW12: 2045 | AX12: 2046 | AY12: 2047 | AZ12: 2048 | BA12: 2049 | BB12: 2050
